{"text_format":"1","workbook":"xlsx","n_sheets":48,"sheets":["表紙","取扱基準","災害時注意事項","広告主様へのお願い","広告主様へのお願い (2)","名古屋市","地図（名古屋市）","中区・東区","中村区","西区","北区","千種区","名東区","守山区","昭和区","天白区","瑞穂区","南区","緑区","熱田区・港区","中川区","尾張地区","地図（尾張地区）","一宮市","稲沢市・津島市","愛西市・弥富市・あま市","海部郡・清須市・北名古屋市","西春日井郡・岩倉市・江南市","丹羽郡・犬山市","小牧市","春日井市","瀬戸市・尾張旭市","日進市・豊明市","長久手市・愛知郡","大府市・東海市","知多市・半田市","常滑市・知多郡","三河地区","地図（三河地区）","刈谷市・高浜市・碧南市","安城市・知立市","豊田市","みよし市・岡崎市","額田郡・西尾市・蒲郡市","豊川市","新城市・北設楽郡","豊橋市","田原市"],"not_rendered":{"charts":0,"images":4,"macros":1,"external_links":1,"defined_names":9,"comments":0,"pivot_tables":0},"unopened":[],"bounds":{"document_bytes":16777216,"sheet_cells":100000,"rows_first":2000,"rows_last":500,"rows_between":2000,"halvings":0,"cell_chars":16384,"cell_head_chars":4096},"cells_cut":0,"cells_raw":0,"read":"whole","date_system":"1900"}

{"sheet":"表紙","index":0,"n_rows":15,"n_cols":1,"rows_kept":15,"cut":false,"hidden":false,"merged":[]}
[]
[]
[]
[]
[]
[]
[]
[]
[]
[]
[]
[]
[]
["2025年後期"]
["新聞折込広告紙数表"]

{"sheet":"取扱基準","index":1,"n_rows":49,"n_cols":1,"rows_kept":49,"cut":false,"hidden":false,"merged":[[0,0,0,1],[4,0,4,1],[6,0,6,1]]}
[]
["新聞折込広告取扱基準"]
[]
[]
["　当社は日本新聞協会の「折込広告の取扱基準」および、新聞社の「広告掲載基準」を参考として、折込広告取扱基準を設けております。"]
[]
["　つぎのような折込チラシはお引き受けできかねます。"]
[]
[]
["（1） 広告の内容がはっきりしないもの。および、広告主の所在地、事業所名、ＨＰアドレス等のいずれの記載もなく、広告責任者が明確でないもの。"]
[]
["（2） 虚偽または誇大表現により、誤認されるおそれのあるもの。「日本一」「業界一」等の最高・最大級の表現、「絶対に」「確実に」等、商品の性能、"]
[]
["　　　効能、効果を保証する断定的表現を用いたもの。"]
[]
["（3） 景表法（不当景品付販売・不当表示の禁止）、不正競争防止法（コピー商品等の販売宣伝の禁止）などのほか、薬事法、医療法など法律や条例に"]
[]
["　　　触れると思われるもの。（医薬品等を否定する内容や迷信に類する非科学的な内容のもの等）"]
["　　"]
["（4） 広告主の主観的意見、意図、表現がみられ、他者を誹謗中傷し、結果的に他者の名誉、信用を傷つけるおそれがある表現のもの。（誹謗中傷広告等）"]
["     "]
["（5）「新聞業における公正競争規約」に触れる抽選券・金券などを刷り込んだもの、クーポン付き広告に関する規則、運営細則に違反するもの。"]
["　　　"]
["（6） 政治問題や係争中（もしくは係争が予想される）問題について、一方的な主張を述べたものや、立候補が予定されている人物の名称を記載するなど、"]
[]
["　　　選挙の事前運動と推量されるもの。"]
["　　　"]
["（7） 煽情的な言葉や、写真、イラスト等を用いた表現で、暴力・犯罪を肯定・礼讃するなど、公序良俗に反する表現のもの。"]
["      "]
["（8） 不動産広告で、広告主の名称、所在地、販売物件の所在地、地目、建築の可否、建ぺい率、交通アクセス、価格、管理費、維持費、販売条件、"]
[]
["      宅建業法による免許証番号などが明確に記載されてないもの。"]
["      "]
["（9） 貸金業広告で、貸金業規制法で定められている必要事項が表示されていないもの。 （商号、名称、氏名、登録番号、住所、利率等）"]
["     "]
["（10）発行本社の新聞と混同、誤認されると思われるものや、他紙の社名、題字、記事、催事などが掲載、引用されているもの。"]
[]
["      その他、著作権・肖像権・商標権等を侵害するおそれのあるもの。"]
["　　　"]
["（11）新聞社がそれぞれ定めた広告掲載基準に照らして、新聞折込が不適当と認められるもの。"]
["     "]
["（12）新聞販売店の営業活動に支障をきたし、不利益になると判断されるもの。"]
[]
[]
[]
["■ 上記に限らず、判断がむずかしいものは、新聞発行本社、関係諸機関の指導・協議によって決めさせていただきます。"]
[]
["   なお、ご不明な点がございましたら当社へご相談下さい。"]
["   "]

{"sheet":"災害時注意事項","index":2,"n_rows":49,"n_cols":2,"rows_kept":49,"cut":false,"hidden":false,"merged":[[1,0,1,4],[23,1,23,3],[25,1,25,3]]}
[]
["大規模災害発生時における新聞折込広告の取り扱いについて"]
[]
[]
[null,"大規模な災害（大地震、津波、洪水、豪雪、大火災、大規模停電、火山噴火、原子力発電所の事故、新型感染症の大流行、他国からの攻撃など）に見舞われた"]
[]
[null,"場合、中日新聞折込広告協同組合加盟の折込会社と中日新聞販売店は被災の状況を的確に判断し、折込広告をご愛読者へお届けするために全力を傾注します。"]
[]
[null,"しかしながらライフラインや通信網、輸送ルートなどが遮断され、被災地の新聞販売店や従業員に甚大な被害が及んだ場合は、クライアント様のご要望にお応"]
[]
[null,"えできない場合もあります。"]
[]
[null,"この様に事前の予測と回避が不可能な事態が発生し、折込会社と新聞販売店の努力にも関わらず指定日に新聞折込が出来なかった場合、折込会社と新聞販売店"]
[]
[null,"は一切の責任を負う事ができません。あらかじめご容赦いただきますようお願い申しあげます。"]
["   "]
[]
[]
[]
[]
[]
[]
[]
[null,"東海地震に関する「警戒宣言」発令時の折込広告の取り扱いについて"]
[]
[null,"『大地震への警戒宣言や注意情報が発令された場合、新聞折込広告は中止になります』"]
[]
[]
[null,"　愛知県、三重県の大部分の市町村と岐阜県中津川市は大規模地震対策措置法により、地震防災対策強化地域に指定されています。指定された地域で大規"]
[]
[null,"　模な地震の発生が予知されますと、内閣総理大臣から警戒宣言が発令されることになっています。また東海地震の前兆現象が高まると、気象庁から注意"]
[]
[null,"　情報が発表されます。"]
[]
[null,"　警戒宣言発令後は交通規制が始まり、指定地域内へ車両の進入が禁止されるほか、一般の道路も時速20㎞に速度制限されるため大渋滞の発生が予想され"]
[]
[null,"　ます。"]
[]
[null,"　このため東海地震の注意情報や警戒宣言の発令と同時に、お客様からお預かりした新聞折込広告の配送作業は「中止」させていただきます。配送中の車"]
[]
[null,"　両に対しては折込広告をお預かりした状態ですみやかに帰社するように指示しますが、交通事情と警察官の指示によって止むを得ず路上に駐車し避難し"]
[]
[null,"　なければならない事も想定されます。"]
[]
[null,"　すでに配送が完了した新聞折込広告も、新聞販売店での組み込み作業が「中止」になり新聞折込ができなくなります。幸い注意情報や警戒宣言が解除"]
[]
[null,"　された場合も、混乱が解消するまでしばらくの間は新聞折込ができない場合もあります。"]
[]
[null,"　何卒ご理解とご了承をいただけますようお願いいたします。"]

{"sheet":"広告主様へのお願い","index":3,"n_rows":52,"n_cols":2,"rows_kept":52,"cut":false,"hidden":false,"merged":[[1,0,1,5],[17,1,17,2]]}
[]
["広告主様へのお願い"]
[]
["1. 配布明細の連絡について"]
[]
["　　折込先配布明細のご指示は、ＦＡＸまたはメールで必ずチラシの搬入期日以前にご連絡下さい。"]
[]
["　　折込広告は、発送配布の都合上、50枚を単位として扱います。"]
[]
["　　配布指定部数と実際の部数が異なるときは、当社において一部配布数の変更、隣接地区への配布など、調整を行わせて頂く場合があります。"]
[]
["　　配布明細連絡をいただく際、正確なサイズをご指示願います。"]
[]
["　　※ 特に普通紙と厚紙の紙区別は注意して下さい。（四六版　110㎏より厚紙扱いとなります）"]
[]
["　　※ 新聞に収まる形状が原則ですが、例えばＢ４二ツ折の場合は二ツ折（Ｂ３）単価の適用となります。"]
[]
[null,"合売記号の見方"]
[]
[]
[null,"　　C…中日　　　N…日経　　　A…朝日　　　M…毎日　　　Y…読売　　 G…岐阜　　　I…伊勢　　　S…産経"]
[]
[]
[null,"合売店については、取扱い部数が多い媒体の欄に記載となります。"]
[]
[null,"☆…月曜日折込不可"]
[]
[null,"△…折込日が休刊日翌日の場合、先送り地区"]
[]
[]
["2. 折込広告の搬入時間について"]
[]
["　　※ 折込日2日前ＡＭ10時（日・祝日除く）までに搬入して下さい。但し下記地区は3日前ＡＭ10時（日・祝日除く）までに搬入して下さい。"]
[]
["　　　 田原市、新城市（設楽地区）、北設楽郡、三重県南勢地区"]
[]
["　　　（上記以外の場合は随時お問い合わせ下さい。）"]
[]
["　　※ 搬入時間を外れた持込みおよび、配布明細の事前連絡のない場合、折込指定日の責は負いかねます。"]
[]
["　　※ 折込広告の各新聞店への発送後の中止、変更等は出来かねます。"]
[]
["　　※ 年末年始、ゴールデンウィーク、お盆期間等については変則となります。"]
[]
[]
["3. 行政区表示について"]
[]
["　　紙数表は実際の行政区と異なる地区もあります。資料は参考として掲載してありますので行政区へ指定・限定とした場合、"]
[]
["　　一部区域が入らない時と指定以外の地区に入ったりする場合が生じますので事前に当社までご相談下さい。"]
[]
["    "]

{"sheet":"広告主様へのお願い (2)","index":4,"n_rows":52,"n_cols":2,"rows_kept":52,"cut":false,"hidden":false,"merged":[[9,1,9,3],[10,1,10,3],[15,1,15,3],[16,1,16,3]]}
[]
["4. 月曜日および新聞休刊日の翌日は、一部地域において、折込できないところがあります。（下記一覧表参照）"]
[]
["　　また選挙の開票報道等の都合で、新聞が遅れるときは、折込できません。"]
[]
["　　※下記の地区または販売店は地域事情などにより折込の条件が異なります。ご注意ください。"]
[]
[null,"①月曜日折込不可"]
[]
[null,"　該当販売店"]
[null,"　岐阜県郡上市：正ヶ洞　　　岐阜県高山市：国府"]
[]
[]
[null,"②休刊日翌日折込が先送りとなる地区"]
[]
[null,"　該当地区"]
[null,"　愛知県新城市（設楽地区）　　　北設楽郡"]
[]
[]
["5. パンフレット・小冊子に類するもの等は、その形状・内容により判断させて頂きます。"]
[]
[]
["6. 二つ以上の事業所が連合（連名）して行う広告は、連合広告となり、一部地区で料金が異なったり、取り扱い不可となる場合があります。"]
[]
["　　必ず事前にご相談下さい。内容により判断させて頂きます。"]
[]
[]
["　　〈適用外〉"]
[]
["　　・実在する商店街、夏祭り等実行委員会、テナント、ショッピングモール等。"]
[]
["　　・パチンコ・映画館・サウナなど、同じ敷地にある複合施設。"]
[]
["　　・オーナーが同一の企業グループ広告。"]
[]
["　　・複数企業が業務提携や同一テーマに基づき共同制作したコラボレーション広告。"]
[]
["　　（但し、連絡先などの記載は広告責任者1社に限る。）　"]
[]
["　　・雑誌・情報誌が、自誌ＰＲを目的に実際の誌面を使用再構成した広告。"]
[]
["　　・落成広告（企業名を掲載する企業が協賛企業であり、営利目的でないこと）"]
[]
["   "]
["7. 折込広告の在庫管理に関して"]
[]
["　　次回以降の折込広告も同時に持ち込まれるお客様に対しましては、弊社配送センターにて"]
[]
["　　預かりを承りますが、保管期間は原則１ヶ月とさせて頂きます。"]
[]
["     "]
["8. 全国取り次ぎを行っております。ご用の際はご相談下さい。"]

{"sheet":"名古屋市","index":5,"n_rows":28,"n_cols":23,"rows_kept":28,"cut":false,"hidden":false,"merged":[[3,16,3,18],[0,7,0,13],[1,15,1,17],[0,19,1,20],[26,19,26,20],[23,19,25,20],[22,19,22,20],[4,19,19,20],[3,19,3,20],[20,19,20,20],[3,4,3,6],[22,16,22,18],[1,7,1,13],[0,1,1,4],[3,1,3,3],[3,7,3,9],[1,5,1,6],[0,5,0,6],[3,10,3,12],[22,1,22,3],[22,4,22,6],[22,7,22,9],[22,10,22,12],[22,13,22,15],[0,15,0,17],[3,13,3,15]]}
["折込日",null,null,null,null,"広告主",null,null,null,null,null,null,null,null,"サイズ",null,null,null,"取次店"]
[null,null,null,null,null,"チラシ銘柄",null,null,null,null,null,null,null,null,"部数",{"$f":"S27","v":0}]
["名古屋市",null,null,null,null,null,null,null,null,null,null,null,null,null,null,null,null,null,null,null,"2025年後期（8月1日以降）"]
["地区","中日新聞",null,null,"朝日新聞",null,null,"毎日新聞",null,null,"読売新聞",null,null,null,null,null,"合　　計",null,null,"備考"]
["中区",{"$f":"VALUE(TRIM(LEFT(中区・東区!E26,2)))","v":8},{"$f":"中区・東区!F26","v":11650},{"$f":"中区・東区!G26","v":0},{"$f":"VALUE(TRIM(LEFT(中区・東区!I26,2)))","v":5},{"$f":"中区・東区!J26","v":2650},{"$f":"中区・東区!K26","v":0},{"$f":"VALUE(TRIM(LEFT(中区・東区!M26,2)))","v":4},{"$f":"中区・東区!N26","v":1600},{"$f":"中区・東区!O26","v":0},{"$f":"VALUE(TRIM(LEFT(中区・東区!Q26,2)))","v":5},{"$f":"中区・東区!R26","v":2350},{"$f":"中区・東区!S26","v":0},{"$f":"VALUE(TRIM(LEFT(中区・東区!U26,2)))","v":0},{"$f":"中区・東区!V26","v":0},{"$f":"中区・東区!W26","v":0},{"$f":"SUM(B5,E5,H5,K5,N5)","v":22},{"$f":"SUM(C5,F5,I5,L5,O5)","v":18250},{"$f":"IFERROR((SUM(D5,G5,J5,M5,P5)),\" \")","v":0}]
["東区",{"$f":"VALUE(TRIM(LEFT(中区・東区!E48,2)))","v":8},{"$f":"中区・東区!F48","v":11350},{"$f":"中区・東区!G48","v":0},{"$f":"VALUE(TRIM(LEFT(中区・東区!I48,2)))","v":3},{"$f":"中区・東区!J48","v":1450},{"$f":"中区・東区!K48","v":0},{"$f":"VALUE(TRIM(LEFT(中区・東区!M48,2)))","v":1},{"$f":"中区・東区!N48","v":400},{"$f":"中区・東区!O48","v":0},{"$f":"VALUE(TRIM(LEFT(中区・東区!Q48,2)))","v":3},{"$f":"中区・東区!R48","v":1350},{"$f":"中区・東区!S48","v":0},{"$f":"VALUE(TRIM(LEFT(中区・東区!U48,2)))","v":0},{"$f":"中区・東区!V48","v":0},{"$f":"中区・東区!W48","v":0},15,14550,{"$f":"IFERROR((SUM(D6,G6,J6,M6,P6)),\" \")","v":0}]
["中村区",{"$f":"VALUE(TRIM(LEFT(中村区!E48,2)))","v":11},{"$f":"中村区!F48","v":22100},{"$f":"中村区!G48","v":0},{"$f":"VALUE(TRIM(LEFT(中村区!I48,2)))","v":4},{"$f":"中村区!J48","v":2300},{"$f":"中村区!K48","v":0},{"$f":"VALUE(TRIM(LEFT(中村区!M48,2)))","v":2},{"$f":"中村区!N48","v":500},{"$f":"中村区!O48","v":0},{"$f":"VALUE(TRIM(LEFT(中村区!Q48,2)))","v":5},{"$f":"中村区!R48","v":2350},{"$f":"中村区!S48","v":0},{"$f":"VALUE(TRIM(LEFT(中村区!U48,2)))","v":0},{"$f":"中村区!V48","v":0},{"$f":"中村区!W48","v":0},22,27250,0]
["西区",{"$f":"VALUE(TRIM(LEFT(西区!E48,2)))","v":14},{"$f":"西区!F48","v":23100},{"$f":"西区!G48","v":0},{"$f":"VALUE(TRIM(LEFT(西区!I48,2)))","v":4},{"$f":"西区!J48","v":2100},{"$f":"西区!K48","v":0},{"$f":"VALUE(TRIM(LEFT(西区!M48,2)))","v":0},{"$f":"西区!N48","v":0},{"$f":"西区!O48","v":0},{"$f":"VALUE(TRIM(LEFT(西区!Q48,2)))","v":5},{"$f":"西区!R48","v":1950},{"$f":"西区!S48","v":0},{"$f":"VALUE(TRIM(LEFT(西区!U48,2)))","v":0},{"$f":"西区!V48","v":0},{"$f":"西区!W48","v":0},23,27150,0]
["北区",{"$f":"VALUE(TRIM(LEFT(北区!E48,2)))","v":16},{"$f":"北区!F48","v":25900},{"$f":"北区!G48","v":0},{"$f":"VALUE(TRIM(LEFT(北区!I48,2)))","v":3},{"$f":"北区!J48","v":2050},{"$f":"北区!K48","v":0},{"$f":"VALUE(TRIM(LEFT(北区!M48,2)))","v":0},{"$f":"北区!N48","v":0},{"$f":"北区!O48","v":0},{"$f":"VALUE(TRIM(LEFT(北区!Q48,2)))","v":4},{"$f":"北区!R48","v":1900},{"$f":"北区!S48","v":0},{"$f":"VALUE(TRIM(LEFT(北区!U48,2)))","v":0},{"$f":"北区!V48","v":0},{"$f":"北区!W48","v":0},23,29850,0]
["千種区",{"$f":"VALUE(TRIM(LEFT(千種区!E48,2)))","v":11},{"$f":"千種区!F48","v":22250},{"$f":"千種区!G48","v":0},{"$f":"VALUE(TRIM(LEFT(千種区!I48,2)))","v":4},{"$f":"千種区!J48","v":4100},{"$f":"千種区!K48","v":0},{"$f":"VALUE(TRIM(LEFT(千種区!M48,2)))","v":0},{"$f":"千種区!N48","v":0},{"$f":"千種区!O48","v":0},{"$f":"VALUE(TRIM(LEFT(千種区!Q48,2)))","v":5},{"$f":"千種区!R48","v":2050},{"$f":"千種区!S48","v":0},{"$f":"VALUE(TRIM(LEFT(千種区!U48,2)))","v":0},{"$f":"千種区!V48","v":0},{"$f":"千種区!W48","v":0},20,28400,0]
["名東区",{"$f":"VALUE(TRIM(LEFT(名東区!E48,2)))","v":13},{"$f":"名東区!F48","v":25250},{"$f":"名東区!G48","v":0},{"$f":"VALUE(TRIM(LEFT(名東区!I48,2)))","v":4},{"$f":"名東区!J48","v":4900},{"$f":"名東区!K48","v":0},{"$f":"VALUE(TRIM(LEFT(名東区!M48,2)))","v":0},{"$f":"名東区!N48","v":0},{"$f":"名東区!O48","v":0},{"$f":"VALUE(TRIM(LEFT(名東区!Q48,2)))","v":4},{"$f":"名東区!R48","v":2400},{"$f":"名東区!S48","v":0},{"$f":"VALUE(TRIM(LEFT(名東区!U48,2)))","v":0},{"$f":"名東区!V48","v":0},{"$f":"名東区!W48","v":0},21,32550,0]
["守山区",{"$f":"VALUE(TRIM(LEFT(守山区!E48,2)))","v":8},{"$f":"守山区!F48","v":25600},{"$f":"守山区!G48","v":0},{"$f":"VALUE(TRIM(LEFT(守山区!I48,2)))","v":5},{"$f":"守山区!J48","v":1700},{"$f":"守山区!K48","v":0},{"$f":"VALUE(TRIM(LEFT(守山区!M48,2)))","v":0},{"$f":"守山区!N48","v":0},{"$f":"守山区!O48","v":0},{"$f":"VALUE(TRIM(LEFT(守山区!Q48,2)))","v":5},{"$f":"守山区!R48","v":1800},{"$f":"守山区!S48","v":0},{"$f":"VALUE(TRIM(LEFT(守山区!U48,2)))","v":0},{"$f":"守山区!V48","v":0},{"$f":"守山区!W48","v":0},18,29100,0]
["昭和区",{"$f":"VALUE(TRIM(LEFT(昭和区!E48,2)))","v":8},{"$f":"昭和区!F48","v":16650},{"$f":"昭和区!G48","v":0},{"$f":"VALUE(TRIM(LEFT(昭和区!I48,2)))","v":5},{"$f":"昭和区!J48","v":2300},{"$f":"昭和区!K48","v":0},{"$f":"VALUE(TRIM(LEFT(昭和区!M48,2)))","v":0},{"$f":"昭和区!N48","v":0},{"$f":"昭和区!O48","v":0},{"$f":"VALUE(TRIM(LEFT(昭和区!Q48,2)))","v":3},{"$f":"昭和区!R48","v":1200},{"$f":"昭和区!S48","v":0},{"$f":"VALUE(TRIM(LEFT(昭和区!U48,2)))","v":0},{"$f":"昭和区!V48","v":0},{"$f":"昭和区!W48","v":0},16,20150,0]
["天白区",{"$f":"VALUE(TRIM(LEFT(天白区!E48,2)))","v":11},{"$f":"天白区!F48","v":23900},{"$f":"天白区!G48","v":0},{"$f":"VALUE(TRIM(LEFT(天白区!I48,2)))","v":6},{"$f":"天白区!J48","v":2800},{"$f":"天白区!K48","v":0},{"$f":"VALUE(TRIM(LEFT(天白区!M48,2)))","v":1},{"$f":"天白区!N48","v":50},{"$f":"天白区!O48","v":0},{"$f":"VALUE(TRIM(LEFT(天白区!Q48,2)))","v":4},{"$f":"天白区!R48","v":2250},{"$f":"天白区!S48","v":0},{"$f":"VALUE(TRIM(LEFT(天白区!U48,2)))","v":0},{"$f":"天白区!V48","v":0},{"$f":"天白区!W48","v":0},22,29000,0]
["瑞穂区",{"$f":"VALUE(TRIM(LEFT(瑞穂区!E48,2)))","v":9},{"$f":"瑞穂区!F48","v":16450},{"$f":"瑞穂区!G48","v":0},{"$f":"VALUE(TRIM(LEFT(瑞穂区!I48,2)))","v":3},{"$f":"瑞穂区!J48","v":2350},{"$f":"瑞穂区!K48","v":0},{"$f":"VALUE(TRIM(LEFT(瑞穂区!M48,2)))","v":0},{"$f":"瑞穂区!N48","v":0},{"$f":"瑞穂区!O48","v":0},{"$f":"VALUE(TRIM(LEFT(瑞穂区!Q48,2)))","v":2},{"$f":"瑞穂区!R48","v":700},{"$f":"瑞穂区!S48","v":0},{"$f":"VALUE(TRIM(LEFT(瑞穂区!U48,2)))","v":0},{"$f":"瑞穂区!V48","v":0},{"$f":"瑞穂区!W48","v":0},14,19500,0]
["南区",{"$f":"VALUE(TRIM(LEFT(南区!E48,2)))","v":13},{"$f":"南区!F48","v":22700},{"$f":"南区!G48","v":0},{"$f":"VALUE(TRIM(LEFT(南区!I48,2)))","v":4},{"$f":"南区!J48","v":1850},{"$f":"南区!K48","v":0},{"$f":"VALUE(TRIM(LEFT(南区!M48,2)))","v":1},{"$f":"南区!N48","v":450},{"$f":"南区!O48","v":0},{"$f":"VALUE(TRIM(LEFT(南区!Q48,2)))","v":6},{"$f":"南区!R48","v":2600},{"$f":"南区!S48","v":0},{"$f":"VALUE(TRIM(LEFT(南区!U48,2)))","v":0},{"$f":"南区!V48","v":0},{"$f":"南区!W48","v":0},24,27600,0]
["緑区",{"$f":"VALUE(TRIM(LEFT(緑区!E48,2)))","v":20},{"$f":"緑区!F48","v":36150},{"$f":"緑区!G48","v":0},{"$f":"VALUE(TRIM(LEFT(緑区!I48,2)))","v":6},{"$f":"緑区!J48","v":5100},{"$f":"緑区!K48","v":0},{"$f":"VALUE(TRIM(LEFT(緑区!M48,2)))","v":3},{"$f":"緑区!N48","v":1300},{"$f":"緑区!O48","v":0},{"$f":"VALUE(TRIM(LEFT(緑区!Q48,2)))","v":2},{"$f":"緑区!R48","v":1300},{"$f":"緑区!S48","v":0},{"$f":"VALUE(TRIM(LEFT(緑区!U48,2)))","v":0},{"$f":"緑区!V48","v":0},{"$f":"緑区!W48","v":0},31,43850,0]
["熱田区",{"$f":"VALUE(TRIM(LEFT(熱田区・港区!E21,2)))","v":5},{"$f":"熱田区・港区!F21","v":10150},{"$f":"熱田区・港区!G21","v":0},{"$f":"VALUE(TRIM(LEFT(熱田区・港区!I21,2)))","v":2},{"$f":"熱田区・港区!J21","v":950},{"$f":"熱田区・港区!K21","v":0},{"$f":"VALUE(TRIM(LEFT(熱田区・港区!M21,2)))","v":0},{"$f":"熱田区・港区!N21","v":0},{"$f":"熱田区・港区!O21","v":0},{"$f":"VALUE(TRIM(LEFT(熱田区・港区!Q21,2)))","v":3},{"$f":"熱田区・港区!R21","v":2150},{"$f":"熱田区・港区!S21","v":0},{"$f":"VALUE(TRIM(LEFT(熱田区・港区!U21,2)))","v":0},{"$f":"熱田区・港区!V21","v":0},{"$f":"熱田区・港区!W21","v":0},10,13250,0]
["港区",{"$f":"VALUE(TRIM(LEFT(熱田区・港区!E48,2)))","v":12},{"$f":"熱田区・港区!F48","v":19700},{"$f":"熱田区・港区!G48","v":0},{"$f":"VALUE(TRIM(LEFT(熱田区・港区!I48,2)))","v":2},{"$f":"熱田区・港区!J48","v":650},{"$f":"熱田区・港区!K48","v":0},{"$f":"VALUE(TRIM(LEFT(熱田区・港区!M48,2)))","v":0},{"$f":"熱田区・港区!N48","v":0},{"$f":"熱田区・港区!O48","v":0},{"$f":"VALUE(TRIM(LEFT(熱田区・港区!Q48,2)))","v":4},{"$f":"熱田区・港区!R48","v":1600},{"$f":"熱田区・港区!S48","v":0},{"$f":"VALUE(TRIM(LEFT(熱田区・港区!U48,2)))","v":0},{"$f":"熱田区・港区!V48","v":0},{"$f":"熱田区・港区!W48","v":0},18,21950,0]
["中川区",{"$f":"VALUE(TRIM(LEFT(中川区!E48,2)))","v":19},{"$f":"中川区!F48","v":32550},{"$f":"中川区!G48","v":0},{"$f":"VALUE(TRIM(LEFT(中川区!I48,2)))","v":3},{"$f":"中川区!J48","v":1200},{"$f":"中川区!K48","v":0},{"$f":"VALUE(TRIM(LEFT(中川区!M48,2)))","v":0},{"$f":"中川区!N48","v":0},{"$f":"中川区!O48","v":0},{"$f":"VALUE(TRIM(LEFT(中川区!Q48,2)))","v":4},{"$f":"中川区!R48","v":2850},{"$f":"中川区!S48","v":0},{"$f":"VALUE(TRIM(LEFT(中川区!U48,2)))","v":0},{"$f":"中川区!V48","v":0},{"$f":"中川区!W48","v":0},26,36600,0]
["合計",{"$f":"SUM(B5:B20)","v":186},345450,0,63,38450,0,12,4300,0,64,30800,0,{"$f":"SUM(N5:N20)","v":0},{"$f":"SUM(O5:O20)","v":0},null,{"$f":"SUM(Q5:Q20)","v":325},{"$f":"SUM(R5:R20)","v":419000},{"$f":"SUM(S5:S20)","v":0}]
[]
["愛知県合計","中日新聞",null,null,"朝日新聞",null,null,"毎日新聞",null,null,"読売新聞",null,null,null,null,null,"合　　計",null,null,"備　　考"]
["名古屋市",{"$f":"B21","v":186},345450,0,63,38450,0,12,4300,0,{"$f":"SUM(K21)","v":64},30800,0,0,0,0,325,419000,0]
["尾張地区",{"$f":"尾張地区!B37","v":231},{"$f":"尾張地区!C37","v":451300},{"$f":"尾張地区!D37","v":0},{"$f":"尾張地区!E37","v":69},{"$f":"尾張地区!F37","v":44500},{"$f":"尾張地区!G37","v":0},{"$f":"尾張地区!H37","v":10},{"$f":"尾張地区!I37","v":3950},{"$f":"尾張地区!J37","v":0},{"$f":"尾張地区!K37","v":54},{"$f":"尾張地区!L37","v":25050},{"$f":"尾張地区!M37","v":0},{"$f":"尾張地区!N37","v":0},{"$f":"尾張地区!O37","v":0},{"$f":"尾張地区!P37","v":0},{"$f":"尾張地区!Q37","v":364},{"$f":"尾張地区!R37","v":524800},{"$f":"W25","v":0},null,null,null,{"$f":"IFERROR(尾張地区!S37,\" \")","v":0}]
["三河地区",{"$f":"三河地区!B26","v":178},{"$f":"三河地区!C26","v":356550},{"$f":"三河地区!D26","v":0},{"$f":"三河地区!E26","v":39},{"$f":"三河地区!F26","v":30100},{"$f":"三河地区!G26","v":0},{"$f":"三河地区!H26","v":3},{"$f":"三河地区!I26","v":2050},{"$f":"三河地区!J26","v":0},{"$f":"三河地区!K26","v":48},{"$f":"三河地区!L26","v":20600},{"$f":"三河地区!M26","v":0},{"$f":"三河地区!N26","v":0},{"$f":"三河地区!O26","v":0},{"$f":"三河地区!P26","v":0},{"$f":"三河地区!Q26","v":268},{"$f":"三河地区!R26","v":409300},{"$f":"W26","v":0},null,null,null,{"$f":"IFERROR(三河地区!S26,\" \")","v":0}]
["合計",{"$f":"SUM(B24:B26)","v":595},{"$f":"SUM(C24:C26)","v":1153300},{"$f":"SUM(D24:D26)","v":0},171,113050,0,25,10300,0,{"$f":"SUM(K24:K26)","v":166},76450,0,0,0,0,957,1353100,0]
[null,null,null,null,null,null,null,null,null,null,null,null,null,null,null,null,null,null,null,null,"㈱中日総合サービス"]

{"sheet":"地図（名古屋市）","index":6,"n_rows":0,"n_cols":0,"rows_kept":0,"cut":false,"hidden":false,"merged":[]}

{"sheet":"中区・東区","index":7,"n_rows":49,"n_cols":24,"rows_kept":49,"cut":false,"hidden":false,"merged":[[3,15,3,17],[3,19,3,21],[27,0,27,1],[27,3,27,5],[27,7,27,9],[27,11,27,13],[27,15,27,17],[27,19,27,21],[2,9,2,10],[3,0,3,1],[3,3,3,5],[3,7,3,9],[3,11,3,13],[0,1,1,4],[0,17,0,20],[0,22,1,23],[1,17,1,20],[1,5,1,6],[0,5,0,6],[1,8,1,14],[0,8,0,14]]}
["折込日",null,null,null,null,"広告主",null,null,null,null,null,null,null,null,null,null,"サイズ",null,null,null,null,"取次店"]
[null,null,null,null,null,"チラシ銘柄",null,null,null,null,null,null,null,null,null,null,"部数",{"$f":"A6+A30","v":0}]
[]
["地区",null,null,"中日新聞",null,null,"枚数","朝日新聞",null,null,"枚数","毎日新聞",null,null,"枚数","読売新聞",null,null,"枚数",null,null,null,null,"備考"]
["中区",null,"*1",230165113101,"新栄NS",1000,null,230165213201,"瓦町",300,null,230165313301,"中区名城",250,null,230165413501,"栄中央",1350,null,230165513601,null,null,null,"中区全域の場合"]
[{"$f":"SUM(G26,K26,O26,S26,W26)","v":0},{"$f":"SUM(F26,J26,N26,R26,V26)","v":18250},0,230165113102,"中部NS",900,null,230165213202,"大須",650,null,230165313302,"栄町",550,null,230165413502,"女子大小路",250,null,null,null,null,null,"東区葵250枚"]
[null,null,"*2",230165113104,"久屋大通NS",3300,null,230165213203,"広小路",450,null,230165313303,"新栄",500,null,230165413504,"飯田町",300,null,null,null,null,null,"東区高岳50枚"]
[null,null,null,230165113106,"瓦町N",1000,null,230165213205,"市内金山",250,null,230165313305,"名駅南・丸の内",300,null,230165413505,"大須",400,null,null,null,null,null,"中村区名駅1,700枚"]
[null,null,0,230165113109,"上前津NS",1550,null,230165213204,"中栄",1000,null,null,null,"",null,230165413506,"新栄",50,null,null,null,null,null,"西区浅間町600枚"]
[null,null,0,230165113110,"橘N",1200,null,null,null,"",null,null,null,"",null,null,null,"",null,null,null,null,null,"をプラス"]
[null,null,0,230165113111,"正木N",850,null,null,null,"",null,null,null,"",null,null,null,""]
[null,null,null,230165113112,"市内金山NMS",1850,null,null,null,"",null,null,null,"",null,null,null,"",null,null,null,null,null,"*1千種区50枚含む"]
[null,null,0,null,null,"",null,null,null,"",null,null,null,"",null,null,null,"",null,null,null,null,null,0]
[null,null,null,null,null,"",null,null,null,"",null,null,null,"",null,null,null,"",null,null,null,null,null,"*2東区1,550枚含む"]
[null,null,null,null,null,"",null,null,null,"",null,null,null,"",null,null,null,""]
[null,null,null,null,null,"",null,null,null,"",null,null,null,"",null,null,null,"",null,null,null,null,null,0]
[null,null,null,null,null,"",null,null,null,"",null,null,null,"",null,null,null,""]
[null,null,null,null,null,"",null,null,null,"",null,null,null,"",null,null,null,""]
[null,null,null,null,null,"",null,null,null,"",null,null,null,"",null,null,null,""]
[null,null,null,null,null,"",null,null,null,"",null,null,null,"",null,null,null,"",null,null,null,null,null,0]
[null,null,null,null,null,"",null,null,null,"",null,null,null,"",null,null,null,"",null,null,null,null,null,0]
[null,null,null,null,null,"",null,null,null,"",null,null,null,"",null,null,null,"",null,null,null,null,null,0]
[null,null,null,null,null,"",null,null,null,"",null,null,null,"",null,null,null,"",null,null,null,null,null,0]
[null,null,null,null,null,"",null,null,null,"",null,null,null,"",null,null,null,"",null,null,null,null,null,0]
[null,null,null,null,null,"",null,null,null,"",null,null,null,"",null,null,null,"",null,null,null,null,null,0]
[null,null,null,null,{"$f":"CONCATENATE(FIXED(COUNTA(E5:E25),0,0),\"　店\")","v":"8　店"},{"$f":"SUM(F5:F25)","v":11650},{"$f":"SUM(G5:G25)","v":0},null,{"$f":"CONCATENATE(FIXED(COUNTA(I5:I25),0,0),\"　店\")","v":"5　店"},{"$f":"SUM(J5:J25)","v":2650},{"$f":"SUM(K5:K25)","v":0},null,{"$f":"CONCATENATE(FIXED(COUNTA(M5:M25),0,0),\"　店\")","v":"4　店"},{"$f":"SUM(N5:N25)","v":1600},{"$f":"SUM(O5:O25)","v":0},null,{"$f":"CONCATENATE(FIXED(COUNTA(Q5:Q25),0,0),\"　店\")","v":"5　店"},{"$f":"SUM(R5:R25)","v":2350},{"$f":"SUM(S5:S25)","v":0},null,{"$f":"CONCATENATE(FIXED(COUNTA(U5:U25),0,0),\"　店\")","v":"0　店"},{"$f":"SUM(V5:V25)","v":0},{"$f":"SUM(W5:W25)","v":0},{"$f":"SUM(X5:X25)","v":0}]
[]
["地区",null,null,"中日新聞",null,null,"枚数","朝日新聞",null,null,"枚数","毎日新聞",null,null,"枚数","読売新聞",null,null,"枚数",null,null,null,null,"備考"]
["東区",null,"*1",230160112101,"大曽根NMS",1400,null,230160212201,"主税町",350,null,230160312302,"東区名城",400,null,230160412501,"矢田",600,null,null,null,null,null,"東区全域の場合"]
[{"$f":"SUM(G48,K48,O48,S48,W48)","v":0},{"$f":"SUM(F48,J48,N48,R48,V48)","v":14550},"*2",230160112102,"赤塚N",1300,null,230160212202,"徳川",450,null,null,null,"",null,230160412502,"泉・栄",550,null,null,null,null,null,"中区久屋大通1,550枚"]
[null,null,0,230160112105,"矢田NMS",1400,null,230160212203,"大松",650,null,null,null,"",null,230160412503,"大幸町",200,null,null,null,null,null,"北区杉村550枚"]
[null,null,"*3",230160112106,"葵NM",1400,null,null,null,"",null,null,null,"",null,null,null,"",null,null,null,null,null,"北区柳原・主税町300枚"]
[null,null,0,230160112107,"布池NMS",1550,null,null,null,"",null,null,null,"",null,null,null,"",null,null,null,null,null,"をプラス"]
[null,null,"*4",230160112109,"高岳N",1050,null,null,null,"",null,null,null,"",null,null,null,"",null,null,null,null,null,"*1北区700枚含む"]
[null,null,0,230160112110,"大幸NMS",1500,null,null,null,"",null,null,null,"",null,null,null,"",null,null,null,null,null,0]
[null,null,0,230160112111,"明倫NMS",1750,null,null,null,"",null,null,null,"",null,null,null,"",null,null,null,null,null,"*2北区50枚含む"]
[null,null,null,null,null,"",null,null,null,"",null,null,null,"",null,null,null,"",null,null,null,null,null,0]
[null,null,null,null,null,"",null,null,null,"",null,null,null,"",null,null,null,"",null,null,null,null,null,"*3中区250枚含む"]
[null,null,null,null,null,"",null,null,null,"",null,null,null,"",null,null,null,"",null,null,null,null,null,0]
[null,null,null,null,null,"",null,null,null,"",null,null,null,"",null,null,null,"",null,null,null,null,null,"*4中区50枚含む"]
[null,null,null,null,null,"",null,null,null,"",null,null,null,"",null,null,null,""]
[null,null,null,null,null,"",null,null,null,"",null,null,null,"",null,null,null,"",null,null,null,null,null,0]
[null,null,null,null,null,"",null,null,null,"",null,null,null,"",null,null,null,""]
[null,null,null,null,null,"",null,null,null,"",null,null,null,"",null,null,null,""]
[null,null,null,null,null,"",null,null,null,"",null,null,null,"",null,null,null,""]
[null,null,null,null,null,"",null,null,null,"",null,null,null,"",null,null,null,""]
[null,null,null,null,null,"",null,null,null,"",null,null,null,"",null,null,null,""]
[null,null,null,null,{"$f":"CONCATENATE(FIXED(COUNTA(E29:E47),0,0),\"　店\")","v":"8　店"},{"$f":"SUM(F29:F47)","v":11350},{"$f":"SUM(G29:G47)","v":0},null,{"$f":"CONCATENATE(FIXED(COUNTA(I29:I47),0,0),\"　店\")","v":"3　店"},{"$f":"SUM(J29:J47)","v":1450},{"$f":"SUM(K29:K47)","v":0},null,{"$f":"CONCATENATE(FIXED(COUNTA(M29:M47),0,0),\"　店\")","v":"1　店"},{"$f":"SUM(N29:N47)","v":400},{"$f":"SUM(O29:O47)","v":0},null,{"$f":"CONCATENATE(FIXED(COUNTA(Q29:Q47),0,0),\"　店\")","v":"3　店"},{"$f":"SUM(R29:R47)","v":1350},{"$f":"SUM(S29:S47)","v":0},null,{"$f":"CONCATENATE(FIXED(COUNTA(U29:U47),0,0),\"　店\")","v":"0　店"},{"$f":"SUM(V29:V47)","v":0},{"$f":"SUM(W29:W47)","v":0},{"$f":"SUM(X29:X47)","v":0}]
["2025年後期（8月1日以降）",null,null,null,null,null,null,null,null,null,null,null,null,null,null,null,null,null,null,null,null,null,null,"㈱中日総合サービス"]

{"sheet":"中村区","index":8,"n_rows":49,"n_cols":24,"rows_kept":49,"cut":false,"hidden":false,"merged":[[3,19,3,21],[2,9,2,10],[3,0,3,1],[3,3,3,5],[3,7,3,9],[3,11,3,13],[3,15,3,17],[0,1,1,4],[0,17,0,20],[0,22,1,23],[1,17,1,20],[0,5,0,6],[0,8,0,14],[1,5,1,6],[1,8,1,14]]}
["折込日",null,null,null,null,"広告主",null,null,null,null,null,null,null,null,null,null,"サイズ",null,null,null,null,"取次店"]
[null,null,null,null,null,"チラシ銘柄",null,null,null,null,null,null,null,null,null,null,"部数",{"$f":"A6","v":0}]
[]
["地区",null,null,"中日新聞",null,null,"枚数","朝日新聞",null,null,"枚数","毎日新聞",null,null,"枚数","読売新聞",null,null,"枚数",null,null,null,null,"備考"]
["中村区",null,0,230145109104,"駅前NMS",2050,null,230145209201,"駅前",600,null,230145309303,"駅前",250,null,230145409501,"名古屋駅前",400,null,null,null,null,null,"中村区全域の場合"]
[{"$f":"SUM(G48,K48,O48,S48,W48)","v":0},{"$f":"SUM(F48,J48,N48,R48,V48)","v":27250},"*1",230145109120,"名駅NS",3900,null,230145209202,"中村公園",500,null,230145309304,"駅西",250,null,230145409502,"名駅西",800,null,null,null,null,null,"中川区野田500枚"]
[null,null,0,230145109108,"黄金NMS",2700,null,230145209204,"本陣",650,null,null,null,"",null,230145409505,"本陣",400,null,null,null,null,null,"をプラス"]
[null,null,0,230145109109,"大鳥居NMS",2050,null,230145209205,"豊国通",550,null,null,null,"",null,230145409506,"鳥居西",500]
[null,null,0,230145109111,"日比津NMS",1650,null,null,null,"",null,null,null,"",null,230145409507,"岩塚",250]
[null,null,0,230145109113,"市内諏訪NMS",1000,null,null,null,"",null,null,null,"",null,null,null,"",null,null,null,null,null,"*1西区800枚含む"]
[null,null,0,230145109115,"太閤NMS",1800,null,null,null,"",null,null,null,"",null,null,null,"",null,null,null,null,null,"   中区1,700枚含む"]
[null,null,0,230145109116,"稲葉地NM",1350,null,null,null,"",null,null,null,"",null,null,null,"",null,null,null,null,null,0]
[null,null,0,230145109117,"豊国通NMS",1600,null,null,null,"",null,null,null,"",null,null,null,"",null,null,null,null,null,0]
[null,null,0,230145109118,"烏森NMS",3800,null,null,null,"",null,null,null,"",null,null,null,"",null,null,null,null,null,0]
[null,null,0,230145109119,"中村常磐NM",200,null,null,null,"",null,null,null,"",null,null,null,"",null,null,null,null,null,0]
[null,null,null,null,null,"",null,null,null,"",null,null,null,"",null,null,null,"",null,null,null,null,null,0]
[null,null,0,null,null,"",null,null,null,"",null,null,null,"",null,null,null,"",null,null,null,null,null,0]
[null,null,0,null,null,"",null,null,null,"",null,null,null,"",null,null,null,"",null,null,null,null,null,0]
[null,null,null,null,null,"",null,null,null,"",null,null,null,"",null,null,null,"",null,null,null,null,null,0]
[null,null,null,null,null,"",null,null,null,"",null,null,null,"",null,null,null,"",null,null,null,null,null,0]
[null,null,null,null,null,"",null,null,null,"",null,null,null,"",null,null,null,"",null,null,null,null,null,0]
[null,null,null,null,null,"",null,null,null,"",null,null,null,"",null,null,null,"",null,null,null,null,null,0]
[null,null,null,null,null,"",null,null,null,"",null,null,null,"",null,null,null,"",null,null,null,null,null,0]
[null,null,null,null,null,"",null,null,null,"",null,null,null,"",null,null,null,"",null,null,null,null,null,0]
[null,null,null,null,null,"",null,null,null,"",null,null,null,"",null,null,null,"",null,null,null,null,null,0]
[null,null,null,null,null,"",null,null,null,"",null,null,null,"",null,null,null,"",null,null,null,null,null,0]
[null,null,null,null,null,"",null,null,null,"",null,null,null,"",null,null,null,"",null,null,null,null,null,0]
[null,null,null,null,null,"",null,null,null,"",null,null,null,"",null,null,null,"",null,null,null,null,null,0]
[null,null,null,null,null,"",null,null,null,"",null,null,null,"",null,null,null,"",null,null,null,null,null,0]
[null,null,null,null,null,"",null,null,null,"",null,null,null,"",null,null,null,"",null,null,null,null,null,0]
[null,null,null,null,null,"",null,null,null,"",null,null,null,"",null,null,null,"",null,null,null,null,null,0]
[null,null,null,null,null,"",null,null,null,"",null,null,null,"",null,null,null,"",null,null,null,null,null,0]
[null,null,null,null,null,"",null,null,null,"",null,null,null,"",null,null,null,"",null,null,null,null,null,0]
[null,null,null,null,null,"",null,null,null,"",null,null,null,"",null,null,null,"",null,null,null,null,null,0]
[null,null,null,null,null,"",null,null,null,"",null,null,null,"",null,null,null,"",null,null,null,null,null,0]
[null,null,null,null,null,"",null,null,null,"",null,null,null,"",null,null,null,"",null,null,null,null,null,0]
[null,null,null,null,null,"",null,null,null,"",null,null,null,"",null,null,null,"",null,null,null,null,null,0]
[null,null,null,null,null,"",null,null,null,"",null,null,null,"",null,null,null,"",null,null,null,null,null,0]
[null,null,null,null,null,"",null,null,null,"",null,null,null,"",null,null,null,"",null,null,null,null,null,0]
[null,null,null,null,null,"",null,null,null,"",null,null,null,"",null,null,null,"",null,null,null,null,null,0]
[null,null,null,null,null,"",null,null,null,"",null,null,null,"",null,null,null,"",null,null,null,null,null,0]
[null,null,null,null,null,"",null,null,null,"",null,null,null,"",null,null,null,"",null,null,null,null,null,0]
[null,null,null,null,null,"",null,null,null,"",null,null,null,"",null,null,null,"",null,null,null,null,null,0]
[null,null,null,null,null,"",null,null,null,"",null,null,null,"",null,null,null,"",null,null,null,null,null,0]
[null,null,null,null,null,"",null,null,null,"",null,null,null,"",null,null,null,"",null,null,null,null,null,0]
[null,null,null,null,null,"",null,null,null,"",null,null,null,"",null,null,null,"",null,null,null,null,null,0]
[null,null,null,null,null,"",null,null,null,"",null,null,null,"",null,null,null,"",null,null,null,null,null,0]
[null,null,null,null,{"$f":"CONCATENATE(FIXED(COUNTA(E5:E47),0,0),\"　店\")","v":"11　店"},{"$f":"SUM(F5:F47)","v":22100},{"$f":"SUM(G5:G47)","v":0},null,{"$f":"CONCATENATE(FIXED(COUNTA(I5:I47),0,0),\"　店\")","v":"4　店"},{"$f":"SUM(J5:J47)","v":2300},{"$f":"SUM(K5:K47)","v":0},null,{"$f":"CONCATENATE(FIXED(COUNTA(M5:M47),0,0),\"　店\")","v":"2　店"},{"$f":"SUM(N5:N47)","v":500},{"$f":"SUM(O5:O47)","v":0},null,{"$f":"CONCATENATE(FIXED(COUNTA(Q5:Q47),0,0),\"　店\")","v":"5　店"},{"$f":"SUM(R5:R47)","v":2350},{"$f":"SUM(S5:S47)","v":0},null,{"$f":"CONCATENATE(FIXED(COUNTA(U5:U47),0,0),\"　店\")","v":"0　店"},{"$f":"SUM(V5:V47)","v":0},{"$f":"SUM(W5:W47)","v":0},{"$f":"SUM(X5:X47)","v":0}]
["2025年後期（8月1日以降）",null,null,null,null,null,null,null,null,null,null,null,null,null,null,null,null,null,null,null,null,null,null,"㈱中日総合サービス"]

{"sheet":"西区","index":9,"n_rows":49,"n_cols":24,"rows_kept":49,"cut":false,"hidden":false,"merged":[[3,19,3,21],[2,9,2,10],[3,0,3,1],[3,3,3,5],[3,7,3,9],[3,11,3,13],[3,15,3,17],[0,1,1,4],[0,17,0,20],[0,22,1,23],[1,17,1,20],[0,5,0,6],[0,8,0,14],[1,5,1,6],[1,8,1,14]]}
["折込日",null,null,null,null,"広告主",null,null,null,null,null,null,null,null,null,null,"サイズ",null,null,null,null,"取次店"]
[null,null,null,null,null,"チラシ銘柄",null,null,null,null,null,null,null,null,null,null,"部数",{"$f":"A6","v":0}]
[]
["地区",null,null,"中日新聞",null,null,"枚数","朝日新聞",null,null,"枚数","毎日新聞",null,null,"枚数","読売新聞",null,null,"枚数",null,null,null,null,"備考"]
["西区",null,0,230150110102,"榎NM",1850,null,230150210205,"浄心",250,null,null,null,"",null,230150410501,"比良",300,null,null,null,null,null,"西区全域の場合"]
[{"$f":"SUM(G48,K48,O48,S48,W48)","v":0},{"$f":"SUM(F48,J48,N48,R48,V48)","v":27150},0,230150110103,"栄生NM",650,null,230150210203,"城西",850,null,"",null,"",null,230150410502,"小田井",600,null,null,null,null,null,"中村区名駅800枚"]
[null,null,0,230150110104,"東枇杷島NMS",1150,null,230150210210,"小田井",900,null,"",null,"",null,230150410503,"稲生",200,null,null,null,null,null,"をプラス"]
[null,null,0,230150110106,"浄心NMS",2250,null,230150210206,"平田橋",100,null,"",null,"",null,230150410504,"庄内",200]
[null,null,0,230150110107,"名西NMS",1900,null,null,null,"",null,null,null,"",null,230150410505,"江川端",650,null,null,null,null,null,0]
[null,null,0,230150110109,"庄内通NMS",1700,null,null,null,"",null,null,null,"",null,null,null,"",null,null,null,null,null,0]
[null,null,0,230150110110,"又穂NMS",1050,null,null,null,"",null,null,null,"",null,null,null,"",null,null,null,null,null,0]
[null,null,"*1",230150110113,"上名古屋NMS",1850,null,null,null,"",null,null,null,"",null,null,null,"",null,null,null,null,null,"*1北区250枚含む"]
[null,null,"*2",230150110115,"浅間町NS",1750,null,null,null,"",null,null,null,"",null,null,null,"",null,null,null,null,null,"*2中区600枚含む"]
[null,null,null,230150110120,"中小田井NMS",2100,null,null,null,"",null,null,null,"",null,null,null,""]
[null,null,0,230150110122,"大野木NMS",1700,null,null,null,"",null,null,null,"",null,null,null,""]
[null,null,0,230150110123,"比良NMS",1200,null,null,null,"",null,null,null,"",null,null,null,""]
[null,null,0,230150110125,"山田NMS",1700,null,null,null,"",null,null,null,"",null,null,null,"",null,null,null,null,null,"\n"]
[null,null,"*3",230150110127,"平田NM",2250,null,null,null,"",null,null,null,"",null,null,null,"",null,null,null,null,null,"*3清須市200枚含む"]
[null,null,null,null,null,"",null,null,null,"",null,null,null,"",null,null,null,""]
[null,null,null,null,null,"",null,null,null,"",null,null,null,"",null,null,null,""]
[null,null,null,null,null,"",null,null,null,"",null,null,null,"",null,null,null,"",null,null,null,null,null,0]
[null,null,null,null,null,"",null,null,null,"",null,null,null,"",null,null,null,"",null,null,null,null,null,0]
[null,null,null,null,null,"",null,null,null,"",null,null,null,"",null,null,null,""]
[null,null,null,null,null,"",null,null,null,"",null,null,null,"",null,null,null,""]
[null,null,null,null,null,"",null,null,null,"",null,null,null,"",null,null,null,""]
[null,null,null,null,null,"",null,null,null,"",null,null,null,"",null,null,null,"",null,null,null,null,null,0]
[null,null,null,null,null,"",null,null,null,"",null,null,null,"",null,null,null,"",null,null,null,null,null,0]
[null,null,null,null,null,"",null,null,null,"",null,null,null,"",null,null,null,"",null,null,null,null,null,0]
[null,null,null,null,null,"",null,null,null,"",null,null,null,"",null,null,null,"",null,null,null,null,null,0]
[null,null,null,null,null,"",null,null,null,"",null,null,null,"",null,null,null,"",null,null,null,null,null,0]
[null,null,null,null,null,"",null,null,null,"",null,null,null,"",null,null,null,"",null,null,null,null,null,0]
[null,null,null,null,null,"",null,null,null,"",null,null,null,"",null,null,null,"",null,null,null,null,null,0]
[null,null,null,null,null,"",null,null,null,"",null,null,null,"",null,null,null,"",null,null,null,null,null,0]
[null,null,null,null,null,"",null,null,null,"",null,null,null,"",null,null,null,"",null,null,null,null,null,0]
[null,null,null,null,null,"",null,null,null,"",null,null,null,"",null,null,null,"",null,null,null,null,null,0]
[null,null,null,null,null,"",null,null,null,"",null,null,null,"",null,null,null,"",null,null,null,null,null,0]
[null,null,null,null,null,"",null,null,null,"",null,null,null,"",null,null,null,"",null,null,null,null,null,0]
[null,null,null,null,null,"",null,null,null,"",null,null,null,"",null,null,null,"",null,null,null,null,null,0]
[null,null,null,null,null,"",null,null,null,"",null,null,null,"",null,null,null,"",null,null,null,null,null,0]
[null,null,null,null,null,"",null,null,null,"",null,null,null,"",null,null,null,"",null,null,null,null,null,0]
[null,null,null,null,null,"",null,null,null,"",null,null,null,"",null,null,null,"",null,null,null,null,null,0]
[null,null,null,null,null,"",null,null,null,"",null,null,null,"",null,null,null,"",null,null,null,null,null,0]
[null,null,null,null,null,"",null,null,null,"",null,null,null,"",null,null,null,"",null,null,null,null,null,0]
[null,null,null,null,null,"",null,null,null,"",null,null,null,"",null,null,null,"",null,null,null,null,null,0]
[null,null,null,null,null,"",null,null,null,"",null,null,null,"",null,null,null,"",null,null,null,null,null,0]
[null,null,null,null,null,"",null,null,null,"",null,null,null,"",null,null,null,"",null,null,null,null,null,0]
[null,null,null,null,null,"",null,null,null,"",null,null,null,"",null,null,null,"",null,null,null,null,null,0]
[null,null,null,null,{"$f":"CONCATENATE(FIXED(COUNTA(E5:E47),0,0),\"　店\")","v":"14　店"},{"$f":"SUM(F5:F47)","v":23100},{"$f":"SUM(G5:G47)","v":0},null,{"$f":"CONCATENATE(FIXED(COUNTA(I5:I47),0,0),\"　店\")","v":"4　店"},{"$f":"SUM(J5:J47)","v":2100},{"$f":"SUM(K5:K47)","v":0},null,{"$f":"CONCATENATE(FIXED(COUNTA(M5:M47),0,0),\"　店\")","v":"0　店"},{"$f":"SUM(N5:N47)","v":0},{"$f":"SUM(O5:O47)","v":0},null,{"$f":"CONCATENATE(FIXED(COUNTA(Q5:Q47),0,0),\"　店\")","v":"5　店"},{"$f":"SUM(R5:R47)","v":1950},{"$f":"SUM(S5:S47)","v":0},null,{"$f":"CONCATENATE(FIXED(COUNTA(U5:U47),0,0),\"　店\")","v":"0　店"},{"$f":"SUM(V5:V47)","v":0},{"$f":"SUM(W5:W47)","v":0},{"$f":"SUM(X5:X47)","v":0}]
["2025年後期（8月1日以降）",null,null,null,null,null,null,null,null,null,null,null,null,null,null,null,null,null,null,null,null,null,null,"㈱中日総合サービス"]

{"sheet":"北区","index":10,"n_rows":49,"n_cols":24,"rows_kept":49,"cut":false,"hidden":false,"merged":[[3,19,3,21],[2,9,2,10],[3,0,3,1],[3,3,3,5],[3,7,3,9],[3,11,3,13],[3,15,3,17],[0,1,1,4],[0,17,0,20],[0,22,1,23],[1,17,1,20],[0,5,0,6],[0,8,0,14],[1,5,1,6],[1,8,1,14]]}
["折込日",null,null,null,null,"広告主",null,null,null,null,null,null,null,null,null,null,"サイズ",null,null,null,null,"取次店"]
[null,null,null,null,null,"チラシ銘柄",null,null,null,null,null,null,null,null,null,null,"部数",{"$f":"A6","v":0}]
[]
["地区",null,null,"中日新聞",null,null,"枚数","朝日新聞",null,null,"枚数","毎日新聞",null,null,"枚数","読売新聞",null,null,"枚数",null,null,null,null,"備考"]
["北区",null,0,230155111101,"光城NMS",1400,null,230155211202,"大曽根",650,null,null,null,"",null,230155411501,"味鋺",400,null,null,null,null,null,"北区全域の場合"]
[{"$f":"SUM(G48,K48,O48,S48,W48)","v":0},{"$f":"SUM(F48,J48,N48,R48,V48)","v":29850},0,230155111102,"城北NMS",1250,null,230155211203,"黒川東",700,null,null,null,"",null,230155411503,"萩野通",750,null,null,null,null,null,"東区大曽根700枚"]
[null,null,0,230155111103,"城見通NMS",1350,null,230155211204,"城北",700,null,null,null,"",null,230155411505,"平安通",600,null,null,null,null,null,"東区赤塚50枚"]
[null,null,0,230155111107,"志賀NMS",1700,null,null,null,"",null,null,null,"",null,230155411506,"如意",150,null,null,null,null,null,"西区上名古屋250枚"]
[null,null,0,230155111109,"北陵NM",1100,null,null,null,"",null,null,null,"",null,null,null,"",null,null,null,null,null,"守山区瀬古100枚"]
[null,null,0,230155111110,"お福NMS",1900,null,null,null,"",null,null,null,"",null,null,null,"",null,null,null,null,null,"をプラス"]
[null,null,0,230155111112,"上飯田NMS",2050,null,null,null,"",null,null,null,"",null,null,null,""]
[null,null,0,230155111114,"若葉通NMS",1800,null,null,null,"",null,null,null,"",null,null,null,""]
[null,null,0,230155111115,"市内飯田NMS",1400,null,null,null,"",null,null,null,"",null,null,null,"",null,null,null,null,null,0]
[null,null,0,230155111116,"金城NMS",1500,null,null,null,"",null,null,null,"",null,null,null,"",null,null,null,null,null,0]
[null,null,"*1",230155111117,"杉村NMS",1850,null,null,null,"",null,null,null,"",null,null,null,"",null,null,null,null,null,"*1東区550枚含む"]
[null,null,"*2",230155111121,"柳原・主税町NMS",1750,null,null,null,"",null,null,null,"",null,null,null,"",null,null,null,null,null,"*2東区300枚含む"]
[null,null,0,230155111130,"味鋺NAMS",3200,null,null,null,"",null,null,null,"",null,null,null,""]
[null,null,0,230155111131,"市内楠NM",850,null,null,null,"",null,null,null,"",null,null,null,"",null,null,null,null,null,0]
[null,null,0,230155111134,"如意NMS",1350,null,null,null,"",null,null,null,"",null,null,null,"",null,null,null,null,null,0]
[null,null,"*3",230155111133,"喜惣治NM",1450,null,null,null,"",null,null,null,"",null,null,null,"",null,null,null,null,null,"*3西春日井郡豊山町"]
[null,null,null,null,null,"",null,null,null,"",null,null,null,"",null,null,null,"",null,null,null,null,null,"   150枚含む"]
[null,null,null,null,null,"",null,null,null,"",null,null,null,"",null,null,null,""]
[null,null,null,null,null,"",null,null,null,"",null,null,null,"",null,null,null,"",null,null,null,null,null,0]
[null,null,null,null,null,"",null,null,null,"",null,null,null,"",null,null,null,"",null,null,null,null,null,0]
[null,null,null,null,null,"",null,null,null,"",null,null,null,"",null,null,null,"",null,null,null,null,null,0]
[null,null,null,null,null,"",null,null,null,"",null,null,null,"",null,null,null,"",null,null,null,null,null,0]
[null,null,null,null,null,"",null,null,null,"",null,null,null,"",null,null,null,"",null,null,null,null,null,0]
[null,null,null,null,null,"",null,null,null,"",null,null,null,"",null,null,null,"",null,null,null,null,null,0]
[null,null,null,null,null,"",null,null,null,"",null,null,null,"",null,null,null,"",null,null,null,null,null,0]
[null,null,null,null,null,"",null,null,null,"",null,null,null,"",null,null,null,"",null,null,null,null,null,0]
[null,null,null,null,null,"",null,null,null,"",null,null,null,"",null,null,null,"",null,null,null,null,null,0]
[null,null,null,null,null,"",null,null,null,"",null,null,null,"",null,null,null,"",null,null,null,null,null,0]
[null,null,null,null,null,"",null,null,null,"",null,null,null,"",null,null,null,"",null,null,null,null,null,0]
[null,null,null,null,null,"",null,null,null,"",null,null,null,"",null,null,null,"",null,null,null,null,null,0]
[null,null,null,null,null,"",null,null,null,"",null,null,null,"",null,null,null,"",null,null,null,null,null,0]
[null,null,null,null,null,"",null,null,null,"",null,null,null,"",null,null,null,"",null,null,null,null,null,0]
[null,null,null,null,null,"",null,null,null,"",null,null,null,"",null,null,null,"",null,null,null,null,null,0]
[null,null,null,null,null,"",null,null,null,"",null,null,null,"",null,null,null,"",null,null,null,null,null,0]
[null,null,null,null,null,"",null,null,null,"",null,null,null,"",null,null,null,"",null,null,null,null,null,0]
[null,null,null,null,null,"",null,null,null,"",null,null,null,"",null,null,null,"",null,null,null,null,null,0]
[null,null,null,null,null,"",null,null,null,"",null,null,null,"",null,null,null,"",null,null,null,null,null,0]
[null,null,null,null,null,"",null,null,null,"",null,null,null,"",null,null,null,"",null,null,null,null,null,0]
[null,null,null,null,null,"",null,null,null,"",null,null,null,"",null,null,null,"",null,null,null,null,null,0]
[null,null,null,null,null,"",null,null,null,"",null,null,null,"",null,null,null,"",null,null,null,null,null,0]
[null,null,null,null,null,"",null,null,null,"",null,null,null,"",null,null,null,"",null,null,null,null,null,0]
[null,null,null,null,null,"",null,null,null,"",null,null,null,"",null,null,null,"",null,null,null,null,null,0]
[null,null,null,null,null,"",null,null,null,"",null,null,null,"",null,null,null,"",null,null,null,null,null,0]
[null,null,null,null,{"$f":"CONCATENATE(FIXED(COUNTA(E5:E47),0,0),\"　店\")","v":"16　店"},{"$f":"SUM(F5:F47)","v":25900},{"$f":"SUM(G5:G47)","v":0},null,{"$f":"CONCATENATE(FIXED(COUNTA(I5:I47),0,0),\"　店\")","v":"3　店"},{"$f":"SUM(J5:J47)","v":2050},{"$f":"SUM(K5:K47)","v":0},null,{"$f":"CONCATENATE(FIXED(COUNTA(M5:M47),0,0),\"　店\")","v":"0　店"},{"$f":"SUM(N5:N47)","v":0},{"$f":"SUM(O5:O47)","v":0},null,{"$f":"CONCATENATE(FIXED(COUNTA(Q5:Q47),0,0),\"　店\")","v":"4　店"},{"$f":"SUM(R5:R47)","v":1900},{"$f":"SUM(S5:S47)","v":0},null,{"$f":"CONCATENATE(FIXED(COUNTA(U5:U47),0,0),\"　店\")","v":"0　店"},{"$f":"SUM(V5:V47)","v":0},{"$f":"SUM(W5:W47)","v":0},{"$f":"SUM(X5:X47)","v":0}]
["2025年後期（8月1日以降）",null,null,null,null,null,null,null,null,null,null,null,null,null,null,null,null,null,null,null,null,null,null,"㈱中日総合サービス"]

{"sheet":"千種区","index":11,"n_rows":49,"n_cols":24,"rows_kept":49,"cut":false,"hidden":false,"merged":[[3,19,3,21],[2,9,2,10],[3,0,3,1],[3,3,3,5],[3,7,3,9],[3,11,3,13],[3,15,3,17],[0,1,1,4],[0,17,0,20],[0,22,1,23],[1,17,1,20],[0,5,0,6],[0,8,0,14],[1,5,1,6],[1,8,1,14]]}
["折込日",null,null,null,null,"広告主",null,null,null,null,null,null,null,null,null,null,"サイズ",null,null,null,null,"取次店"]
[null,null,null,null,null,"チラシ銘柄",null,null,null,null,null,null,null,null,null,null,"部数",{"$f":"A6","v":0}]
[]
["地区",null,null,"中日新聞",null,null,"枚数","朝日新聞",null,null,"枚数","毎日新聞",null,null,"枚数","読売新聞",null,null,"枚数",null,null,null,null,"備考"]
["千種区",null,0,230105101103,"古井ノ坂NMS",1200,null,230105201202,"今池覚王山",950,null,null,null,"",null,230105401501,"千種北",500,null,null,null,null,null,"千種区全域の場合"]
[{"$f":"SUM(G48,K48,O48,S48,W48)","v":0},{"$f":"SUM(F48,J48,N48,R48,V48)","v":28400},0,230105101104,"今池NMS",2150,null,230105201203,"自由ヶ丘",1550,null,null,null,"",null,230105401502,"今池",450,null,null,null,null,null,"昭和区川名200枚"]
[null,null,0,230105101105,"内山NMS",1400,null,230105201208,"東山公園",200,null,null,null,"",null,230105401503,"東山",250,null,null,null,null,null,"名東区平和が丘450枚"]
[null,null,0,230105101107,"萱場NMS",2200,null,230105201205,"丸山",1400,null,null,null,"",null,230105401504,"千種西",400,null,null,null,null,null,"名東区猪子石1,250枚"]
[null,null,0,230105101110,"丸山NMS",2800,null,null,null,"",null,null,null,"",null,230105401505,"千種南",450,null,null,null,null,null,"中区新栄50枚"]
[null,null,0,230105101113,"天満NMS",2200,null,null,null,"",null,null,null,"",null,null,null,"",null,null,null,null,null,"をプラス"]
[null,null,0,230105101114,"東山NMS",2850,null,null,null,"",null,null,null,"",null,null,null,""]
[null,null,0,230105101116,"覚王山NMS",2000,null,null,null,"",null,null,null,"",null,null,null,""]
[null,null,0,230105101117,"自由ヶ丘NMS",1650,null,null,null,"",null,null,null,"",null,null,null,""]
[null,null,0,230105101118,"千種星ヶ丘NMS",950,null,null,null,"",null,null,null,"",null,null,null,""]
[null,null,0,230105101119,"汁谷NMS",2850,null,null,null,"",null,null,null,"",null,null,null,""]
[null,null,null,null,null,"",null,null,null,"",null,null,null,"",null,null,null,""]
[null,null,null,null,null,"",null,null,null,"",null,null,null,"",null,null,null,""]
[null,null,null,null,null,"",null,null,null,"",null,null,null,"",null,null,null,""]
[null,null,null,null,null,"",null,null,null,"",null,null,null,"",null,null,null,""]
[null,null,null,null,null,"",null,null,null,"",null,null,null,"",null,null,null,""]
[null,null,null,null,null,"",null,null,null,"",null,null,null,"",null,null,null,""]
[null,null,null,null,null,"",null,null,null,"",null,null,null,"",null,null,null,""]
[null,null,null,null,null,"",null,null,null,"",null,null,null,"",null,null,null,""]
[null,null,null,null,null,"",null,null,null,"",null,null,null,"",null,null,null,""]
[null,null,null,null,null,"",null,null,null,"",null,null,null,"",null,null,null,""]
[null,null,null,null,null,"",null,null,null,"",null,null,null,"",null,null,null,""]
[null,null,null,null,null,"",null,null,null,"",null,null,null,"",null,null,null,""]
[null,null,null,null,null,"",null,null,null,"",null,null,null,"",null,null,null,""]
[null,null,null,null,null,"",null,null,null,"",null,null,null,"",null,null,null,"",null,null,null,null,null,0]
[null,null,null,null,null,"",null,null,null,"",null,null,null,"",null,null,null,"",null,null,null,null,null,0]
[null,null,null,null,null,"",null,null,null,"",null,null,null,"",null,null,null,"",null,null,null,null,null,0]
[null,null,null,null,null,"",null,null,null,"",null,null,null,"",null,null,null,"",null,null,null,null,null,0]
[null,null,null,null,null,"",null,null,null,"",null,null,null,"",null,null,null,"",null,null,null,null,null,0]
[null,null,null,null,null,"",null,null,null,"",null,null,null,"",null,null,null,"",null,null,null,null,null,0]
[null,null,null,null,null,"",null,null,null,"",null,null,null,"",null,null,null,"",null,null,null,null,null,0]
[null,null,null,null,null,"",null,null,null,"",null,null,null,"",null,null,null,"",null,null,null,null,null,0]
[null,null,null,null,null,"",null,null,null,"",null,null,null,"",null,null,null,"",null,null,null,null,null,0]
[null,null,null,null,null,"",null,null,null,"",null,null,null,"",null,null,null,"",null,null,null,null,null,0]
[null,null,null,null,null,"",null,null,null,"",null,null,null,"",null,null,null,"",null,null,null,null,null,0]
[null,null,null,null,null,"",null,null,null,"",null,null,null,"",null,null,null,"",null,null,null,null,null,0]
[null,null,null,null,null,"",null,null,null,"",null,null,null,"",null,null,null,"",null,null,null,null,null,0]
[null,null,null,null,null,"",null,null,null,"",null,null,null,"",null,null,null,"",null,null,null,null,null,0]
[null,null,null,null,null,"",null,null,null,"",null,null,null,"",null,null,null,"",null,null,null,null,null,0]
[null,null,null,null,null,"",null,null,null,"",null,null,null,"",null,null,null,"",null,null,null,null,null,0]
[null,null,null,null,null,"",null,null,null,"",null,null,null,"",null,null,null,"",null,null,null,null,null,0]
[null,null,null,null,null,"",null,null,null,"",null,null,null,"",null,null,null,"",null,null,null,null,null,0]
[null,null,null,null,null,"",null,null,null,"",null,null,null,"",null,null,null,"",null,null,null,null,null,0]
[null,null,null,null,{"$f":"CONCATENATE(FIXED(COUNTA(E5:E47),0,0),\"　店\")","v":"11　店"},{"$f":"SUM(F5:F47)","v":22250},{"$f":"SUM(G5:G47)","v":0},null,{"$f":"CONCATENATE(FIXED(COUNTA(I5:I47),0,0),\"　店\")","v":"4　店"},{"$f":"SUM(J5:J47)","v":4100},{"$f":"SUM(K5:K47)","v":0},null,{"$f":"CONCATENATE(FIXED(COUNTA(M5:M47),0,0),\"　店\")","v":"0　店"},{"$f":"SUM(N5:N47)","v":0},{"$f":"SUM(O5:O47)","v":0},null,{"$f":"CONCATENATE(FIXED(COUNTA(Q5:Q47),0,0),\"　店\")","v":"5　店"},{"$f":"SUM(R5:R47)","v":2050},{"$f":"SUM(S5:S47)","v":0},null,{"$f":"CONCATENATE(FIXED(COUNTA(U5:U47),0,0),\"　店\")","v":"0　店"},{"$f":"SUM(V5:V47)","v":0},{"$f":"SUM(W5:W47)","v":0},{"$f":"SUM(X5:X47)","v":0}]
["2025年後期（8月1日以降）",null,null,null,null,null,null,null,null,null,null,null,null,null,null,null,null,null,null,null,null,null,null,"㈱中日総合サービス"]

{"sheet":"名東区","index":12,"n_rows":49,"n_cols":24,"rows_kept":49,"cut":false,"hidden":false,"merged":[[0,1,1,4],[0,17,0,20],[0,22,1,23],[1,17,1,20],[0,5,0,6],[0,8,0,14],[1,5,1,6],[1,8,1,14],[3,19,3,21],[2,9,2,10],[3,0,3,1],[3,3,3,5],[3,7,3,9],[3,11,3,13],[3,15,3,17]]}
["折込日",null,null,null,null,"広告主",null,null,null,null,null,null,null,null,null,null,"サイズ",null,null,null,null,"取次店"]
[null,null,null,null,null,"チラシ銘柄",null,null,null,null,null,null,null,null,null,null,"部数",{"$f":"A6","v":0}]
[]
["地区",null,null,"中日新聞",null,null,"枚数","朝日新聞",null,null,"枚数","毎日新聞",null,null,"枚数","読売新聞",null,null,"枚数",null,null,null,null,"備考"]
["名東区",null,0,230110102101,"名東星ヶ丘NM",1100,null,230110202201,"名東本通",600,null,null,null,"",null,230110402501,"星ヶ丘",650,null,null,null,null,null,"名東区全域の場合"]
[{"$f":"SUM(G48,K48,O48,S48,W48)","v":0},{"$f":"SUM(F48,J48,N48,R48,V48)","v":32550},0,230110102102,"千種高校前NMS",1850,null,230110202202,"星ヶ丘",1200,null,null,null,"",null,230110402502,"猪高",550,null,null,null,null,null,"天白区植田北部250枚"]
[null,null,0,230110102105,"虹ヶ丘NMS",2000,null,230110202204,"藤が丘",2100,null,null,null,"",null,230110402503,"名東藤ヶ丘",700,null,null,null,null,null,"をプラス"]
[null,null,0,230110102107,"高針NMS",2650,null,230110202205,"高針",1000,null,null,null,"",null,230110402504,"高針",500,null,null,null,null,null,0]
[null,null,"*1",230110102109,"極楽NMS",1700,null,null,null,"",null,null,null,"",null,null,null,"",null,null,null,null,null,0]
[null,null,0,230110102110,"上社南NMS",2100,null,null,null,"",null,null,null,"",null,null,null,""]
[null,null,0,230110102111,"上社NMS",1750,null,null,null,"",null,null,null,"",null,null,null,"",null,null,null,null,null,"*1長久手市300枚含む"]
[null,null,0,230110102112,"本郷NMS",2400,null,null,null,"",null,null,null,"",null,null,null,"",null,null,null,null,null,0]
[null,null,0,230110102113,"藤が丘NMS",1950,null,null,null,"",null,null,null,"",null,null,null,"",null,null,null,null,null,0]
[null,null,0,230110102115,"猪子石台NMS",650,null,null,null,"",null,null,null,"",null,null,null,"",null,null,null,null,null,0]
[null,null,"*2",230110102117,"平和が丘NMS",2100,null,null,null,"",null,null,null,"",null,null,null,"",null,null,null,null,null,0]
[null,null,"*3",230110102118,"猪子石NMS",3100,null,null,null,"",null,null,null,"",null,null,null,"",null,null,null,null,null,0]
[null,null,"*4",230110102119,"森孝NMS",1900,null,null,null,"",null,null,null,"",null,null,null,"",null,null,null,null,null,0]
[null,null,null,null,null,null,null,null,null,"",null,null,null,"",null,null,null,"",null,null,null,null,null,"*2千種区450枚含む"]
[null,null,null,null,null,"",null,null,null,"",null,null,null,"",null,null,null,"",null,null,null,null,null,"*3千種区1,250枚含む"]
[null,null,null,null,null,"",null,null,null,"",null,null,null,"",null,null,null,"",null,null,null,null,null,"*4守山区1,150枚"]
[null,null,null,null,null,"",null,null,null,"",null,null,null,"",null,null,null,"",null,null,null,null,null,"   尾張旭市200枚含む"]
[null,null,null,null,null,"",null,null,null,"",null,null,null,"",null,null,null,""]
[null,null,null,null,null,"",null,null,null,"",null,null,null,"",null,null,null,""]
[null,null,null,null,null,"",null,null,null,"",null,null,null,"",null,null,null,""]
[null,null,null,null,null,"",null,null,null,"",null,null,null,"",null,null,null,""]
[null,null,null,null,null,"",null,null,null,"",null,null,null,"",null,null,null,"",null,null,null,null,null,0]
[null,null,null,null,null,"",null,null,null,"",null,null,null,"",null,null,null,"",null,null,null,null,null,0]
[null,null,null,null,null,"",null,null,null,"",null,null,null,"",null,null,null,"",null,null,null,null,null,0]
[null,null,null,null,null,"",null,null,null,"",null,null,null,"",null,null,null,"",null,null,null,null,null,0]
[null,null,null,null,null,"",null,null,null,"",null,null,null,"",null,null,null,"",null,null,null,null,null,0]
[null,null,null,null,null,"",null,null,null,"",null,null,null,"",null,null,null,"",null,null,null,null,null,0]
[null,null,null,null,null,"",null,null,null,"",null,null,null,"",null,null,null,"",null,null,null,null,null,0]
[null,null,null,null,null,"",null,null,null,"",null,null,null,"",null,null,null,"",null,null,null,null,null,0]
[null,null,null,null,null,"",null,null,null,"",null,null,null,"",null,null,null,"",null,null,null,null,null,0]
[null,null,null,null,null,"",null,null,null,"",null,null,null,"",null,null,null,"",null,null,null,null,null,0]
[null,null,null,null,null,"",null,null,null,"",null,null,null,"",null,null,null,"",null,null,null,null,null,0]
[null,null,null,null,null,"",null,null,null,"",null,null,null,"",null,null,null,"",null,null,null,null,null,0]
[null,null,null,null,null,"",null,null,null,"",null,null,null,"",null,null,null,"",null,null,null,null,null,0]
[null,null,null,null,null,"",null,null,null,"",null,null,null,"",null,null,null,"",null,null,null,null,null,0]
[null,null,null,null,null,"",null,null,null,"",null,null,null,"",null,null,null,"",null,null,null,null,null,0]
[null,null,null,null,null,"",null,null,null,"",null,null,null,"",null,null,null,"",null,null,null,null,null,0]
[null,null,null,null,null,"",null,null,null,"",null,null,null,"",null,null,null,"",null,null,null,null,null,0]
[null,null,null,null,null,"",null,null,null,"",null,null,null,"",null,null,null,"",null,null,null,null,null,0]
[null,null,null,null,null,"",null,null,null,"",null,null,null,"",null,null,null,"",null,null,null,null,null,0]
[null,null,null,null,null,"",null,null,null,"",null,null,null,"",null,null,null,"",null,null,null,null,null,0]
[null,null,null,null,null,"",null,null,null,"",null,null,null,"",null,null,null,"",null,null,null,null,null,0]
[null,null,null,null,null,"",null,null,null,"",null,null,null,"",null,null,null,"",null,null,null,null,null,0]
[null,null,null,null,{"$f":"CONCATENATE(FIXED(COUNTA(E5:E47),0,0),\"　店\")","v":"13　店"},{"$f":"SUM(F5:F47)","v":25250},{"$f":"SUM(G5:G47)","v":0},null,{"$f":"CONCATENATE(FIXED(COUNTA(I5:I47),0,0),\"　店\")","v":"4　店"},{"$f":"SUM(J5:J47)","v":4900},{"$f":"SUM(K5:K47)","v":0},null,{"$f":"CONCATENATE(FIXED(COUNTA(M5:M47),0,0),\"　店\")","v":"0　店"},{"$f":"SUM(N5:N47)","v":0},{"$f":"SUM(O5:O47)","v":0},null,{"$f":"CONCATENATE(FIXED(COUNTA(Q5:Q47),0,0),\"　店\")","v":"4　店"},{"$f":"SUM(R5:R47)","v":2400},{"$f":"SUM(S5:S47)","v":0},null,{"$f":"CONCATENATE(FIXED(COUNTA(U5:U47),0,0),\"　店\")","v":"0　店"},{"$f":"SUM(V5:V47)","v":0},{"$f":"SUM(W5:W47)","v":0},{"$f":"SUM(X5:X47)","v":0}]
["2025年後期（8月1日以降）",null,null,null,null,null,null,null,null,null,null,null,null,null,null,null,null,null,null,null,null,null,null,"㈱中日総合サービス"]

{"sheet":"守山区","index":13,"n_rows":49,"n_cols":24,"rows_kept":49,"cut":false,"hidden":false,"merged":[[0,1,1,4],[0,17,0,20],[0,22,1,23],[1,17,1,20],[0,5,0,6],[0,8,0,14],[1,5,1,6],[1,8,1,14],[3,19,3,21],[2,9,2,10],[3,0,3,1],[3,3,3,5],[3,7,3,9],[3,11,3,13],[3,15,3,17]]}
["折込日",null,null,null,null,"広告主",null,null,null,null,null,null,null,null,null,null,"サイズ",null,null,null,null,"取次店"]
[null,null,null,null,null,"チラシ銘柄",null,null,null,null,null,null,null,null,null,null,"部数",{"$f":"A6","v":0}]
[]
["地区",null,null,"中日新聞",null,null,"枚数","朝日新聞",null,null,"枚数","毎日新聞",null,null,"枚数","読売新聞",null,null,"枚数",null,null,null,null,"備考"]
["守山区",null,"*1",230170101010,"大森NMS",5450,null,230170202010,"守山西部",200,null,null,null,"",null,230170414501,"守山東部",650,null,null,null,null,null,"守山区全域の場合"]
[{"$f":"SUM(G48,K48,O48,S48,W48)","v":0},{"$f":"SUM(F48,J48,N48,R48,V48)","v":29100},0,230170101030,"小幡NMS",3050,null,230170202020,"小幡北部",100,null,null,null,"",null,230170414502,"森孝",300,null,null,null,null,null,"名東区森孝1,150枚"]
[null,null,0,230170101050,"志段味NM",1600,null,230170202050,"小幡南部",850,null,null,null,"",null,230170414503,"新守山",400,null,null,null,null,null,"尾張旭市本地ケ原"]
[null,null,0,230170101060,"志段味西部NMS",3800,null,230170202040,"志段味",400,null,null,null,"",null,230170414504,"大永寺",350,null,null,null,null,null,"                  1,200枚"]
[null,null,"*2",230170101090,"瀬古NMS",2150,null,230170202060,"守山東部",150,null,null,null,"",null,230170414505,"志段味",100,null,null,null,null,null,"尾張旭市瑞鳳50枚"]
[null,null,null,230170101120,"守山南部NMS",3150,null,0,null,"",null,null,null,"",null,null,null,"",null,null,null,null,null,"をプラス"]
[null,null,0,230170101150,"新守山NMS",3450,null,0,null,"",null,null,null,"",null,null,null,"",null,null,null,null,null,0]
[null,null,0,230170101170,"喜多山NMS",2950,null,0,null,"",null,null,null,"",null,null,null,"",null,null,null,null,null,0]
[null,null,0,null,null,"",null,0,null,"",null,null,null,"",null,null,null,"",null,null,null,null,null,"*1尾張旭市1,650枚"]
[null,null,0,null,null,"",null,0,null,"",null,null,null,"",null,null,null,"",null,null,null,null,null,"    含む"]
[null,null,null,null,null,"",null,0,null,"",null,null,null,"",null,null,null,"",null,null,null,null,null,0]
[null,null,null,null,null,"",null,null,null,"",null,null,null,"",null,null,null,"",null,null,null,null,null,"*2北区100枚含む"]
[null,null,null,null,null,"",null,null,null,"",null,null,null,"",null,null,null,"",null,null,null,null,null,0]
[null,null,null,null,null,"",null,null,null,"",null,null,null,"",null,null,null,"",null,null,null,null,null,0]
[null,null,null,null,null,"",null,null,null,"",null,null,null,"",null,null,null,"",null,null,null,null,null,0]
[null,null,null,null,null,"",null,null,null,"",null,null,null,"",null,null,null,"",null,null,null,null,null,0]
[null,null,null,null,null,"",null,null,null,"",null,null,null,"",null,null,null,"",null,null,null,null,null,0]
[null,null,null,null,null,"",null,null,null,"",null,null,null,"",null,null,null,"",null,null,null,null,null,0]
[null,null,null,null,null,"",null,null,null,"",null,null,null,"",null,null,null,"",null,null,null,null,null,0]
[null,null,null,null,null,"",null,null,null,"",null,null,null,"",null,null,null,"",null,null,null,null,null,0]
[null,null,null,null,null,"",null,null,null,"",null,null,null,"",null,null,null,"",null,null,null,null,null,0]
[null,null,null,null,null,"",null,null,null,"",null,null,null,"",null,null,null,"",null,null,null,null,null,0]
[null,null,null,null,null,"",null,null,null,"",null,null,null,"",null,null,null,"",null,null,null,null,null,0]
[null,null,null,null,null,"",null,null,null,"",null,null,null,"",null,null,null,"",null,null,null,null,null,0]
[null,null,null,null,null,"",null,null,null,"",null,null,null,"",null,null,null,"",null,null,null,null,null,0]
[null,null,null,null,null,"",null,null,null,"",null,null,null,"",null,null,null,"",null,null,null,null,null,0]
[null,null,null,null,null,"",null,null,null,"",null,null,null,"",null,null,null,"",null,null,null,null,null,0]
[null,null,null,null,null,"",null,null,null,"",null,null,null,"",null,null,null,"",null,null,null,null,null,0]
[null,null,null,null,null,"",null,null,null,"",null,null,null,"",null,null,null,"",null,null,null,null,null,0]
[null,null,null,null,null,"",null,null,null,"",null,null,null,"",null,null,null,"",null,null,null,null,null,0]
[null,null,null,null,null,"",null,null,null,"",null,null,null,"",null,null,null,"",null,null,null,null,null,0]
[null,null,null,null,null,"",null,null,null,"",null,null,null,"",null,null,null,"",null,null,null,null,null,0]
[null,null,null,null,null,"",null,null,null,"",null,null,null,"",null,null,null,"",null,null,null,null,null,0]
[null,null,null,null,null,"",null,null,null,"",null,null,null,"",null,null,null,"",null,null,null,null,null,0]
[null,null,null,null,null,"",null,null,null,"",null,null,null,"",null,null,null,"",null,null,null,null,null,0]
[null,null,null,null,null,"",null,null,null,"",null,null,null,"",null,null,null,"",null,null,null,null,null,0]
[null,null,null,null,null,"",null,null,null,"",null,null,null,"",null,null,null,"",null,null,null,null,null,0]
[null,null,null,null,null,"",null,null,null,"",null,null,null,"",null,null,null,"",null,null,null,null,null,0]
[null,null,null,null,null,"",null,null,null,"",null,null,null,"",null,null,null,"",null,null,null,null,null,0]
[null,null,null,null,null,"",null,null,null,"",null,null,null,"",null,null,null,"",null,null,null,null,null,0]
[null,null,null,null,null,"",null,null,null,"",null,null,null,"",null,null,null,"",null,null,null,null,null,0]
[null,null,null,null,null,"",null,null,null,"",null,null,null,"",null,null,null,"",null,null,null,null,null,0]
[null,null,null,null,null,"",null,null,null,"",null,null,null,"",null,null,null,"",null,null,null,null,null,0]
[null,null,null,null,{"$f":"CONCATENATE(FIXED(COUNTA(E5:E47),0,0),\"　店\")","v":"8　店"},{"$f":"SUM(F5:F47)","v":25600},{"$f":"SUM(G5:G47)","v":0},null,{"$f":"CONCATENATE(FIXED(COUNTA(I5:I47),0,0),\"　店\")","v":"5　店"},{"$f":"SUM(J5:J47)","v":1700},{"$f":"SUM(K5:K47)","v":0},null,{"$f":"CONCATENATE(FIXED(COUNTA(M5:M47),0,0),\"　店\")","v":"0　店"},{"$f":"SUM(N5:N47)","v":0},{"$f":"SUM(O5:O47)","v":0},null,{"$f":"CONCATENATE(FIXED(COUNTA(Q5:Q47),0,0),\"　店\")","v":"5　店"},{"$f":"SUM(R5:R47)","v":1800},{"$f":"SUM(S5:S47)","v":0},null,{"$f":"CONCATENATE(FIXED(COUNTA(U5:U47),0,0),\"　店\")","v":"0　店"},{"$f":"SUM(V5:V47)","v":0},{"$f":"SUM(W5:W47)","v":0},{"$f":"SUM(X5:X47)","v":0}]
["2025年後期（8月1日以降）",null,null,null,null,null,null,null,null,null,null,null,null,null,null,null,null,null,null,null,null,null,null,"㈱中日総合サービス"]

{"sheet":"昭和区","index":14,"n_rows":49,"n_cols":24,"rows_kept":49,"cut":false,"hidden":false,"merged":[[0,1,1,4],[0,17,0,20],[0,22,1,23],[1,17,1,20],[0,5,0,6],[0,8,0,14],[1,5,1,6],[1,8,1,14],[3,19,3,21],[2,9,2,10],[3,0,3,1],[3,3,3,5],[3,7,3,9],[3,11,3,13],[3,15,3,17]]}
["折込日",null,null,null,null,"広告主",null,null,null,null,null,null,null,null,null,null,"サイズ",null,null,null,null,"取次店"]
[null,null,null,null,null,"チラシ銘柄",null,null,null,null,null,null,null,null,null,null,"部数",{"$f":"A6","v":0}]
[]
["地区",null,null,"中日新聞",null,null,"枚数","朝日新聞",null,null,"枚数","毎日新聞",null,null,"枚数","読売新聞",null,null,"枚数",null,null,null,null,"備考"]
["昭和区",null,0,230115103104,"円上NMS",1400,null,230115203207,"昭和",1000,null,null,null,"",null,230115403501,"御器所",500,null,null,null,null,null,"昭和区全域の場合"]
[{"$f":"SUM(G48,K48,O48,S48,W48)","v":0},{"$f":"SUM(F48,J48,N48,R48,V48)","v":20150},"*1",230115103106,"桜山NMS",1300,null,230115203208,"川原通東",400,null,null,null,"",null,230115403504,"千代田",300,null,null,null,null,null,"瑞穂区高田100枚"]
[null,null,0,230115103108,"鶴舞NMS",2000,null,230115203204,"鶴舞",300,null,null,null,"",null,230115403503,"桜山",400,null,null,null,null,null,"をプラス"]
[null,null,"*2",230115103109,"御器所NMS",2800,null,230115203205,"御器所",300,null,null,null,"",null,null,null,"",null,null,null,null,null,0]
[null,null,"*3",230115103110,"川名NMS",3150,null,230115203210,"山手通",300,null,"",null,"",null,null,null,"",null,null,null,null,null,"*1瑞穂区400枚含む"]
[null,null,"*4",230115103112,"山手通NMS",2450,null,null,null,"",null,null,null,"",null,null,null,"",null,null,null,null,null,"*2瑞穂区300枚含む"]
[null,null,0,230115103115,"滝子NMS",1150,null,null,null,"",null,null,null,"",null,null,null,"",null,null,null,null,null,"*3千種区200枚含む"]
[null,null,0,230115103117,"川原通NMS",2400,null,null,null,"",null,null,null,"",null,null,null,"",null,null,null,null,null,"*4天白区300枚含む"]
[null,null,null,null,null,null,null,null,null,"",null,null,null,"",null,null,null,""]
[null,null,null,null,null,"",null,null,null,"",null,null,null,"",null,null,null,""]
[null,null,null,null,null,"",null,null,null,"",null,null,null,"",null,null,null,""]
[null,null,null,null,null,"",null,null,null,"",null,null,null,"",null,null,null,"",null,null,null,null,null,0]
[null,null,null,null,null,"",null,null,null,"",null,null,null,"",null,null,null,""]
[null,null,null,null,null,"",null,null,null,"",null,null,null,"",null,null,null,"",null,null,null,null,null,0]
[null,null,null,null,null,"",null,null,null,"",null,null,null,"",null,null,null,"",null,null,null,null,null,0]
[null,null,null,null,null,"",null,null,null,"",null,null,null,"",null,null,null,"",null,null,null,null,null,0]
[null,null,null,null,null,"",null,null,null,"",null,null,null,"",null,null,null,"",null,null,null,null,null,0]
[null,null,null,null,null,"",null,null,null,"",null,null,null,"",null,null,null,"",null,null,null,null,null,0]
[null,null,null,null,null,"",null,null,null,"",null,null,null,"",null,null,null,"",null,null,null,null,null,0]
[null,null,null,null,null,"",null,null,null,"",null,null,null,"",null,null,null,"",null,null,null,null,null,0]
[null,null,null,null,null,"",null,null,null,"",null,null,null,"",null,null,null,"",null,null,null,null,null,0]
[null,null,null,null,null,"",null,null,null,"",null,null,null,"",null,null,null,"",null,null,null,null,null,0]
[null,null,null,null,null,"",null,null,null,"",null,null,null,"",null,null,null,"",null,null,null,null,null,0]
[null,null,null,null,null,"",null,null,null,"",null,null,null,"",null,null,null,"",null,null,null,null,null,0]
[null,null,null,null,null,"",null,null,null,"",null,null,null,"",null,null,null,"",null,null,null,null,null,0]
[null,null,null,null,null,"",null,null,null,"",null,null,null,"",null,null,null,"",null,null,null,null,null,0]
[null,null,null,null,null,"",null,null,null,"",null,null,null,"",null,null,null,"",null,null,null,null,null,0]
[null,null,null,null,null,"",null,null,null,"",null,null,null,"",null,null,null,"",null,null,null,null,null,0]
[null,null,null,null,null,"",null,null,null,"",null,null,null,"",null,null,null,"",null,null,null,null,null,0]
[null,null,null,null,null,"",null,null,null,"",null,null,null,"",null,null,null,"",null,null,null,null,null,0]
[null,null,null,null,null,"",null,null,null,"",null,null,null,"",null,null,null,"",null,null,null,null,null,0]
[null,null,null,null,null,"",null,null,null,"",null,null,null,"",null,null,null,"",null,null,null,null,null,0]
[null,null,null,null,null,"",null,null,null,"",null,null,null,"",null,null,null,"",null,null,null,null,null,0]
[null,null,null,null,null,"",null,null,null,"",null,null,null,"",null,null,null,"",null,null,null,null,null,0]
[null,null,null,null,null,"",null,null,null,"",null,null,null,"",null,null,null,"",null,null,null,null,null,0]
[null,null,null,null,null,"",null,null,null,"",null,null,null,"",null,null,null,"",null,null,null,null,null,0]
[null,null,null,null,null,"",null,null,null,"",null,null,null,"",null,null,null,"",null,null,null,null,null,0]
[null,null,null,null,null,"",null,null,null,"",null,null,null,"",null,null,null,"",null,null,null,null,null,0]
[null,null,null,null,null,"",null,null,null,"",null,null,null,"",null,null,null,"",null,null,null,null,null,0]
[null,null,null,null,null,"",null,null,null,"",null,null,null,"",null,null,null,"",null,null,null,null,null,0]
[null,null,null,null,null,"",null,null,null,"",null,null,null,"",null,null,null,"",null,null,null,null,null,0]
[null,null,null,null,null,"",null,null,null,"",null,null,null,"",null,null,null,"",null,null,null,null,null,0]
[null,null,null,null,null,"",null,null,null,"",null,null,null,"",null,null,null,"",null,null,null,null,null,0]
[null,null,null,null,{"$f":"CONCATENATE(FIXED(COUNTA(E5:E47),0,0),\"　店\")","v":"8　店"},{"$f":"SUM(F5:F47)","v":16650},{"$f":"SUM(G5:G47)","v":0},null,{"$f":"CONCATENATE(FIXED(COUNTA(I5:I47),0,0),\"　店\")","v":"5　店"},{"$f":"SUM(J5:J47)","v":2300},{"$f":"SUM(K5:K47)","v":0},null,{"$f":"CONCATENATE(FIXED(COUNTA(M5:M47),0,0),\"　店\")","v":"0　店"},{"$f":"SUM(N5:N47)","v":0},{"$f":"SUM(O5:O47)","v":0},null,{"$f":"CONCATENATE(FIXED(COUNTA(Q5:Q47),0,0),\"　店\")","v":"3　店"},{"$f":"SUM(R5:R47)","v":1200},{"$f":"SUM(S5:S47)","v":0},null,{"$f":"CONCATENATE(FIXED(COUNTA(U5:U47),0,0),\"　店\")","v":"0　店"},{"$f":"SUM(V5:V47)","v":0},{"$f":"SUM(W5:W47)","v":0},{"$f":"SUM(X5:X47)","v":0}]
["2025年後期（8月1日以降）",null,null,null,null,null,null,null,null,null,null,null,null,null,null,null,null,null,null,null,null,null,null,"㈱中日総合サービス"]

{"sheet":"天白区","index":15,"n_rows":49,"n_cols":24,"rows_kept":49,"cut":false,"hidden":false,"merged":[[0,1,1,4],[0,17,0,20],[0,22,1,23],[1,17,1,20],[0,5,0,6],[0,8,0,14],[1,5,1,6],[1,8,1,14],[3,19,3,21],[2,9,2,10],[3,0,3,1],[3,3,3,5],[3,7,3,9],[3,11,3,13],[3,15,3,17]]}
["折込日",null,null,null,null,"広告主",null,null,null,null,null,null,null,null,null,null,"サイズ",null,null,null,null,"取次店"]
[null,null,null,null,null,"チラシ銘柄",null,null,null,null,null,null,null,null,null,null,"部数",{"$f":"A6","v":0}]
[]
["地区",null,null,"中日新聞",null,null,"枚数","朝日新聞",null,null,"枚数","毎日新聞",null,null,"枚数","読売新聞",null,null,"枚数",null,null,null,null,"備考"]
["天白区",null,null,230175101005,"八事NMS",2300,null,230175202010,"平針",350,null,230175303030,"鳴子",50,null,230175415501,"平針",350,null,null,null,null,null,"天白区全域の場合"]
[{"$f":"SUM(G48,K48,O48,S48,W48)","v":0},{"$f":"SUM(F48,J48,N48,R48,V48)","v":29000},0,230175101010,"平針住宅NMS",1250,null,230175202020,"天白",800,null,null,null,"",null,230175415503,"島田",950,null,null,null,null,null,"緑区神ノ倉東部150枚"]
[null,null,0,230175101020,"平針NMS",5250,null,230175202040,"原",450,null,null,null,"",null,230175415504,"植田",400,null,null,null,null,null,"昭和区山手通300枚"]
[null,null,0,230175101030,"植田NMS",3300,null,230175202050,"野並",200,null,null,null,"",null,230175415505,"植田東",550,null,null,null,null,null,"をプラス"]
[null,null,"*1",230175101040,"植田北部NMS",2000,null,230175202065,"八事",750,null,null,null,"",null,null,null,""]
[null,null,0,230175101070,"島田NMS",2200,null,230175202070,"南天白",250,null,null,null,"",null,null,null,"",null,null,null,null,null,0]
[null,null,0,230175101090,"野並NMS",1850,null,null,null,"",null,null,null,"",null,null,null,"",null,null,null,null,null,0]
[null,null,"*2",230175101110,"黒石NMS",1450,null,null,null,"",null,null,null,"",null,null,null,""]
[null,null,0,230175101120,"一ツ山NMS",1800,null,null,null,"",null,null,null,"",null,null,null,"",null,null,null,null,null,0]
[null,null,0,230175101150,"天白相生NS",900,null,null,null,"",null,null,null,"",null,null,null,"",null,null,null,null,null,"*1名東区250枚含む"]
[null,null,"*3",230175101170,"梅が丘NMS",1600,null,null,null,"",null,null,null,"",null,null,null,"",null,null,null,null,null,0]
[null,null,null,null,null,"",null,null,null,"",null,null,null,"",null,null,null,"",null,null,null,null,null,"*2緑区800枚含む"]
[null,null,null,null,null,"",null,null,null,"",null,null,null,"",null,null,null,"",null,null,null,null,null,0]
[null,null,null,null,null,"",null,null,null,"",null,null,null,"",null,null,null,"",null,null,null,null,null,"*3日進市800枚含む"]
[null,null,null,null,null,"",null,null,null,"",null,null,null,"",null,null,null,"",null,null,null,null,null,0]
[null,null,null,null,null,"",null,null,null,"",null,null,null,"",null,null,null,""]
[null,null,null,null,null,"",null,null,null,"",null,null,null,"",null,null,null,""]
[null,null,null,null,null,"",null,null,null,"",null,null,null,"",null,null,null,""]
[null,null,null,null,null,"",null,null,null,"",null,null,null,"",null,null,null,""]
[null,null,null,null,null,"",null,null,null,"",null,null,null,"",null,null,null,""]
[null,null,null,null,null,"",null,null,null,"",null,null,null,"",null,null,null,""]
[null,null,null,null,null,"",null,null,null,"",null,null,null,"",null,null,null,""]
[null,null,null,null,null,"",null,null,null,"",null,null,null,"",null,null,null,""]
[null,null,null,null,null,"",null,null,null,"",null,null,null,"",null,null,null,""]
[null,null,null,null,null,"",null,null,null,"",null,null,null,"",null,null,null,""]
[null,null,null,null,null,"",null,null,null,"",null,null,null,"",null,null,null,""]
[null,null,null,null,null,"",null,null,null,"",null,null,null,"",null,null,null,""]
[null,null,null,null,null,"",null,null,null,"",null,null,null,"",null,null,null,""]
[null,null,null,null,null,"",null,null,null,"",null,null,null,"",null,null,null,""]
[null,null,null,null,null,"",null,null,null,"",null,null,null,"",null,null,null,""]
[null,null,null,null,null,"",null,null,null,"",null,null,null,"",null,null,null,""]
[null,null,null,null,null,"",null,null,null,"",null,null,null,"",null,null,null,""]
[null,null,null,null,null,"",null,null,null,"",null,null,null,"",null,null,null,""]
[null,null,null,null,null,"",null,null,null,"",null,null,null,"",null,null,null,""]
[null,null,null,null,null,"",null,null,null,"",null,null,null,"",null,null,null,""]
[null,null,null,null,null,"",null,null,null,"",null,null,null,"",null,null,null,""]
[null,null,null,null,null,"",null,null,null,"",null,null,null,"",null,null,null,""]
[null,null,null,null,null,"",null,null,null,"",null,null,null,"",null,null,null,""]
[null,null,null,null,null,"",null,null,null,"",null,null,null,"",null,null,null,""]
[null,null,null,null,null,"",null,null,null,"",null,null,null,"",null,null,null,""]
[null,null,null,null,null,"",null,null,null,"",null,null,null,"",null,null,null,""]
[null,null,null,null,null,"",null,null,null,"",null,null,null,"",null,null,null,""]
[null,null,null,null,null,"",null,null,null,"",null,null,null,"",null,null,null,""]
[null,null,null,null,{"$f":"CONCATENATE(FIXED(COUNTA(E5:E47),0,0),\"　店\")","v":"11　店"},{"$f":"SUM(F5:F47)","v":23900},{"$f":"SUM(G5:G47)","v":0},null,{"$f":"CONCATENATE(FIXED(COUNTA(I5:I47),0,0),\"　店\")","v":"6　店"},{"$f":"SUM(J5:J47)","v":2800},{"$f":"SUM(K5:K47)","v":0},null,{"$f":"CONCATENATE(FIXED(COUNTA(M5:M47),0,0),\"　店\")","v":"1　店"},{"$f":"SUM(N5:N47)","v":50},{"$f":"SUM(O5:O47)","v":0},null,{"$f":"CONCATENATE(FIXED(COUNTA(Q5:Q47),0,0),\"　店\")","v":"4　店"},{"$f":"SUM(R5:R47)","v":2250},{"$f":"SUM(S5:S47)","v":0},null,{"$f":"CONCATENATE(FIXED(COUNTA(U5:U47),0,0),\"　店\")","v":"0　店"},{"$f":"SUM(V5:V47)","v":0},{"$f":"SUM(W5:W47)","v":0},{"$f":"SUM(X5:X47)","v":0}]
["2025年後期（8月1日以降）",null,null,null,null,null,null,null,null,null,null,null,null,null,null,null,null,null,null,null,null,null,null,"㈱中日総合サービス"]

{"sheet":"瑞穂区","index":16,"n_rows":49,"n_cols":24,"rows_kept":49,"cut":false,"hidden":false,"merged":[[0,1,1,4],[0,17,0,20],[0,22,1,23],[1,17,1,20],[0,5,0,6],[0,8,0,14],[1,5,1,6],[1,8,1,14],[3,19,3,21],[2,9,2,10],[3,0,3,1],[3,3,3,5],[3,7,3,9],[3,11,3,13],[3,15,3,17]]}
["折込日",null,null,null,null,"広告主",null,null,null,null,null,null,null,null,null,null,"サイズ",null,null,null,null,"取次店"]
[null,null,null,null,null,"チラシ銘柄",null,null,null,null,null,null,null,null,null,null,"部数",{"$f":"A6","v":0}]
[]
["地区",null,null,"中日新聞",null,null,"枚数","朝日新聞",null,null,"枚数","毎日新聞",null,null,"枚数","読売新聞",null,null,"枚数",null,null,null,null,"備考"]
["瑞穂区",null,"*1",230120104101,"高田NMS",2250,null,230120204201,"弥富通",600,null,null,null,"",null,230120404501,"滝川",500,null,null,null,null,null,"瑞穂区全域の場合"]
[{"$f":"SUM(G48,K48,O48,S48,W48)","v":0},{"$f":"SUM(F48,J48,N48,R48,V48)","v":19500},0,230120104102,"井戸田NS",1150,null,230120204204,"田辺通",900,null,null,null,"",null,230120404502,"豊岡通",200,null,null,null,null,null,"昭和区御器所300枚"]
[null,null,0,230120104103,"堀田NMS",2550,null,230120204203,"瑞穂",850,null,null,null,"",null,null,null,"",null,null,null,null,null,"昭和区桜山400枚"]
[null,null,0,230120104104,"瑞穂NMS",2550,null,null,null,"",null,null,null,"",null,null,null,"",null,null,null,null,null,"をプラス"]
[null,null,null,230120104107,"昭和高校前NMS",1500,null,null,null,"",null,null,null,"",null,null,null,""]
[null,null,0,230120104109,"汐路NMS",1500,null,null,null,"",null,null,null,"",null,null,null,"",null,null,null,null,null,"*1昭和区100枚含む"]
[null,null,0,230120104110,"石川橋NMS",1750,null,null,null,"",null,null,null,"",null,null,null,"",null,null,null,null,null,0]
[null,null,0,230120104111,"中根NS",1800,null,null,null,"",null,null,null,"",null,null,null,"",null,null,null,null,null,0]
[null,null,0,230120104112,"市内弥富NMS",1400,null,null,null,"",null,null,null,"",null,null,null,""]
[null,null,0,null,null,null,null,null,null,"",null,null,null,"",null,null,null,"",null,null,null,null,null,0]
[null,null,0,null,null,"",null,null,null,"",null,null,null,"",null,null,null,"",null,null,null,null,null,0]
[null,null,null,null,null,"",null,null,null,"",null,null,null,"",null,null,null,"",null,null,null,null,null,0]
[null,null,null,null,null,"",null,null,null,"",null,null,null,"",null,null,null,"",null,null,null,null,null,0]
[null,null,null,null,null,"",null,null,null,"",null,null,null,"",null,null,null,"",null,null,null,null,null,0]
[null,null,null,null,null,"",null,null,null,"",null,null,null,"",null,null,null,"",null,null,null,null,null,0]
[null,null,null,null,null,"",null,null,null,"",null,null,null,"",null,null,null,"",null,null,null,null,null,0]
[null,null,null,null,null,"",null,null,null,"",null,null,null,"",null,null,null,"",null,null,null,null,null,0]
[null,null,null,null,null,"",null,null,null,"",null,null,null,"",null,null,null,"",null,null,null,null,null,0]
[null,null,null,null,null,"",null,null,null,"",null,null,null,"",null,null,null,"",null,null,null,null,null,0]
[null,null,null,null,null,"",null,null,null,"",null,null,null,"",null,null,null,"",null,null,null,null,null,0]
[null,null,null,null,null,"",null,null,null,"",null,null,null,"",null,null,null,"",null,null,null,null,null,0]
[null,null,null,null,null,"",null,null,null,"",null,null,null,"",null,null,null,"",null,null,null,null,null,0]
[null,null,null,null,null,"",null,null,null,"",null,null,null,"",null,null,null,"",null,null,null,null,null,0]
[null,null,null,null,null,"",null,null,null,"",null,null,null,"",null,null,null,"",null,null,null,null,null,0]
[null,null,null,null,null,"",null,null,null,"",null,null,null,"",null,null,null,"",null,null,null,null,null,0]
[null,null,null,null,null,"",null,null,null,"",null,null,null,"",null,null,null,"",null,null,null,null,null,0]
[null,null,null,null,null,"",null,null,null,"",null,null,null,"",null,null,null,"",null,null,null,null,null,0]
[null,null,null,null,null,"",null,null,null,"",null,null,null,"",null,null,null,"",null,null,null,null,null,0]
[null,null,null,null,null,"",null,null,null,"",null,null,null,"",null,null,null,"",null,null,null,null,null,0]
[null,null,null,null,null,"",null,null,null,"",null,null,null,"",null,null,null,"",null,null,null,null,null,0]
[null,null,null,null,null,"",null,null,null,"",null,null,null,"",null,null,null,"",null,null,null,null,null,0]
[null,null,null,null,null,"",null,null,null,"",null,null,null,"",null,null,null,"",null,null,null,null,null,0]
[null,null,null,null,null,"",null,null,null,"",null,null,null,"",null,null,null,"",null,null,null,null,null,0]
[null,null,null,null,null,"",null,null,null,"",null,null,null,"",null,null,null,"",null,null,null,null,null,0]
[null,null,null,null,null,"",null,null,null,"",null,null,null,"",null,null,null,"",null,null,null,null,null,0]
[null,null,null,null,null,"",null,null,null,"",null,null,null,"",null,null,null,"",null,null,null,null,null,0]
[null,null,null,null,null,"",null,null,null,"",null,null,null,"",null,null,null,"",null,null,null,null,null,0]
[null,null,null,null,null,"",null,null,null,"",null,null,null,"",null,null,null,"",null,null,null,null,null,0]
[null,null,null,null,null,"",null,null,null,"",null,null,null,"",null,null,null,"",null,null,null,null,null,0]
[null,null,null,null,null,"",null,null,null,"",null,null,null,"",null,null,null,"",null,null,null,null,null,0]
[null,null,null,null,null,"",null,null,null,"",null,null,null,"",null,null,null,"",null,null,null,null,null,0]
[null,null,null,null,null,"",null,null,null,"",null,null,null,"",null,null,null,"",null,null,null,null,null,0]
[null,null,null,null,null,"",null,null,null,"",null,null,null,"",null,null,null,"",null,null,null,null,null,0]
[null,null,null,null,{"$f":"CONCATENATE(FIXED(COUNTA(E5:E47),0,0),\"　店\")","v":"9　店"},{"$f":"SUM(F5:F47)","v":16450},{"$f":"SUM(G5:G47)","v":0},null,{"$f":"CONCATENATE(FIXED(COUNTA(I5:I47),0,0),\"　店\")","v":"3　店"},{"$f":"SUM(J5:J47)","v":2350},{"$f":"SUM(K5:K47)","v":0},null,{"$f":"CONCATENATE(FIXED(COUNTA(M5:M47),0,0),\"　店\")","v":"0　店"},{"$f":"SUM(N5:N47)","v":0},{"$f":"SUM(O5:O47)","v":0},null,{"$f":"CONCATENATE(FIXED(COUNTA(Q5:Q47),0,0),\"　店\")","v":"2　店"},{"$f":"SUM(R5:R47)","v":700},{"$f":"SUM(S5:S47)","v":0},null,{"$f":"CONCATENATE(FIXED(COUNTA(U5:U47),0,0),\"　店\")","v":"0　店"},{"$f":"SUM(V5:V47)","v":0},{"$f":"SUM(W5:W47)","v":0},{"$f":"SUM(X5:X47)","v":0}]
["2025年後期（8月1日以降）",null,null,null,null,null,null,null,null,null,null,null,null,null,null,null,null,null,null,null,null,null,null,"㈱中日総合サービス"]

{"sheet":"南区","index":17,"n_rows":49,"n_cols":24,"rows_kept":49,"cut":false,"hidden":false,"merged":[[0,1,1,4],[0,17,0,20],[0,22,1,23],[1,17,1,20],[0,5,0,6],[0,8,0,14],[1,5,1,6],[1,8,1,14],[3,19,3,21],[2,9,2,10],[3,0,3,1],[3,3,3,5],[3,7,3,9],[3,11,3,13],[3,15,3,17]]}
["折込日",null,null,null,null,"広告主",null,null,null,null,null,null,null,null,null,null,"サイズ",null,null,null,null,"取次店"]
[null,null,null,null,null,"チラシ銘柄",null,null,null,null,null,null,null,null,null,null,"部数",{"$f":"A6","v":0}]
[]
["地区",null,null,"中日新聞",null,null,"枚数","朝日新聞",null,null,"枚数","毎日新聞",null,null,"枚数","読売新聞",null,null,"枚数",null,null,null,null,"備考"]
["南区",null,0,230125105102,"柴田NMS",2250,null,230125205201,"市内桜",500,null,230125305301,"桜",450,null,230125405502,"明豊",600,null,null,null,null,null,0]
[{"$f":"SUM(G48,K48,O48,S48,W48)","v":0},{"$f":"SUM(F48,J48,N48,R48,V48)","v":27600},0,230125105105,"星崎NM",1400,null,230125205202,"笠寺",500,null,null,null,"",null,230125405503,"笠寺",200,null,null,null,null,null,0]
[null,null,0,230125105106,"鳴尾NM",1300,null,230125205204,"柴田",350,null,null,null,"",null,230125405504,"野並",600,null,null,null,null,null,0]
[null,null,"*1",230125105108,"明治NMS",2050,null,230125205205,"道徳",500,null,null,null,"",null,230125405507,"呼続",600,null,null,null,null,null,"*1熱田区300枚含む"]
[null,null,0,230125105109,"市内豊田NMS",2050,null,null,null,"",null,null,null,"",null,230125405505,"柴田",350]
[null,null,"*2",230125105110,"南陽通NMS",2250,null,null,null,"",null,null,null,"",null,230125405506,"北頭",250,null,null,null,null,null,"*2港区750枚含む"]
[null,null,0,230125105111,"大江NMS",1200,null,null,null,"",null,null,null,"",null,null,null,"",null,null,null,null,null,0]
[null,null,0,230125105114,"笠寺NMS",2400,null,null,null,"",null,null,null,"",null,null,null,"",null,null,null,null,null,0]
[null,null,0,230125105118,"さくらNMS",1700,null,null,null,"",null,null,null,"",null,null,null,""]
[null,null,0,230125105119,"呼続NS",1600,null,null,null,"",null,null,null,"",null,null,null,"",null,null,null,null,null,0]
[null,null,0,230125105120,"大磯NMS",2000,null,null,null,"",null,null,null,"",null,null,null,""]
[null,null,0,230125105121,"桜田NMS",1650,null,null,null,"",null,null,null,"",null,null,null,"",null,null,null,null,null,0]
[null,null,0,230125105122,"ゆたかNMS",850,null,null,null,"",null,null,null,"",null,null,null,"",null,null,null,null,null,0]
[null,null,null,null,null,"",null,null,null,"",null,null,null,"",null,null,null,"",null,null,null,null,null,0]
[null,null,null,null,null,"",null,null,null,"",null,null,null,"",null,null,null,"",null,null,null,null,null,0]
[null,null,null,null,null,"",null,null,null,"",null,null,null,"",null,null,null,"",null,null,null,null,null,0]
[null,null,null,null,null,"",null,null,null,"",null,null,null,"",null,null,null,"",null,null,null,null,null,0]
[null,null,null,null,null,"",null,null,null,"",null,null,null,"",null,null,null,"",null,null,null,null,null,0]
[null,null,null,null,null,"",null,null,null,"",null,null,null,"",null,null,null,"",null,null,null,null,null,0]
[null,null,null,null,null,"",null,null,null,"",null,null,null,"",null,null,null,"",null,null,null,null,null,0]
[null,null,null,null,null,"",null,null,null,"",null,null,null,"",null,null,null,"",null,null,null,null,null,0]
[null,null,null,null,null,"",null,null,null,"",null,null,null,"",null,null,null,"",null,null,null,null,null,0]
[null,null,null,null,null,"",null,null,null,"",null,null,null,"",null,null,null,"",null,null,null,null,null,0]
[null,null,null,null,null,"",null,null,null,"",null,null,null,"",null,null,null,"",null,null,null,null,null,0]
[null,null,null,null,null,"",null,null,null,"",null,null,null,"",null,null,null,"",null,null,null,null,null,0]
[null,null,null,null,null,"",null,null,null,"",null,null,null,"",null,null,null,"",null,null,null,null,null,0]
[null,null,null,null,null,"",null,null,null,"",null,null,null,"",null,null,null,"",null,null,null,null,null,0]
[null,null,null,null,null,"",null,null,null,"",null,null,null,"",null,null,null,"",null,null,null,null,null,0]
[null,null,null,null,null,"",null,null,null,"",null,null,null,"",null,null,null,"",null,null,null,null,null,0]
[null,null,null,null,null,"",null,null,null,"",null,null,null,"",null,null,null,"",null,null,null,null,null,0]
[null,null,null,null,null,"",null,null,null,"",null,null,null,"",null,null,null,"",null,null,null,null,null,0]
[null,null,null,null,null,"",null,null,null,"",null,null,null,"",null,null,null,"",null,null,null,null,null,0]
[null,null,null,null,null,"",null,null,null,"",null,null,null,"",null,null,null,"",null,null,null,null,null,0]
[null,null,null,null,null,"",null,null,null,"",null,null,null,"",null,null,null,"",null,null,null,null,null,0]
[null,null,null,null,null,"",null,null,null,"",null,null,null,"",null,null,null,"",null,null,null,null,null,0]
[null,null,null,null,null,"",null,null,null,"",null,null,null,"",null,null,null,"",null,null,null,null,null,0]
[null,null,null,null,null,"",null,null,null,"",null,null,null,"",null,null,null,"",null,null,null,null,null,0]
[null,null,null,null,null,"",null,null,null,"",null,null,null,"",null,null,null,"",null,null,null,null,null,0]
[null,null,null,null,null,"",null,null,null,"",null,null,null,"",null,null,null,"",null,null,null,null,null,0]
[null,null,null,null,null,"",null,null,null,"",null,null,null,"",null,null,null,"",null,null,null,null,null,0]
[null,null,null,null,null,"",null,null,null,"",null,null,null,"",null,null,null,"",null,null,null,null,null,0]
[null,null,null,null,null,"",null,null,null,"",null,null,null,"",null,null,null,"",null,null,null,null,null,0]
[null,null,null,null,null,"",null,null,null,"",null,null,null,"",null,null,null,"",null,null,null,null,null,0]
[null,null,null,null,{"$f":"CONCATENATE(FIXED(COUNTA(E5:E47),0,0),\"　店\")","v":"13　店"},{"$f":"SUM(F5:F47)","v":22700},{"$f":"SUM(G5:G47)","v":0},null,{"$f":"CONCATENATE(FIXED(COUNTA(I5:I47),0,0),\"　店\")","v":"4　店"},{"$f":"SUM(J5:J47)","v":1850},{"$f":"SUM(K5:K47)","v":0},null,{"$f":"CONCATENATE(FIXED(COUNTA(M5:M47),0,0),\"　店\")","v":"1　店"},{"$f":"SUM(N5:N47)","v":450},{"$f":"SUM(O5:O47)","v":0},null,{"$f":"CONCATENATE(FIXED(COUNTA(Q5:Q47),0,0),\"　店\")","v":"6　店"},{"$f":"SUM(R5:R47)","v":2600},{"$f":"SUM(S5:S47)","v":0},null,{"$f":"CONCATENATE(FIXED(COUNTA(U5:U47),0,0),\"　店\")","v":"0　店"},{"$f":"SUM(V5:V47)","v":0},{"$f":"SUM(W5:W47)","v":0},{"$f":"SUM(X5:X47)","v":0}]
["2025年後期（8月1日以降）",null,null,null,null,null,null,null,null,null,null,null,null,null,null,null,null,null,null,null,null,null,null,"㈱中日総合サービス"]

{"sheet":"緑区","index":18,"n_rows":49,"n_cols":24,"rows_kept":49,"cut":false,"hidden":false,"merged":[[0,1,1,4],[0,17,0,20],[0,22,1,23],[1,17,1,20],[0,5,0,6],[0,8,0,14],[1,5,1,6],[1,8,1,14],[3,19,3,21],[2,9,2,10],[3,0,3,1],[3,3,3,5],[3,7,3,9],[3,11,3,13],[3,15,3,17]]}
["折込日",null,null,null,null,"広告主",null,null,null,null,null,null,null,null,null,null,"サイズ",null,null,null,null,"取次店"]
[null,null,null,null,null,"チラシ銘柄",null,null,null,null,null,null,null,null,null,null,"部数",{"$f":"A6","v":0}]
[]
["地区",null,null,"中日新聞",null,null,"枚数","朝日新聞",null,null,"枚数","毎日新聞",null,null,"枚数","読売新聞",null,null,"枚数",null,null,null,null,"備考"]
["緑区",null,0,230180101010,"なるみ砦NS",2100,null,230180202010,"鳴海",300,null,230180303010,"鳴海",500,null,230180416502,"大高",550,null,null,null,null,null,"緑区全域の場合"]
[{"$f":"SUM(G48,K48,O48,S48,W48)","v":0},{"$f":"SUM(F48,J48,N48,R48,V48)","v":43850},0,230180101030,"鳴海N",1750,null,230180202020,"緑中央",950,null,230180303030,"鳴子",450,null,230180416503,"緑中央",750,null,null,null,null,null,"天白区黒石800枚"]
[null,null,0,230180101040,"大高NS",2500,null,230180202040,"神の倉",2050,null,230180303040,"大高",350,null,null,null,"",null,null,null,null,null,"をプラス"]
[null,null,0,230180101050,"大高南NS",1000,null,230180202060,"有松",850,null,null,null,"",null,null,null,"",null,null,null,null,null,0]
[null,null,0,230180101070,"鳴子NS",3550,null,230180202080,"鳴子",400,null,null,null,"",null,null,null,"",null,null,null,null,null,0]
[null,null,0,230180101080,"平手NS",1450,null,230180202090,"緑南部",550,null,null,null,"",null,null,null,"",null,null,null,null,null,0]
[null,null,0,230180101100,"滝の水NS",2250,null,null,null,"",null,null,null,"",null,null,null,"",null,null,null,null,null,0]
[null,null,0,230180101110,"みどり台NS",3000,null,null,null,"",null,null,null,"",null,null,null,"",null,null,null,null,null,0]
[null,null,0,230180101140,"左京山NS",2900,null,null,null,"",null,null,null,"",null,null,null,"",null,null,null,null,null,0]
[null,null,0,230180101150,"有松NMS",1900,null,null,null,"",null,null,null,"",null,null,null,"",null,null,null,null,null,0]
[null,null,0,230180101160,"有松南NM",1050,null,null,null,"",null,null,null,"",null,null,null,"",null,null,null,null,null,0]
[null,null,0,230180101180,"鳴海住宅NS",1700,null,null,null,"",null,null,null,"",null,null,null,"",null,null,null,null,null,0]
[null,null,0,230180101190,"競馬場前NS",1500,null,null,null,"",null,null,null,"",null,null,null,"",null,null,null,null,null,0]
[null,null,0,230180101200,"神ノ倉NMS",2050,null,null,null,"",null,null,null,"",null,null,null,"",null,null,null,null,null,0]
[null,null,"*1",230180101201,"神ノ倉東部NMS",1150,null,null,null,"",null,null,null,"",null,null,null,"",null,null,null,null,null,0]
[null,null,null,230180101210,"みどり桃山NMS",1000,null,null,null,"",null,null,null,"",null,null,null,"",null,null,null,null,null,0]
[null,null,0,230180101220,"みどり徳重N",1600,null,null,null,"",null,null,null,"",null,null,null,"",null,null,null,null,null,"*1天白区150枚含む"]
[null,null,0,230180101230,"鳴海大清水NS",1600,null,null,null,"",null,null,null,"",null,null,null,""]
[null,null,0,230180101240,"桶狭間NM",1000,null,null,null,"",null,null,null,"",null,null,null,""]
[null,null,0,230180101250,"みどり篭山N",1100,null,null,null,"",null,null,null,"",null,null,null,"",null,null,null,null,null,0]
[null,null,null,null,null,"",null,null,null,"",null,null,null,"",null,null,null,"",null,null,null,null,null,0]
[null,null,null,null,null,"",null,null,null,"",null,null,null,"",null,null,null,"",null,null,null,null,null,0]
[null,null,null,null,null,"",null,null,null,"",null,null,null,"",null,null,null,"",null,null,null,null,null,0]
[null,null,null,null,null,"",null,null,null,"",null,null,null,"",null,null,null,"",null,null,null,null,null,0]
[null,null,null,null,null,"",null,null,null,"",null,null,null,"",null,null,null,"",null,null,null,null,null,0]
[null,null,null,null,null,"",null,null,null,"",null,null,null,"",null,null,null,"",null,null,null,null,null,0]
[null,null,null,null,null,"",null,null,null,"",null,null,null,"",null,null,null,"",null,null,null,null,null,0]
[null,null,null,null,null,"",null,null,null,"",null,null,null,"",null,null,null,"",null,null,null,null,null,0]
[null,null,null,null,null,"",null,null,null,"",null,null,null,"",null,null,null,"",null,null,null,null,null,0]
[null,null,null,null,null,"",null,null,null,"",null,null,null,"",null,null,null,"",null,null,null,null,null,0]
[null,null,null,null,null,"",null,null,null,"",null,null,null,"",null,null,null,"",null,null,null,null,null,0]
[null,null,null,null,null,"",null,null,null,"",null,null,null,"",null,null,null,"",null,null,null,null,null,0]
[null,null,null,null,null,"",null,null,null,"",null,null,null,"",null,null,null,"",null,null,null,null,null,0]
[null,null,null,null,null,"",null,null,null,"",null,null,null,"",null,null,null,"",null,null,null,null,null,0]
[null,null,null,null,null,"",null,null,null,"",null,null,null,"",null,null,null,"",null,null,null,null,null,0]
[null,null,null,null,null,"",null,null,null,"",null,null,null,"",null,null,null,"",null,null,null,null,null,0]
[null,null,null,null,null,"",null,null,null,"",null,null,null,"",null,null,null,"",null,null,null,null,null,0]
[null,null,null,null,null,"",null,null,null,"",null,null,null,"",null,null,null,"",null,null,null,null,null,0]
[null,null,null,null,null,"",null,null,null,"",null,null,null,"",null,null,null,"",null,null,null,null,null,0]
[null,null,null,null,null,"",null,null,null,"",null,null,null,"",null,null,null,"",null,null,null,null,null,0]
[null,null,null,null,null,"",null,null,null,"",null,null,null,"",null,null,null,"",null,null,null,null,null,0]
[null,null,null,null,null,"",null,null,null,"",null,null,null,"",null,null,null,"",null,null,null,null,null,0]
[null,null,null,null,null,"",null,null,null,"",null,null,null,"",null,null,null,"",null,null,null,null,null,0]
[null,null,null,null,{"$f":"CONCATENATE(FIXED(COUNTA(E5:E47),0,0),\"　店\")","v":"20　店"},{"$f":"SUM(F5:F47)","v":36150},{"$f":"SUM(G5:G47)","v":0},null,{"$f":"CONCATENATE(FIXED(COUNTA(I5:I47),0,0),\"　店\")","v":"6　店"},{"$f":"SUM(J5:J47)","v":5100},{"$f":"SUM(K5:K47)","v":0},null,{"$f":"CONCATENATE(FIXED(COUNTA(M5:M47),0,0),\"　店\")","v":"3　店"},{"$f":"SUM(N5:N47)","v":1300},{"$f":"SUM(O5:O47)","v":0},null,{"$f":"CONCATENATE(FIXED(COUNTA(Q5:Q47),0,0),\"　店\")","v":"2　店"},{"$f":"SUM(R5:R47)","v":1300},{"$f":"SUM(S5:S47)","v":0},null,{"$f":"CONCATENATE(FIXED(COUNTA(U5:U47),0,0),\"　店\")","v":"0　店"},{"$f":"SUM(V5:V47)","v":0},{"$f":"SUM(W5:W47)","v":0},{"$f":"SUM(X5:X47)","v":0}]
["2025年後期（8月1日以降）",null,null,null,null,null,null,null,null,null,null,null,null,null,null,null,null,null,null,null,null,null,null,"㈱中日総合サービス"]

{"sheet":"熱田区・港区","index":19,"n_rows":49,"n_cols":24,"rows_kept":49,"cut":false,"hidden":false,"merged":[[0,1,1,4],[0,17,0,20],[0,22,1,23],[1,17,1,20],[0,5,0,6],[0,8,0,14],[1,5,1,6],[1,8,1,14],[2,9,2,10],[3,0,3,1],[3,3,3,5],[3,7,3,9],[3,11,3,13],[3,19,3,21],[22,0,22,1],[22,3,22,5],[22,7,22,9],[22,11,22,13],[22,15,22,17],[22,19,22,21],[3,15,3,17]]}
["折込日",null,null,null,null,"広告主",null,null,null,null,null,null,null,null,null,null,"サイズ",null,null,null,null,"取次店"]
[null,null,null,null,null,"チラシ銘柄",null,null,null,null,null,null,null,null,null,null,"部数",{"$f":"A6+A25","v":0}]
[]
["地区",null,null,"中日新聞",null,null,"枚数","朝日新聞",null,null,"枚数","毎日新聞",null,null,"枚数","読売新聞",null,null,"枚数",null,null,null,null,"備考"]
["熱田区",null,0,230130106101,"沢上NMS",2750,null,230130206201,"熱田",500,null,null,null,"",null,230130406504,"金山",850,null,null,null,null,null,"熱田区全域の場合"]
[{"$f":"SUM(G21,K21,O21,S21,W21)","v":0},{"$f":"SUM(F21,J21,N21,R21,V21)","v":13250},0,230130106102,"熱田NMS",1650,null,230130206202,"日比野",450,null,null,null,"",null,230130406502,"神宮",600,null,null,null,null,null,"港区千年950枚"]
[null,null,"*1",230130106104,"日比野NMS",3250,null,null,null,"",null,null,null,"",null,230130406503,"千年",700,null,null,null,null,null,"南区明治300枚"]
[null,null,0,230130106106,"六番町NMS",950,null,null,null,"",null,null,null,"",null,null,null,"",null,null,null,null,null,"をプラス"]
[null,null,0,230130106105,"船方NMS",1550,null,null,null,"",null,null,null,"",null,null,null,""]
[null,null,null,null,null,"",null,null,null,"",null,null,null,"",null,null,null,"",null,null,null,null,null,"*1中川区850枚含む"]
[null,null,null,null,null,"",null,null,null,"",null,null,null,"",null,null,null,"",null,null,null,null,null,0]
[null,null,null,null,null,"",null,null,null,"",null,null,null,"",null,null,null,"",null,null,null,null,null,0]
[null,null,null,null,null,"",null,null,null,"",null,null,null,"",null,null,null,"",null,null,null,null,null,0]
[null,null,null,null,null,"",null,null,null,"",null,null,null,"",null,null,null,"",null,null,null,null,null,0]
[null,null,null,null,null,"",null,null,null,"",null,null,null,"",null,null,null,"",null,null,null,null,null,0]
[null,null,null,null,null,"",null,null,null,"",null,null,null,"",null,null,null,"",null,null,null,null,null,0]
[null,null,null,null,null,"",null,null,null,"",null,null,null,"",null,null,null,"",null,null,null,null,null,0]
[null,null,null,null,null,"",null,null,null,"",null,null,null,"",null,null,null,"",null,null,null,null,null,0]
[null,null,null,null,null,"",null,null,null,"",null,null,null,"",null,null,null,"",null,null,null,null,null,0]
[null,null,null,null,null,"",null,null,null,"",null,null,null,"",null,null,null,"",null,null,null,null,null,0]
[null,null,null,null,{"$f":"CONCATENATE(FIXED(COUNTA(E5:E20),0,0),\"　店\")","v":"5　店"},{"$f":"SUM(F5:F20)","v":10150},{"$f":"SUM(G5:G20)","v":0},null,{"$f":"CONCATENATE(FIXED(COUNTA(I5:I20),0,0),\"　店\")","v":"2　店"},{"$f":"SUM(J5:J20)","v":950},{"$f":"SUM(K5:K20)","v":0},null,{"$f":"CONCATENATE(FIXED(COUNTA(M5:M20),0,0),\"　店\")","v":"0　店"},{"$f":"SUM(N5:N20)","v":0},{"$f":"SUM(O5:O20)","v":0},null,{"$f":"CONCATENATE(FIXED(COUNTA(Q5:Q20),0,0),\"　店\")","v":"3　店"},{"$f":"SUM(R5:R20)","v":2150},{"$f":"SUM(S5:S20)","v":0},null,{"$f":"CONCATENATE(FIXED(COUNTA(U5:U20),0,0),\"　店\")","v":"0　店"},{"$f":"SUM(V5:V20)","v":0},{"$f":"SUM(W5:W20)","v":0},{"$f":"SUM(X5:X20)","v":0}]
[]
["地区",null,null,"中日新聞",null,null,"枚数","朝日新聞",null,null,"枚数","毎日新聞",null,null,"枚数","読売新聞",null,null,"枚数",null,null,null,null,"備考"]
["港区",null,"*1",230135107101,"千年NMS",1800,null,230135207201,"大手",350,null,null,null,"",null,230135407501,"稲永",400,null,null,null,null,null,"港区全域の場合"]
[{"$f":"SUM(G48,K48,O48,S48,W48)","v":0},{"$f":"SUM(F48,J48,N48,R48,V48)","v":21950},0,230135107102,"名港NAMS",1700,null,230135207203,"港北",300,null,null,null,"",null,230135407502,"名港",400,null,null,null,null,null,"南区南陽通750枚"]
[null,null,0,230135107104,"東海橋NAMS",1350,null,null,null,"",null,null,null,"",null,230135407503,"惟信",500,null,null,null,null,null,"中川区昭和橋500枚"]
[null,null,0,230135107105,"小碓NM",2200,null,null,null,"",null,null,null,"",null,230135407504,"南陽",300,null,null,null,null,null,"中川区豊治200枚"]
[null,null,0,230135107107,"稲永NAMS",1500,null,null,null,"",null,null,null,"",null,null,null,"",null,null,null,null,null,"をプラス"]
[null,null,0,230135107109,"港西NAM",1350,null,null,null,"",null,null,null,"",null,null,null,""]
[null,null,0,230135107110,"大手NAMS",1800,null,null,null,"",null,null,null,"",null,null,null,"",null,null,null,null,null,0]
[null,null,0,230135107112,"明徳NM",1450,null,null,null,"",null,null,null,"",null,null,null,"",null,null,null,null,null,"*1熱田区950枚含む"]
[null,null,0,230135107113,"当知NM",1000,null,null,null,"",null,null,null,"",null,null,null,"",null,null,null,null,null,0]
[null,null,0,230135107114,"市内南陽NAMS",2900,null,null,null,"",null,null,null,"",null,null,null,"",null,null,null,null,null,0]
[null,null,0,230135107115,"南陽西部NAMS",1400,null,null,null,"",null,null,null,"",null,null,null,"",null,null,null,null,null,0]
[null,null,0,230135107116,"惟信NM",1250,null,null,null,"",null,null,null,"",null,null,null,"",null,null,null,null,null,0]
[null,null,null,null,null,"",null,null,null,"",null,null,null,"",null,null,null,"",null,null,null,null,null,0]
[null,null,0,null,null,"",null,null,null,"",null,null,null,"",null,null,null,"",null,null,null,null,null,0]
[null,null,null,null,null,"",null,null,null,"",null,null,null,"",null,null,null,"",null,null,null,null,null,0]
[null,null,null,null,null,"",null,null,null,"",null,null,null,"",null,null,null,"",null,null,null,null,null,0]
[null,null,null,null,null,"",null,null,null,"",null,null,null,"",null,null,null,"",null,null,null,null,null,0]
[null,null,null,null,null,"",null,null,null,"",null,null,null,"",null,null,null,"",null,null,null,null,null,0]
[null,null,null,null,null,"",null,null,null,"",null,null,null,"",null,null,null,"",null,null,null,null,null,0]
[null,null,null,null,null,"",null,null,null,"",null,null,null,"",null,null,null,"",null,null,null,null,null,0]
[null,null,null,null,null,"",null,null,null,"",null,null,null,"",null,null,null,"",null,null,null,null,null,0]
[null,null,null,null,null,"",null,null,null,"",null,null,null,"",null,null,null,"",null,null,null,null,null,0]
[null,null,null,null,null,"",null,null,null,"",null,null,null,"",null,null,null,"",null,null,null,null,null,0]
[null,null,null,null,null,"",null,null,null,"",null,null,null,"",null,null,null,"",null,null,null,null,null,0]
[null,null,null,null,{"$f":"CONCATENATE(FIXED(COUNTA(E24:E47),0,0),\"　店\")","v":"12　店"},{"$f":"SUM(F24:F47)","v":19700},{"$f":"SUM(G24:G47)","v":0},null,{"$f":"CONCATENATE(FIXED(COUNTA(I24:I47),0,0),\"　店\")","v":"2　店"},{"$f":"SUM(J24:J47)","v":650},{"$f":"SUM(K24:K47)","v":0},null,{"$f":"CONCATENATE(FIXED(COUNTA(M24:M47),0,0),\"　店\")","v":"0　店"},{"$f":"SUM(N24:N47)","v":0},{"$f":"SUM(O24:O47)","v":0},null,{"$f":"CONCATENATE(FIXED(COUNTA(Q24:Q47),0,0),\"　店\")","v":"4　店"},{"$f":"SUM(R24:R47)","v":1600},{"$f":"SUM(S24:S47)","v":0},null,{"$f":"CONCATENATE(FIXED(COUNTA(U24:U47),0,0),\"　店\")","v":"0　店"},{"$f":"SUM(V24:V47)","v":0},{"$f":"SUM(W24:W47)","v":0},{"$f":"SUM(X24:X47)","v":0}]
["2025年後期（8月1日以降）",null,null,null,null,null,null,null,null,null,null,null,null,null,null,null,null,null,null,null,null,null,null,"㈱中日総合サービス"]

{"sheet":"中川区","index":20,"n_rows":49,"n_cols":24,"rows_kept":49,"cut":false,"hidden":false,"merged":[[0,1,1,4],[0,17,0,20],[0,22,1,23],[1,17,1,20],[0,5,0,6],[0,8,0,14],[1,5,1,6],[1,8,1,14],[3,19,3,21],[2,9,2,10],[3,0,3,1],[3,3,3,5],[3,7,3,9],[3,11,3,13],[3,15,3,17]]}
["折込日",null,null,null,null,"広告主",null,null,null,null,null,null,null,null,null,null,"サイズ",null,null,null,null,"取次店"]
[null,null,null,null,null,"チラシ銘柄",null,null,null,null,null,null,null,null,null,null,"部数",{"$f":"A6","v":0}]
[]
["地区",null,null,"中日新聞",null,null,"枚数","朝日新聞",null,null,"枚数","毎日新聞",null,null,"枚数","読売新聞",null,null,"枚数",null,null,null,null,"備考"]
["中川区",null,"*1",230140108101,"昭和橋NMS",2250,null,230140208201,"五女子",550,null,null,null,"",null,230140408502,"高畑",1050,null,null,null,null,null,"中川区全域の場合"]
[{"$f":"SUM(G48,K48,O48,S48,W48)","v":0},{"$f":"SUM(F48,J48,N48,R48,V48)","v":36600},0,230140108102,"五女子NMS",1450,null,230140208210,"戸田",350,null,null,null,"",null,230140408503,"昭和橋",1050,null,null,null,null,null,"熱田区日比野850枚"]
[null,null,0,230140108104,"大須・水主町NMS",1250,null,230140208203,"高畑",300,null,null,null,"",null,230140408505,"十番町",100,null,null,null,null,null,"海部郡大治町万場北"]
[null,null,0,230140108105,"篠原NM",1800,null,null,null,"",null,null,null,"",null,230140408506,"富田",650,null,null,null,null,null,"200枚をプラス"]
[null,null,0,230140108106,"八幡NMS",2350,null,null,null,"",null,null,null,"",null,null,null,"",null,null,null,null,null,0]
[null,null,0,230140108110,"太平通NMS",2050,null,null,null,"",null,null,null,"",null,null,null,"",null,null,null,null,null,"*1港区500枚含む"]
[null,null,0,230140108111,"中川常磐NMS",2650,null,null,null,"",null,null,null,"",null,null,null,"",null,null,null,null,null,0]
[null,null,0,230140108112,"東起NM",1050,null,null,null,"",null,null,null,"",null,null,null,"",null,null,null,null,null,0]
[null,null,0,230140108115,"正色NAMS",1700,null,null,null,"",null,null,null,"",null,null,null,"",null,null,null,null,null,0]
[null,null,"*2",230140108116,"野田NMS",1950,null,null,null,"",null,null,null,"",null,null,null,"",null,null,null,null,null,0]
[null,null,0,230140108118,"荒子NMS",1500,null,null,null,"",null,null,null,"",null,null,null,"",null,null,null,null,null,"*2中村区500枚含む"]
[null,null,0,230140108120,"高杉NMS",1350,null,null,null,"",null,null,null,"",null,null,null,""]
[null,null,0,230140108122,"中郷NMS",1750,null,null,null,"",null,null,null,"",null,null,null,"",null,null,null,null,null,0]
[null,null,0,230140108131,"春田NMS",1450,null,null,null,"",null,null,null,"",null,null,null,"",null,null,null,null,null,0]
[null,null,"*3",230140108132,"戸田NMS",1450,null,null,null,"",null,null,null,"",null,null,null,"",null,null,null,null,null,0]
[null,null,"*4",230140108133,"豊治NAMS",2750,null,null,null,"",null,null,null,"",null,null,null,"",null,null,null,null,null,"*3蟹江町50枚含む"]
[null,null,0,230140108136,"千音寺NMS",1950,null,null,null,"",null,null,null,"",null,null,null,"",null,null,null,null,null,"*4港区200枚含む"]
[null,null,0,230140108137,"とみた吉津NMS",1000,null,null,null,"",null,null,null,"",null,null,null,""]
[null,null,0,230140108138,"万場NMS",850,null,null,null,"",null,null,null,"",null,null,null,""]
[null,null,null,null,null,null,null,null,null,"",null,null,null,"",null,null,null,""]
[null,null,null,null,null,"",null,null,null,"",null,null,null,"",null,null,null,""]
[null,null,0,null,null,"",null,null,null,"",null,null,null,"",null,null,null,""]
[null,null,null,null,null,"",null,null,null,"",null,null,null,"",null,null,null,""]
[null,null,null,null,null,"",null,null,null,"",null,null,null,"",null,null,null,""]
[null,null,null,null,null,"",null,null,null,"",null,null,null,"",null,null,null,"",null,null,null,null,null,0]
[null,null,null,null,null,"",null,null,null,"",null,null,null,"",null,null,null,"",null,null,null,null,null,0]
[null,null,null,null,null,"",null,null,null,"",null,null,null,"",null,null,null,"",null,null,null,null,null,0]
[null,null,null,null,null,"",null,null,null,"",null,null,null,"",null,null,null,"",null,null,null,null,null,0]
[null,null,null,null,null,"",null,null,null,"",null,null,null,"",null,null,null,"",null,null,null,null,null,0]
[null,null,null,null,null,"",null,null,null,"",null,null,null,"",null,null,null,"",null,null,null,null,null,0]
[null,null,null,null,null,"",null,null,null,"",null,null,null,"",null,null,null,"",null,null,null,null,null,0]
[null,null,null,null,null,"",null,null,null,"",null,null,null,"",null,null,null,"",null,null,null,null,null,0]
[null,null,null,null,null,"",null,null,null,"",null,null,null,"",null,null,null,"",null,null,null,null,null,0]
[null,null,null,null,null,"",null,null,null,"",null,null,null,"",null,null,null,"",null,null,null,null,null,0]
[null,null,null,null,null,"",null,null,null,"",null,null,null,"",null,null,null,"",null,null,null,null,null,0]
[null,null,null,null,null,"",null,null,null,"",null,null,null,"",null,null,null,""]
[null,null,null,null,null,"",null,null,null,"",null,null,null,"",null,null,null,""]
[null,null,null,null,null,"",null,null,null,"",null,null,null,"",null,null,null,""]
[null,null,null,null,null,"",null,null,null,"",null,null,null,"",null,null,null,""]
[null,null,null,null,null,"",null,null,null,"",null,null,null,"",null,null,null,""]
[null,null,null,null,null,"",null,null,null,"",null,null,null,"",null,null,null,""]
[null,null,null,null,null,"",null,null,null,"",null,null,null,"",null,null,null,""]
[null,null,null,null,null,"",null,null,null,"",null,null,null,"",null,null,null,""]
[null,null,null,null,{"$f":"CONCATENATE(FIXED(COUNTA(E5:E47),0,0),\"　店\")","v":"19　店"},{"$f":"SUM(F5:F47)","v":32550},{"$f":"SUM(G5:G47)","v":0},null,{"$f":"CONCATENATE(FIXED(COUNTA(I5:I47),0,0),\"　店\")","v":"3　店"},{"$f":"SUM(J5:J47)","v":1200},{"$f":"SUM(K5:K47)","v":0},null,{"$f":"CONCATENATE(FIXED(COUNTA(M5:M47),0,0),\"　店\")","v":"0　店"},{"$f":"SUM(N5:N47)","v":0},{"$f":"SUM(O5:O47)","v":0},null,{"$f":"CONCATENATE(FIXED(COUNTA(Q5:Q47),0,0),\"　店\")","v":"4　店"},{"$f":"SUM(R5:R47)","v":2850},{"$f":"SUM(S5:S47)","v":0},null,{"$f":"CONCATENATE(FIXED(COUNTA(U5:U47),0,0),\"　店\")","v":"0　店"},{"$f":"SUM(V5:V47)","v":0},{"$f":"SUM(W5:W47)","v":0}]
["2025年後期（8月1日以降）",null,null,null,null,null,null,null,null,null,null,null,null,null,null,null,null,null,null,null,null,null,null,"㈱中日総合サービス"]

{"sheet":"尾張地区","index":21,"n_rows":40,"n_cols":23,"rows_kept":40,"cut":false,"hidden":false,"merged":[[3,19,3,20],[32,19,32,20],[0,19,1,20],[1,7,1,13],[1,15,1,17],[3,10,3,12],[38,19,38,20],[35,19,37,20],[34,19,34,20],[4,19,31,20],[34,16,34,18],[34,1,34,3],[34,4,34,6],[34,7,34,9],[34,10,34,12],[34,13,34,15],[0,1,1,4],[3,1,3,3],[3,4,3,6],[3,7,3,9],[3,16,3,18],[1,5,1,6],[0,5,0,6],[3,13,3,15],[0,7,0,13],[0,15,0,17]]}
["折込日",null,null,null,null,"広告主",null,null,null,null,null,null,null,null,"サイズ",null,null,null,"取次店"]
[null,null,null,null,null,"チラシ銘柄",null,null,null,null,null,null,null,null,"部数",{"$f":"S39","v":0}]
["尾張地区",null,null,null,null,null,null,null,null,null,null,null,null,null,null,null,null,null,null,null,"2025年後期（8月1日以降）"]
["地区","中日新聞",null,null,"朝日新聞",null,null,"毎日新聞",null,null,"読売新聞",null,null,null,null,null,"合　　計",null,null,"備考"]
["一宮市",{"$f":"VALUE(TRIM(LEFT(一宮市!E$48,2)))","v":24},{"$f":"一宮市!F$48","v":59350},{"$f":"一宮市!G$48","v":0},{"$f":"VALUE(TRIM(LEFT(一宮市!I$48,2)))","v":9},{"$f":"一宮市!J$48","v":5600},{"$f":"一宮市!K$48","v":0},{"$f":"VALUE(TRIM(LEFT(一宮市!M$48,2)))","v":4},{"$f":"一宮市!N$48","v":1700},{"$f":"一宮市!O$48","v":0},{"$f":"VALUE(TRIM(LEFT(一宮市!Q$48,2)))","v":5},{"$f":"一宮市!R$48","v":3750},{"$f":"一宮市!S$48","v":0},null,null,null,{"$f":"SUM(B5,E5,H5,K5,N5)","v":42},{"$f":"SUM(C5,F5,I5,L5,O5)","v":70400},{"$f":"IFERROR((SUM(D5,G5,J5,M5,P5)),\" \")","v":0}]
["稲沢市",{"$f":"VALUE(TRIM(LEFT(稲沢市・津島市!E26,2)))","v":12},{"$f":"稲沢市・津島市!F26","v":24400},{"$f":"稲沢市・津島市!G26","v":0},{"$f":"VALUE(TRIM(LEFT(稲沢市・津島市!I26,2)))","v":5},{"$f":"稲沢市・津島市!J26","v":2400},{"$f":"稲沢市・津島市!K26","v":0},{"$f":"VALUE(TRIM(LEFT(稲沢市・津島市!M26,2)))","v":4},{"$f":"稲沢市・津島市!N26","v":1400},{"$f":"稲沢市・津島市!O26","v":0},{"$f":"VALUE(TRIM(LEFT(稲沢市・津島市!Q26,2)))","v":2},{"$f":"稲沢市・津島市!R26","v":750},{"$f":"稲沢市・津島市!S26","v":0},null,null,null,23,28950,0]
["津島市",{"$f":"VALUE(TRIM(LEFT(稲沢市・津島市!E48,2)))","v":5},{"$f":"稲沢市・津島市!F48","v":11950},{"$f":"稲沢市・津島市!G48","v":0},{"$f":"VALUE(TRIM(LEFT(稲沢市・津島市!I48,2)))","v":1},{"$f":"稲沢市・津島市!J48","v":1150},{"$f":"稲沢市・津島市!K48","v":0},{"$f":"VALUE(TRIM(LEFT(稲沢市・津島市!M48,2)))","v":0},{"$f":"稲沢市・津島市!N48","v":0},{"$f":"稲沢市・津島市!O48","v":0},{"$f":"VALUE(TRIM(LEFT(稲沢市・津島市!Q48,2)))","v":2},{"$f":"稲沢市・津島市!R48","v":850},{"$f":"稲沢市・津島市!S48","v":0},null,null,null,8,13950,0]
["愛西市",{"$f":"VALUE(TRIM(LEFT(愛西市・弥富市・あま市!E18,2)))","v":5},{"$f":"愛西市・弥富市・あま市!F18","v":10900},{"$f":"愛西市・弥富市・あま市!G18","v":0},{"$f":"VALUE(TRIM(LEFT(愛西市・弥富市・あま市!I18,2)))","v":1},{"$f":"愛西市・弥富市・あま市!J18","v":300},{"$f":"愛西市・弥富市・あま市!K18","v":0},{"$f":"VALUE(TRIM(LEFT(愛西市・弥富市・あま市!M18,2)))","v":0},{"$f":"愛西市・弥富市・あま市!N18","v":0},{"$f":"愛西市・弥富市・あま市!O18","v":0},{"$f":"VALUE(TRIM(LEFT(愛西市・弥富市・あま市!Q18,2)))","v":0},{"$f":"愛西市・弥富市・あま市!R18","v":0},{"$f":"愛西市・弥富市・あま市!S18","v":0},null,null,null,6,11200,0]
["弥富市",{"$f":"VALUE(TRIM(LEFT(愛西市・弥富市・あま市!E31,2)))","v":4},{"$f":"愛西市・弥富市・あま市!F31","v":7750},{"$f":"愛西市・弥富市・あま市!G31","v":0},{"$f":"VALUE(TRIM(LEFT(愛西市・弥富市・あま市!I31,2)))","v":0},{"$f":"愛西市・弥富市・あま市!J31","v":0},{"$f":"愛西市・弥富市・あま市!K31","v":0},{"$f":"VALUE(TRIM(LEFT(愛西市・弥富市・あま市!M31,2)))","v":0},{"$f":"愛西市・弥富市・あま市!N31","v":0},{"$f":"愛西市・弥富市・あま市!O31","v":0},{"$f":"VALUE(TRIM(LEFT(愛西市・弥富市・あま市!Q31,2)))","v":2},{"$f":"愛西市・弥富市・あま市!R31","v":800},{"$f":"愛西市・弥富市・あま市!S31","v":0},null,null,null,6,8550,0]
["あま市",{"$f":"VALUE(TRIM(LEFT(愛西市・弥富市・あま市!E48,2)))","v":6},{"$f":"愛西市・弥富市・あま市!F48","v":13050},{"$f":"愛西市・弥富市・あま市!G48","v":0},{"$f":"VALUE(TRIM(LEFT(愛西市・弥富市・あま市!I48,2)))","v":2},{"$f":"愛西市・弥富市・あま市!J48","v":550},{"$f":"愛西市・弥富市・あま市!K48","v":0},{"$f":"VALUE(TRIM(LEFT(愛西市・弥富市・あま市!M48,2)))","v":0},{"$f":"愛西市・弥富市・あま市!N48","v":0},{"$f":"愛西市・弥富市・あま市!O48","v":0},{"$f":"VALUE(TRIM(LEFT(愛西市・弥富市・あま市!Q48,2)))","v":3},{"$f":"愛西市・弥富市・あま市!R48","v":1300},{"$f":"愛西市・弥富市・あま市!S48","v":0},null,null,null,11,14900,0]
["海部郡",{"$f":"VALUE(TRIM(LEFT(海部郡・清須市・北名古屋市!E19,2)))","v":9},{"$f":"海部郡・清須市・北名古屋市!F19","v":11450},{"$f":"海部郡・清須市・北名古屋市!G19","v":0},{"$f":"VALUE(TRIM(LEFT(海部郡・清須市・北名古屋市!I19,2)))","v":1},{"$f":"海部郡・清須市・北名古屋市!J19","v":500},{"$f":"海部郡・清須市・北名古屋市!K19","v":0},{"$f":"VALUE(TRIM(LEFT(海部郡・清須市・北名古屋市!M19,2)))","v":0},{"$f":"海部郡・清須市・北名古屋市!N19","v":0},{"$f":"海部郡・清須市・北名古屋市!O19","v":0},{"$f":"VALUE(TRIM(LEFT(海部郡・清須市・北名古屋市!Q19,2)))","v":1},{"$f":"海部郡・清須市・北名古屋市!R19","v":300},{"$f":"海部郡・清須市・北名古屋市!S19","v":0},null,null,null,11,12250,0]
["清須市",{"$f":"VALUE(TRIM(LEFT(海部郡・清須市・北名古屋市!E37,2)))","v":6},{"$f":"海部郡・清須市・北名古屋市!F37","v":11400},{"$f":"海部郡・清須市・北名古屋市!G37","v":0},{"$f":"VALUE(TRIM(LEFT(海部郡・清須市・北名古屋市!I37,2)))","v":1},{"$f":"海部郡・清須市・北名古屋市!J37","v":500},{"$f":"海部郡・清須市・北名古屋市!K37","v":0},{"$f":"VALUE(TRIM(LEFT(海部郡・清須市・北名古屋市!M37,2)))","v":1},{"$f":"海部郡・清須市・北名古屋市!N37","v":750},{"$f":"海部郡・清須市・北名古屋市!O37","v":0},{"$f":"VALUE(TRIM(LEFT(海部郡・清須市・北名古屋市!Q37,2)))","v":1},{"$f":"海部郡・清須市・北名古屋市!R37","v":400},{"$f":"海部郡・清須市・北名古屋市!S37","v":0},null,null,null,9,13050,0]
["北名古屋市",{"$f":"VALUE(TRIM(LEFT(海部郡・清須市・北名古屋市!E48,2)))","v":1},{"$f":"海部郡・清須市・北名古屋市!F48","v":13150},{"$f":"海部郡・清須市・北名古屋市!G48","v":0},{"$f":"VALUE(TRIM(LEFT(海部郡・清須市・北名古屋市!I48,2)))","v":2},{"$f":"海部郡・清須市・北名古屋市!J48","v":1150},{"$f":"海部郡・清須市・北名古屋市!K48","v":0},{"$f":"VALUE(TRIM(LEFT(海部郡・清須市・北名古屋市!M48,2)))","v":0},{"$f":"海部郡・清須市・北名古屋市!N48","v":0},{"$f":"海部郡・清須市・北名古屋市!O48","v":0},{"$f":"VALUE(TRIM(LEFT(海部郡・清須市・北名古屋市!Q48,2)))","v":2},{"$f":"海部郡・清須市・北名古屋市!R48","v":1400},{"$f":"海部郡・清須市・北名古屋市!S48","v":0},null,null,null,5,15700,0]
["西春日井郡",{"$f":"VALUE(TRIM(LEFT(西春日井郡・岩倉市・江南市!E14,2)))","v":2},{"$f":"西春日井郡・岩倉市・江南市!F14","v":2300},{"$f":"西春日井郡・岩倉市・江南市!G14","v":0},{"$f":"VALUE(TRIM(LEFT(西春日井郡・岩倉市・江南市!I14,2)))","v":0},{"$f":"西春日井郡・岩倉市・江南市!J14","v":0},{"$f":"西春日井郡・岩倉市・江南市!K14","v":0},{"$f":"VALUE(TRIM(LEFT(西春日井郡・岩倉市・江南市!M14,2)))","v":0},{"$f":"西春日井郡・岩倉市・江南市!N14","v":0},{"$f":"西春日井郡・岩倉市・江南市!O14","v":0},{"$f":"VALUE(TRIM(LEFT(西春日井郡・岩倉市・江南市!Q14,2)))","v":0},{"$f":"西春日井郡・岩倉市・江南市!R14","v":0},{"$f":"西春日井郡・岩倉市・江南市!S14","v":0},null,null,null,2,2300,0]
["岩倉市",{"$f":"VALUE(TRIM(LEFT(西春日井郡・岩倉市・江南市!E27,2)))","v":3},{"$f":"西春日井郡・岩倉市・江南市!F27","v":6650},{"$f":"西春日井郡・岩倉市・江南市!G27","v":0},{"$f":"VALUE(TRIM(LEFT(西春日井郡・岩倉市・江南市!I27,2)))","v":1},{"$f":"西春日井郡・岩倉市・江南市!J27","v":800},{"$f":"西春日井郡・岩倉市・江南市!K27","v":0},{"$f":"VALUE(TRIM(LEFT(西春日井郡・岩倉市・江南市!M27,2)))","v":0},{"$f":"西春日井郡・岩倉市・江南市!N27","v":0},{"$f":"西春日井郡・岩倉市・江南市!O27","v":0},{"$f":"VALUE(TRIM(LEFT(西春日井郡・岩倉市・江南市!Q27,2)))","v":1},{"$f":"西春日井郡・岩倉市・江南市!R27","v":950},{"$f":"西春日井郡・岩倉市・江南市!S27","v":0},null,null,null,5,8400,0]
["江南市",{"$f":"VALUE(TRIM(LEFT(西春日井郡・岩倉市・江南市!E48,2)))","v":9},{"$f":"西春日井郡・岩倉市・江南市!F48","v":16100},{"$f":"西春日井郡・岩倉市・江南市!G48","v":0},{"$f":"VALUE(TRIM(LEFT(西春日井郡・岩倉市・江南市!I48,2)))","v":4},{"$f":"西春日井郡・岩倉市・江南市!J48","v":1900},{"$f":"西春日井郡・岩倉市・江南市!K48","v":0},{"$f":"VALUE(TRIM(LEFT(西春日井郡・岩倉市・江南市!M48,2)))","v":0},{"$f":"西春日井郡・岩倉市・江南市!N48","v":0},{"$f":"西春日井郡・岩倉市・江南市!O48","v":0},{"$f":"VALUE(TRIM(LEFT(西春日井郡・岩倉市・江南市!Q48,2)))","v":2},{"$f":"西春日井郡・岩倉市・江南市!R48","v":1050},{"$f":"西春日井郡・岩倉市・江南市!S48","v":0},null,null,null,15,19050,0]
["丹羽郡",{"$f":"VALUE(TRIM(LEFT(丹羽郡・犬山市!E26,2)))","v":6},{"$f":"丹羽郡・犬山市!F26","v":9700},{"$f":"丹羽郡・犬山市!G26","v":0},{"$f":"VALUE(TRIM(LEFT(丹羽郡・犬山市!I26,2)))","v":1},{"$f":"丹羽郡・犬山市!J26","v":1050},{"$f":"丹羽郡・犬山市!K26","v":0},{"$f":"VALUE(TRIM(LEFT(丹羽郡・犬山市!M26,2)))","v":0},{"$f":"丹羽郡・犬山市!N26","v":0},{"$f":"丹羽郡・犬山市!O26","v":0},{"$f":"VALUE(TRIM(LEFT(丹羽郡・犬山市!Q26,2)))","v":0},{"$f":"丹羽郡・犬山市!R26","v":0},{"$f":"丹羽郡・犬山市!S26","v":0},null,null,null,7,10750,0]
["犬山市",{"$f":"VALUE(TRIM(LEFT(丹羽郡・犬山市!E48,2)))","v":8},{"$f":"丹羽郡・犬山市!F48","v":12300},{"$f":"丹羽郡・犬山市!G48","v":0},{"$f":"VALUE(TRIM(LEFT(丹羽郡・犬山市!I48,2)))","v":3},{"$f":"丹羽郡・犬山市!J48","v":1650},{"$f":"丹羽郡・犬山市!K48","v":0},{"$f":"VALUE(TRIM(LEFT(丹羽郡・犬山市!M48,2)))","v":0},{"$f":"丹羽郡・犬山市!N48","v":0},{"$f":"丹羽郡・犬山市!O48","v":0},{"$f":"VALUE(TRIM(LEFT(丹羽郡・犬山市!Q48,2)))","v":1},{"$f":"丹羽郡・犬山市!R48","v":650},{"$f":"丹羽郡・犬山市!S48","v":0},null,null,null,12,14600,0]
["小牧市",{"$f":"VALUE(TRIM(LEFT(小牧市!E48,2)))","v":15},{"$f":"小牧市!F48","v":24250},{"$f":"小牧市!G48","v":0},{"$f":"VALUE(TRIM(LEFT(小牧市!I48,2)))","v":3},{"$f":"小牧市!J48","v":2150},{"$f":"小牧市!K48","v":0},{"$f":"VALUE(TRIM(LEFT(小牧市!M48,2)))","v":0},{"$f":"小牧市!N48","v":0},{"$f":"小牧市!O48","v":0},{"$f":"VALUE(TRIM(LEFT(小牧市!Q48,2)))","v":3},{"$f":"小牧市!R48","v":1750},{"$f":"小牧市!S48","v":0},null,null,null,21,28150,0]
["春日井市",{"$f":"VALUE(TRIM(LEFT(春日井市!E48,2)))","v":23},{"$f":"春日井市!F48","v":48500},{"$f":"春日井市!G48","v":0},{"$f":"VALUE(TRIM(LEFT(春日井市!I48,2)))","v":8},{"$f":"春日井市!J48","v":6050},{"$f":"春日井市!K48","v":0},{"$f":"VALUE(TRIM(LEFT(春日井市!M48,2)))","v":0},{"$f":"春日井市!N48","v":0},{"$f":"春日井市!O48","v":0},{"$f":"VALUE(TRIM(LEFT(春日井市!Q48,2)))","v":6},{"$f":"春日井市!R48","v":2900},{"$f":"春日井市!S48","v":0},null,null,null,37,57450,0]
["瀬戸市",{"$f":"VALUE(TRIM(LEFT(瀬戸市・尾張旭市!E26,2)))","v":14},{"$f":"瀬戸市・尾張旭市!F26","v":21650},{"$f":"瀬戸市・尾張旭市!G26","v":0},{"$f":"VALUE(TRIM(LEFT(瀬戸市・尾張旭市!I26,2)))","v":3},{"$f":"瀬戸市・尾張旭市!J26","v":2100},{"$f":"瀬戸市・尾張旭市!K26","v":0},{"$f":"VALUE(TRIM(LEFT(瀬戸市・尾張旭市!M26,2)))","v":0},{"$f":"瀬戸市・尾張旭市!N26","v":0},{"$f":"瀬戸市・尾張旭市!O26","v":0},{"$f":"VALUE(TRIM(LEFT(瀬戸市・尾張旭市!Q26,2)))","v":2},{"$f":"瀬戸市・尾張旭市!R26","v":1050},{"$f":"瀬戸市・尾張旭市!S26","v":0},null,null,null,19,24800,0]
["尾張旭市",{"$f":"VALUE(TRIM(LEFT(瀬戸市・尾張旭市!E48,2)))","v":6},{"$f":"瀬戸市・尾張旭市!F48","v":13350},{"$f":"瀬戸市・尾張旭市!G48","v":0},{"$f":"VALUE(TRIM(LEFT(瀬戸市・尾張旭市!I48,2)))","v":1},{"$f":"瀬戸市・尾張旭市!J48","v":1850},{"$f":"瀬戸市・尾張旭市!K48","v":0},{"$f":"VALUE(TRIM(LEFT(瀬戸市・尾張旭市!M48,2)))","v":0},{"$f":"瀬戸市・尾張旭市!N48","v":0},{"$f":"瀬戸市・尾張旭市!O48","v":0},{"$f":"VALUE(TRIM(LEFT(瀬戸市・尾張旭市!Q48,2)))","v":2},{"$f":"瀬戸市・尾張旭市!R48","v":800},{"$f":"瀬戸市・尾張旭市!S48","v":0},null,null,null,9,16000,0]
["日進市",{"$f":"VALUE(TRIM(LEFT(日進市・豊明市!E26,2)))","v":9},{"$f":"日進市・豊明市!F26","v":12250},{"$f":"日進市・豊明市!G26","v":0},{"$f":"VALUE(TRIM(LEFT(日進市・豊明市!I26,2)))","v":2},{"$f":"日進市・豊明市!J26","v":2150},{"$f":"日進市・豊明市!K26","v":0},{"$f":"VALUE(TRIM(LEFT(日進市・豊明市!M26,2)))","v":0},{"$f":"日進市・豊明市!N26","v":0},{"$f":"日進市・豊明市!O26","v":0},{"$f":"VALUE(TRIM(LEFT(日進市・豊明市!Q26,2)))","v":2},{"$f":"日進市・豊明市!R26","v":650},{"$f":"日進市・豊明市!S26","v":0},null,null,null,13,15050,0]
["豊明市",{"$f":"VALUE(TRIM(LEFT(日進市・豊明市!E48,2)))","v":6},{"$f":"日進市・豊明市!F48","v":10800},{"$f":"日進市・豊明市!G48","v":0},{"$f":"VALUE(TRIM(LEFT(日進市・豊明市!I48,2)))","v":2},{"$f":"日進市・豊明市!J48","v":1250},{"$f":"日進市・豊明市!K48","v":0},{"$f":"VALUE(TRIM(LEFT(日進市・豊明市!M48,2)))","v":0},{"$f":"日進市・豊明市!N48","v":0},{"$f":"日進市・豊明市!O48","v":0},{"$f":"VALUE(TRIM(LEFT(日進市・豊明市!Q48,2)))","v":2},{"$f":"日進市・豊明市!R48","v":550},{"$f":"日進市・豊明市!S48","v":0},null,null,null,10,12600,0]
["長久手市",{"$f":"VALUE(TRIM(LEFT(長久手市・愛知郡!E26,2)))","v":4},{"$f":"長久手市・愛知郡!F26","v":7100},{"$f":"長久手市・愛知郡!G26","v":0},{"$f":"VALUE(TRIM(LEFT(長久手市・愛知郡!I26,2)))","v":1},{"$f":"長久手市・愛知郡!J26","v":1250},{"$f":"長久手市・愛知郡!K26","v":0},{"$f":"VALUE(TRIM(LEFT(長久手市・愛知郡!M26,2)))","v":0},{"$f":"長久手市・愛知郡!N26","v":0},{"$f":"長久手市・愛知郡!O26","v":0},{"$f":"VALUE(TRIM(LEFT(長久手市・愛知郡!Q26,2)))","v":1},{"$f":"長久手市・愛知郡!R26","v":550},{"$f":"長久手市・愛知郡!S26","v":0},null,null,null,6,8900,0]
["愛知郡",{"$f":"VALUE(TRIM(LEFT(長久手市・愛知郡!E48,2)))","v":4},{"$f":"長久手市・愛知郡!F48","v":6650},{"$f":"長久手市・愛知郡!G48","v":0},{"$f":"VALUE(TRIM(LEFT(長久手市・愛知郡!I48,2)))","v":1},{"$f":"長久手市・愛知郡!J48","v":500},{"$f":"長久手市・愛知郡!K48","v":0},{"$f":"VALUE(TRIM(LEFT(長久手市・愛知郡!M48,2)))","v":0},{"$f":"長久手市・愛知郡!N48","v":0},{"$f":"長久手市・愛知郡!O48","v":0},{"$f":"VALUE(TRIM(LEFT(長久手市・愛知郡!Q48,2)))","v":1},{"$f":"長久手市・愛知郡!R48","v":450},{"$f":"長久手市・愛知郡!S48","v":0},null,null,null,6,7600,0]
["大府市",{"$f":"VALUE(TRIM(LEFT(大府市・東海市!E26,2)))","v":6},{"$f":"大府市・東海市!F26","v":13700},{"$f":"大府市・東海市!G26","v":0},{"$f":"VALUE(TRIM(LEFT(大府市・東海市!I26,2)))","v":2},{"$f":"大府市・東海市!J26","v":1500},{"$f":"大府市・東海市!K26","v":0},{"$f":"VALUE(TRIM(LEFT(大府市・東海市!M26,2)))","v":0},{"$f":"大府市・東海市!N26","v":0},{"$f":"大府市・東海市!O26","v":0},{"$f":"VALUE(TRIM(LEFT(大府市・東海市!Q26,2)))","v":1},{"$f":"大府市・東海市!R26","v":650},{"$f":"大府市・東海市!S26","v":0},null,null,null,9,15850,0]
["東海市",{"$f":"VALUE(TRIM(LEFT(大府市・東海市!E48,2)))","v":8},{"$f":"大府市・東海市!F48","v":15200},{"$f":"大府市・東海市!G48","v":0},{"$f":"VALUE(TRIM(LEFT(大府市・東海市!I48,2)))","v":3},{"$f":"大府市・東海市!J48","v":1800},{"$f":"大府市・東海市!K48","v":0},{"$f":"VALUE(TRIM(LEFT(大府市・東海市!M48,2)))","v":1},{"$f":"大府市・東海市!N48","v":100},{"$f":"大府市・東海市!O48","v":0},{"$f":"VALUE(TRIM(LEFT(大府市・東海市!Q48,2)))","v":4},{"$f":"大府市・東海市!R48","v":1350},{"$f":"大府市・東海市!S48","v":0},null,null,null,16,18450,0]
["知多市",{"$f":"VALUE(TRIM(LEFT(知多市・半田市!E26,2)))","v":6},{"$f":"知多市・半田市!F26","v":13600},{"$f":"知多市・半田市!G26","v":0},{"$f":"VALUE(TRIM(LEFT(知多市・半田市!I26,2)))","v":3},{"$f":"知多市・半田市!J26","v":2300},{"$f":"知多市・半田市!K26","v":0},{"$f":"VALUE(TRIM(LEFT(知多市・半田市!M26,2)))","v":0},{"$f":"知多市・半田市!N26","v":0},{"$f":"知多市・半田市!O26","v":0},{"$f":"VALUE(TRIM(LEFT(知多市・半田市!Q26,2)))","v":1},{"$f":"知多市・半田市!R26","v":600},{"$f":"知多市・半田市!S26","v":0},null,null,null,10,16500,0]
["半田市",{"$f":"VALUE(TRIM(LEFT(知多市・半田市!E48,2)))","v":12},{"$f":"知多市・半田市!F48","v":18800},{"$f":"知多市・半田市!G48","v":0},{"$f":"VALUE(TRIM(LEFT(知多市・半田市!I48,2)))","v":4},{"$f":"知多市・半田市!J48","v":1850},{"$f":"知多市・半田市!K48","v":0},{"$f":"VALUE(TRIM(LEFT(知多市・半田市!M48,2)))","v":0},{"$f":"知多市・半田市!N48","v":0},{"$f":"知多市・半田市!O48","v":0},{"$f":"VALUE(TRIM(LEFT(知多市・半田市!Q48,2)))","v":3},{"$f":"知多市・半田市!R48","v":1000},{"$f":"知多市・半田市!S48","v":0},null,null,null,19,21650,0]
["常滑市",{"$f":"VALUE(TRIM(LEFT(常滑市・知多郡!E20,2)))","v":4},{"$f":"常滑市・知多郡!F20","v":9200},{"$f":"常滑市・知多郡!G20","v":0},{"$f":"VALUE(TRIM(LEFT(常滑市・知多郡!I20,2)))","v":1},{"$f":"常滑市・知多郡!J20","v":250},{"$f":"常滑市・知多郡!K20","v":0},{"$f":"VALUE(TRIM(LEFT(常滑市・知多郡!M20,2)))","v":0},{"$f":"常滑市・知多郡!N20","v":0},{"$f":"常滑市・知多郡!O20","v":0},{"$f":"VALUE(TRIM(LEFT(常滑市・知多郡!Q20,2)))","v":0},{"$f":"常滑市・知多郡!R20","v":0},{"$f":"常滑市・知多郡!S20","v":0},null,null,null,5,9450,0]
["知多郡",{"$f":"VALUE(TRIM(LEFT(常滑市・知多郡!E48,2)))","v":14},{"$f":"常滑市・知多郡!F48","v":25800},{"$f":"常滑市・知多郡!G48","v":0},{"$f":"VALUE(TRIM(LEFT(常滑市・知多郡!I48,2)))","v":4},{"$f":"常滑市・知多郡!J48","v":1950},{"$f":"常滑市・知多郡!K48","v":0},{"$f":"VALUE(TRIM(LEFT(常滑市・知多郡!M48,2)))","v":0},{"$f":"常滑市・知多郡!N48","v":0},{"$f":"常滑市・知多郡!O48","v":0},{"$f":"VALUE(TRIM(LEFT(常滑市・知多郡!Q48,2)))","v":4},{"$f":"常滑市・知多郡!R48","v":550},{"$f":"常滑市・知多郡!S48","v":0},null,null,null,22,28300,0]
["合計",{"$f":"SUM(B5:B32)","v":231},451300,0,69,44500,0,10,3950,0,54,25050,0,null,null,null,{"$f":"SUM(Q5:Q32)","v":364},{"$f":"SUM(R5:R32)","v":524800},{"$f":"SUM(S5:S32)","v":0}]
[]
["愛知県合計","中日新聞",null,null,"朝日新聞",null,null,"毎日新聞",null,null,"読売新聞",null,null,null,null,null,"合　　計",null,null,"備　　考"]
["名古屋市",{"$f":"名古屋市!B24","v":186},{"$f":"名古屋市!C24","v":345450},{"$f":"名古屋市!D24","v":0},{"$f":"名古屋市!E24","v":63},{"$f":"名古屋市!F24","v":38450},{"$f":"名古屋市!G24","v":0},{"$f":"名古屋市!H24","v":12},{"$f":"名古屋市!I24","v":4300},{"$f":"名古屋市!J24","v":0},{"$f":"名古屋市!K24","v":64},{"$f":"名古屋市!L24","v":30800},{"$f":"名古屋市!M24","v":0},{"$f":"名古屋市!N24","v":0},{"$f":"名古屋市!O24","v":0},{"$f":"名古屋市!P24","v":0},{"$f":"名古屋市!Q24","v":325},{"$f":"名古屋市!R24","v":419000},{"$f":"W36","v":0},null,null,null,{"$f":"IFERROR(名古屋市!S24,\" \")","v":0}]
["尾張地区",{"$f":"B33","v":231},{"$f":"C33","v":451300},0,69,44500,0,10,3950,0,54,25050,0,{"$f":"N33","v":0},{"$f":"O33","v":0},{"$f":"P33","v":0},364,524800,{"$f":"S33","v":0}]
["三河地区",{"$f":"三河地区!B26","v":178},{"$f":"三河地区!C26","v":356550},{"$f":"三河地区!D26","v":0},{"$f":"三河地区!E26","v":39},{"$f":"三河地区!F26","v":30100},{"$f":"三河地区!G26","v":0},{"$f":"三河地区!H26","v":3},{"$f":"三河地区!I26","v":2050},{"$f":"三河地区!J26","v":0},{"$f":"三河地区!K26","v":48},{"$f":"三河地区!L26","v":20600},{"$f":"三河地区!M26","v":0},{"$f":"三河地区!N26","v":0},{"$f":"三河地区!O26","v":0},{"$f":"三河地区!P26","v":0},{"$f":"三河地区!Q26","v":268},{"$f":"三河地区!R26","v":409300},{"$f":"W38","v":0},null,null,null,{"$f":"IFERROR(三河地区!S26,\" \")","v":0}]
["合計",{"$f":"SUM(B36:B38)","v":595},{"$f":"SUM(C36:C38)","v":1153300},{"$f":"SUM(D36:D38)","v":0},171,113050,0,25,10300,0,{"$f":"SUM(K36:K38)","v":166},76450,0,0,0,0,957,1353100,0]
[null,null,null,null,null,null,null,null,null,null,null,null,null,null,null,null,null,null,null,null,"㈱中日総合サービス"]

{"sheet":"地図（尾張地区）","index":22,"n_rows":0,"n_cols":0,"rows_kept":0,"cut":false,"hidden":false,"merged":[]}

{"sheet":"一宮市","index":23,"n_rows":49,"n_cols":24,"rows_kept":49,"cut":false,"hidden":false,"merged":[[0,1,1,4],[0,17,0,20],[0,22,1,23],[1,17,1,20],[0,5,0,6],[0,8,0,14],[1,5,1,6],[1,8,1,14],[3,19,3,21],[2,9,2,10],[3,0,3,1],[3,3,3,5],[3,7,3,9],[3,11,3,13],[3,15,3,17]]}
["折込日",null,null,null,null,"広告主",null,null,null,null,null,null,null,null,null,null,"サイズ",null,null,null,null,"取次店"]
[null,null,null,null,null,"チラシ銘柄",null,null,null,null,null,null,null,null,null,null,"部数",{"$f":"A6","v":0}]
[]
["地区",null,null,"中日新聞",null,null,"枚数","朝日新聞",null,null,"枚数","毎日新聞",null,null,"枚数","読売新聞",null,null,"枚数",null,null,null,null,"備考"]
["一宮市",null,0,230320101010,"一宮東部NS",1950,null,230320202010,"尾張萩原",250,null,230320303030,"一宮中央",400,null,230320405001,"新一宮",1000,null,null,null,null,null,"一宮市全域の場合"]
[{"$f":"SUM(G48,K48,O48,S48,W48)","v":0},{"$f":"SUM(F48,J48,N48,R48,V48)","v":70400},0,230320101020,"一宮南部NS",6200,null,230320202020,"浅井",500,null,230320303040,"一宮北部",500,null,230320405002,"浅井",750,null,null,null,null,null,"江南市加納馬場550枚"]
[null,null,0,230320101040,"一宮北部NS",5200,null,230320202030,"一宮東部",350,null,230320303070,"下津浅野",450,null,230320405004,"一宮西部",1000,null,null,null,null,null,"稲沢市稲沢下津300枚"]
[null,null,0,230320101060,"一宮浅井NMS",2550,null,230320202040,"一宮南部",750,null,230320303100,"木曽川",350,null,230320405006,"尾西中央",550,null,null,null,null,null,"稲沢市下津北部250枚"]
[null,null,0,230320101070,"浅井北部NM",850,null,230320202060,"一宮西部M",1200,null,null,null,"",null,230320405007,"木曽川",450,null,null,null,null,null,"をプラス"]
[null,null,0,230320101200,"一宮浅渕NS",1150,null,230320202070,"今伊勢M",800,null,null,null,"",null,null,null,"",null,null,null,null,null,0]
[null,null,0,230320101160,"千秋NMS",1950,null,230320202080,"今伊勢東M",650,null,null,null,"",null,null,null,"",null,null,null,null,null,0]
[null,null,0,230320101080,"一宮瀬時NMS",1400,null,230320202100,"一宮尾西M",600,null,null,null,"",null,null,null,"",null,null,null,null,null,0]
[null,null,0,230320101210,"一宮春明NM",1100,null,230320202110,"木曽川",500,null,null,null,"",null,null,null,"",null,null,null,null,null,0]
[null,null,0,230320101030,"一宮西部NS",4500,null,null,null,"",null,null,null,"",null,null,null,"",null,null,null,null,null,0]
[null,null,0,230320101150,"一宮萩原NMS",2800,null,null,null,"",null,null,null,"",null,null,null,"",null,null,null,null,null,0]
[null,null,0,230320101110,"今伊勢西NS",2050,null,null,null,"",null,null,null,"",null,null,null,"",null,null,null,null,null,0]
[null,null,0,230320101180,"苅安賀NS",1700,null,null,null,"",null,null,null,"",null,null,null,"",null,null,null,null,null,0]
[null,null,0,230320101220,"戸塚西御堂NMS",2100,null,null,null,"",null,null,null,"",null,null,null,"",null,null,null,null,null,0]
[null,null,0,230320101090,"今伊勢南部NS",950,null,null,null,"",null,null,null,"",null,null,null,"",null,null,null,null,null,0]
[null,null,0,230320101170,"一宮大毛NS",2000,null,null,null,"",null,null,null,"",null,null,null,"",null,null,null,null,null,0]
[null,null,0,230320101100,"今伊勢北部NS",2050,null,null,null,"",null,null,null,"",null,null,null,"",null,null,null,null,null,0]
[null,null,0,230320101190,"一宮北方NS",1400,null,null,null,"",null,null,null,"",null,null,null,"",null,null,null,null,null,0]
[null,null,0,230320101250,"一宮起NS",2900,null,null,null,"",null,null,null,"",null,null,null,"",null,null,null,null,null,0]
[null,null,0,230320101270,"大和三条NS",4500,null,null,null,"",null,null,null,"",null,null,null,"",null,null,null,null,null,0]
[null,null,0,230320101290,"一宮尾西NMS",2250,null,null,null,"",null,null,null,"",null,null,null,"",null,null,null,null,null,0]
[null,null,0,230320101300,"木曽川（宇佐見）NS",2400,null,null,null,"",null,null,null,"",null,null,null,"",null,null,null,null,null,0]
[null,null,0,230320101310,"木曽川（大塚）N",2650,null,null,null,"",null,null,null,"",null,null,null,"",null,null,null,null,null,0]
[null,null,0,230320101320,"玉ノ井奥町NS",2750,null,null,null,"",null,null,null,"",null,null,null,"",null,null,null,null,null,0]
[null,null,null,null,null,null,null,null,null,"",null,null,null,"",null,null,null,"",null,null,null,null,null,0]
[null,null,null,null,null,"",null,null,null,"",null,null,null,"",null,null,null,"",null,null,null,null,null,0]
[null,null,null,null,null,"",null,null,null,"",null,null,null,"",null,null,null,"",null,null,null,null,null,0]
[null,null,null,null,null,"",null,null,null,"",null,null,null,"",null,null,null,""]
[null,null,null,null,null,"",null,null,null,"",null,null,null,"",null,null,null,""]
[null,null,null,null,null,"",null,null,null,"",null,null,null,"",null,null,null,""]
[null,null,null,null,null,"",null,null,null,"",null,null,null,"",null,null,null,""]
[null,null,null,null,null,"",null,null,null,"",null,null,null,"",null,null,null,""]
[null,null,null,null,null,"",null,null,null,"",null,null,null,"",null,null,null,""]
[null,null,null,null,null,"",null,null,null,"",null,null,null,"",null,null,null,"",null,null,null,null,null,0]
[null,null,null,null,null,"",null,null,null,"",null,null,null,"",null,null,null,"",null,null,null,null,null,0]
[null,null,null,null,null,"",null,null,null,"",null,null,null,"",null,null,null,"",null,null,null,null,null,0]
[null,null,null,null,null,"",null,null,null,"",null,null,null,"",null,null,null,"",null,null,null,null,null,0]
[null,null,null,null,null,"",null,null,null,"",null,null,null,"",null,null,null,"",null,null,null,null,null,0]
[null,null,null,null,null,"",null,null,null,"",null,null,null,"",null,null,null,"",null,null,null,null,null,0]
[null,null,null,null,null,"",null,null,null,"",null,null,null,"",null,null,null,"",null,null,null,null,null,0]
[null,null,null,null,null,"",null,null,null,"",null,null,null,"",null,null,null,"",null,null,null,null,null,0]
[null,null,null,null,null,"",null,null,null,"",null,null,null,"",null,null,null,"",null,null,null,null,null,0]
[null,null,null,null,null,"",null,null,null,"",null,null,null,"",null,null,null,"",null,null,null,null,null,0]
[null,null,null,null,{"$f":"CONCATENATE(FIXED(COUNTA(E5:E47),0,0),\"　店\")","v":"24　店"},{"$f":"SUM(F5:F47)","v":59350},{"$f":"SUM(G5:G47)","v":0},null,{"$f":"CONCATENATE(FIXED(COUNTA(I5:I47),0,0),\"　店\")","v":"9　店"},{"$f":"SUM(J5:J47)","v":5600},{"$f":"SUM(K5:K47)","v":0},null,{"$f":"CONCATENATE(FIXED(COUNTA(M5:M47),0,0),\"　店\")","v":"4　店"},{"$f":"SUM(N5:N47)","v":1700},{"$f":"SUM(O5:O47)","v":0},null,{"$f":"CONCATENATE(FIXED(COUNTA(Q5:Q47),0,0),\"　店\")","v":"5　店"},{"$f":"SUM(R5:R47)","v":3750},{"$f":"SUM(S5:S47)","v":0},null,{"$f":"CONCATENATE(FIXED(COUNTA(U5:U47),0,0),\"　店\")","v":"0　店"},{"$f":"SUM(V5:V47)","v":0},{"$f":"SUM(W5:W47)","v":0},{"$f":"SUM(X5:X47)","v":0}]
["2025年後期（8月1日以降）",null,null,null,null,null,null,null,null,null,null,null,null,null,null,null,null,null,null,null,null,null,null,"㈱中日総合サービス"]

{"sheet":"稲沢市・津島市","index":24,"n_rows":49,"n_cols":24,"rows_kept":49,"cut":false,"hidden":false,"merged":[[0,1,1,4],[0,17,0,20],[0,22,1,23],[1,17,1,20],[0,5,0,6],[0,8,0,14],[1,5,1,6],[1,8,1,14],[2,9,2,10],[3,0,3,1],[3,3,3,5],[3,7,3,9],[3,11,3,13],[3,19,3,21],[27,0,27,1],[27,3,27,5],[27,7,27,9],[27,11,27,13],[27,15,27,17],[27,19,27,21],[3,15,3,17]]}
["折込日",null,null,null,null,"広告主",null,null,null,null,null,null,null,null,null,null,"サイズ",null,null,null,null,"取次店"]
[null,null,null,null,null,"チラシ銘柄",null,null,null,null,null,null,null,null,null,null,"部数",{"$f":"A6+A30","v":0}]
[]
["地区",null,null,"中日新聞",null,null,"枚数","朝日新聞",null,null,"枚数","毎日新聞",null,null,"枚数","読売新聞",null,null,"枚数",null,null,null,null,"備考"]
["稲沢市",null,0,230340101010,"稲沢国府宮NS",2500,null,230340202010,"稲沢東部",350,null,230340303010,"国府宮",1000,null,230340405001,"稲沢",400,null,null,null,null,null,"稲沢市全域の場合"]
[{"$f":"SUM(G26,K26,O26,S26,W26)","v":0},{"$f":"SUM(F26,J26,N26,R26,V26)","v":28950},0,230340101080,"稲沢大里N",1200,null,230340202020,"稲沢南部",900,null,230340303030,"稲沢南部",250,null,230340405002,"稲沢駅前",350,null,null,null,null,null,"清須市清須北部700枚"]
[null,null,"*1",230340101030,"稲沢下津NS",1700,null,230340202030,"稲沢西部",450,null,230340303040,"大里",50,null,null,null,"",null,null,null,null,null,"をプラス"]
[null,null,"*2",230340101120,"下津北部N",1200,null,230340202040,"祖父江",450,null,230340303060,"稲沢下津",100,null,null,null,"",null,null,null,null,null,"*1一宮市300枚"]
[null,null,0,230340101050,"稲沢西部NS",2300,null,230340202060,"稲沢平和",250,null,null,null,"",null,null,null,"",null,null,null,null,null,"    清須市650枚含む"]
[null,null,0,230340101060,"稲沢松清NS",3250,null,null,null,"",null,null,null,"",null,null,null,"",null,null,null,null,null,"*2一宮市250枚含む"]
[null,null,0,230340101070,"稲沢高御堂N",1800,null,null,null,"",null,null,null,"",null,null,null,"",null,null,null,null,null,0]
[null,null,0,230340101040,"稲沢南部N",1600,null,null,null,"",null,null,null,"",null,null,null,"",null,null,null,null,null,0]
[null,null,0,230340101110,"稲沢千代田NM",1350,null,null,null,"",null,null,null,"",null,null,null,"",null,null,null,null,null,0]
[null,null,0,230340101130,"祖父江NM",2350,null,null,null,"",null,null,null,"",null,null,null,"",null,null,null,null,null,0]
[null,null,"*3",230340101140,"祖父江南部NMS",1850,null,null,null,"",null,null,null,"",null,null,null,"",null,null,null,null,null,0]
[null,null,0,230340101150,"平和NMS",3300,null,null,null,"",null,null,null,"",null,null,null,"",null,null,null,null,null,0]
[null,null,null,null,null,"",null,null,null,"",null,null,null,"",null,null,null,"",null,null,null,null,null,0]
[null,null,null,null,null,"",null,null,null,"",null,null,null,"",null,null,null,"",null,null,null,null,null,"*3愛西市450枚含む"]
[null,null,null,null,null,"",null,null,null,"",null,null,null,"",null,null,null,"",null,null,null,null,null,0]
[null,null,null,null,null,"",null,null,null,"",null,null,null,"",null,null,null,"",null,null,null,null,null,0]
[null,null,null,null,null,"",null,null,null,"",null,null,null,"",null,null,null,"",null,null,null,null,null,0]
[null,null,null,null,null,"",null,null,null,"",null,null,null,"",null,null,null,"",null,null,null,null,null,0]
[null,null,null,null,null,"",null,null,null,"",null,null,null,"",null,null,null,"",null,null,null,null,null,0]
[null,null,null,null,null,"",null,null,null,"",null,null,null,"",null,null,null,"",null,null,null,null,null,0]
[null,null,null,null,null,"",null,null,null,"",null,null,null,"",null,null,null,"",null,null,null,null,null,0]
[null,null,null,null,{"$f":"CONCATENATE(FIXED(COUNTA(E5:E25),0,0),\"　店\")","v":"12　店"},{"$f":"SUM(F5:F25)","v":24400},{"$f":"SUM(G5:G25)","v":0},null,{"$f":"CONCATENATE(FIXED(COUNTA(I5:I25),0,0),\"　店\")","v":"5　店"},{"$f":"SUM(J5:J25)","v":2400},{"$f":"SUM(K5:K25)","v":0},null,{"$f":"CONCATENATE(FIXED(COUNTA(M5:M25),0,0),\"　店\")","v":"4　店"},{"$f":"SUM(N5:N25)","v":1400},{"$f":"SUM(O5:O25)","v":0},null,{"$f":"CONCATENATE(FIXED(COUNTA(Q5:Q25),0,0),\"　店\")","v":"2　店"},{"$f":"SUM(R5:R25)","v":750},{"$f":"SUM(S5:S25)","v":0},null,{"$f":"CONCATENATE(FIXED(COUNTA(U5:U25),0,0),\"　店\")","v":"0　店"},{"$f":"SUM(V5:V25)","v":0},{"$f":"SUM(W5:W25)","v":0},{"$f":"SUM(X5:X25)","v":0}]
[]
["地区",null,null,"中日新聞",null,null,"枚数","朝日新聞",null,null,"枚数","毎日新聞",null,null,"枚数","読売新聞",null,null,"枚数",null,null,null,null,"備考"]
["津島市",null,0,230310101010,"尾張津島NM",4900,null,230310202040,"津島",1150,null,null,null,"",null,230310405001,"*4津島",800,null,null,null,null,null,"津島市全域の場合"]
[{"$f":"SUM(G48,K48,O48,S48,W48)","v":0},{"$f":"SUM(F48,J48,N48,R48,V48)","v":13950},"*1",230310101040,"津島西部NMS",1350,null,null,null,"",null,null,null,"",null,230310405002,"津島南部",50,null,null,null,null,null,"愛西市永和1,300枚"]
[null,null,"*２",230310101050,"津島北部NMS",2000,null,null,null,"",null,null,null,"",null,0,null,"",null,null,null,null,null,"をプラス"]
[null,null,0,230310101020,"神守NMS",2650,null,null,null,"",null,null,null,"",null,0,null,"",null,null,null,null,null,0]
[null,null,"*3",230310101030,"青塚NM",1050,null,null,null,"",null,null,null,"",null,0,null,"",null,null,null,null,null,"*1愛西市400枚含む"]
[null,null,null,null,null,"",null,null,null,"",null,null,null,"",null,null,null,"",null,null,null,null,null,"*2愛西市1,900枚含む"]
[null,null,null,null,null,"",null,null,null,"",null,null,null,"",null,null,null,"",null,null,null,null,null,"*3あま市400枚含む"]
[null,null,null,null,null,"",null,null,null,"",null,null,null,"",null,null,null,"",null,null,null,null,null,"*4愛西市を含む"]
[null,null,null,null,null,"",null,null,null,"",null,null,null,"",null,null,null,"",null,null,null,null,null,0]
[null,null,null,null,null,"",null,null,null,"",null,null,null,"",null,null,null,""]
[null,null,null,null,null,"",null,null,null,"",null,null,null,"",null,null,null,"",null,null,null,null,null,0]
[null,null,null,null,null,"",null,null,null,"",null,null,null,"",null,null,null,"",null,null,null,null,null,0]
[null,null,null,null,null,"",null,null,null,"",null,null,null,"",null,null,null,"",null,null,null,null,null,0]
[null,null,null,null,null,"",null,null,null,"",null,null,null,"",null,null,null,"",null,null,null,null,null,0]
[null,null,null,null,null,"",null,null,null,"",null,null,null,"",null,null,null,"",null,null,null,null,null,0]
[null,null,null,null,null,"",null,null,null,"",null,null,null,"",null,null,null,"",null,null,null,null,null,0]
[null,null,null,null,null,"",null,null,null,"",null,null,null,"",null,null,null,"",null,null,null,null,null,0]
[null,null,null,null,null,"",null,null,null,"",null,null,null,"",null,null,null,"",null,null,null,null,null,0]
[null,null,null,null,null,"",null,null,null,"",null,null,null,"",null,null,null,"",null,null,null,null,null,0]
[null,null,null,null,{"$f":"CONCATENATE(FIXED(COUNTA(E29:E47),0,0),\"　店\")","v":"5　店"},{"$f":"SUM(F29:F47)","v":11950},{"$f":"SUM(G29:G47)","v":0},null,{"$f":"CONCATENATE(FIXED(COUNTA(I29:I47),0,0),\"　店\")","v":"1　店"},{"$f":"SUM(J29:J47)","v":1150},{"$f":"SUM(K29:K47)","v":0},null,{"$f":"CONCATENATE(FIXED(COUNTA(M29:M47),0,0),\"　店\")","v":"0　店"},{"$f":"SUM(N29:N47)","v":0},{"$f":"SUM(O29:O47)","v":0},null,{"$f":"CONCATENATE(FIXED(COUNTA(Q29:Q47),0,0),\"　店\")","v":"2　店"},{"$f":"SUM(R29:R47)","v":850},{"$f":"SUM(S29:S47)","v":0},null,{"$f":"CONCATENATE(FIXED(COUNTA(U29:U47),0,0),\"　店\")","v":"0　店"},{"$f":"SUM(V29:V47)","v":0},{"$f":"SUM(W29:W47)","v":0},{"$f":"SUM(X29:X47)","v":0}]
["2025年後期（8月1日以降）",null,null,null,null,null,null,null,null,null,null,null,null,null,null,null,null,null,null,null,null,null,null,"㈱中日総合サービス"]

{"sheet":"愛西市・弥富市・あま市","index":25,"n_rows":49,"n_cols":24,"rows_kept":49,"cut":false,"hidden":false,"merged":[[0,1,1,4],[0,17,0,20],[0,22,1,23],[1,17,1,20],[0,5,0,6],[0,8,0,14],[1,5,1,6],[1,8,1,14],[2,9,2,10],[3,0,3,1],[3,3,3,5],[3,7,3,9],[3,11,3,13],[32,19,32,21],[3,19,3,21],[19,0,19,1],[19,3,19,5],[19,7,19,9],[19,11,19,13],[19,15,19,17],[19,19,19,21],[3,15,3,17],[32,0,32,1],[32,3,32,5],[32,7,32,9],[32,11,32,13],[32,15,32,17]]}
["折込日",null,null,null,null,"広告主",null,null,null,null,null,null,null,null,null,null,"サイズ",null,null,null,null,"取次店"]
[null,null,null,null,null,"チラシ銘柄",null,null,null,null,null,null,null,null,null,null,"部数",{"$f":"A6+A22+A35","v":0}]
[]
["地区",null,null,"中日新聞",null,null,"枚数","朝日新聞",null,null,"枚数","毎日新聞",null,null,"枚数","読売新聞",null,null,"枚数",null,null,null,null,"備考"]
["愛西市",null,0,230375101010,"勝幡NM",1600,null,230375202010,"富吉",300,null,null,null,"",null,null,null,"",null,null,null,null,null,"愛西市全域の場合"]
[{"$f":"SUM(G18,K18,O18,S18,W18)","v":0},{"$f":"SUM(F18,J18,N18,R18,V18)","v":11200},0,230375101020,"藤浪NM",1050,null,null,null,"",null,null,null,"",null,null,null,"",null,null,null,null,null,"津島市津島北部"]
[null,null,0,230375101030,"佐屋NAMS",1900,null,null,null,"",null,null,null,"",null,null,null,"",null,null,null,null,null,"1,900枚"]
[null,null,"*1",230375101040,"永和NMS",3950,null,null,null,"",null,null,null,"",null,null,null,"",null,null,null,null,null,"津島市津島西部"]
[null,null,0,230375101050,"南佐屋NAMS",2400,null,null,null,"",null,null,null,"",null,null,null,"",null,null,null,null,null,"400枚"]
[null,null,null,null,null,"",null,null,null,"",null,null,null,"",null,null,null,"",null,null,null,null,null,"稲沢市祖父江南部"]
[null,null,null,null,null,"",null,null,null,"",null,null,null,"",null,null,null,"",null,null,null,null,null,"450枚をプラス"]
[null,null,null,null,null,"",null,null,null,"",null,null,null,"",null,null,null,""]
[null,null,null,null,null,"",null,null,null,"",null,null,null,"",null,null,null,"",null,null,null,null,null,"*1津島市1,300枚"]
[null,null,null,null,null,"",null,null,null,"",null,null,null,"",null,null,null,"",null,null,null,null,null,"    弥富市250枚含む"]
[null,null,null,null,null,"",null,null,null,"",null,null,null,"",null,null,null,"",null,null,null,null,null,"    蟹江町450枚含む"]
[null,null,null,null,null,"",null,null,null,"",null,null,null,"",null,null,null,"",null,null,null,null,null,0]
[null,null,null,null,null,"",null,null,null,"",null,null,null,"",null,null,null,"",null,null,null,null,null,0]
[null,null,null,null,{"$f":"CONCATENATE(FIXED(COUNTA(E5:E17),0,0),\"　店\")","v":"5　店"},{"$f":"SUM(F5:F17)","v":10900},{"$f":"SUM(G5:G17)","v":0},null,{"$f":"CONCATENATE(FIXED(COUNTA(I5:I17),0,0),\"　店\")","v":"1　店"},{"$f":"SUM(J5:J17)","v":300},{"$f":"SUM(K5:K17)","v":0},null,{"$f":"CONCATENATE(FIXED(COUNTA(M5:M17),0,0),\"　店\")","v":"0　店"},{"$f":"SUM(N5:N17)","v":0},{"$f":"SUM(O5:O17)","v":0},null,{"$f":"CONCATENATE(FIXED(COUNTA(Q5:Q17),0,0),\"　店\")","v":"0　店"},{"$f":"SUM(R5:R17)","v":0},{"$f":"SUM(S5:S17)","v":0},null,{"$f":"CONCATENATE(FIXED(COUNTA(U5:U17),0,0),\"　店\")","v":"0　店"},{"$f":"SUM(V5:V17)","v":0},{"$f":"SUM(W5:W17)","v":0},{"$f":"SUM(X5:X17)","v":0}]
[]
["地区",null,null,"中日新聞",null,null,"枚数","朝日新聞",null,null,"枚数","毎日新聞",null,null,"枚数","読売新聞",null,null,"枚数",null,null,null,null,"備考"]
["弥富市",null,0,230390101010,"尾張弥富NAMS",2150,null,0,null,"",null,null,null,"",null,230390405010,"*1弥富北部",450,null,null,null,null,null,"弥富市全域の場合"]
[{"$f":"SUM(G31,K31,O31,S31,W31)","v":0},{"$f":"SUM(F31,J31,N31,R31,V31)","v":8550},0,230390101020,"弥富駅前NAMS",2250,null,0,null,"",null,null,null,"",null,230390405020,"弥富南部",350,null,null,null,null,null,"愛西市永和250枚"]
[null,null,0,230390101040,"弥富中央NAMS",2350,null,0,null,"",null,null,null,"",null,null,null,"",null,null,null,null,null,"をプラス"]
[null,null,0,230390101030,"木曽岬NAMSI",1000,null,0,null,"",null,null,null,"",null,null,null,""]
[null,null,null,null,null,"",null,null,null,"",null,null,null,"",null,null,null,"",null,null,null,null,null,0]
[null,null,null,null,null,"",null,null,null,"",null,null,null,"",null,null,null,"",null,null,null,null,null,"*1愛西市を含む"]
[null,null,null,null,null,"",null,null,null,"",null,null,null,"",null,null,null,"",null,null,null,null,null,0]
[null,null,null,null,null,"",null,null,null,"",null,null,null,"",null,null,null,"",null,null,null,null,null,0]
[null,null,null,null,null,"",null,null,null,"",null,null,null,"",null,null,null,"",null,null,null,null,null,0]
[null,null,null,null,null,"",null,null,null,"",null,null,null,"",null,null,null,"",null,null,null,null,null,0]
[null,null,null,null,{"$f":"CONCATENATE(FIXED(COUNTA(E21:E30),0,0),\"　店\")","v":"4　店"},{"$f":"SUM(F21:F30)","v":7750},{"$f":"SUM(G21:G30)","v":0},null,{"$f":"CONCATENATE(FIXED(COUNTA(I21:I30),0,0),\"　店\")","v":"0　店"},{"$f":"SUM(J21:J30)","v":0},{"$f":"SUM(K21:K30)","v":0},null,{"$f":"CONCATENATE(FIXED(COUNTA(M21:M30),0,0),\"　店\")","v":"0　店"},{"$f":"SUM(N21:N30)","v":0},{"$f":"SUM(O21:O30)","v":0},null,{"$f":"CONCATENATE(FIXED(COUNTA(Q21:Q30),0,0),\"　店\")","v":"2　店"},{"$f":"SUM(R21:R30)","v":800},{"$f":"SUM(S21:S30)","v":0},null,{"$f":"CONCATENATE(FIXED(COUNTA(U21:U30),0,0),\"　店\")","v":"0　店"},{"$f":"SUM(V21:V30)","v":0},{"$f":"SUM(W21:W30)","v":0},{"$f":"SUM(X21:X30)","v":0}]
[]
["地区",null,null,"中日新聞",null,null,"枚数","朝日新聞",null,null,"枚数","毎日新聞",null,null,"枚数","読売新聞",null,null,"枚数",null,null,null,null,"備考"]
["あま市",null,0,230395101010,"甚目寺NMS",2400,null,230395202010,"甚目寺",400,null,"",null,"",null,230395404010,"海部",650,null,null,null,null,null,"あま市全域の場合"]
[{"$f":"SUM(G48,K48,O48,S48,W48)","v":0},{"$f":"SUM(F48,J48,N48,R48,V48)","v":14900},0,230395101020,"甚目寺南部NAMS",1250,null,230395202020,"七宝",150,null,"",null,"",null,230395404020,"七宝",200,null,null,null,null,null,"津島市青塚400枚"]
[null,null,0,230395101040,"甚目寺西部NMS",1450,null,null,null,"",null,"",null,"",null,230395404030,"美和",450,null,null,null,null,null,"清須市あま清洲1,000枚"]
[null,null,0,230395101050,"七宝NMS",3700,null,0,null,"",null,null,null,"",null,null,null,"",null,null,null,null,null,"をプラス"]
[null,null,0,230395101060,"木田NAMS",2150,null,null,null,"",null,null,null,"",null,null,null,"",null,null,null,null,null,0]
[null,null,0,230395101070,"美和正則NAMS",2100,null,null,null,"",null,null,null,"",null,null,null,"",null,null,null,null,null,0]
[null,null,null,null,null,"",null,null,null,"",null,null,null,"",null,null,null,"",null,null,null,null,null,0]
[null,null,null,null,null,"",null,null,null,"",null,null,null,"",null,null,null,"",null,null,null,null,null,0]
[null,null,null,null,null,"",null,null,null,"",null,null,null,"",null,null,null,"",null,null,null,null,null,0]
[null,null,null,null,null,"",null,null,null,"",null,null,null,"",null,null,null,"",null,null,null,null,null,0]
[null,null,null,null,null,"",null,null,null,"",null,null,null,"",null,null,null,"",null,null,null,null,null,0]
[null,null,null,null,null,"",null,null,null,"",null,null,null,"",null,null,null,"",null,null,null,null,null,0]
[null,null,null,null,null,"",null,null,null,"",null,null,null,"",null,null,null,"",null,null,null,null,null,0]
[null,null,null,null,null,"",null,null,null,"",null,null,null,"",null,null,null,"",null,null,null,null,null,0]
[null,null,null,null,{"$f":"CONCATENATE(FIXED(COUNTA(E34:E47),0,0),\"　店\")","v":"6　店"},{"$f":"SUM(F34:F47)","v":13050},{"$f":"SUM(G34:G47)","v":0},null,{"$f":"CONCATENATE(FIXED(COUNTA(I34:I47),0,0),\"　店\")","v":"2　店"},{"$f":"SUM(J34:J47)","v":550},{"$f":"SUM(K34:K47)","v":0},null,{"$f":"CONCATENATE(FIXED(COUNTA(M34:M47),0,0),\"　店\")","v":"0　店"},{"$f":"SUM(N34:N47)","v":0},{"$f":"SUM(O34:O47)","v":0},null,{"$f":"CONCATENATE(FIXED(COUNTA(Q34:Q47),0,0),\"　店\")","v":"3　店"},{"$f":"SUM(R34:R47)","v":1300},{"$f":"SUM(S34:S47)","v":0},null,{"$f":"CONCATENATE(FIXED(COUNTA(U34:U47),0,0),\"　店\")","v":"0　店"},{"$f":"SUM(V34:V47)","v":0},{"$f":"SUM(W34:W47)","v":0},{"$f":"SUM(X34:X47)","v":0}]
["2025年後期（8月1日以降）",null,null,null,null,null,null,null,null,null,null,null,null,null,null,null,null,null,null,null,null,null,null,"㈱中日総合サービス"]

{"sheet":"海部郡・清須市・北名古屋市","index":26,"n_rows":49,"n_cols":24,"rows_kept":49,"cut":false,"hidden":false,"merged":[[0,1,1,4],[0,17,0,20],[0,22,1,23],[1,17,1,20],[0,5,0,6],[0,8,0,14],[1,5,1,6],[1,8,1,14],[2,9,2,10],[3,0,3,1],[3,3,3,5],[3,7,3,9],[3,11,3,13],[38,19,38,21],[3,19,3,21],[20,0,20,1],[20,3,20,5],[20,7,20,9],[20,11,20,13],[20,15,20,17],[20,19,20,21],[3,15,3,17],[38,0,38,1],[38,3,38,5],[38,7,38,9],[38,11,38,13],[38,15,38,17]]}
["折込日",null,null,null,null,"広告主",null,null,null,null,null,null,null,null,null,null,"サイズ",null,null,null,null,"取次店"]
[null,null,null,null,null,"チラシ銘柄",null,null,null,null,null,null,null,null,null,null,"部数",{"$f":"A6+A23+A41","v":0}]
[]
["地区",null,null,"中日新聞",null,null,"枚数","朝日新聞",null,null,"枚数","毎日新聞",null,null,"枚数","読売新聞",null,null,"枚数",null,null,null,null,"備考"]
["海部郡",null,0,230380101040,"蟹江NMS",2050,null,230380202010,"蟹江",500,null,null,null,"",null,230380405001,"蟹江",300,null,null,null,null,null,"蟹江町全域の場合"]
[{"$f":"SUM(G19,K19,O19,S19,W19)","v":0},{"$f":"SUM(F19,J19,N19,R19,V19)","v":12250},0,230380101050,"蟹江須成NM",1150,null,null,null,"",null,null,null,"",null,null,null,"",null,null,null,null,null,"愛西市永和450枚"]
[null,null,0,230380101070,"舟入NAM",850,null,null,null,"",null,null,null,"",null,null,null,"",null,null,null,null,null,"中川区戸田50枚"]
[null,null,0,230380101060,"蟹江南部NMS",1650,null,null,null,"",null,null,null,"",null,null,null,"",null,null,null,null,null,"をプラス"]
[null,null,0,230380101080,"飛島NAMS",1250,null,null,null,"",null,null,null,"",null,null,null,"",null,null,null,null,null,0]
[null,null,0,230380101200,"大治東部NAM",1500,null,null,null,"",null,null,null,"",null,null,null,"",null,null,null,null,null,0]
[null,null,0,230380101210,"大治南部NAMS",1350,null,null,null,"",null,null,null,"",null,null,null,"",null,null,null,null,null,0]
[null,null,0,230380101220,"大治西部NAM",900,null,null,null,"",null,null,null,"",null,null,null,"",null,null,null,null,null,0]
[null,null,"*1",230380101240,"万場北NAM",750,null,null,null,"",null,null,null,"",null,null,null,"",null,null,null,null,null,"*1名古屋市中川区"]
[null,null,null,null,null,"",null,null,null,"",null,null,null,"",null,null,null,"",null,null,null,null,null,"    200枚含む"]
[null,null,null,null,null,"",null,null,null,"",null,null,null,"",null,null,null,"",null,null,null,null,null,0]
[null,null,null,null,null,"",null,null,null,"",null,null,null,"",null,null,null,"",null,null,null,null,null,0]
[null,null,null,null,null,"",null,null,null,"",null,null,null,"",null,null,null,"",null,null,null,null,null,0]
[null,null,null,null,null,"",null,null,null,"",null,null,null,"",null,null,null,"",null,null,null,null,null,0]
[null,null,null,null,{"$f":"CONCATENATE(FIXED(COUNTA(E5:E18),0,0),\"　店\")","v":"9　店"},{"$f":"SUM(F5:F18)","v":11450},{"$f":"SUM(G5:G18)","v":0},null,{"$f":"CONCATENATE(FIXED(COUNTA(I5:I18),0,0),\"　店\")","v":"1　店"},{"$f":"SUM(J5:J18)","v":500},{"$f":"SUM(K5:K18)","v":0},null,{"$f":"CONCATENATE(FIXED(COUNTA(M5:M18),0,0),\"　店\")","v":"0　店"},{"$f":"SUM(N5:N18)","v":0},{"$f":"SUM(O5:O18)","v":0},null,{"$f":"CONCATENATE(FIXED(COUNTA(Q5:Q18),0,0),\"　店\")","v":"1　店"},{"$f":"SUM(R5:R18)","v":300},{"$f":"SUM(S5:S18)","v":0},null,{"$f":"CONCATENATE(FIXED(COUNTA(U5:U18),0,0),\"　店\")","v":"0　店"},{"$f":"SUM(V5:V18)","v":0},{"$f":"SUM(W5:W18)","v":0},{"$f":"SUM(X5:X18)","v":0}]
[]
["地区",null,null,"中日新聞",null,null,"枚数","朝日新聞",null,null,"枚数","毎日新聞",null,null,"枚数","読売新聞",null,null,"枚数",null,null,null,null,"備考"]
["清須市",null,"*1",230385101080,"清須北部NS",3150,null,230385202010,"清須",500,null,230385303010,"清洲",750,null,230385404010,"清須",400,null,null,null,null,null,"清須市全域の場合"]
[{"$f":"SUM(G37,K37,O37,S37,W37)","v":0},{"$f":"SUM(F37,J37,N37,R37,V37)","v":13050},"*2",230385101060,"あま清洲NMS",2400,null,null,null,"",null,null,null,"",null,null,null,"",null,null,null,null,null,"西区平田200枚"]
[null,null,0,230385101020,"枇杷島NMS",2250,null,null,null,"",null,null,null,"",null,null,null,"",null,null,null,null,null,"稲沢市稲沢下津650枚"]
[null,null,0,230385101030,"西枇杷島NM",1000,null,null,null,"",null,null,null,"",null,null,null,"",null,null,null,null,null,"北名古屋市北名古屋"]
[null,null,0,230385101040,"尾張新川南部NS",1150,null,null,null,"",null,null,null,"",null,null,null,"",null,null,null,null,null,"200枚をプラス"]
[null,null,0,230385101050,"尾張新川北部N",1450,null,null,null,"",null,null,null,"",null,null,null,""]
[null,null,null,null,null,"",null,null,null,"",null,null,null,"",null,null,null,""]
[null,null,null,null,null,"",null,null,null,"",null,null,null,"",null,null,null,""]
[null,null,null,null,null,"",null,null,null,"",null,null,null,"",null,null,null,""]
[null,null,null,null,null,"",null,null,null,"",null,null,null,"",null,null,null,"",null,null,null,null,null,"*1稲沢市700枚含む"]
[null,null,null,null,null,"",null,null,null,"",null,null,null,"",null,null,null,"",null,null,null,null,null,"*2あま市1,000枚含む"]
[null,null,null,null,null,"",null,null,null,"",null,null,null,"",null,null,null,""]
[null,null,null,null,null,"",null,null,null,"",null,null,null,"",null,null,null,"",null,null,null,null,null,0]
[null,null,null,null,null,"",null,null,null,"",null,null,null,"",null,null,null,"",null,null,null,null,null,0]
[null,null,null,null,null,"",null,null,null,"",null,null,null,"",null,null,null,"",null,null,null,null,null,0]
[null,null,null,null,{"$f":"CONCATENATE(FIXED(COUNTA(E22:E36),0,0),\"　店\")","v":"6　店"},{"$f":"SUM(F22:F36)","v":11400},{"$f":"SUM(G22:G36)","v":0},null,{"$f":"CONCATENATE(FIXED(COUNTA(I22:I36),0,0),\"　店\")","v":"1　店"},{"$f":"SUM(J22:J36)","v":500},{"$f":"SUM(K22:K36)","v":0},null,{"$f":"CONCATENATE(FIXED(COUNTA(M22:M36),0,0),\"　店\")","v":"1　店"},{"$f":"SUM(N22:N36)","v":750},{"$f":"SUM(O22:O36)","v":0},null,{"$f":"CONCATENATE(FIXED(COUNTA(Q22:Q36),0,0),\"　店\")","v":"1　店"},{"$f":"SUM(R22:R36)","v":400},{"$f":"SUM(S22:S36)","v":0},null,{"$f":"CONCATENATE(FIXED(COUNTA(U22:U36),0,0),\"　店\")","v":"0　店"},{"$f":"SUM(V22:V36)","v":0},{"$f":"SUM(W22:W36)","v":0},{"$f":"SUM(X22:X36)","v":0}]
[]
["地区",null,null,"中日新聞",null,null,"枚数","朝日新聞",null,null,"枚数","毎日新聞",null,null,"枚数","読売新聞",null,null,"枚数",null,null,null,null,"備考"]
["北名古屋市",null,"*1",230370101010,"北名古屋NMS",13150,null,230370202010,"西春",600,null,null,null,"",null,230370405002,"西春",600,null,null,null,null,null,"*1清須市200枚含む"]
[{"$f":"SUM(G48,K48,O48,S48,W48)","v":0},{"$f":"SUM(F48,J48,N48,R48,V48)","v":15700},null,null,null,"",null,230370202020,"西春西部",550,null,null,null,"",null,230370405003,"師勝",800,null,null,null,null,null,0]
[null,null,null,null,null,"",null,null,null,"",null,null,null,"",null,null,null,"",null,null,null,null,null,0]
[null,null,null,null,null,"",null,null,null,"",null,null,null,"",null,null,null,"",null,null,null,null,null,0]
[null,null,null,null,null,"",null,null,null,"",null,null,null,"",null,null,null,"",null,null,null,null,null,0]
[null,null,null,null,null,"",null,null,null,"",null,null,null,"",null,null,null,"",null,null,null,null,null,0]
[null,null,null,null,null,"",null,null,null,"",null,null,null,"",null,null,null,"",null,null,null,null,null,0]
[null,null,null,null,null,"",null,null,null,"",null,null,null,"",null,null,null,"",null,null,null,null,null,0]
[null,null,null,null,{"$f":"CONCATENATE(FIXED(COUNTA(E40:E47),0,0),\"　店\")","v":"1　店"},{"$f":"SUM(F40:F47)","v":13150},{"$f":"SUM(G40:G47)","v":0},null,{"$f":"CONCATENATE(FIXED(COUNTA(I40:I47),0,0),\"　店\")","v":"2　店"},{"$f":"SUM(J40:J47)","v":1150},{"$f":"SUM(K40:K47)","v":0},null,{"$f":"CONCATENATE(FIXED(COUNTA(M40:M47),0,0),\"　店\")","v":"0　店"},{"$f":"SUM(N40:N47)","v":0},{"$f":"SUM(O40:O47)","v":0},null,{"$f":"CONCATENATE(FIXED(COUNTA(Q40:Q47),0,0),\"　店\")","v":"2　店"},{"$f":"SUM(R40:R47)","v":1400},{"$f":"SUM(S40:S47)","v":0},null,{"$f":"CONCATENATE(FIXED(COUNTA(U40:U47),0,0),\"　店\")","v":"0　店"},{"$f":"SUM(V40:V47)","v":0},{"$f":"SUM(W40:W47)","v":0},{"$f":"SUM(X40:X47)","v":0}]
["2025年後期（8月1日以降）",null,null,null,null,null,null,null,null,null,null,null,null,null,null,null,null,null,null,null,null,null,null,"㈱中日総合サービス"]

{"sheet":"西春日井郡・岩倉市・江南市","index":27,"n_rows":49,"n_cols":24,"rows_kept":49,"cut":false,"hidden":false,"merged":[[0,1,1,4],[0,17,0,20],[0,22,1,23],[1,17,1,20],[0,5,0,6],[0,8,0,14],[1,5,1,6],[1,8,1,14],[2,9,2,10],[3,0,3,1],[3,3,3,5],[3,7,3,9],[3,11,3,13],[28,19,28,21],[3,19,3,21],[15,0,15,1],[15,3,15,5],[15,7,15,9],[15,11,15,13],[15,15,15,17],[15,19,15,21],[3,15,3,17],[28,0,28,1],[28,3,28,5],[28,7,28,9],[28,11,28,13],[28,15,28,17]]}
["折込日",null,null,null,null,"広告主",null,null,null,null,null,null,null,null,null,null,"サイズ",null,null,null,null,"取次店"]
[null,null,null,null,null,"チラシ銘柄",null,null,null,null,null,null,null,null,null,null,"部数",{"$f":"A6+A18+A31","v":0}]
[]
["地区",null,null,"中日新聞",null,null,"枚数","朝日新聞",null,null,"枚数","毎日新聞",null,null,"枚数","読売新聞",null,null,"枚数",null,null,null,null,"備考"]
["西春日井郡",null,0,230365101010,"豊山北NMS",1000,null,null,null,"",null,null,null,"",null,null,null,"",null,null,null,null,null,"豊山町全域の場合"]
[{"$f":"SUM(G14,K14,O14,S14,W14)","v":0},{"$f":"SUM(F14,J14,N14,R14,V14)","v":2300},0,230365101020,"豊場NM",1300,null,null,null,"",null,null,null,"",null,null,null,"",null,null,null,null,null,"北区喜惣治150枚"]
[null,null,null,null,null,"",null,null,null,"",null,null,null,"",null,null,null,"",null,null,null,null,null,"をプラス"]
[null,null,null,null,null,"",null,null,null,"",null,null,null,"",null,null,null,"",null,null,null,null,null,0]
[null,null,null,null,null,"",null,null,null,"",null,null,null,"",null,null,null,"",null,null,null,null,null,0]
[null,null,null,null,null,"",null,null,null,"",null,null,null,"",null,null,null,"",null,null,null,null,null,0]
[null,null,null,null,null,"",null,null,null,"",null,null,null,"",null,null,null,"",null,null,null,null,null,0]
[null,null,null,null,null,"",null,null,null,"",null,null,null,"",null,null,null,"",null,null,null,null,null,0]
[null,null,null,null,null,"",null,null,null,"",null,null,null,"",null,null,null,"",null,null,null,null,null,0]
[null,null,null,null,{"$f":"CONCATENATE(FIXED(COUNTA(E5:E13),0,0),\"　店\")","v":"2　店"},{"$f":"SUM(F5:F13)","v":2300},{"$f":"SUM(G5:G13)","v":0},null,{"$f":"CONCATENATE(FIXED(COUNTA(I5:I13),0,0),\"　店\")","v":"0　店"},{"$f":"SUM(J5:J13)","v":0},{"$f":"SUM(K5:K13)","v":0},null,{"$f":"CONCATENATE(FIXED(COUNTA(M5:M13),0,0),\"　店\")","v":"0　店"},{"$f":"SUM(N5:N13)","v":0},{"$f":"SUM(O5:O13)","v":0},null,{"$f":"CONCATENATE(FIXED(COUNTA(Q5:Q13),0,0),\"　店\")","v":"0　店"},{"$f":"SUM(R5:R13)","v":0},{"$f":"SUM(S5:S13)","v":0},null,{"$f":"CONCATENATE(FIXED(COUNTA(U5:U13),0,0),\"　店\")","v":"0　店"},{"$f":"SUM(V5:V13)","v":0},{"$f":"SUM(W5:W13)","v":0},{"$f":"SUM(X5:X13)","v":0}]
[]
["地区",null,null,"中日新聞",null,null,"枚数","朝日新聞",null,null,"枚数","毎日新聞",null,null,"枚数","読売新聞",null,null,"枚数",null,null,null,null,"備考"]
["岩倉市",null,0,230230101010,"岩倉NMS",3850,null,230230202010,"岩倉",800,null,null,null,"",null,230230405001,"岩倉",950,null,null,null,null,null,"岩倉市全域の場合"]
[{"$f":"SUM(G27,K27,O27,S27,W27)","v":0},{"$f":"SUM(F27,J27,N27,R27,V27)","v":8400},0,230230101020,"岩倉東部NMS",1700,null,null,null,"",null,null,null,"",null,null,null,"",null,null,null,null,null,"江南市加納馬場100枚"]
[null,null,0,230230101030,"岩倉南部NMS",1100,null,null,null,"",null,null,null,"",null,null,null,"",null,null,null,null,null,"をプラス"]
[null,null,null,null,null,"",null,null,null,"",null,null,null,"",null,null,null,"",null,null,null,null,null,0]
[null,null,null,null,null,"",null,null,null,"",null,null,null,"",null,null,null,"",null,null,null,null,null,0]
[null,null,null,null,null,"",null,null,null,"",null,null,null,"",null,null,null,"",null,null,null,null,null,0]
[null,null,null,null,null,"",null,null,null,"",null,null,null,"",null,null,null,"",null,null,null,null,null,0]
[null,null,null,null,null,"",null,null,null,"",null,null,null,"",null,null,null,"",null,null,null,null,null,0]
[null,null,null,null,null,"",null,null,null,"",null,null,null,"",null,null,null,"",null,null,null,null,null,0]
[null,null,null,null,null,"",null,null,null,"",null,null,null,"",null,null,null,"",null,null,null,null,null,0]
[null,null,null,null,{"$f":"CONCATENATE(FIXED(COUNTA(E17:E26),0,0),\"　店\")","v":"3　店"},{"$f":"SUM(F17:F26)","v":6650},{"$f":"SUM(G17:G26)","v":0},null,{"$f":"CONCATENATE(FIXED(COUNTA(I17:I26),0,0),\"　店\")","v":"1　店"},{"$f":"SUM(J17:J26)","v":800},{"$f":"SUM(K17:K26)","v":0},null,{"$f":"CONCATENATE(FIXED(COUNTA(M17:M26),0,0),\"　店\")","v":"0　店"},{"$f":"SUM(N17:N26)","v":0},{"$f":"SUM(O17:O26)","v":0},null,{"$f":"CONCATENATE(FIXED(COUNTA(Q17:Q26),0,0),\"　店\")","v":"1　店"},{"$f":"SUM(R17:R26)","v":950},{"$f":"SUM(S17:S26)","v":0},null,{"$f":"CONCATENATE(FIXED(COUNTA(U17:U26),0,0),\"　店\")","v":"0　店"},{"$f":"SUM(V17:V26)","v":0},{"$f":"SUM(W17:W26)","v":0},{"$f":"SUM(X17:X26)","v":0}]
[]
["地区",null,null,"中日新聞",null,null,"枚数","朝日新聞",null,null,"枚数","毎日新聞",null,null,"枚数","読売新聞",null,null,"枚数",null,null,null,null,"備考"]
["江南市",null,0,230220101010,"古知野NMS",2250,null,230220202010,"江南中央",450,null,null,null,"",null,230220405001,"江南北部",600,null,null,null,null,null,"江南市全域の場合"]
[{"$f":"SUM(G48,K48,O48,S48,W48)","v":0},{"$f":"SUM(F48,J48,N48,R48,V48)","v":19050},0,230220101100,"江南中部NMS",2000,null,230220202020,"江南東部",650,null,null,null,"",null,230220405002,"江南中央",450,null,null,null,null,null,"丹羽郡柏森500枚"]
[null,null,0,230220101050,"古知野東部NMS",1050,null,230220202030,"江南団地",350,null,null,null,"",null,null,null,"",null,null,null,null,null,"丹羽郡扶桑山名150枚"]
[null,null,0,230220101060,"江南まんだら寺前NMS",2550,null,230220202040,"布袋",450,null,null,null,"",null,null,null,"",null,null,null,null,null,"をプラス"]
[null,null,0,230220101080,"江南北部NMS",2050,null,null,null,"",null,null,null,"",null,null,null,"",null,null,null,null,null,0]
[null,null,0,230220101031,"江南草井NM",1850,null,null,null,"",null,null,null,"",null,null,null,"",null,null,null,null,null,0]
[null,null,0,230220101040,"布袋NMS",2250,null,null,null,"",null,null,null,"",null,null,null,"",null,null,null,null,null,0]
[null,null,0,230220101070,"布袋北部NM",1150,null,null,null,"",null,null,null,"",null,null,null,"",null,null,null,null,null,0]
[null,null,"*1",230220101090,"加納馬場NM",950,null,null,null,"",null,null,null,"",null,null,null,"",null,null,null,null,null,0]
[null,null,null,null,null,"",null,null,null,"",null,null,null,"",null,null,null,"",null,null,null,null,null,0]
[null,null,null,null,null,"",null,null,null,"",null,null,null,"",null,null,null,"",null,null,null,null,null,"*1一宮市550枚"]
[null,null,null,null,null,"",null,null,null,"",null,null,null,"",null,null,null,"",null,null,null,null,null,"    岩倉市100枚含む"]
[null,null,null,null,null,"",null,null,null,"",null,null,null,"",null,null,null,"",null,null,null,null,null,0]
[null,null,null,null,null,"",null,null,null,"",null,null,null,"",null,null,null,"",null,null,null,null,null,0]
[null,null,null,null,null,"",null,null,null,"",null,null,null,"",null,null,null,"",null,null,null,null,null,0]
[null,null,null,null,null,"",null,null,null,"",null,null,null,"",null,null,null,"",null,null,null,null,null,0]
[null,null,null,null,null,"",null,null,null,"",null,null,null,"",null,null,null,"",null,null,null,null,null,0]
[null,null,null,null,null,"",null,null,null,"",null,null,null,"",null,null,null,"",null,null,null,null,null,0]
[null,null,null,null,{"$f":"CONCATENATE(FIXED(COUNTA(E30:E47),0,0),\"　店\")","v":"9　店"},{"$f":"SUM(F30:F47)","v":16100},{"$f":"SUM(G30:G47)","v":0},null,{"$f":"CONCATENATE(FIXED(COUNTA(I30:I47),0,0),\"　店\")","v":"4　店"},{"$f":"SUM(J30:J47)","v":1900},{"$f":"SUM(K30:K47)","v":0},null,{"$f":"CONCATENATE(FIXED(COUNTA(M30:M47),0,0),\"　店\")","v":"0　店"},{"$f":"SUM(N30:N47)","v":0},{"$f":"SUM(O30:O47)","v":0},null,{"$f":"CONCATENATE(FIXED(COUNTA(Q30:Q47),0,0),\"　店\")","v":"2　店"},{"$f":"SUM(R30:R47)","v":1050},{"$f":"SUM(S30:S47)","v":0},null,{"$f":"CONCATENATE(FIXED(COUNTA(U30:U47),0,0),\"　店\")","v":"0　店"},{"$f":"SUM(V30:V47)","v":0},{"$f":"SUM(W30:W47)","v":0},{"$f":"SUM(X30:X47)","v":0}]
["2025年後期（8月1日以降）",null,null,null,null,null,null,null,null,null,null,null,null,null,null,null,null,null,null,null,null,null,null,"㈱中日総合サービス"]

{"sheet":"丹羽郡・犬山市","index":28,"n_rows":49,"n_cols":24,"rows_kept":49,"cut":false,"hidden":false,"merged":[[0,1,1,4],[0,17,0,20],[0,22,1,23],[1,17,1,20],[0,5,0,6],[0,8,0,14],[1,5,1,6],[1,8,1,14],[2,9,2,10],[3,0,3,1],[3,3,3,5],[3,7,3,9],[3,11,3,13],[3,19,3,21],[27,0,27,1],[27,3,27,5],[27,7,27,9],[27,11,27,13],[27,15,27,17],[27,19,27,21],[3,15,3,17]]}
["折込日",null,null,null,null,"広告主",null,null,null,null,null,null,null,null,null,null,"サイズ",null,null,null,null,"取次店"]
[null,null,null,null,null,"チラシ銘柄",null,null,null,null,null,null,null,null,null,null,"部数",{"$f":"A6+A30","v":0}]
[]
["地区",null,null,"中日新聞",null,null,"枚数","朝日新聞",null,null,"枚数","毎日新聞",null,null,"枚数","読売新聞",null,null,"枚数",null,null,null,null,"備考"]
["丹羽郡",null,"*1",230240101040,"柏森NMS",3300,null,230240202010,"扶桑",1050,null,null,null,"",null,null,null,"",null,null,null,null,null,"*1江南市500枚"]
[{"$f":"SUM(G26,K26,O26,S26,W26)","v":0},{"$f":"SUM(F26,J26,N26,R26,V26)","v":10750},0,230240101010,"扶桑NMS",2000,null,null,null,"",null,null,null,"",null,null,null,"",null,null,null,null,null,"    大口町650枚含む"]
[null,null,0,230240101030,"扶桑東NMS",800,null,null,null,"",null,null,null,"",null,null,null,"",null,null,null,null,null,"*2江南市150枚含む"]
[null,null,"*2",230240101020,"扶桑山名NM",1000,null,null,null,"",null,null,null,"",null,null,null,"",null,null,null,null,null,0]
[null,null,0,230240101050,"大口北部NM",1650,null,null,null,"",null,null,null,"",null,null,null,"",null,null,null,null,null,"大口町全域の場合"]
[null,null,0,230240101060,"大口南部NMS",950,null,null,null,"",null,null,null,"",null,null,null,"",null,null,null,null,null,"扶桑町柏森650枚"]
[null,null,null,null,null,"",null,null,null,"",null,null,null,"",null,null,null,"",null,null,null,null,null,"小牧市村中100枚"]
[null,null,null,null,null,"",null,null,null,"",null,null,null,"",null,null,null,"",null,null,null,null,null,"をプラス"]
[null,null,null,null,null,"",null,null,null,"",null,null,null,"",null,null,null,"",null,null,null,null,null,0]
[null,null,null,null,null,"",null,null,null,"",null,null,null,"",null,null,null,"",null,null,null,null,null,0]
[null,null,null,null,null,"",null,null,null,"",null,null,null,"",null,null,null,"",null,null,null,null,null,0]
[null,null,null,null,null,"",null,null,null,"",null,null,null,"",null,null,null,"",null,null,null,null,null,0]
[null,null,null,null,null,"",null,null,null,"",null,null,null,"",null,null,null,"",null,null,null,null,null,0]
[null,null,null,null,null,"",null,null,null,"",null,null,null,"",null,null,null,"",null,null,null,null,null,0]
[null,null,null,null,null,"",null,null,null,"",null,null,null,"",null,null,null,"",null,null,null,null,null,0]
[null,null,null,null,null,"",null,null,null,"",null,null,null,"",null,null,null,"",null,null,null,null,null,0]
[null,null,null,null,null,"",null,null,null,"",null,null,null,"",null,null,null,"",null,null,null,null,null,0]
[null,null,null,null,null,"",null,null,null,"",null,null,null,"",null,null,null,"",null,null,null,null,null,0]
[null,null,null,null,null,"",null,null,null,"",null,null,null,"",null,null,null,"",null,null,null,null,null,0]
[null,null,null,null,null,"",null,null,null,"",null,null,null,"",null,null,null,"",null,null,null,null,null,0]
[null,null,null,null,null,"",null,null,null,"",null,null,null,"",null,null,null,"",null,null,null,null,null,0]
[null,null,null,null,{"$f":"CONCATENATE(FIXED(COUNTA(E5:E25),0,0),\"　店\")","v":"6　店"},{"$f":"SUM(F5:F25)","v":9700},{"$f":"SUM(G5:G25)","v":0},null,{"$f":"CONCATENATE(FIXED(COUNTA(I5:I25),0,0),\"　店\")","v":"1　店"},{"$f":"SUM(J5:J25)","v":1050},{"$f":"SUM(K5:K25)","v":0},null,{"$f":"CONCATENATE(FIXED(COUNTA(M5:M25),0,0),\"　店\")","v":"0　店"},{"$f":"SUM(N5:N25)","v":0},{"$f":"SUM(O5:O25)","v":0},null,{"$f":"CONCATENATE(FIXED(COUNTA(Q5:Q25),0,0),\"　店\")","v":"0　店"},{"$f":"SUM(R5:R25)","v":0},{"$f":"SUM(S5:S25)","v":0},null,{"$f":"CONCATENATE(FIXED(COUNTA(U5:U25),0,0),\"　店\")","v":"0　店"},{"$f":"SUM(V5:V25)","v":0},{"$f":"SUM(W5:W25)","v":0},{"$f":"SUM(X5:X25)","v":0}]
[]
["地区",null,null,"中日新聞",null,null,"枚数","朝日新聞",null,null,"枚数","毎日新聞",null,null,"枚数","読売新聞",null,null,"枚数",null,null,null,null,"備考"]
["犬山市",null,0,230210101010,"犬山NMS",3750,null,230210202050,"犬山東部",750,null,null,null,"",null,230210405001,"犬山",650,null,null,null,null,null,0]
[{"$f":"SUM(G48,K48,O48,S48,W48)","v":0},{"$f":"SUM(F48,J48,N48,R48,V48)","v":14600},0,230210101050,"犬山駅東NMS",1000,null,230210202020,"犬山中央",450,null,null,null,"",null,null,null,"",null,null,null,null,null,0]
[null,null,0,230210101040,"犬山城東NMS",1400,null,230210202030,"犬山南部",450,null,null,null,"",null,null,null,"",null,null,null,null,null,0]
[null,null,0,230210101080,"前原NMS",1600,null,null,null,"",null,null,null,"",null,null,null,"",null,null,null,null,null,0]
[null,null,0,230210101070,"羽黒NMS",1150,null,null,null,"",null,null,null,"",null,null,null,"",null,null,null,null,null,0]
[null,null,0,230210101060,"羽黒東部NMS",1100,null,null,null,"",null,null,null,"",null,null,null,"",null,null,null,null,null,0]
[null,null,0,230210101020,"楽田NMS",1050,null,null,null,"",null,null,null,"",null,null,null,"",null,null,null,null,null,0]
[null,null,0,230210101030,"楽田東部NMS",1250,null,null,null,"",null,null,null,"",null,null,null,"",null,null,null,null,null,0]
[null,null,null,null,null,"",null,null,null,"",null,null,null,"",null,null,null,"",null,null,null,null,null,0]
[null,null,null,null,null,"",null,null,null,"",null,null,null,"",null,null,null,"",null,null,null,null,null,0]
[null,null,null,null,null,"",null,null,null,"",null,null,null,"",null,null,null,"",null,null,null,null,null,0]
[null,null,null,null,null,"",null,null,null,"",null,null,null,"",null,null,null,"",null,null,null,null,null,0]
[null,null,null,null,null,"",null,null,null,"",null,null,null,"",null,null,null,"",null,null,null,null,null,0]
[null,null,null,null,null,"",null,null,null,"",null,null,null,"",null,null,null,"",null,null,null,null,null,0]
[null,null,null,null,null,"",null,null,null,"",null,null,null,"",null,null,null,"",null,null,null,null,null,0]
[null,null,null,null,null,"",null,null,null,"",null,null,null,"",null,null,null,"",null,null,null,null,null,0]
[null,null,null,null,null,"",null,null,null,"",null,null,null,"",null,null,null,"",null,null,null,null,null,0]
[null,null,null,null,null,"",null,null,null,"",null,null,null,"",null,null,null,"",null,null,null,null,null,0]
[null,null,null,null,null,"",null,null,null,"",null,null,null,"",null,null,null,"",null,null,null,null,null,0]
[null,null,null,null,{"$f":"CONCATENATE(FIXED(COUNTA(E29:E47),0,0),\"　店\")","v":"8　店"},{"$f":"SUM(F29:F47)","v":12300},{"$f":"SUM(G29:G47)","v":0},null,{"$f":"CONCATENATE(FIXED(COUNTA(I29:I47),0,0),\"　店\")","v":"3　店"},{"$f":"SUM(J29:J47)","v":1650},{"$f":"SUM(K29:K47)","v":0},null,{"$f":"CONCATENATE(FIXED(COUNTA(M29:M47),0,0),\"　店\")","v":"0　店"},{"$f":"SUM(N29:N47)","v":0},{"$f":"SUM(O29:O47)","v":0},null,{"$f":"CONCATENATE(FIXED(COUNTA(Q29:Q47),0,0),\"　店\")","v":"1　店"},{"$f":"SUM(R29:R47)","v":650},{"$f":"SUM(S29:S47)","v":0},null,{"$f":"CONCATENATE(FIXED(COUNTA(U29:U47),0,0),\"　店\")","v":"0　店"},{"$f":"SUM(V29:V47)","v":0},{"$f":"SUM(W29:W47)","v":0},{"$f":"SUM(X29:X47)","v":0}]
["2025年後期（8月1日以降）",null,null,null,null,null,null,null,null,null,null,null,null,null,null,null,null,null,null,null,null,null,null,"㈱中日総合サービス"]

{"sheet":"小牧市","index":29,"n_rows":49,"n_cols":24,"rows_kept":49,"cut":false,"hidden":false,"merged":[[0,1,1,4],[0,17,0,20],[0,22,1,23],[1,17,1,20],[0,5,0,6],[0,8,0,14],[1,5,1,6],[1,8,1,14],[3,19,3,21],[2,9,2,10],[3,0,3,1],[3,3,3,5],[3,7,3,9],[3,11,3,13],[3,15,3,17]]}
["折込日",null,null,null,null,"広告主",null,null,null,null,null,null,null,null,null,null,"サイズ",null,null,null,null,"取次店"]
[null,null,null,null,null,"チラシ銘柄",null,null,null,null,null,null,null,null,null,null,"部数",{"$f":"A6","v":0}]
[]
["地区",null,null,"中日新聞",null,null,"枚数","朝日新聞",null,null,"枚数","毎日新聞",null,null,"枚数","読売新聞",null,null,"枚数",null,null,null,null,"備考"]
["小牧市",null,0,230520101010,"小牧中央NMS",2500,null,230520202010,"小牧中央",1200,null,null,null,"",null,230520405001,"小牧北部",500,null,null,null,null,null,0]
[{"$f":"SUM(G48,K48,O48,S48,W48)","v":0},{"$f":"SUM(F48,J48,N48,R48,V48)","v":28150},0,230520101020,"小牧南部NMS",2100,null,230520202030,"桃花台",750,null,null,null,"",null,230520405002,"小牧中央",650,null,null,null,null,null,0]
[null,null,0,230520101150,"小牧陶NMS",1200,null,230520202040,"小牧西部",200,null,null,null,"",null,230520405003,"桃花台",600,null,null,null,null,null,0]
[null,null,0,230520101030,"小牧北部NM",1100,null,null,null,"",null,null,null,"",null,null,null,"",null,null,null,null,null,0]
[null,null,0,230520101040,"小牧北里NM",1100,null,null,null,"",null,null,null,"",null,null,null,"",null,null,null,null,null,0]
[null,null,0,230520101050,"小牧小木NMS",1150,null,null,null,"",null,null,null,"",null,null,null,"",null,null,null,null,null,0]
[null,null,0,230520101060,"小牧三ッ渕NMS",1550,null,null,null,"",null,null,null,"",null,null,null,"",null,null,null,null,null,0]
[null,null,"*1",230520101080,"小牧村中NMS",1600,null,null,null,"",null,null,null,"",null,null,null,"",null,null,null,null,null,0]
[null,null,0,230520101090,"味岡NMS",3150,null,null,null,"",null,null,null,"",null,null,null,"",null,null,null,null,null,0]
[null,null,0,230520101100,"小牧原NMS",950,null,null,null,"",null,null,null,"",null,null,null,"",null,null,null,null,null,"*1丹羽郡大口町"]
[null,null,0,230520101110,"小牧東部NMS",1450,null,null,null,"",null,null,null,"",null,null,null,"",null,null,null,null,null,"    100枚含む"]
[null,null,0,230520101130,"小牧本庄NMS",1100,null,null,null,"",null,null,null,"",null,null,null,"",null,null,null,null,null,0]
[null,null,0,230520101140,"小牧池の内NM",850,null,null,null,"",null,null,null,"",null,null,null,"",null,null,null,null,null,0]
[null,null,0,230520101170,"桃花台西NMS",1600,null,null,null,"",null,null,null,"",null,null,null,"",null,null,null,null,null,0]
[null,null,0,230520101180,"桃花台東NMS",2850,null,null,null,"",null,null,null,"",null,null,null,"",null,null,null,null,null,0]
[null,null,null,null,null,"",null,null,null,"",null,null,null,"",null,null,null,"",null,null,null,null,null,0]
[null,null,null,null,null,"",null,null,null,"",null,null,null,"",null,null,null,"",null,null,null,null,null,0]
[null,null,null,null,null,"",null,null,null,"",null,null,null,"",null,null,null,""]
[null,null,null,null,null,"",null,null,null,"",null,null,null,"",null,null,null,""]
[null,null,null,null,null,"",null,null,null,"",null,null,null,"",null,null,null,""]
[null,null,null,null,null,"",null,null,null,"",null,null,null,"",null,null,null,""]
[null,null,null,null,null,"",null,null,null,"",null,null,null,"",null,null,null,""]
[null,null,null,null,null,"",null,null,null,"",null,null,null,"",null,null,null,""]
[null,null,null,null,null,"",null,null,null,"",null,null,null,"",null,null,null,""]
[null,null,null,null,null,"",null,null,null,"",null,null,null,"",null,null,null,""]
[null,null,null,null,null,"",null,null,null,"",null,null,null,"",null,null,null,""]
[null,null,null,null,null,"",null,null,null,"",null,null,null,"",null,null,null,""]
[null,null,null,null,null,"",null,null,null,"",null,null,null,"",null,null,null,""]
[null,null,null,null,null,"",null,null,null,"",null,null,null,"",null,null,null,""]
[null,null,null,null,null,"",null,null,null,"",null,null,null,"",null,null,null,""]
[null,null,null,null,null,"",null,null,null,"",null,null,null,"",null,null,null,""]
[null,null,null,null,null,"",null,null,null,"",null,null,null,"",null,null,null,""]
[null,null,null,null,null,"",null,null,null,"",null,null,null,"",null,null,null,""]
[null,null,null,null,null,"",null,null,null,"",null,null,null,"",null,null,null,""]
[null,null,null,null,null,"",null,null,null,"",null,null,null,"",null,null,null,""]
[null,null,null,null,null,"",null,null,null,"",null,null,null,"",null,null,null,""]
[null,null,null,null,null,"",null,null,null,"",null,null,null,"",null,null,null,""]
[null,null,null,null,null,"",null,null,null,"",null,null,null,"",null,null,null,""]
[null,null,null,null,null,"",null,null,null,"",null,null,null,"",null,null,null,""]
[null,null,null,null,null,"",null,null,null,"",null,null,null,"",null,null,null,""]
[null,null,null,null,null,"",null,null,null,"",null,null,null,"",null,null,null,""]
[null,null,null,null,null,"",null,null,null,"",null,null,null,"",null,null,null,""]
[null,null,null,null,null,"",null,null,null,"",null,null,null,"",null,null,null,""]
[null,null,null,null,{"$f":"CONCATENATE(FIXED(COUNTA(E5:E47),0,0),\"　店\")","v":"15　店"},{"$f":"SUM(F5:F47)","v":24250},{"$f":"SUM(G5:G47)","v":0},null,{"$f":"CONCATENATE(FIXED(COUNTA(I5:I47),0,0),\"　店\")","v":"3　店"},{"$f":"SUM(J5:J47)","v":2150},{"$f":"SUM(K5:K47)","v":0},null,{"$f":"CONCATENATE(FIXED(COUNTA(M5:M47),0,0),\"　店\")","v":"0　店"},{"$f":"SUM(N5:N47)","v":0},{"$f":"SUM(O5:O47)","v":0},null,{"$f":"CONCATENATE(FIXED(COUNTA(Q5:Q47),0,0),\"　店\")","v":"3　店"},{"$f":"SUM(R5:R47)","v":1750},{"$f":"SUM(S5:S47)","v":0},null,{"$f":"CONCATENATE(FIXED(COUNTA(U5:U47),0,0),\"　店\")","v":"0　店"},{"$f":"SUM(V5:V47)","v":0},{"$f":"SUM(W5:W47)","v":0},{"$f":"SUM(X5:X47)","v":0}]
["2025年後期（8月1日以降）",null,null,null,null,null,null,null,null,null,null,null,null,null,null,null,null,null,null,null,null,null,null,"㈱中日総合サービス"]

{"sheet":"春日井市","index":30,"n_rows":49,"n_cols":24,"rows_kept":49,"cut":false,"hidden":false,"merged":[[0,1,1,4],[0,17,0,20],[0,22,1,23],[1,17,1,20],[0,5,0,6],[0,8,0,14],[1,5,1,6],[1,8,1,14],[3,19,3,21],[2,9,2,10],[3,0,3,1],[3,3,3,5],[3,7,3,9],[3,11,3,13],[3,15,3,17]]}
["折込日",null,null,null,null,"広告主",null,null,null,null,null,null,null,null,null,null,"サイズ",null,null,null,null,"取次店"]
[null,null,null,null,null,"チラシ銘柄",null,null,null,null,null,null,null,null,null,null,"部数",{"$f":"A6","v":0}]
[]
["地区",null,null,"中日新聞",null,null,"枚数","朝日新聞",null,null,"枚数","毎日新聞",null,null,"枚数","読売新聞",null,null,"枚数",null,null,null,null,"備考"]
["春日井市",null,0,230510101010,"春日井西部NMS",3200,null,230510202010,"春日井西部",200,null,null,null,"",null,230510405001,"高蔵寺",550,null,null,null,null,null,0]
[{"$f":"SUM(G48,K48,O48,S48,W48)","v":0},{"$f":"SUM(F48,J48,N48,R48,V48)","v":57450},0,230510101020,"春日井宮町NMS",3650,null,230510202020,"勝川",750,null,null,null,"",null,230510405002,"春日井西部",400,null,null,null,null,null,0]
[null,null,0,230510101030,"春日井中新町NMS",900,null,230510202030,"春日井中央",650,null,null,null,"",null,230510405003,"勝川",300,null,null,null,null,null,0]
[null,null,0,230510101040,"勝川NMS",1250,null,230510202040,"鳥居松",1050,null,null,null,"",null,230510405004,"ニュータウン",600,null,null,null,null,null,0]
[null,null,0,230510101270,"勝川東部NMS",1250,null,230510202070,"藤山台",950,null,null,null,"",null,230510405005,"春日井",900,null,null,null,null,null,0]
[null,null,0,230510101050,"勝川南部NMS",2200,null,230510202080,"高蔵寺",700,null,null,null,"",null,230510405007,"桃花台（坂下）",150,null,null,null,null,null,0]
[null,null,0,230510101070,"春日井八田NM",1700,null,230510202090,"中央台",1000,null,null,null,"",null,null,null,"",null,null,null,null,null,0]
[null,null,0,230510101080,"春日井松河戸NMS",1200,null,230510202100,"尾張坂下",750,null,null,null,"",null,null,null,"",null,null,null,null,null,0]
[null,null,0,230510101090,"春日井上条NMS",1550,null,null,null,"",null,null,null,"",null,null,null,""]
[null,null,0,230510101100,"春日井NMS",4500,null,null,null,"",null,null,null,"",null,null,null,""]
[null,null,0,230510101280,"春日井高校前NMS",1300,null,null,null,"",null,null,null,"",null,null,null,""]
[null,null,0,230510101110,"鳥居松NMS",3650,null,null,null,"",null,null,null,"",null,null,null,""]
[null,null,0,230510101120,"春日井大泉寺NMS",850,null,null,null,"",null,null,null,"",null,null,null,""]
[null,null,0,230510101130,"神領NMS",1150,null,null,null,"",null,null,null,"",null,null,null,""]
[null,null,0,230510101140,"高蔵寺NMS",3900,null,null,null,"",null,null,null,"",null,null,null,""]
[null,null,0,230510101150,"春日井出川NMS",1450,null,null,null,"",null,null,null,"",null,null,null,""]
[null,null,0,230510101160,"尾張坂下NMS",3000,null,null,null,"",null,null,null,"",null,null,null,""]
[null,null,0,230510101200,"藤山台NMS",1450,null,null,null,"",null,null,null,"",null,null,null,""]
[null,null,0,230510101210,"高森台NMS",1550,null,null,null,"",null,null,null,"",null,null,null,""]
[null,null,0,230510101220,"中央台NMS",1900,null,null,null,"",null,null,null,"",null,null,null,""]
[null,null,0,230510101230,"岩成台NMS",1450,null,null,null,"",null,null,null,"",null,null,null,""]
[null,null,0,230510101240,"石尾台NMS",1550,null,null,null,"",null,null,null,"",null,null,null,""]
[null,null,0,230510101180,"鷹来桃山NMS",3900,null,null,null,"",null,null,null,"",null,null,null,""]
[null,null,null,null,null,"",null,null,null,"",null,null,null,"",null,null,null,""]
[null,null,null,null,null,"",null,null,null,"",null,null,null,"",null,null,null,""]
[null,null,null,null,null,"",null,null,null,"",null,null,null,"",null,null,null,""]
[null,null,null,null,null,"",null,null,null,"",null,null,null,"",null,null,null,""]
[null,null,null,null,null,"",null,null,null,"",null,null,null,"",null,null,null,""]
[null,null,null,null,null,"",null,null,null,"",null,null,null,"",null,null,null,""]
[null,null,null,null,null,"",null,null,null,"",null,null,null,"",null,null,null,""]
[null,null,null,null,null,"",null,null,null,"",null,null,null,"",null,null,null,""]
[null,null,null,null,null,"",null,null,null,"",null,null,null,"",null,null,null,""]
[null,null,null,null,null,"",null,null,null,"",null,null,null,"",null,null,null,""]
[null,null,null,null,null,"",null,null,null,"",null,null,null,"",null,null,null,""]
[null,null,null,null,null,"",null,null,null,"",null,null,null,"",null,null,null,""]
[null,null,null,null,null,"",null,null,null,"",null,null,null,"",null,null,null,""]
[null,null,null,null,null,"",null,null,null,"",null,null,null,"",null,null,null,""]
[null,null,null,null,null,"",null,null,null,"",null,null,null,"",null,null,null,""]
[null,null,null,null,null,"",null,null,null,"",null,null,null,"",null,null,null,""]
[null,null,null,null,null,"",null,null,null,"",null,null,null,"",null,null,null,""]
[null,null,null,null,null,"",null,null,null,"",null,null,null,"",null,null,null,""]
[null,null,null,null,null,"",null,null,null,"",null,null,null,"",null,null,null,""]
[null,null,null,null,null,"",null,null,null,"",null,null,null,"",null,null,null,""]
[null,null,null,null,{"$f":"CONCATENATE(FIXED(COUNTA(E5:E47),0,0),\"　店\")","v":"23　店"},{"$f":"SUM(F5:F47)","v":48500},{"$f":"SUM(G5:G47)","v":0},null,{"$f":"CONCATENATE(FIXED(COUNTA(I5:I47),0,0),\"　店\")","v":"8　店"},{"$f":"SUM(J5:J47)","v":6050},{"$f":"SUM(K5:K47)","v":0},null,{"$f":"CONCATENATE(FIXED(COUNTA(M5:M47),0,0),\"　店\")","v":"0　店"},{"$f":"SUM(N5:N47)","v":0},{"$f":"SUM(O5:O47)","v":0},null,{"$f":"CONCATENATE(FIXED(COUNTA(Q5:Q47),0,0),\"　店\")","v":"6　店"},{"$f":"SUM(R5:R47)","v":2900},{"$f":"SUM(S5:S47)","v":0},null,{"$f":"CONCATENATE(FIXED(COUNTA(U5:U47),0,0),\"　店\")","v":"0　店"},{"$f":"SUM(V5:V47)","v":0},{"$f":"SUM(W5:W47)","v":0},{"$f":"SUM(X5:X47)","v":0}]
["2025年後期（8月1日以降）",null,null,null,null,null,null,null,null,null,null,null,null,null,null,null,null,null,null,null,null,null,null,"㈱中日総合サービス"]

{"sheet":"瀬戸市・尾張旭市","index":31,"n_rows":49,"n_cols":24,"rows_kept":49,"cut":false,"hidden":false,"merged":[[0,1,1,4],[0,17,0,20],[0,22,1,23],[1,17,1,20],[0,5,0,6],[0,8,0,14],[1,5,1,6],[1,8,1,14],[2,9,2,10],[3,0,3,1],[3,3,3,5],[3,7,3,9],[3,11,3,13],[3,19,3,21],[27,0,27,1],[27,3,27,5],[27,7,27,9],[27,11,27,13],[27,15,27,17],[27,19,27,21],[3,15,3,17]]}
["折込日",null,null,null,null,"広告主",null,null,null,null,null,null,null,null,null,null,"サイズ",null,null,null,null,"取次店"]
[null,null,null,null,null,"チラシ銘柄",null,null,null,null,null,null,null,null,null,null,"部数",{"$f":"A6+A30","v":0}]
[]
["地区",null,null,"中日新聞",null,null,"枚数","朝日新聞",null,null,"枚数","毎日新聞",null,null,"枚数","読売新聞",null,null,"枚数",null,null,null,null,"備考"]
["瀬戸市",null,0,230530101010,"瀬戸品野NAMYS",2100,null,230530202010,"瀬戸",300,null,null,null,"",null,230530405001,"瀬戸",750,null,null,null,null,null,"瀬戸市全域の場合"]
[{"$f":"SUM(G26,K26,O26,S26,W26)","v":0},{"$f":"SUM(F26,J26,N26,R26,V26)","v":24800},0,230530101030,"瀬戸東NAMS",1100,null,230530202020,"菱野団地",900,null,null,null,"",null,230530405003,"瀬戸南",300,null,null,null,null,null,"多治見市多治見（両藤舎）"]
[null,null,0,230530101040,"瀬戸（加藤）NMS",1700,null,230530202030,"水野",900,null,null,null,"",null,null,null,"",null,null,null,null,null,"100枚をプラス"]
[null,null,0,230530101050,"瀬戸陶原NMS",1850,null,null,null,"",null,null,null,"",null,null,null,"",null,null,null,null,null,0]
[null,null,0,230530101070,"水野西NMS",1700,null,null,null,"",null,null,null,"",null,null,null,"",null,null,null,null,null,0]
[null,null,0,230530101080,"中水野NAMS",1400,null,null,null,"",null,null,null,"",null,null,null,"",null,null,null,null,null,0]
[null,null,0,230530101100,"新瀬戸NMS",1450,null,null,null,"",null,null,null,"",null,null,null,"",null,null,null,null,null,0]
[null,null,0,230530101090,"瀬戸南山NMS",1700,null,null,null,"",null,null,null,"",null,null,null,"",null,null,null,null,null,0]
[null,null,0,230530101110,"原山台NMS",750,null,null,null,"",null,null,null,"",null,null,null,"",null,null,null,null,null,0]
[null,null,0,230530101120,"瀬戸菱野NMS",1500,null,null,null,"",null,null,null,"",null,null,null,"",null,null,null,null,null,0]
[null,null,0,230530101140,"瀬戸南部NMS",2250,null,null,null,"",null,null,null,"",null,null,null,"",null,null,null,null,null,0]
[null,null,0,230530101170,"瀬戸長根NMS",1900,null,null,null,"",null,null,null,"",null,null,null,"",null,null,null,null,null,0]
[null,null,0,230530101150,"瀬戸幡山NM",1250,null,null,null,"",null,null,null,"",null,null,null,"",null,null,null,null,null,0]
[null,null,0,230530101180,"瀬戸山口NM",1000,null,null,null,"",null,null,null,"",null,null,null,"",null,null,null,null,null,0]
[null,null,null,null,null,"",null,null,null,"",null,null,null,"",null,null,null,"",null,null,null,null,null,0]
[null,null,null,null,null,"",null,null,null,"",null,null,null,"",null,null,null,"",null,null,null,null,null,0]
[null,null,null,null,null,"",null,null,null,"",null,null,null,"",null,null,null,""]
[null,null,null,null,null,"",null,null,null,"",null,null,null,"",null,null,null,""]
[null,null,null,null,null,"",null,null,null,"",null,null,null,"",null,null,null,""]
[null,null,null,null,null,"",null,null,null,"",null,null,null,"",null,null,null,""]
[null,null,null,null,null,"",null,null,null,"",null,null,null,"",null,null,null,""]
[null,null,null,null,{"$f":"CONCATENATE(FIXED(COUNTA(E5:E25),0,0),\"　店\")","v":"14　店"},{"$f":"SUM(F5:F25)","v":21650},{"$f":"SUM(G5:G25)","v":0},null,{"$f":"CONCATENATE(FIXED(COUNTA(I5:I25),0,0),\"　店\")","v":"3　店"},{"$f":"SUM(J5:J25)","v":2100},{"$f":"SUM(K5:K25)","v":0},null,{"$f":"CONCATENATE(FIXED(COUNTA(M5:M25),0,0),\"　店\")","v":"0　店"},{"$f":"SUM(N5:N25)","v":0},{"$f":"SUM(O5:O25)","v":0},null,{"$f":"CONCATENATE(FIXED(COUNTA(Q5:Q25),0,0),\"　店\")","v":"2　店"},{"$f":"SUM(R5:R25)","v":1050},{"$f":"SUM(S5:S25)","v":0},null,{"$f":"CONCATENATE(FIXED(COUNTA(U5:U25),0,0),\"　店\")","v":"0　店"},{"$f":"SUM(V5:V25)","v":0},{"$f":"SUM(W5:W25)","v":0},{"$f":"SUM(X5:X25)","v":0}]
[]
["地区",null,null,"中日新聞",null,null,"枚数","朝日新聞",null,null,"枚数","毎日新聞",null,null,"枚数","読売新聞",null,null,"枚数",null,null,null,null,"備考"]
["尾張旭市",null,0,230540101010,"三郷NMS",1300,null,230540202010,"尾張旭",1850,null,null,null,"",null,230540405001,"新尾張旭",550,null,null,null,null,null,"尾張旭市全域の場合"]
[{"$f":"SUM(G48,K48,O48,S48,W48)","v":0},{"$f":"SUM(F48,J48,N48,R48,V48)","v":16000},0,230540101020,"平池NMS",2850,null,null,null,"",null,null,null,"",null,230540405002,"三郷",250,null,null,null,null,null,"名東区森孝200枚"]
[null,null,0,230540101040,"尾張旭北部NMS",1750,null,null,null,"",null,null,null,"",null,null,null,"",null,null,null,null,null,"守山区大森1,650枚"]
[null,null,0,230540101030,"旭新居NMS",2850,null,null,null,"",null,null,null,"",null,null,null,"",null,null,null,null,null,"をプラス"]
[null,null,"*1",230540101050,"本地ヶ原NMS",3100,null,null,null,"",null,null,null,"",null,null,null,"",null,null,null,null,null,0]
[null,null,"*2",230540101070,"瑞鳳NM",1500,null,null,null,"",null,null,null,"",null,null,null,"",null,null,null,null,null,0]
[null,null,null,null,null,"",null,null,null,"",null,null,null,"",null,null,null,"",null,null,null,null,null,"*1守山区1,200枚含む"]
[null,null,null,null,null,"",null,null,null,"",null,null,null,"",null,null,null,"",null,null,null,null,null,0]
[null,null,null,null,null,"",null,null,null,"",null,null,null,"",null,null,null,"",null,null,null,null,null,"*2守山区50枚含む"]
[null,null,null,null,null,"",null,null,null,"",null,null,null,"",null,null,null,"",null,null,null,null,null,0]
[null,null,null,null,null,"",null,null,null,"",null,null,null,"",null,null,null,"",null,null,null,null,null,0]
[null,null,null,null,null,"",null,null,null,"",null,null,null,"",null,null,null,"",null,null,null,null,null,0]
[null,null,null,null,null,"",null,null,null,"",null,null,null,"",null,null,null,"",null,null,null,null,null,0]
[null,null,null,null,null,"",null,null,null,"",null,null,null,"",null,null,null,"",null,null,null,null,null,0]
[null,null,null,null,null,"",null,null,null,"",null,null,null,"",null,null,null,"",null,null,null,null,null,0]
[null,null,null,null,null,"",null,null,null,"",null,null,null,"",null,null,null,"",null,null,null,null,null,0]
[null,null,null,null,null,"",null,null,null,"",null,null,null,"",null,null,null,"",null,null,null,null,null,0]
[null,null,null,null,null,"",null,null,null,"",null,null,null,"",null,null,null,"",null,null,null,null,null,0]
[null,null,null,null,null,"",null,null,null,"",null,null,null,"",null,null,null,"",null,null,null,null,null,0]
[null,null,null,null,{"$f":"CONCATENATE(FIXED(COUNTA(E29:E47),0,0),\"　店\")","v":"6　店"},{"$f":"SUM(F29:F47)","v":13350},{"$f":"SUM(G29:G47)","v":0},null,{"$f":"CONCATENATE(FIXED(COUNTA(I29:I47),0,0),\"　店\")","v":"1　店"},{"$f":"SUM(J29:J47)","v":1850},{"$f":"SUM(K29:K47)","v":0},null,{"$f":"CONCATENATE(FIXED(COUNTA(M29:M47),0,0),\"　店\")","v":"0　店"},{"$f":"SUM(N29:N47)","v":0},{"$f":"SUM(O29:O47)","v":0},null,{"$f":"CONCATENATE(FIXED(COUNTA(Q29:Q47),0,0),\"　店\")","v":"2　店"},{"$f":"SUM(R29:R47)","v":800},{"$f":"SUM(S29:S47)","v":0},null,{"$f":"CONCATENATE(FIXED(COUNTA(U29:U47),0,0),\"　店\")","v":"0　店"},{"$f":"SUM(V29:V47)","v":0},{"$f":"SUM(W29:W47)","v":0},{"$f":"SUM(X29:X47)","v":0}]
["2025年後期（8月1日以降）",null,null,null,null,null,null,null,null,null,null,null,null,null,null,null,null,null,null,null,null,null,null,"㈱中日総合サービス"]

{"sheet":"日進市・豊明市","index":32,"n_rows":49,"n_cols":24,"rows_kept":49,"cut":false,"hidden":false,"merged":[[0,1,1,4],[0,17,0,20],[0,22,1,23],[1,17,1,20],[0,5,0,6],[0,8,0,14],[1,5,1,6],[1,8,1,14],[2,9,2,10],[3,0,3,1],[3,3,3,5],[3,7,3,9],[3,11,3,13],[3,19,3,21],[27,0,27,1],[27,3,27,5],[27,7,27,9],[27,11,27,13],[27,15,27,17],[27,19,27,21],[3,15,3,17]]}
["折込日",null,null,null,null,"広告主",null,null,null,null,null,null,null,null,null,null,"サイズ",null,null,null,null,"取次店"]
[null,null,null,null,null,"チラシ銘柄",null,null,null,null,null,null,null,null,null,null,"部数",{"$f":"A6+A30","v":0}]
[]
["地区",null,null,"中日新聞",null,null,"枚数","朝日新聞",null,null,"枚数","毎日新聞",null,null,"枚数","読売新聞",null,null,"枚数",null,null,null,null,"備考"]
["日進市",null,0,230560101010,"岩崎NMS",1350,null,230560202010,"岩崎",1100,null,null,null,"",null,230560405001,"日進",300,null,null,null,null,null,"日進市全域の場合"]
[{"$f":"SUM(G26,K26,O26,S26,W26)","v":0},{"$f":"SUM(F26,J26,N26,R26,V26)","v":15050},0,230560101110,"岩崎香久山NMS",1400,null,230560202020,"日進",1050,null,null,null,"",null,230560405010,"赤池",350,null,null,null,null,null,"天白区梅が丘800枚"]
[null,null,0,230560101100,"岩崎台NMS",900,null,null,null,"",null,null,null,"",null,null,null,"",null,null,null,null,null,"をプラス"]
[null,null,0,230560101030,"五色園NMS",1250,null,null,null,"",null,null,null,"",null,null,null,""]
[null,null,0,230560101040,"日進米野木NMS",1800,null,null,null,"",null,null,null,"",null,null,null,"",null,null,null,null,null,0]
[null,null,0,230560101050,"日進中部NMS",950,null,null,null,"",null,null,null,"",null,null,null,"",null,null,null,null,null,0]
[null,null,0,230560101060,"赤池NMS",1150,null,null,null,"",null,null,null,"",null,null,null,"",null,null,null,null,null,0]
[null,null,0,230560101070,"日進折戸NMS",2200,null,null,null,"",null,null,null,"",null,null,null,"",null,null,null,null,null,0]
[null,null,0,230560101080,"日進浅田NMS",1250,null,null,null,"",null,null,null,"",null,null,null,"",null,null,null,null,null,0]
[null,null,null,null,null,"",null,null,null,"",null,null,null,"",null,null,null,"",null,null,null,null,null,0]
[null,null,null,null,null,"",null,null,null,"",null,null,null,"",null,null,null,"",null,null,null,null,null,0]
[null,null,null,null,null,"",null,null,null,"",null,null,null,"",null,null,null,""]
[null,null,null,null,null,"",null,null,null,"",null,null,null,"",null,null,null,""]
[null,null,null,null,null,"",null,null,null,"",null,null,null,"",null,null,null,""]
[null,null,null,null,null,"",null,null,null,"",null,null,null,"",null,null,null,""]
[null,null,null,null,null,"",null,null,null,"",null,null,null,"",null,null,null,""]
[null,null,null,null,null,"",null,null,null,"",null,null,null,"",null,null,null,""]
[null,null,null,null,null,"",null,null,null,"",null,null,null,"",null,null,null,""]
[null,null,null,null,null,"",null,null,null,"",null,null,null,"",null,null,null,""]
[null,null,null,null,null,"",null,null,null,"",null,null,null,"",null,null,null,""]
[null,null,null,null,null,"",null,null,null,"",null,null,null,"",null,null,null,""]
[null,null,null,null,{"$f":"CONCATENATE(FIXED(COUNTA(E5:E25),0,0),\"　店\")","v":"9　店"},{"$f":"SUM(F5:F25)","v":12250},{"$f":"SUM(G5:G25)","v":0},null,{"$f":"CONCATENATE(FIXED(COUNTA(I5:I25),0,0),\"　店\")","v":"2　店"},{"$f":"SUM(J5:J25)","v":2150},{"$f":"SUM(K5:K25)","v":0},null,{"$f":"CONCATENATE(FIXED(COUNTA(M5:M25),0,0),\"　店\")","v":"0　店"},{"$f":"SUM(N5:N25)","v":0},{"$f":"SUM(O5:O25)","v":0},null,{"$f":"CONCATENATE(FIXED(COUNTA(Q5:Q25),0,0),\"　店\")","v":"2　店"},{"$f":"SUM(R5:R25)","v":650},{"$f":"SUM(S5:S25)","v":0},null,{"$f":"CONCATENATE(FIXED(COUNTA(U5:U25),0,0),\"　店\")","v":"0　店"},{"$f":"SUM(V5:V25)","v":0},{"$f":"SUM(W5:W25)","v":0},{"$f":"SUM(X5:X25)","v":0}]
[]
["地区",null,null,"中日新聞",null,null,"枚数","朝日新聞",null,null,"枚数","毎日新聞",null,null,"枚数","読売新聞",null,null,"枚数",null,null,null,null,"備考"]
["豊明市",null,0,230550101010,"豊明団地NMS",1750,null,230550202010,"豊明",850,null,null,null,"",null,230550405001,"豊明",350,null,null,null,null,null,0]
[{"$f":"SUM(G48,K48,O48,S48,W48)","v":0},{"$f":"SUM(F48,J48,N48,R48,V48)","v":12600},0,230550101040,"豊明東部NMS",1950,null,230550202030,"前後",400,null,null,null,"",null,230550405002,"前後",200,null,null,null,null,null,0]
[null,null,0,230550101020,"前後NMS",2150,null,null,null,"",null,null,null,"",null,null,null,""]
[null,null,0,230550101030,"豊明桜ヶ丘NMS",1550,null,null,null,"",null,null,null,"",null,null,null,""]
[null,null,0,230550101050,"沓掛NMS",2400,null,null,null,"",null,null,null,"",null,null,null,""]
[null,null,0,230550101060,"豊明南館NM",1000,null,null,null,"",null,null,null,"",null,null,null,""]
[null,null,null,null,null,"",null,null,null,"",null,null,null,"",null,null,null,""]
[null,null,null,null,null,"",null,null,null,"",null,null,null,"",null,null,null,""]
[null,null,null,null,null,"",null,null,null,"",null,null,null,"",null,null,null,""]
[null,null,null,null,null,"",null,null,null,"",null,null,null,"",null,null,null,""]
[null,null,null,null,null,"",null,null,null,"",null,null,null,"",null,null,null,""]
[null,null,null,null,null,"",null,null,null,"",null,null,null,"",null,null,null,""]
[null,null,null,null,null,"",null,null,null,"",null,null,null,"",null,null,null,""]
[null,null,null,null,null,"",null,null,null,"",null,null,null,"",null,null,null,""]
[null,null,null,null,null,"",null,null,null,"",null,null,null,"",null,null,null,""]
[null,null,null,null,null,"",null,null,null,"",null,null,null,"",null,null,null,""]
[null,null,null,null,null,"",null,null,null,"",null,null,null,"",null,null,null,""]
[null,null,null,null,null,"",null,null,null,"",null,null,null,"",null,null,null,""]
[null,null,null,null,null,"",null,null,null,"",null,null,null,"",null,null,null,""]
[null,null,null,null,{"$f":"CONCATENATE(FIXED(COUNTA(E29:E47),0,0),\"　店\")","v":"6　店"},{"$f":"SUM(F29:F47)","v":10800},{"$f":"SUM(G29:G47)","v":0},null,{"$f":"CONCATENATE(FIXED(COUNTA(I29:I47),0,0),\"　店\")","v":"2　店"},{"$f":"SUM(J29:J47)","v":1250},{"$f":"SUM(K29:K47)","v":0},null,{"$f":"CONCATENATE(FIXED(COUNTA(M29:M47),0,0),\"　店\")","v":"0　店"},{"$f":"SUM(N29:N47)","v":0},{"$f":"SUM(O29:O47)","v":0},null,{"$f":"CONCATENATE(FIXED(COUNTA(Q29:Q47),0,0),\"　店\")","v":"2　店"},{"$f":"SUM(R29:R47)","v":550},{"$f":"SUM(S29:S47)","v":0},null,{"$f":"CONCATENATE(FIXED(COUNTA(U29:U47),0,0),\"　店\")","v":"0　店"},{"$f":"SUM(V29:V47)","v":0},{"$f":"SUM(W29:W47)","v":0},{"$f":"SUM(X29:X47)","v":0}]
["2025年後期（8月1日以降）",null,null,null,null,null,null,null,null,null,null,null,null,null,null,null,null,null,null,null,null,null,null,"㈱中日総合サービス"]

{"sheet":"長久手市・愛知郡","index":33,"n_rows":49,"n_cols":24,"rows_kept":49,"cut":false,"hidden":false,"merged":[[0,1,1,4],[0,17,0,20],[0,22,1,23],[1,17,1,20],[0,5,0,6],[0,8,0,14],[1,5,1,6],[1,8,1,14],[2,9,2,10],[3,0,3,1],[3,3,3,5],[3,7,3,9],[3,11,3,13],[3,19,3,21],[27,0,27,1],[27,3,27,5],[27,7,27,9],[27,11,27,13],[27,15,27,17],[27,19,27,21],[3,15,3,17]]}
["折込日",null,null,null,null,"広告主",null,null,null,null,null,null,null,null,null,null,"サイズ",null,null,null,null,"取次店"]
[null,null,null,null,null,"チラシ銘柄",null,null,null,null,null,null,null,null,null,null,"部数",{"$f":"A6+A30","v":0}]
[]
["地区",null,null,"中日新聞",null,null,"枚数","朝日新聞",null,null,"枚数","毎日新聞",null,null,"枚数","読売新聞",null,null,"枚数",null,null,null,null,"備考"]
["長久手市",null,0,230590101010,"長久手北部NMS",1700,null,230590202010,"長久手",1250,null,null,null,"",null,230590405010,"長久手",550,null,null,null,null,null,"長久手市全域の場合"]
[{"$f":"SUM(G26,K26,O26,S26,W26)","v":0},{"$f":"SUM(F26,J26,N26,R26,V26)","v":8900},0,230590101020,"長久手東部NMS",1900,null,null,null,"",null,null,null,"",null,null,null,"",null,null,null,null,null,"名東区極楽300枚"]
[null,null,0,230590101030,"長久手西部NMS",2200,null,null,null,"",null,null,null,"",null,null,null,"",null,null,null,null,null,"をプラス"]
[null,null,0,230590101050,"長久手南部NMS",1300,null,null,null,"",null,null,null,"",null,null,null,"",null,null,null,null,null,0]
[null,null,null,null,null,"",null,null,null,"",null,null,null,"",null,null,null,""]
[null,null,null,null,null,"",null,null,null,"",null,null,null,"",null,null,null,""]
[null,null,null,null,null,"",null,null,null,"",null,null,null,"",null,null,null,""]
[null,null,null,null,null,"",null,null,null,"",null,null,null,"",null,null,null,""]
[null,null,null,null,null,"",null,null,null,"",null,null,null,"",null,null,null,""]
[null,null,null,null,null,"",null,null,null,"",null,null,null,"",null,null,null,""]
[null,null,null,null,null,"",null,null,null,"",null,null,null,"",null,null,null,""]
[null,null,null,null,null,"",null,null,null,"",null,null,null,"",null,null,null,""]
[null,null,null,null,null,"",null,null,null,"",null,null,null,"",null,null,null,""]
[null,null,null,null,null,"",null,null,null,"",null,null,null,"",null,null,null,""]
[null,null,null,null,null,"",null,null,null,"",null,null,null,"",null,null,null,""]
[null,null,null,null,null,"",null,null,null,"",null,null,null,"",null,null,null,""]
[null,null,null,null,null,"",null,null,null,"",null,null,null,"",null,null,null,""]
[null,null,null,null,null,"",null,null,null,"",null,null,null,"",null,null,null,""]
[null,null,null,null,null,"",null,null,null,"",null,null,null,"",null,null,null,""]
[null,null,null,null,null,"",null,null,null,"",null,null,null,"",null,null,null,""]
[null,null,null,null,null,"",null,null,null,"",null,null,null,"",null,null,null,""]
[null,null,null,null,{"$f":"CONCATENATE(FIXED(COUNTA(E5:E25),0,0),\"　店\")","v":"4　店"},{"$f":"SUM(F5:F25)","v":7100},{"$f":"SUM(G5:G25)","v":0},null,{"$f":"CONCATENATE(FIXED(COUNTA(I5:I25),0,0),\"　店\")","v":"1　店"},{"$f":"SUM(J5:J25)","v":1250},{"$f":"SUM(K5:K25)","v":0},null,{"$f":"CONCATENATE(FIXED(COUNTA(M5:M25),0,0),\"　店\")","v":"0　店"},{"$f":"SUM(N5:N25)","v":0},{"$f":"SUM(O5:O25)","v":0},null,{"$f":"CONCATENATE(FIXED(COUNTA(Q5:Q25),0,0),\"　店\")","v":"1　店"},{"$f":"SUM(R5:R25)","v":550},{"$f":"SUM(S5:S25)","v":0},null,{"$f":"CONCATENATE(FIXED(COUNTA(U5:U25),0,0),\"　店\")","v":"0　店"},{"$f":"SUM(V5:V25)","v":0},{"$f":"SUM(W5:W25)","v":0},{"$f":"SUM(X5:X25)","v":0}]
[]
["地区",null,null,"中日新聞",null,null,"枚数","朝日新聞",null,null,"枚数","毎日新聞",null,null,"枚数","読売新聞",null,null,"枚数",null,null,null,null,"備考"]
["愛知郡",null,0,230580101010,"和合NMS",2050,null,230580202010,"東郷",500,null,null,null,"",null,230580405001,"東郷",450,null,null,null,null,null,0]
[{"$f":"SUM(G48,K48,O48,S48,W48)","v":0},{"$f":"SUM(F48,J48,N48,R48,V48)","v":7600},0,230580101025,"東郷白鳥NMS",1550,null,null,null,"",null,null,null,"",null,null,null,""]
[null,null,0,230580101020,"諸輪NMS",1250,null,null,null,"",null,null,null,"",null,null,null,""]
[null,null,0,230580101040,"音貝NMS",1800,null,null,null,"",null,null,null,"",null,null,null,""]
[null,null,null,null,null,"",null,null,null,"",null,null,null,"",null,null,null,""]
[null,null,null,null,null,"",null,null,null,"",null,null,null,"",null,null,null,""]
[null,null,null,null,null,"",null,null,null,"",null,null,null,"",null,null,null,""]
[null,null,null,null,null,"",null,null,null,"",null,null,null,"",null,null,null,""]
[null,null,null,null,null,"",null,null,null,"",null,null,null,"",null,null,null,""]
[null,null,null,null,null,"",null,null,null,"",null,null,null,"",null,null,null,""]
[null,null,null,null,null,"",null,null,null,"",null,null,null,"",null,null,null,""]
[null,null,null,null,null,"",null,null,null,"",null,null,null,"",null,null,null,""]
[null,null,null,null,null,"",null,null,null,"",null,null,null,"",null,null,null,""]
[null,null,null,null,null,"",null,null,null,"",null,null,null,"",null,null,null,""]
[null,null,null,null,null,"",null,null,null,"",null,null,null,"",null,null,null,""]
[null,null,null,null,null,"",null,null,null,"",null,null,null,"",null,null,null,""]
[null,null,null,null,null,"",null,null,null,"",null,null,null,"",null,null,null,""]
[null,null,null,null,null,"",null,null,null,"",null,null,null,"",null,null,null,""]
[null,null,null,null,null,"",null,null,null,"",null,null,null,"",null,null,null,""]
[null,null,null,null,{"$f":"CONCATENATE(FIXED(COUNTA(E29:E47),0,0),\"　店\")","v":"4　店"},{"$f":"SUM(F29:F47)","v":6650},{"$f":"SUM(G29:G47)","v":0},null,{"$f":"CONCATENATE(FIXED(COUNTA(I29:I47),0,0),\"　店\")","v":"1　店"},{"$f":"SUM(J29:J47)","v":500},{"$f":"SUM(K29:K47)","v":0},null,{"$f":"CONCATENATE(FIXED(COUNTA(M29:M47),0,0),\"　店\")","v":"0　店"},{"$f":"SUM(N29:N47)","v":0},{"$f":"SUM(O29:O47)","v":0},null,{"$f":"CONCATENATE(FIXED(COUNTA(Q29:Q47),0,0),\"　店\")","v":"1　店"},{"$f":"SUM(R29:R47)","v":450},{"$f":"SUM(S29:S47)","v":0},null,{"$f":"CONCATENATE(FIXED(COUNTA(U29:U47),0,0),\"　店\")","v":"0　店"},{"$f":"SUM(V29:V47)","v":0},{"$f":"SUM(W29:W47)","v":0},{"$f":"SUM(X29:X47)","v":0}]
["2025年後期（8月1日以降）",null,null,null,null,null,null,null,null,null,null,null,null,null,null,null,null,null,null,null,null,null,null,"㈱中日総合サービス"]

{"sheet":"大府市・東海市","index":34,"n_rows":49,"n_cols":24,"rows_kept":49,"cut":false,"hidden":false,"merged":[[0,1,1,4],[0,17,0,20],[0,22,1,23],[1,17,1,20],[0,5,0,6],[0,8,0,14],[1,5,1,6],[1,8,1,14],[2,9,2,10],[3,0,3,1],[3,3,3,5],[3,7,3,9],[3,11,3,13],[3,19,3,21],[27,0,27,1],[27,3,27,5],[27,7,27,9],[27,11,27,13],[27,15,27,17],[27,19,27,21],[3,15,3,17]]}
["折込日",null,null,null,null,"広告主",null,null,null,null,null,null,null,null,null,null,"サイズ",null,null,null,null,"取次店"]
[null,null,null,null,null,"チラシ銘柄",null,null,null,null,null,null,null,null,null,null,"部数",{"$f":"A6+A30","v":0}]
[]
["地区",null,null,"中日新聞",null,null,"枚数","朝日新聞",null,null,"枚数","毎日新聞",null,null,"枚数","読売新聞",null,null,"枚数",null,null,null,null,"備考"]
["大府市",null,0,230420101020,"共和NMS",3850,null,230420202011,"大府",1200,null,null,null,"",null,230420405001,"大府・共和",650,null,null,null,null,null,0]
[{"$f":"SUM(G26,K26,O26,S26,W26)","v":0},{"$f":"SUM(F26,J26,N26,R26,V26)","v":15850},0,230420101070,"共和西NMS",1300,null,230420202020,"共和",300,null,null,null,"",null,null,null,""]
[null,null,0,230420101010,"大府NMS",4000,null,null,null,"",null,null,null,"",null,null,null,""]
[null,null,0,230420101030,"大府吉田NMS",1250,null,null,null,"",null,null,null,"",null,null,null,""]
[null,null,0,230420101060,"大府森岡NMS",1700,null,null,null,"",null,null,null,"",null,null,null,""]
[null,null,0,230420101080,"大府駅西NMS",1600,null,null,null,"",null,null,null,"",null,null,null,""]
[null,null,0,null,null,"",null,null,null,"",null,null,null,"",null,null,null,""]
[null,null,null,null,null,"",null,null,null,"",null,null,null,"",null,null,null,""]
[null,null,null,null,null,"",null,null,null,"",null,null,null,"",null,null,null,""]
[null,null,null,null,null,"",null,null,null,"",null,null,null,"",null,null,null,""]
[null,null,null,null,null,"",null,null,null,"",null,null,null,"",null,null,null,""]
[null,null,null,null,null,"",null,null,null,"",null,null,null,"",null,null,null,""]
[null,null,null,null,null,"",null,null,null,"",null,null,null,"",null,null,null,""]
[null,null,null,null,null,"",null,null,null,"",null,null,null,"",null,null,null,""]
[null,null,null,null,null,"",null,null,null,"",null,null,null,"",null,null,null,""]
[null,null,null,null,null,"",null,null,null,"",null,null,null,"",null,null,null,""]
[null,null,null,null,null,"",null,null,null,"",null,null,null,"",null,null,null,""]
[null,null,null,null,null,"",null,null,null,"",null,null,null,"",null,null,null,""]
[null,null,null,null,null,"",null,null,null,"",null,null,null,"",null,null,null,""]
[null,null,null,null,null,"",null,null,null,"",null,null,null,"",null,null,null,""]
[null,null,null,null,null,"",null,null,null,"",null,null,null,"",null,null,null,""]
[null,null,null,null,{"$f":"CONCATENATE(FIXED(COUNTA(E5:E25),0,0),\"　店\")","v":"6　店"},{"$f":"SUM(F5:F25)","v":13700},{"$f":"SUM(G5:G25)","v":0},null,{"$f":"CONCATENATE(FIXED(COUNTA(I5:I25),0,0),\"　店\")","v":"2　店"},{"$f":"SUM(J5:J25)","v":1500},{"$f":"SUM(K5:K25)","v":0},null,{"$f":"CONCATENATE(FIXED(COUNTA(M5:M25),0,0),\"　店\")","v":"0　店"},{"$f":"SUM(N5:N25)","v":0},{"$f":"SUM(O5:O25)","v":0},null,{"$f":"CONCATENATE(FIXED(COUNTA(Q5:Q25),0,0),\"　店\")","v":"1　店"},{"$f":"SUM(R5:R25)","v":650},{"$f":"SUM(S5:S25)","v":0},null,{"$f":"CONCATENATE(FIXED(COUNTA(U5:U25),0,0),\"　店\")","v":"0　店"},{"$f":"SUM(V5:V25)","v":0},{"$f":"SUM(W5:W25)","v":0},{"$f":"SUM(X5:X25)","v":0}]
[]
["地区",null,null,"中日新聞",null,null,"枚数","朝日新聞",null,null,"枚数","毎日新聞",null,null,"枚数","読売新聞",null,null,"枚数",null,null,null,null,"備考"]
["東海市",null,0,230410101070,"名和水谷N",2050,null,230410202011,"東海市",750,null,230410303050,"東海大高",100,null,230410405001,"名和",200]
[{"$f":"SUM(G48,K48,O48,S48,W48)","v":0},{"$f":"SUM(F48,J48,N48,R48,V48)","v":18450},0,230410101010,"荒尾NMS",1850,null,230410202031,"尾張横須賀",350,null,null,null,"",null,230410405002,"東海北部",350]
[null,null,0,230410101050,"名和上野NMS",1100,null,230410202040,"南加木屋",700,null,null,null,"",null,230410405004,"東海東浦",450]
[null,null,0,230410101090,"東海大田NMS",1350,null,null,null,"",null,null,null,"",null,230410405005,"阿久比",350,null,null,null,null,null,0]
[null,null,0,230410101030,"富木島NMS",2700,null,null,null,"",null,null,null,"",null,null,null,""]
[null,null,null,230410101100,"高横須賀NMS",1350,null,null,null,"",null,null,null,"",null,null,null,""]
[null,null,0,230410101080,"尾張横須賀NMS",850,null,null,null,"",null,null,null,"",null,null,null,""]
[null,null,0,230410101110,"加木屋NMS",3950,null,null,null,"",null,null,null,"",null,null,null,""]
[null,null,0,null,null,"",null,null,null,"",null,null,null,"",null,null,null,""]
[null,null,null,null,null,"",null,null,null,"",null,null,null,"",null,null,null,""]
[null,null,null,null,null,"",null,null,null,"",null,null,null,"",null,null,null,""]
[null,null,null,null,null,"",null,null,null,"",null,null,null,"",null,null,null,""]
[null,null,null,null,null,"",null,null,null,"",null,null,null,"",null,null,null,""]
[null,null,null,null,null,"",null,null,null,"",null,null,null,"",null,null,null,""]
[null,null,null,null,null,"",null,null,null,"",null,null,null,"",null,null,null,""]
[null,null,null,null,null,"",null,null,null,"",null,null,null,"",null,null,null,""]
[null,null,null,null,null,"",null,null,null,"",null,null,null,"",null,null,null,""]
[null,null,null,null,null,"",null,null,null,"",null,null,null,"",null,null,null,""]
[null,null,null,null,null,"",null,null,null,"",null,null,null,"",null,null,null,""]
[null,null,null,null,{"$f":"CONCATENATE(FIXED(COUNTA(E29:E47),0,0),\"　店\")","v":"8　店"},{"$f":"SUM(F29:F47)","v":15200},{"$f":"SUM(G29:G47)","v":0},null,{"$f":"CONCATENATE(FIXED(COUNTA(I29:I47),0,0),\"　店\")","v":"3　店"},{"$f":"SUM(J29:J47)","v":1800},{"$f":"SUM(K29:K47)","v":0},null,{"$f":"CONCATENATE(FIXED(COUNTA(M29:M47),0,0),\"　店\")","v":"1　店"},{"$f":"SUM(N29:N47)","v":100},{"$f":"SUM(O29:O47)","v":0},null,{"$f":"CONCATENATE(FIXED(COUNTA(Q29:Q47),0,0),\"　店\")","v":"4　店"},{"$f":"SUM(R29:R47)","v":1350},{"$f":"SUM(S29:S47)","v":0},null,{"$f":"CONCATENATE(FIXED(COUNTA(U29:U47),0,0),\"　店\")","v":"0　店"},{"$f":"SUM(V29:V47)","v":0},{"$f":"SUM(W29:W47)","v":0},{"$f":"SUM(X29:X47)","v":0}]
["2025年後期（8月1日以降）",null,null,null,null,null,null,null,null,null,null,null,null,null,null,null,null,null,null,null,null,null,null,"㈱中日総合サービス"]

{"sheet":"知多市・半田市","index":35,"n_rows":49,"n_cols":24,"rows_kept":49,"cut":false,"hidden":false,"merged":[[0,1,1,4],[0,17,0,20],[0,22,1,23],[1,17,1,20],[0,5,0,6],[0,8,0,14],[1,5,1,6],[1,8,1,14],[2,9,2,10],[3,0,3,1],[3,3,3,5],[3,7,3,9],[3,11,3,13],[3,19,3,21],[27,0,27,1],[27,3,27,5],[27,7,27,9],[27,11,27,13],[27,15,27,17],[27,19,27,21],[3,15,3,17]]}
["折込日",null,null,null,null,"広告主",null,null,null,null,null,null,null,null,null,null,"サイズ",null,null,null,null,"取次店"]
[null,null,null,null,null,"チラシ銘柄",null,null,null,null,null,null,null,null,null,null,"部数",{"$f":"A6+A30","v":0}]
[]
["地区",null,null,"中日新聞",null,null,"枚数","朝日新聞",null,null,"枚数","毎日新聞",null,null,"枚数","読売新聞",null,null,"枚数",null,null,null,null,"備考"]
["知多市",null,0,230430101050,"寺本NM",1450,null,230430202010,"巽ケ丘",550,null,null,null,"",null,230430405001,"知多南",600,null,null,null,null,null,0]
[{"$f":"SUM(G26,K26,O26,S26,W26)","v":0},{"$f":"SUM(F26,J26,N26,R26,V26)","v":16500},0,230430101060,"朝倉団地NMS",5300,null,230430202040,"朝倉",750,null,null,null,"",null,null,null,"",null,null,null,null,null,0]
[null,null,0,230430101070,"巽ヶ丘NMS",1650,null,230430202030,"知多市",1000,null,null,null,"",null,null,null,"",null,null,null,null,null,0]
[null,null,0,230430101040,"知多岡田NM",2800,null,null,null,"",null,null,null,"",null,null,null,"",null,null,null,null,null,0]
[null,null,0,230430101020,"新舞子NM",1050,null,null,null,"",null,null,null,"",null,null,null,""]
[null,null,0,230430101010,"知多粕谷NM",1350,null,null,null,"",null,null,null,"",null,null,null,"",null,null,null,null,null,0]
[null,null,0,null,null,"",null,null,null,"",null,null,null,"",null,null,null,"",null,null,null,null,null,0]
[null,null,null,null,null,"",null,null,null,"",null,null,null,"",null,null,null,"",null,null,null,null,null,0]
[null,null,null,null,null,"",null,null,null,"",null,null,null,"",null,null,null,"",null,null,null,null,null,0]
[null,null,null,null,null,"",null,null,null,"",null,null,null,"",null,null,null,""]
[null,null,null,null,null,"",null,null,null,"",null,null,null,"",null,null,null,""]
[null,null,null,null,null,"",null,null,null,"",null,null,null,"",null,null,null,""]
[null,null,null,null,null,"",null,null,null,"",null,null,null,"",null,null,null,""]
[null,null,null,null,null,"",null,null,null,"",null,null,null,"",null,null,null,""]
[null,null,null,null,null,"",null,null,null,"",null,null,null,"",null,null,null,""]
[null,null,null,null,null,"",null,null,null,"",null,null,null,"",null,null,null,""]
[null,null,null,null,null,"",null,null,null,"",null,null,null,"",null,null,null,""]
[null,null,null,null,null,"",null,null,null,"",null,null,null,"",null,null,null,""]
[null,null,null,null,null,"",null,null,null,"",null,null,null,"",null,null,null,""]
[null,null,null,null,null,"",null,null,null,"",null,null,null,"",null,null,null,""]
[null,null,null,null,null,"",null,null,null,"",null,null,null,"",null,null,null,""]
[null,null,null,null,{"$f":"CONCATENATE(FIXED(COUNTA(E5:E25),0,0),\"　店\")","v":"6　店"},{"$f":"SUM(F5:F25)","v":13600},{"$f":"SUM(G5:G25)","v":0},null,{"$f":"CONCATENATE(FIXED(COUNTA(I5:I25),0,0),\"　店\")","v":"3　店"},{"$f":"SUM(J5:J25)","v":2300},{"$f":"SUM(K5:K25)","v":0},null,{"$f":"CONCATENATE(FIXED(COUNTA(M5:M25),0,0),\"　店\")","v":"0　店"},{"$f":"SUM(N5:N25)","v":0},{"$f":"SUM(O5:O25)","v":0},null,{"$f":"CONCATENATE(FIXED(COUNTA(Q5:Q25),0,0),\"　店\")","v":"1　店"},{"$f":"SUM(R5:R25)","v":600},{"$f":"SUM(S5:S25)","v":0},null,{"$f":"CONCATENATE(FIXED(COUNTA(U5:U25),0,0),\"　店\")","v":"0　店"},{"$f":"SUM(V5:V25)","v":0},{"$f":"SUM(W5:W25)","v":0},{"$f":"SUM(X5:X25)","v":0}]
[]
["地区",null,null,"中日新聞",null,null,"枚数","朝日新聞",null,null,"枚数","毎日新聞",null,null,"枚数","読売新聞",null,null,"枚数",null,null,null,null,"備考"]
["半田市",null,0,230450101070,"亀崎NMS",2950,null,230450202010,"半田中央",200,null,null,null,"",null,230450405001,"半田",400,null,null,null,null,null,0]
[{"$f":"SUM(G48,K48,O48,S48,W48)","v":0},{"$f":"SUM(F48,J48,N48,R48,V48)","v":21650},0,230450101060,"乙川NMS",2250,null,230450202050,"半田東部",250,null,null,null,"",null,230450405002,"半田東部",450,null,null,null,null,null,0]
[null,null,0,230450101130,"半田北部NMS",1450,null,230450202030,"半田南部",900,null,null,null,"",null,230450405003,"半田住吉",150,null,null,null,null,null,0]
[null,null,0,230450101020,"半田住吉NM",1100,null,230450202040,"半田北部",500,null,null,null,"",null,null,null,""]
[null,null,0,230450101010,"半田岩滑NM",1000,null,null,null,"",null,null,null,"",null,null,null,""]
[null,null,0,230450101120,"半田清城NM",1150,null,null,null,"",null,null,null,"",null,null,null,""]
[null,null,0,230450101110,"知多半田NMS",1100,null,null,null,"",null,null,null,"",null,null,null,""]
[null,null,0,230450101100,"半田衣浦NMS",900,null,null,null,"",null,null,null,"",null,null,null,""]
[null,null,0,230450101050,"半田中町NMS",1400,null,null,null,"",null,null,null,"",null,null,null,""]
[null,null,0,230450101090,"半田板山NM",1050,null,null,null,"",null,null,null,"",null,null,null,""]
[null,null,0,230450101030,"成岩NM",1800,null,null,null,"",null,null,null,"",null,null,null,""]
[null,null,0,230450101040,"半田青山NMS",2650,null,null,null,"",null,null,null,"",null,null,null,""]
[null,null,null,null,null,"",null,null,null,"",null,null,null,"",null,null,null,""]
[null,null,null,null,null,"",null,null,null,"",null,null,null,"",null,null,null,""]
[null,null,null,null,null,"",null,null,null,"",null,null,null,"",null,null,null,""]
[null,null,null,null,null,"",null,null,null,"",null,null,null,"",null,null,null,""]
[null,null,null,null,null,"",null,null,null,"",null,null,null,"",null,null,null,""]
[null,null,null,null,null,"",null,null,null,"",null,null,null,"",null,null,null,""]
[null,null,null,null,null,"",null,null,null,"",null,null,null,"",null,null,null,""]
[null,null,null,null,{"$f":"CONCATENATE(FIXED(COUNTA(E29:E47),0,0),\"　店\")","v":"12　店"},{"$f":"SUM(F29:F47)","v":18800},{"$f":"SUM(G29:G47)","v":0},null,{"$f":"CONCATENATE(FIXED(COUNTA(I29:I47),0,0),\"　店\")","v":"4　店"},{"$f":"SUM(J29:J47)","v":1850},{"$f":"SUM(K29:K47)","v":0},null,{"$f":"CONCATENATE(FIXED(COUNTA(M29:M47),0,0),\"　店\")","v":"0　店"},{"$f":"SUM(N29:N47)","v":0},{"$f":"SUM(O29:O47)","v":0},null,{"$f":"CONCATENATE(FIXED(COUNTA(Q29:Q47),0,0),\"　店\")","v":"3　店"},{"$f":"SUM(R29:R47)","v":1000},{"$f":"SUM(S29:S47)","v":0},null,{"$f":"CONCATENATE(FIXED(COUNTA(U29:U47),0,0),\"　店\")","v":"0　店"},{"$f":"SUM(V29:V47)","v":0},{"$f":"SUM(W29:W47)","v":0},{"$f":"SUM(X29:X47)","v":0}]
["2025年後期（8月1日以降）",null,null,null,null,null,null,null,null,null,null,null,null,null,null,null,null,null,null,null,null,null,null,"㈱中日総合サービス"]

{"sheet":"常滑市・知多郡","index":36,"n_rows":49,"n_cols":24,"rows_kept":49,"cut":false,"hidden":false,"merged":[[0,1,1,4],[0,17,0,20],[0,22,1,23],[1,17,1,20],[0,5,0,6],[0,8,0,14],[1,5,1,6],[1,8,1,14],[2,9,2,10],[3,0,3,1],[3,3,3,5],[3,7,3,9],[3,11,3,13],[3,19,3,21],[21,0,21,1],[21,3,21,5],[21,7,21,9],[21,11,21,13],[21,15,21,17],[21,19,21,21],[3,15,3,17]]}
["折込日",null,null,null,null,"広告主",null,null,null,null,null,null,null,null,null,null,"サイズ",null,null,null,null,"取次店"]
[null,null,null,null,null,"チラシ銘柄",null,null,null,null,null,null,null,null,null,null,"部数",{"$f":"A6+A24","v":0}]
[]
["地区",null,null,"中日新聞",null,null,"枚数","朝日新聞",null,null,"枚数","毎日新聞",null,null,"枚数","読売新聞",null,null,"枚数",null,null,null,null,"備考"]
["常滑市",null,0,230440101020,"尾張大野NMS",2150,null,230440202010,"常滑",250,null,null,null,"",null,null,null,""]
[{"$f":"SUM(G20,K20,O20,S20,W20)","v":0},{"$f":"SUM(F20,J20,N20,R20,V20)","v":9450},0,230440101030,"常滑鬼崎NMYS",2150,null,null,null,"",null,null,null,"",null,null,null,""]
[null,null,0,230440101010,"常滑NMYS",3650,null,null,null,"",null,null,null,"",null,null,null,""]
[null,null,0,230440101070,"常滑南部NAMYS",1250,null,null,null,"",null,null,null,"",null,null,null,""]
[null,null,null,null,null,"",null,null,null,"",null,null,null,"",null,null,null,""]
[null,null,null,null,null,"",null,null,null,"",null,null,null,"",null,null,null,""]
[null,null,null,null,null,"",null,null,null,"",null,null,null,"",null,null,null,""]
[null,null,null,null,null,"",null,null,null,"",null,null,null,"",null,null,null,""]
[null,null,null,null,null,"",null,null,null,"",null,null,null,"",null,null,null,""]
[null,null,null,null,null,"",null,null,null,"",null,null,null,"",null,null,null,""]
[null,null,null,null,null,"",null,null,null,"",null,null,null,"",null,null,null,""]
[null,null,null,null,null,"",null,null,null,"",null,null,null,"",null,null,null,""]
[null,null,null,null,null,"",null,null,null,"",null,null,null,"",null,null,null,""]
[null,null,null,null,null,"",null,null,null,"",null,null,null,"",null,null,null,""]
[null,null,null,null,null,"",null,null,null,"",null,null,null,"",null,null,null,""]
[null,null,null,null,{"$f":"CONCATENATE(FIXED(COUNTA(E5:E19),0,0),\"　店\")","v":"4　店"},{"$f":"SUM(F5:F19)","v":9200},{"$f":"SUM(G5:G19)","v":0},null,{"$f":"CONCATENATE(FIXED(COUNTA(I5:I19),0,0),\"　店\")","v":"1　店"},{"$f":"SUM(J5:J19)","v":250},{"$f":"SUM(K5:K19)","v":0},null,{"$f":"CONCATENATE(FIXED(COUNTA(M5:M19),0,0),\"　店\")","v":"0　店"},{"$f":"SUM(N5:N19)","v":0},{"$f":"SUM(O5:O19)","v":0},null,{"$f":"CONCATENATE(FIXED(COUNTA(Q5:Q19),0,0),\"　店\")","v":"0　店"},{"$f":"SUM(R5:R19)","v":0},{"$f":"SUM(S5:S19)","v":0},null,{"$f":"CONCATENATE(FIXED(COUNTA(U5:U19),0,0),\"　店\")","v":"0　店"},{"$f":"SUM(V5:V19)","v":0},{"$f":"SUM(W5:W19)","v":0},{"$f":"SUM(X5:X19)","v":0}]
[]
["地区",null,null,"中日新聞",null,null,"枚数","朝日新聞",null,null,"枚数","毎日新聞",null,null,"枚数","読売新聞",null,null,"枚数",null,null,null,null,"備考"]
["知多郡",null,0,230460101010,"緒川NMS",2750,null,230460202010,"東浦",700,null,null,null,null,null,230460405001,"東浦石浜",100,null,null,null,null,null,0]
[{"$f":"SUM(G48,K48,O48,S48,W48)","v":0},{"$f":"SUM(F48,J48,N48,R48,V48)","v":28300},0,230460101020,"石浜NMS",1500,null,230460202020,"阿久比",450,null,null,null,"",null,230460405006,"武豊",200,null,null,null,null,null,0]
[null,null,0,230460101160,"藤江NMS",1600,null,230460202030,"武豊",700,null,null,null,"",null,230460405003,"豊浜",150,null,null,null,null,null,0]
[null,null,0,230460101050,"緒川新田NM",900,null,230460202070,"豊浜",100,null,null,null,"",null,230460405004,"日間賀",100,null,null,null,null,null,0]
[null,null,"*1",230460101060,"東ケ丘NMS",1200,null,null,null,"",null,null,null,"",null,null,null,"",null,null,null,null,null,0]
[null,null,0,230460101070,"阿久比NMS",2100,null,null,null,"",null,null,null,"",null,null,null,"",null,null,null,null,null,0]
[null,null,0,230460101080,"坂部NMS",2050,null,null,null,"",null,null,null,"",null,null,null,"",null,null,null,null,null,"*1阿久比町400枚含む"]
[null,null,0,230460101090,"武豊NMS",4850,null,null,null,"",null,null,null,"",null,null,null,""]
[null,null,0,230460101100,"富貴NMS",1200,null,null,null,"",null,null,null,"",null,null,null,"",null,null,null,null,null,"阿久比町全域の場合"]
[null,null,0,230460101110,"河和NAMS",2700,null,null,null,"",null,null,null,"",null,null,null,"",null,null,null,null,null,"東ヶ丘400枚をプラス"]
[null,null,0,230460101120,"野間NAMYS",1850,null,null,null,"",null,null,null,"",null,null,null,"",null,null,null,null,null,0]
[null,null,0,230460101150,"内海NAM",1050,null,null,null,"",null,null,null,"",null,null,null,"",null,null,null,null,null,0]
[null,null,0,230460101140,"豊浜NMS",900,null,null,null,"",null,null,null,"",null,null,null,"",null,null,null,null,null,0]
[null,null,"*2",230460101130,"師崎NAMS",1150,null,null,null,"",null,null,null,"",null,null,null,"",null,null,null,null,null,0]
[null,null,null,null,null,"",null,null,null,"",null,null,null,"",null,null,null,"",null,null,null,null,null,0]
[null,null,null,null,null,"",null,null,null,"",null,null,null,"",null,null,null,"",null,null,null,null,null,"*2日間賀島、篠島地区"]
[null,null,null,null,null,"",null,null,null,"",null,null,null,"",null,null,null,"",null,null,null,null,null,"を含む"]
[null,null,null,null,null,"",null,null,null,"",null,null,null,"",null,null,null,"",null,null,null,null,null,0]
[null,null,null,null,null,"",null,null,null,"",null,null,null,"",null,null,null,"",null,null,null,null,null,0]
[null,null,null,null,null,"",null,null,null,"",null,null,null,"",null,null,null,""]
[null,null,null,null,null,"",null,null,null,"",null,null,null,"",null,null,null,""]
[null,null,null,null,null,"",null,null,null,"",null,null,null,"",null,null,null,""]
[null,null,null,null,null,"",null,null,null,"",null,null,null,"",null,null,null,""]
[null,null,null,null,null,"",null,null,null,"",null,null,null,"",null,null,null,"",null,null,null,null,null,0]
[null,null,null,null,null,"",null,null,null,"",null,null,null,"",null,null,null,"",null,null,null,null,null,0]
[null,null,null,null,{"$f":"CONCATENATE(FIXED(COUNTA(E23:E47),0,0),\"　店\")","v":"14　店"},{"$f":"SUM(F23:F47)","v":25800},{"$f":"SUM(G23:G47)","v":0},null,{"$f":"CONCATENATE(FIXED(COUNTA(I23:I47),0,0),\"　店\")","v":"4　店"},{"$f":"SUM(J23:J47)","v":1950},{"$f":"SUM(K23:K47)","v":0},null,{"$f":"CONCATENATE(FIXED(COUNTA(M23:M47),0,0),\"　店\")","v":"0　店"},{"$f":"SUM(N23:N47)","v":0},{"$f":"SUM(O23:O47)","v":0},null,{"$f":"CONCATENATE(FIXED(COUNTA(Q23:Q47),0,0),\"　店\")","v":"4　店"},{"$f":"SUM(R23:R47)","v":550},{"$f":"SUM(S23:S47)","v":0},null,{"$f":"CONCATENATE(FIXED(COUNTA(U23:U47),0,0),\"　店\")","v":"0　店"},{"$f":"SUM(V23:V47)","v":0},{"$f":"SUM(W23:W47)","v":0},{"$f":"SUM(X23:X47)","v":0}]
["2025年後期（8月1日以降）",null,null,null,null,null,null,null,null,null,null,null,null,null,null,null,null,null,null,null,null,null,null,"㈱中日総合サービス"]

{"sheet":"三河地区","index":37,"n_rows":28,"n_cols":23,"rows_kept":28,"cut":false,"hidden":false,"merged":[[0,19,1,20],[26,19,26,20],[23,19,25,20],[22,19,22,20],[4,19,19,20],[3,19,3,20],[20,19,20,20],[0,1,1,4],[3,1,3,3],[3,4,3,6],[3,7,3,9],[1,15,1,17],[3,10,3,12],[22,16,22,18],[3,16,3,18],[0,5,0,6],[1,5,1,6],[3,13,3,15],[0,7,0,13],[0,15,0,17],[1,7,1,13],[22,1,22,3],[22,4,22,6],[22,7,22,9],[22,10,22,12],[22,13,22,15]]}
["折込日",null,null,null,null,"広告主",null,null,null,null,null,null,null,null,"サイズ",null,null,null,"取次店"]
[null,null,null,null,null,"チラシ銘柄",null,null,null,null,null,null,null,null,"部数",{"$f":"S27","v":0}]
["三河地区",null,null,null,null,null,null,null,null,null,null,null,null,null,null,null,null,null,null,null,"2025年後期（8月1日以降）"]
["地区","中日新聞",null,null,"朝日新聞",null,null,"毎日新聞",null,null,"読売新聞",null,null,null,null,null,"合　　計",null,null,"備考"]
["刈谷市",{"$f":"VALUE(TRIM(LEFT(刈谷市・高浜市・碧南市!E18,2)))","v":7},{"$f":"刈谷市・高浜市・碧南市!F18","v":19150},{"$f":"刈谷市・高浜市・碧南市!G18","v":0},{"$f":"VALUE(TRIM(LEFT(刈谷市・高浜市・碧南市!I18,2)))","v":3},{"$f":"刈谷市・高浜市・碧南市!J18","v":1700},{"$f":"刈谷市・高浜市・碧南市!K18","v":0},{"$f":"VALUE(TRIM(LEFT(刈谷市・高浜市・碧南市!M18,2)))","v":2},{"$f":"刈谷市・高浜市・碧南市!N18","v":750},{"$f":"刈谷市・高浜市・碧南市!O18","v":0},{"$f":"VALUE(TRIM(LEFT(刈谷市・高浜市・碧南市!Q18,2)))","v":4},{"$f":"刈谷市・高浜市・碧南市!R18","v":1800},{"$f":"刈谷市・高浜市・碧南市!S18","v":0},null,null,null,{"$f":"SUM(B5,E5,H5,K5,N5)","v":16},{"$f":"SUM(C5,F5,I5,L5,O5)","v":23400},{"$f":"IFERROR((SUM(D5,G5,J5,M5,P5)),\" \")","v":0}]
["高浜市",{"$f":"VALUE(TRIM(LEFT(刈谷市・高浜市・碧南市!E29,2)))","v":3},{"$f":"刈谷市・高浜市・碧南市!F29","v":5800},{"$f":"刈谷市・高浜市・碧南市!G29","v":0},{"$f":"VALUE(TRIM(LEFT(刈谷市・高浜市・碧南市!I29,2)))","v":1},{"$f":"刈谷市・高浜市・碧南市!J29","v":650},{"$f":"刈谷市・高浜市・碧南市!K29","v":0},{"$f":"VALUE(TRIM(LEFT(刈谷市・高浜市・碧南市!M29,2)))","v":0},{"$f":"刈谷市・高浜市・碧南市!N29","v":0},{"$f":"刈谷市・高浜市・碧南市!O29","v":0},{"$f":"VALUE(TRIM(LEFT(刈谷市・高浜市・碧南市!Q29,2)))","v":2},{"$f":"刈谷市・高浜市・碧南市!R29","v":400},{"$f":"刈谷市・高浜市・碧南市!S29","v":0},null,null,null,6,6850,0]
["碧南市",{"$f":"VALUE(TRIM(LEFT(刈谷市・高浜市・碧南市!E48,2)))","v":6},{"$f":"刈谷市・高浜市・碧南市!F48","v":11200},{"$f":"刈谷市・高浜市・碧南市!G48","v":0},{"$f":"VALUE(TRIM(LEFT(刈谷市・高浜市・碧南市!I48,2)))","v":0},{"$f":"刈谷市・高浜市・碧南市!J48","v":0},{"$f":"刈谷市・高浜市・碧南市!K48","v":0},{"$f":"VALUE(TRIM(LEFT(刈谷市・高浜市・碧南市!M48,2)))","v":0},{"$f":"刈谷市・高浜市・碧南市!N48","v":""},{"$f":"刈谷市・高浜市・碧南市!O48","v":0},{"$f":"VALUE(TRIM(LEFT(刈谷市・高浜市・碧南市!Q48,2)))","v":2},{"$f":"刈谷市・高浜市・碧南市!R48","v":550},{"$f":"刈谷市・高浜市・碧南市!S48","v":0},null,null,null,8,11750,0]
["安城市",{"$f":"VALUE(TRIM(LEFT(安城市・知立市!E26,2)))","v":15},{"$f":"安城市・知立市!F26","v":27250},{"$f":"安城市・知立市!G26","v":0},{"$f":"VALUE(TRIM(LEFT(安城市・知立市!I26,2)))","v":5},{"$f":"安城市・知立市!J26","v":2850},{"$f":"安城市・知立市!K26","v":0},{"$f":"VALUE(TRIM(LEFT(安城市・知立市!M26,2)))","v":0},{"$f":"安城市・知立市!N26","v":0},{"$f":"安城市・知立市!O26","v":0},{"$f":"VALUE(TRIM(LEFT(安城市・知立市!Q26,2)))","v":2},{"$f":"安城市・知立市!R26","v":1050},{"$f":"安城市・知立市!S26","v":0},null,null,null,22,31150,0]
["知立市",{"$f":"VALUE(TRIM(LEFT(安城市・知立市!E48,2)))","v":6},{"$f":"安城市・知立市!F48","v":9850},{"$f":"安城市・知立市!G48","v":0},{"$f":"VALUE(TRIM(LEFT(安城市・知立市!I48,2)))","v":1},{"$f":"安城市・知立市!J48","v":2100},{"$f":"安城市・知立市!K48","v":0},{"$f":"VALUE(TRIM(LEFT(安城市・知立市!M48,2)))","v":0},{"$f":"安城市・知立市!N48","v":0},{"$f":"安城市・知立市!O48","v":0},{"$f":"VALUE(TRIM(LEFT(安城市・知立市!Q48,2)))","v":2},{"$f":"安城市・知立市!R48","v":650},{"$f":"安城市・知立市!S48","v":0},null,null,null,9,12600,0]
["豊田市",{"$f":"VALUE(TRIM(LEFT(豊田市!E48,2)))","v":35},{"$f":"豊田市!F48","v":61800},{"$f":"豊田市!G48","v":0},{"$f":"VALUE(TRIM(LEFT(豊田市!I48,2)))","v":4},{"$f":"豊田市!J48","v":4900},{"$f":"豊田市!K48","v":0},{"$f":"VALUE(TRIM(LEFT(豊田市!M48,2)))","v":0},{"$f":"豊田市!N48","v":0},{"$f":"豊田市!O48","v":0},{"$f":"VALUE(TRIM(LEFT(豊田市!Q48,2)))","v":14},{"$f":"豊田市!R48","v":6100},{"$f":"豊田市!S48","v":0},null,null,null,53,72800,0]
["みよし市",{"$f":"VALUE(TRIM(LEFT(みよし市・岡崎市!E12,2)))","v":3},{"$f":"みよし市・岡崎市!F12","v":8800},{"$f":"みよし市・岡崎市!G12","v":0},{"$f":"VALUE(TRIM(LEFT(みよし市・岡崎市!I12,2)))","v":1},{"$f":"みよし市・岡崎市!J12","v":1350},{"$f":"みよし市・岡崎市!K12","v":0},{"$f":"VALUE(TRIM(LEFT(みよし市・岡崎市!M12,2)))","v":0},{"$f":"みよし市・岡崎市!N12","v":0},{"$f":"みよし市・岡崎市!O12","v":0},{"$f":"VALUE(TRIM(LEFT(みよし市・岡崎市!Q12,2)))","v":1},{"$f":"みよし市・岡崎市!R12","v":500},{"$f":"みよし市・岡崎市!S12","v":0},null,null,null,5,10650,0]
["岡崎市",{"$f":"VALUE(TRIM(LEFT(みよし市・岡崎市!E48,2)))","v":28},{"$f":"みよし市・岡崎市!F48","v":56100},{"$f":"みよし市・岡崎市!G48","v":0},{"$f":"VALUE(TRIM(LEFT(みよし市・岡崎市!I48,2)))","v":6},{"$f":"みよし市・岡崎市!J48","v":4600},{"$f":"みよし市・岡崎市!K48","v":0},{"$f":"VALUE(TRIM(LEFT(みよし市・岡崎市!M48,2)))","v":1},{"$f":"みよし市・岡崎市!N48","v":1300},{"$f":"みよし市・岡崎市!O48","v":0},{"$f":"VALUE(TRIM(LEFT(みよし市・岡崎市!Q48,2)))","v":5},{"$f":"みよし市・岡崎市!R48","v":2900},{"$f":"みよし市・岡崎市!S48","v":0},null,null,null,40,64900,0]
["額田郡",{"$f":"VALUE(TRIM(LEFT(額田郡・西尾市・蒲郡市!E14,2)))","v":1},{"$f":"額田郡・西尾市・蒲郡市!F14","v":5450},{"$f":"額田郡・西尾市・蒲郡市!G14","v":0},{"$f":"VALUE(TRIM(LEFT(額田郡・西尾市・蒲郡市!I14,2)))","v":0},{"$f":"額田郡・西尾市・蒲郡市!J14","v":0},{"$f":"額田郡・西尾市・蒲郡市!K14","v":0},{"$f":"VALUE(TRIM(LEFT(額田郡・西尾市・蒲郡市!M14,2)))","v":0},{"$f":"額田郡・西尾市・蒲郡市!N14","v":0},{"$f":"額田郡・西尾市・蒲郡市!O14","v":0},{"$f":"VALUE(TRIM(LEFT(額田郡・西尾市・蒲郡市!Q14,2)))","v":1},{"$f":"額田郡・西尾市・蒲郡市!R14","v":300},{"$f":"額田郡・西尾市・蒲郡市!S14","v":0},null,null,null,2,5750,0]
["西尾市",{"$f":"VALUE(TRIM(LEFT(額田郡・西尾市・蒲郡市!E33,2)))","v":9},{"$f":"額田郡・西尾市・蒲郡市!F33","v":26400},{"$f":"額田郡・西尾市・蒲郡市!G33","v":0},{"$f":"VALUE(TRIM(LEFT(額田郡・西尾市・蒲郡市!I33,2)))","v":3},{"$f":"額田郡・西尾市・蒲郡市!J33","v":1950},{"$f":"額田郡・西尾市・蒲郡市!K33","v":0},{"$f":"VALUE(TRIM(LEFT(額田郡・西尾市・蒲郡市!M33,2)))","v":0},{"$f":"額田郡・西尾市・蒲郡市!N33","v":0},{"$f":"額田郡・西尾市・蒲郡市!O33","v":0},{"$f":"VALUE(TRIM(LEFT(額田郡・西尾市・蒲郡市!Q33,2)))","v":5},{"$f":"額田郡・西尾市・蒲郡市!R33","v":2100},{"$f":"額田郡・西尾市・蒲郡市!S33","v":0},null,null,null,17,30450,0]
["蒲郡市",{"$f":"VALUE(TRIM(LEFT(額田郡・西尾市・蒲郡市!E48,2)))","v":2},{"$f":"額田郡・西尾市・蒲郡市!F48","v":13550},{"$f":"額田郡・西尾市・蒲郡市!G48","v":0},{"$f":"VALUE(TRIM(LEFT(額田郡・西尾市・蒲郡市!I48,2)))","v":1},{"$f":"額田郡・西尾市・蒲郡市!J48","v":1100},{"$f":"額田郡・西尾市・蒲郡市!K48","v":0},{"$f":"VALUE(TRIM(LEFT(額田郡・西尾市・蒲郡市!M48,2)))","v":0},{"$f":"額田郡・西尾市・蒲郡市!N48","v":0},{"$f":"額田郡・西尾市・蒲郡市!O48","v":0},{"$f":"VALUE(TRIM(LEFT(額田郡・西尾市・蒲郡市!Q48,2)))","v":3},{"$f":"額田郡・西尾市・蒲郡市!R48","v":450},{"$f":"額田郡・西尾市・蒲郡市!S48","v":0},null,null,null,6,15100,0]
["豊川市",{"$f":"VALUE(TRIM(LEFT(豊川市!E48,2)))","v":17},{"$f":"豊川市!F48","v":31650},{"$f":"豊川市!G48","v":0},{"$f":"VALUE(TRIM(LEFT(豊川市!I48,2)))","v":6},{"$f":"豊川市!J48","v":2750},{"$f":"豊川市!K48","v":0},{"$f":"VALUE(TRIM(LEFT(豊川市!M48,2)))","v":0},{"$f":"豊川市!N48","v":0},{"$f":"豊川市!O48","v":0},{"$f":"VALUE(TRIM(LEFT(豊川市!Q48,2)))","v":4},{"$f":"豊川市!R48","v":1000},{"$f":"豊川市!S48","v":0},null,null,null,27,35400,0]
["新城市",{"$f":"VALUE(TRIM(LEFT(新城市・北設楽郡!E26,2)))","v":8},{"$f":"新城市・北設楽郡!F26","v":9750},{"$f":"新城市・北設楽郡!G26","v":0},{"$f":"VALUE(TRIM(LEFT(新城市・北設楽郡!I26,2)))","v":0},{"$f":"新城市・北設楽郡!J26","v":0},{"$f":"新城市・北設楽郡!K26","v":0},{"$f":"VALUE(TRIM(LEFT(新城市・北設楽郡!M26,2)))","v":0},{"$f":"新城市・北設楽郡!N26","v":0},{"$f":"新城市・北設楽郡!O26","v":0},{"$f":"VALUE(TRIM(LEFT(新城市・北設楽郡!Q26,2)))","v":0},{"$f":"新城市・北設楽郡!R26","v":0},{"$f":"新城市・北設楽郡!S26","v":0},null,null,null,8,9750,0]
["北設楽郡",{"$f":"VALUE(TRIM(LEFT(新城市・北設楽郡!E48,2)))","v":6},{"$f":"新城市・北設楽郡!F48","v":2450},{"$f":"新城市・北設楽郡!G48","v":0},{"$f":"VALUE(TRIM(LEFT(新城市・北設楽郡!I48,2)))","v":0},{"$f":"新城市・北設楽郡!J48","v":0},{"$f":"新城市・北設楽郡!K48","v":0},{"$f":"VALUE(TRIM(LEFT(新城市・北設楽郡!M48,2)))","v":0},{"$f":"新城市・北設楽郡!N48","v":0},{"$f":"新城市・北設楽郡!O48","v":0},{"$f":"VALUE(TRIM(LEFT(新城市・北設楽郡!Q48,2)))","v":1},{"$f":"新城市・北設楽郡!R48","v":200},{"$f":"新城市・北設楽郡!S48","v":0},null,null,null,7,2650,0]
["豊橋市",{"$f":"VALUE(TRIM(LEFT(豊橋市!E48,2)))","v":28},{"$f":"豊橋市!F48","v":56700},{"$f":"豊橋市!G48","v":0},{"$f":"VALUE(TRIM(LEFT(豊橋市!I48,2)))","v":8},{"$f":"豊橋市!J48","v":6150},{"$f":"豊橋市!K48","v":0},{"$f":"VALUE(TRIM(LEFT(豊橋市!M48,2)))","v":0},{"$f":"豊橋市!N48","v":0},{"$f":"豊橋市!O48","v":0},{"$f":"VALUE(TRIM(LEFT(豊橋市!Q48,2)))","v":1},{"$f":"豊橋市!R48","v":2150},{"$f":"豊橋市!S48","v":0},null,null,null,37,65000,0]
["田原市",{"$f":"VALUE(TRIM(LEFT(田原市!E48,2)))","v":4},{"$f":"田原市!F48","v":10650},{"$f":"田原市!G48","v":0},{"$f":"VALUE(TRIM(LEFT(田原市!I48,2)))","v":0},{"$f":"田原市!J48","v":0},{"$f":"田原市!K48","v":0},{"$f":"VALUE(TRIM(LEFT(田原市!M48,2)))","v":0},{"$f":"田原市!N48","v":0},{"$f":"田原市!O48","v":0},{"$f":"VALUE(TRIM(LEFT(田原市!Q48,2)))","v":1},{"$f":"田原市!R48","v":450},{"$f":"田原市!S48","v":0},null,null,null,5,11100,0]
["合計",{"$f":"SUM(B5:B20)","v":178},356550,0,39,30100,0,3,2050,0,48,20600,0,null,null,null,{"$f":"SUM(Q5:Q20)","v":268},{"$f":"SUM(R5:R20)","v":409300},{"$f":"SUM(S5:S20)","v":0}]
[]
["愛知県合計","中日新聞",null,null,"朝日新聞",null,null,"毎日新聞",null,null,"読売新聞",null,null,null,null,null,"合　　計",null,null,"備　　考"]
["名古屋市",{"$f":"名古屋市!B24","v":186},{"$f":"名古屋市!C24","v":345450},{"$f":"名古屋市!D24","v":0},{"$f":"名古屋市!E24","v":63},{"$f":"名古屋市!F24","v":38450},{"$f":"名古屋市!G24","v":0},{"$f":"名古屋市!H24","v":12},{"$f":"名古屋市!I24","v":4300},{"$f":"名古屋市!J24","v":0},{"$f":"名古屋市!K24","v":64},{"$f":"名古屋市!L24","v":30800},{"$f":"名古屋市!M24","v":0},{"$f":"名古屋市!N24","v":0},{"$f":"名古屋市!O24","v":0},{"$f":"名古屋市!P24","v":0},{"$f":"名古屋市!Q24","v":325},{"$f":"名古屋市!R24","v":419000},{"$f":"W24","v":0},null,null,null,{"$f":"IFERROR(名古屋市!S24,\" \")","v":0}]
["尾張地区",{"$f":"尾張地区!B37","v":231},{"$f":"尾張地区!C37","v":451300},{"$f":"尾張地区!D37","v":0},{"$f":"尾張地区!E37","v":69},{"$f":"尾張地区!F37","v":44500},{"$f":"尾張地区!G37","v":0},{"$f":"尾張地区!H37","v":10},{"$f":"尾張地区!I37","v":3950},{"$f":"尾張地区!J37","v":0},{"$f":"尾張地区!K37","v":54},{"$f":"尾張地区!L37","v":25050},{"$f":"尾張地区!M37","v":0},{"$f":"尾張地区!N37","v":0},{"$f":"尾張地区!O37","v":0},{"$f":"尾張地区!P37","v":0},{"$f":"尾張地区!Q37","v":364},{"$f":"尾張地区!R37","v":524800},{"$f":"W25","v":0},null,null,null,{"$f":"IFERROR(尾張地区!S37,\" \")","v":0}]
["三河地区",{"$f":"B21","v":178},{"$f":"C21","v":356550},0,39,30100,0,3,2050,0,48,20600,0,{"$f":"N21","v":0},{"$f":"O21","v":0},{"$f":"P21","v":0},268,409300,{"$f":"S21","v":0}]
["合計",{"$f":"SUM(B24:B26)","v":595},{"$f":"SUM(C24:C26)","v":1153300},{"$f":"SUM(D24:D26)","v":0},171,113050,0,25,10300,0,{"$f":"SUM(K24:K26)","v":166},76450,0,0,0,0,957,1353100,0]
[null,null,null,null,null,null,null,null,null,null,null,null,null,null,null,null,null,null,null,null,"㈱中日総合サービス"]

{"sheet":"地図（三河地区）","index":38,"n_rows":0,"n_cols":0,"rows_kept":0,"cut":false,"hidden":false,"merged":[]}

{"sheet":"刈谷市・高浜市・碧南市","index":39,"n_rows":49,"n_cols":24,"rows_kept":49,"cut":false,"hidden":false,"merged":[[0,1,1,4],[0,17,0,20],[0,22,1,23],[1,17,1,20],[0,5,0,6],[0,8,0,14],[1,5,1,6],[1,8,1,14],[2,9,2,10],[3,0,3,1],[3,3,3,5],[3,7,3,9],[3,11,3,13],[30,19,30,21],[3,19,3,21],[19,0,19,1],[19,3,19,5],[19,7,19,9],[19,11,19,13],[19,15,19,17],[19,19,19,21],[3,15,3,17],[30,0,30,1],[30,3,30,5],[30,7,30,9],[30,11,30,13],[30,15,30,17]]}
["折込日",null,null,null,null,"広告主",null,null,null,null,null,null,null,null,null,null,"サイズ",null,null,null,null,"取次店"]
[null,null,null,null,null,"チラシ銘柄",null,null,null,null,null,null,null,null,null,null,"部数",{"$f":"A6+A22+A33","v":0}]
[]
["地区",null,null,"中日新聞",null,null,"枚数","朝日新聞",null,null,"枚数","毎日新聞",null,null,"枚数","読売新聞",null,null,"枚数",null,null,null,null,"備考"]
["刈谷市",null,0,230615101010,"刈谷南部N",3400,null,230615202020,"刈谷",600,null,230615303010,"刈谷",550,null,230615405001,"刈谷南部",450,null,null,null,null,null,"刈谷市全域の場合"]
[{"$f":"SUM(G18,K18,O18,S18,W18)","v":0},{"$f":"SUM(F18,J18,N18,R18,V18)","v":23400},0,230615101020,"刈谷北部NS",3400,null,230615202030,"東刈谷",850,null,230615303020,"刈谷北部",200,null,230615405002,"愛教大前",250,null,null,null,null,null,"安城市半城土・高棚1,050枚"]
[null,null,0,230615101030,"刈谷恩田NM",1250,null,230615202040,"みよし刈谷",250,null,null,null,"",null,230615405003,"刈谷",400,null,null,null,null,null,"知立市知立（前島）200枚"]
[null,null,0,230615101040,"小垣江NM",2350,null,null,null,"",null,null,null,"",null,230615405004,"東刈谷",700,null,null,null,null,null,"をプラス"]
[null,null,0,230615101060,"東刈谷NMS",3550,null,null,null,"",null,null,null,"",null,null,null,"",null,null,null,null,null,0]
[null,null,0,230615101070,"富士松NMS",3750,null,null,null,"",null,null,null,"",null,null,null,"",null,null,null,null,null,0]
[null,null,0,230615101080,"刈谷愛教大前NMS",1450,null,null,null,"",null,null,null,"",null,null,null,"",null,null,null,null,null,0]
[null,null,0,null,null,"",null,null,null,"",null,null,null,"",null,null,null,"",null,null,null,null,null,0]
[null,null,null,null,null,"",null,null,null,"",null,null,null,"",null,null,null,"",null,null,null,null,null,0]
[null,null,null,null,null,"",null,null,null,"",null,null,null,"",null,null,null,"",null,null,null,null,null,0]
[null,null,null,null,null,"",null,null,null,"",null,null,null,"",null,null,null,"",null,null,null,null,null,0]
[null,null,null,null,null,"",null,null,null,"",null,null,null,"",null,null,null,"",null,null,null,null,null,0]
[null,null,null,null,null,"",null,null,null,"",null,null,null,"",null,null,null,"",null,null,null,null,null,0]
[null,null,null,null,{"$f":"CONCATENATE(FIXED(COUNTA(E5:E17),0,0),\"　店\")","v":"7　店"},{"$f":"SUM(F5:F17)","v":19150},{"$f":"SUM(G5:G17)","v":0},null,{"$f":"CONCATENATE(FIXED(COUNTA(I5:I17),0,0),\"　店\")","v":"3　店"},{"$f":"SUM(J5:J17)","v":1700},{"$f":"SUM(K5:K17)","v":0},null,{"$f":"CONCATENATE(FIXED(COUNTA(M5:M17),0,0),\"　店\")","v":"2　店"},{"$f":"SUM(N5:N17)","v":750},{"$f":"SUM(O5:O17)","v":0},null,{"$f":"CONCATENATE(FIXED(COUNTA(Q5:Q17),0,0),\"　店\")","v":"4　店"},{"$f":"SUM(R5:R17)","v":1800},{"$f":"SUM(S5:S17)","v":0},null,{"$f":"CONCATENATE(FIXED(COUNTA(U5:U17),0,0),\"　店\")","v":"0　店"},{"$f":"SUM(V5:V17)","v":0},{"$f":"SUM(W5:W17)","v":0},{"$f":"SUM(X5:X17)","v":0}]
[]
["地区",null,null,"中日新聞",null,null,"枚数","朝日新聞",null,null,"枚数","毎日新聞",null,null,"枚数","読売新聞",null,null,"枚数",null,null,null,null,"備考"]
["高浜市",null,0,230620101040,"吉浜NM",1750,null,230620202010,"高浜",650,null,"",null,"",null,230620405001,"高浜",250,null,null,null,null,null,0]
[{"$f":"SUM(G29,K29,O29,S29,W29)","v":0},{"$f":"SUM(F29,J29,N29,R29,V29)","v":6850},0,230620101030,"吉浜南部NM",2200,null,null,null,"",null,null,null,"",null,230620405002,"高棚",150,null,null,null,null,null,0]
[null,null,0,230620101010,"高浜NMS",1850,null,null,null,"",null,null,null,"",null,null,null,"",null,null,null,null,null,0]
[null,null,null,null,null,"",null,null,null,"",null,null,null,"",null,null,null,"",null,null,null,null,null,0]
[null,null,null,null,null,"",null,null,null,"",null,null,null,"",null,null,null,""]
[null,null,null,null,null,"",null,null,null,"",null,null,null,"",null,null,null,""]
[null,null,null,null,null,"",null,null,null,"",null,null,null,"",null,null,null,""]
[null,null,null,null,null,"",null,null,null,"",null,null,null,"",null,null,null,""]
[null,null,null,null,{"$f":"CONCATENATE(FIXED(COUNTA(E21:E28),0,0),\"　店\")","v":"3　店"},{"$f":"SUM(F21:F28)","v":5800},{"$f":"SUM(G21:G28)","v":0},null,{"$f":"CONCATENATE(FIXED(COUNTA(I21:I28),0,0),\"　店\")","v":"1　店"},{"$f":"SUM(J21:J28)","v":650},{"$f":"SUM(K21:K28)","v":0},null,{"$f":"CONCATENATE(FIXED(COUNTA(M21:M28),0,0),\"　店\")","v":"0　店"},{"$f":"SUM(N21:N28)","v":0},{"$f":"SUM(O21:O28)","v":0},null,{"$f":"CONCATENATE(FIXED(COUNTA(Q21:Q28),0,0),\"　店\")","v":"2　店"},{"$f":"SUM(R21:R28)","v":400},{"$f":"SUM(S21:S28)","v":0},null,{"$f":"CONCATENATE(FIXED(COUNTA(U21:U28),0,0),\"　店\")","v":"0　店"},{"$f":"SUM(V21:V28)","v":0},{"$f":"SUM(W21:W28)","v":0},{"$f":"SUM(X21:X28)","v":0}]
[]
["地区",null,null,"中日新聞",null,null,"枚数","朝日新聞",null,null,"枚数","毎日新聞",null,null,"枚数","読売新聞",null,null,"枚数",null,null,null,null,"備考"]
["碧南市",null,0,230625101090,"碧南西端NAM",1150,null,null,null,"",null,null,null,"",null,230625405001,"碧南中央",250,null,null,null,null,null,0]
[{"$f":"SUM(G48,K48,O48,S48,W48)","v":0},{"$f":"SUM(F48,J48,N48,R48,V48)","v":11750},0,230625101080,"碧南新川NAMS",2400,null,null,null,"",null,null,null,"",null,230625405002,"碧南北部",300,null,null,null,null,null,0]
[null,null,0,230625101060,"鷲塚NAM",1900,null,null,null,"",null,null,null,"",null,null,null,"",null,null,null,null,null,0]
[null,null,0,230625101010,"棚尾NAMS",1850,null,null,null,"",null,null,null,"",null,null,null,"",null,null,null,null,null,0]
[null,null,0,230625101030,"大浜NAMS",2400,null,null,null,"",null,null,null,"",null,null,null,"",null,null,null,null,null,0]
[null,null,0,230625101020,"大浜南NAMS",1500,null,null,null,"",null,null,null,"",null,null,null,"",null,null,null,null,null,0]
[null,null,null,null,null,"",null,null,null,"",null,null,null,"",null,null,null,"",null,null,null,null,null,0]
[null,null,null,null,null,"",null,null,null,"",null,null,null,"",null,null,null,"",null,null,null,null,null,0]
[null,null,null,null,null,"",null,null,null,"",null,null,null,"",null,null,null,""]
[null,null,null,null,null,"",null,null,null,"",null,null,null,"",null,null,null,""]
[null,null,null,null,null,"",null,null,null,"",null,null,null,"",null,null,null,""]
[null,null,null,null,null,"",null,null,null,"",null,null,null,"",null,null,null,""]
[null,null,null,null,null,"",null,null,null,"",null,null,null,"",null,null,null,""]
[null,null,null,null,null,"",null,null,null,"",null,null,null,"",null,null,null,""]
[null,null,null,null,null,"",null,null,null,"",null,null,null,"",null,null,null,""]
[null,null,null,null,null,"",null,null,null,"",null,null,null,"",null,null,null,""]
[null,null,null,null,{"$f":"CONCATENATE(FIXED(COUNTA(E32:E47),0,0),\"　店\")","v":"6　店"},{"$f":"SUM(F32:F47)","v":11200},{"$f":"SUM(G32:G47)","v":0},null,{"$f":"CONCATENATE(FIXED(COUNTA(I32:I47),0,0),\"　店\")","v":"0　店"},{"$f":"SUM(J32:J47)","v":0},{"$f":"SUM(K32:K47)","v":0},null,{"$f":"CONCATENATE(FIXED(COUNTA(M32:M47),0,0),\"　店\")","v":"0　店"},{"$f":"IFERROR(VLOOKUP(L48,[1]全紙!$D$1:$K$65536,8,0),\"\")","v":""},{"$f":"SUM(O32:O47)","v":0},null,{"$f":"CONCATENATE(FIXED(COUNTA(Q32:Q47),0,0),\"　店\")","v":"2　店"},{"$f":"SUM(R32:R47)","v":550},{"$f":"SUM(S32:S47)","v":0},null,{"$f":"CONCATENATE(FIXED(COUNTA(U32:U47),0,0),\"　店\")","v":"0　店"},{"$f":"SUM(V32:V47)","v":0},{"$f":"SUM(W32:W47)","v":0},{"$f":"SUM(X32:X47)","v":0}]
["2025年後期（8月1日以降）",null,null,null,null,null,null,null,null,null,null,null,null,null,null,null,null,null,null,null,null,null,null,"㈱中日総合サービス"]

{"sheet":"安城市・知立市","index":40,"n_rows":49,"n_cols":24,"rows_kept":49,"cut":false,"hidden":false,"merged":[[0,1,1,4],[0,17,0,20],[0,22,1,23],[1,17,1,20],[0,5,0,6],[0,8,0,14],[1,5,1,6],[1,8,1,14],[2,9,2,10],[3,0,3,1],[3,3,3,5],[3,7,3,9],[3,11,3,13],[3,19,3,21],[27,0,27,1],[27,3,27,5],[27,7,27,9],[27,11,27,13],[27,15,27,17],[27,19,27,21],[3,15,3,17]]}
["折込日",null,null,null,null,"広告主",null,null,null,null,null,null,null,null,null,null,"サイズ",null,null,null,null,"取次店"]
[null,null,null,null,null,"チラシ銘柄",null,null,null,null,null,null,null,null,null,null,"部数",{"$f":"A6+A30","v":0}]
[]
["地区",null,null,"中日新聞",null,null,"枚数","朝日新聞",null,null,"枚数","毎日新聞",null,null,"枚数","読売新聞",null,null,"枚数",null,null,null,null,"備考"]
["安城市",null,0,230635101010,"安城(伊藤)NM",1850,null,230635202010,"安城",1150,null,null,null,"",null,230635405001,"安城",550,null,null,null,null,null,0]
[{"$f":"SUM(G26,K26,O26,S26,W26)","v":0},{"$f":"SUM(F26,J26,N26,R26,V26)","v":31150},0,230635101070,"南安城NM",1050,null,230635202020,"安城南部",350,null,null,null,"",null,230635405002,"東安城",500,null,null,null,null,null,0]
[null,null,0,230635101150,"安祥公園前NM",1600,null,230635202030,"安城西部",800,null,null,null,"",null,null,null,"",null,null,null,null,null,0]
[null,null,0,230635101030,"三河安城NM",1500,null,230635202040,"安城北部",250,null,null,null,"",null,null,null,"",null,null,null,null,null,0]
[null,null,0,230635101040,"安城西部NMS",1600,null,230635202050,"桜井",300,null,null,null,"",null,null,null,"",null,null,null,null,null,0]
[null,null,0,230635101050,"安城南部NM",1500,null,null,null,"",null,null,null,"",null,null,null,"",null,null,null,null,null,0]
[null,null,0,230635101080,"今村NMS",4050,null,null,null,"",null,null,null,"",null,null,null,"",null,null,null,null,null,0]
[null,null,0,230635101090,"安城今池町NMS",1850,null,null,null,"",null,null,null,"",null,null,null,"",null,null,null,null,null,0]
[null,null,0,230635101100,"石橋団地NMS",1450,null,null,null,"",null,null,null,"",null,null,null,"",null,null,null,null,null,0]
[null,null,0,230635101120,"安城桜井NM",2350,null,null,null,"",null,null,null,"",null,null,null,"",null,null,null,null,null,0]
[null,null,0,230635101020,"安城北部NM",2200,null,null,null,"",null,null,null,"",null,null,null,"",null,null,null,null,null,0]
[null,null,0,230635101110,"二本木NMS",1300,null,null,null,"",null,null,null,"",null,null,null,"",null,null,null,null,null,0]
[null,null,0,230635101140,"安城明祥NM",1250,null,null,null,"",null,null,null,"",null,null,null,"",null,null,null,null,null,0]
[null,null,"*1",230635101160,"半城土・高棚NM",1850,null,null,null,"",null,null,null,"",null,null,null,"",null,null,null,null,null,"*1刈谷市1,050枚含む"]
[null,null,null,230635101170,"南桜井NM",1850,null,null,null,"",null,null,null,"",null,null,null,"",null,null,null,null,null,0]
[null,null,null,null,null,"",null,null,null,"",null,null,null,"",null,null,null,""]
[null,null,null,null,null,"",null,null,null,"",null,null,null,"",null,null,null,""]
[null,null,null,null,null,"",null,null,null,"",null,null,null,"",null,null,null,""]
[null,null,null,null,null,"",null,null,null,"",null,null,null,"",null,null,null,""]
[null,null,null,null,null,"",null,null,null,"",null,null,null,"",null,null,null,""]
[null,null,null,null,null,"",null,null,null,"",null,null,null,"",null,null,null,""]
[null,null,null,null,{"$f":"CONCATENATE(FIXED(COUNTA(E5:E25),0,0),\"　店\")","v":"15　店"},{"$f":"SUM(F5:F25)","v":27250},{"$f":"SUM(G5:G25)","v":0},null,{"$f":"CONCATENATE(FIXED(COUNTA(I5:I25),0,0),\"　店\")","v":"5　店"},{"$f":"SUM(J5:J25)","v":2850},{"$f":"SUM(K5:K25)","v":0},null,{"$f":"CONCATENATE(FIXED(COUNTA(M5:M25),0,0),\"　店\")","v":"0　店"},{"$f":"SUM(N5:N25)","v":0},{"$f":"SUM(O5:O25)","v":0},null,{"$f":"CONCATENATE(FIXED(COUNTA(Q5:Q25),0,0),\"　店\")","v":"2　店"},{"$f":"SUM(R5:R25)","v":1050},{"$f":"SUM(S5:S25)","v":0},null,{"$f":"CONCATENATE(FIXED(COUNTA(U5:U25),0,0),\"　店\")","v":"0　店"},{"$f":"SUM(V5:V25)","v":0},{"$f":"SUM(W5:W25)","v":0},{"$f":"SUM(X5:X25)","v":0}]
[]
["地区",null,null,"中日新聞",null,null,"枚数","朝日新聞",null,null,"枚数","毎日新聞",null,null,"枚数","読売新聞",null,null,"枚数",null,null,null,null,"備考"]
["知立市",null,"*1",230610101010,"知立(前嶋)NMS",3850,null,230610202010,"知立刈谷",2100,null,null,null,"",null,230610405001,"知立",550,null,null,null,null,null,"*1豊田市650枚"]
[{"$f":"SUM(G48,K48,O48,S48,W48)","v":0},{"$f":"SUM(F48,J48,N48,R48,V48)","v":12600},0,230610101020,"知立西部NMS",1600,null,null,null,"",null,null,null,"",null,230610405002,"知立北",100,null,null,null,null,null,"    刈谷市200枚含む"]
[null,null,0,230610101030,"知立南部NMS",1550,null,null,null,"",null,null,null,"",null,null,null,"",null,null,null,null,null,0]
[null,null,0,230610101060,"知立東部NMS",1150,null,null,null,"",null,null,null,"",null,null,null,"",null,null,null,null,null,0]
[null,null,0,230610101040,"知立南陽NMS",800,null,null,null,"",null,null,null,"",null,null,null,"",null,null,null,null,null,0]
[null,null,0,230610101050,"知立谷田NMS",900,null,null,null,"",null,null,null,"",null,null,null,"",null,null,null,null,null,0]
[null,null,null,null,null,"",null,null,null,"",null,null,null,"",null,null,null,""]
[null,null,null,null,null,"",null,null,null,"",null,null,null,"",null,null,null,""]
[null,null,null,null,null,"",null,null,null,"",null,null,null,"",null,null,null,""]
[null,null,null,null,null,"",null,null,null,"",null,null,null,"",null,null,null,""]
[null,null,null,null,null,"",null,null,null,"",null,null,null,"",null,null,null,""]
[null,null,null,null,null,"",null,null,null,"",null,null,null,"",null,null,null,""]
[null,null,null,null,null,"",null,null,null,"",null,null,null,"",null,null,null,""]
[null,null,null,null,null,"",null,null,null,"",null,null,null,"",null,null,null,""]
[null,null,null,null,null,"",null,null,null,"",null,null,null,"",null,null,null,""]
[null,null,null,null,null,"",null,null,null,"",null,null,null,"",null,null,null,""]
[null,null,null,null,null,"",null,null,null,"",null,null,null,"",null,null,null,""]
[null,null,null,null,null,"",null,null,null,"",null,null,null,"",null,null,null,""]
[null,null,null,null,null,"",null,null,null,"",null,null,null,"",null,null,null,""]
[null,null,null,null,{"$f":"CONCATENATE(FIXED(COUNTA(E29:E47),0,0),\"　店\")","v":"6　店"},{"$f":"SUM(F29:F47)","v":9850},{"$f":"SUM(G29:G47)","v":0},null,{"$f":"CONCATENATE(FIXED(COUNTA(I29:I47),0,0),\"　店\")","v":"1　店"},{"$f":"SUM(J29:J47)","v":2100},{"$f":"SUM(K29:K47)","v":0},null,{"$f":"CONCATENATE(FIXED(COUNTA(M29:M47),0,0),\"　店\")","v":"0　店"},{"$f":"SUM(N29:N47)","v":0},{"$f":"SUM(O29:O47)","v":0},null,{"$f":"CONCATENATE(FIXED(COUNTA(Q29:Q47),0,0),\"　店\")","v":"2　店"},{"$f":"SUM(R29:R47)","v":650},{"$f":"SUM(S29:S47)","v":0},null,{"$f":"CONCATENATE(FIXED(COUNTA(U29:U47),0,0),\"　店\")","v":"0　店"},{"$f":"SUM(V29:V47)","v":0},{"$f":"SUM(W29:W47)","v":0},{"$f":"SUM(X29:X47)","v":0}]
["2025年後期（8月1日以降）",null,null,null,null,null,null,null,null,null,null,null,null,null,null,null,null,null,null,null,null,null,null,"㈱中日総合サービス"]

{"sheet":"豊田市","index":41,"n_rows":49,"n_cols":24,"rows_kept":49,"cut":false,"hidden":false,"merged":[[0,1,1,4],[0,17,0,20],[0,22,1,23],[1,17,1,20],[0,5,0,6],[0,8,0,14],[1,5,1,6],[1,8,1,14],[3,19,3,21],[2,9,2,10],[3,0,3,1],[3,3,3,5],[3,7,3,9],[3,11,3,13],[3,15,3,17]]}
["折込日",null,null,null,null,"広告主",null,null,null,null,null,null,null,null,null,null,"サイズ",null,null,null,null,"取次店"]
[null,null,null,null,null,"チラシ銘柄",null,null,null,null,null,null,null,null,null,null,"部数",{"$f":"A6","v":0}]
[]
["地区",null,null,"中日新聞",null,null,"枚数","朝日新聞",null,null,"枚数","毎日新聞",null,null,"枚数","読売新聞",null,null,"枚数",null,null,null,null,"備考"]
["豊田市",null,0,230605101010,"挙母中央NM",2200,null,230605202020,"豊田中央",2150,null,null,null,"",null,230605405001,"永覚",400,null,null,null,null,null,"豊田市全域の場合"]
[{"$f":"SUM(G48,K48,O48,S48,W48)","v":0},{"$f":"SUM(F48,J48,N48,R48,V48)","v":72800},0,230605101030,"豊田駅西NMS",1900,null,230605202040,"豊田東",1650,null,null,null,"",null,230605405002,"豊田東部",650,null,null,null,null,null,"知立市知立(前島)"]
[null,null,0,230605101270,"豊田元町NMS",1000,null,230605202050,"豊田南",750,null,null,null,"",null,230605405003,"豊田北",350,null,null,null,null,null,"650枚"]
[null,null,0,230605101230,"上挙母NMS",1350,null,230605202130,"豊田北",350,null,null,null,"",null,230605405004,"豊田挙母",600,null,null,null,null,null,"岡崎市岩津100枚"]
[null,null,0,230605101050,"挙母栄町NMS",2400,null,null,null,"",null,null,null,"",null,230605405005,"豊田西",600,null,null,null,null,null,"をプラス"]
[null,null,0,230605101200,"挙母小清水NM",1800,null,null,null,"",null,null,null,"",null,230605405006,"上郷",200,null,null,null,null,null,0]
[null,null,0,230605101220,"豊田美山NM",1500,null,null,null,"",null,null,null,"",null,230605405007,"豊田南",300,null,null,null,null,null,0]
[null,null,0,230605101070,"土橋NMS",2350,null,null,null,"",null,null,null,"",null,230605405008,"高岡",200,null,null,null,null,null,0]
[null,null,0,230605101240,"豊田スタジアムNM",1350,null,null,null,"",null,null,null,"",null,230605405009,"土橋",850,null,null,null,null,null,0]
[null,null,0,230605101020,"挙母東部NM",3900,null,null,null,"",null,null,null,"",null,230605405010,"土橋山之手",200,null,null,null,null,null,0]
[null,null,0,230605101440,"豊田市木NM",1700,null,null,null,"",null,null,null,"",null,230605405011,"豊田",400,null,null,null,null,null,0]
[null,null,0,230605101450,"豊田東山NM",1450,null,null,null,"",null,null,null,"",null,230605405012,"豊田前山",300,null,null,null,null,null,0]
[null,null,0,230605101060,"豊田（柘植）NMS",4800,null,null,null,"",null,null,null,"",null,230605405013,"豊田梅坪",600,null,null,null,null,null,0]
[null,null,0,230605101250,"豊田大林NM",1550,null,null,null,"",null,null,null,"",null,230605405014,"足助",450,null,null,null,null,null,0]
[null,null,0,230605101120,"上郷NMS",1350,null,null,null,"",null,null,null,"",null,null,null,"",null,null,null,null,null,0]
[null,null,0,230605101130,"上郷北部NM",1500,null,null,null,"",null,null,null,"",null,null,null,""]
[null,null,0,230605101140,"上郷畝部NMS",1400,null,null,null,"",null,null,null,"",null,null,null,"",null,null,null,null,null,0]
[null,null,0,230605101110,"三河高岡NAMS",3050,null,null,null,"",null,null,null,"",null,null,null,"",null,null,null,null,null,0]
[null,null,0,230605101101,"若林西NMS",1750,null,null,null,"",null,null,null,"",null,null,null,"",null,null,null,null,null,0]
[null,null,0,230605101090,"竹村NM",1500,null,null,null,"",null,null,null,"",null,null,null,"",null,null,null,null,null,0]
[null,null,0,230605101100,"若林NMS",2800,null,null,null,"",null,null,null,"",null,null,null,"",null,null,null,null,null,0]
[null,null,0,230605101300,"平戸橋NMS",1600,null,null,null,"",null,null,null,"",null,null,null,"",null,null,null,null,null,0]
[null,null,0,230605101150,"浄水四郷NMS",4850,null,null,null,"",null,null,null,"",null,null,null,"",null,null,null,null,null,0]
[null,null,0,230605101160,"豊田乙部ヶ丘NM",1050,null,null,null,"",null,null,null,"",null,null,null,"",null,null,null,null,null,0]
[null,null,0,230605101210,"保見NMS",1400,null,null,null,"",null,null,null,"",null,null,null,"",null,null,null,null,null,0]
[null,null,0,230605101170,"西中金NAMS",1600,null,null,null,"",null,null,null,"",null,null,null,"",null,null,null,null,null,0]
[null,null,0,230605101360,"藤岡NAMS",1600,null,null,null,"",null,null,null,"",null,null,null,"",null,null,null,null,null,0]
[null,null,0,230605101370,"藤岡北NAMS",1450,null,null,null,"",null,null,null,"",null,null,null,"",null,null,null,null,null,0]
[null,null,0,230605101380,"小原NAM",750,null,null,null,"",null,null,null,"",null,null,null,"",null,null,null,null,null,0]
[null,null,0,230605101180,"九久平NAMS",1900,null,null,null,"",null,null,null,"",null,null,null,"",null,null,null,null,null,0]
[null,null,0,230605101330,"足助NAMS",950,null,null,null,"",null,null,null,"",null,null,null,"",null,null,null,null,null,0]
[null,null,0,230605101390,"旭NAM",400,null,null,null,"",null,null,null,"",null,null,null,"",null,null,null,null,null,0]
[null,null,0,230605101400,"小原別口AM",200,null,null,null,"",null,null,null,"",null,null,null,"",null,null,null,null,null,0]
[null,null,0,230661101010,"稲武NAMS",550,null,null,null,"",null,null,null,"",null,null,null,"",null,null,null,null,null,0]
[null,null,0,230605101340,"豊田下山NAM",900,null,null,null,"",null,null,null,"",null,null,null,"",null,null,null,null,null,0]
[null,null,null,null,null,"",null,null,null,"",null,null,null,"",null,null,null,""]
[null,null,null,null,null,"",null,null,null,"",null,null,null,"",null,null,null,""]
[null,null,null,null,null,"",null,null,null,"",null,null,null,"",null,null,null,""]
[null,null,null,null,null,"",null,null,null,"",null,null,null,"",null,null,null,"",null,null,null,null,null,0]
[null,null,null,null,null,"",null,null,null,"",null,null,null,"",null,null,null,"",null,null,null,null,null,0]
[null,null,null,null,null,"",null,null,null,"",null,null,null,"",null,null,null,""]
[null,null,null,null,null,"",null,null,null,"",null,null,null,"",null,null,null,""]
[null,null,null,null,null,"",null,null,null,"",null,null,null,"",null,null,null,""]
[null,null,null,null,{"$f":"CONCATENATE(FIXED(COUNTA(E5:E47),0,0),\"　店\")","v":"35　店"},{"$f":"SUM(F5:F47)","v":61800},{"$f":"SUM(G5:G47)","v":0},null,{"$f":"CONCATENATE(FIXED(COUNTA(I5:I47),0,0),\"　店\")","v":"4　店"},{"$f":"SUM(J5:J47)","v":4900},{"$f":"SUM(K5:K47)","v":0},null,{"$f":"CONCATENATE(FIXED(COUNTA(M5:M47),0,0),\"　店\")","v":"0　店"},{"$f":"SUM(N5:N47)","v":0},{"$f":"SUM(O5:O47)","v":0},null,{"$f":"CONCATENATE(FIXED(COUNTA(Q5:Q47),0,0),\"　店\")","v":"14　店"},{"$f":"SUM(R5:R47)","v":6100},{"$f":"SUM(S5:S47)","v":0},null,{"$f":"CONCATENATE(FIXED(COUNTA(U5:U47),0,0),\"　店\")","v":"0　店"},{"$f":"SUM(V5:V47)","v":0},{"$f":"SUM(W5:W47)","v":0},{"$f":"SUM(X5:X47)","v":0}]
["2025年後期（8月1日以降）",null,null,null,null,null,null,null,null,null,null,null,null,null,null,null,null,null,null,null,null,null,null,"㈱中日総合サービス"]

{"sheet":"みよし市・岡崎市","index":42,"n_rows":49,"n_cols":24,"rows_kept":49,"cut":false,"hidden":false,"merged":[[0,1,1,4],[0,17,0,20],[0,22,1,23],[1,17,1,20],[0,5,0,6],[0,8,0,14],[1,5,1,6],[1,8,1,14],[2,9,2,10],[3,0,3,1],[3,3,3,5],[3,7,3,9],[3,11,3,13],[3,19,3,21],[13,0,13,1],[13,3,13,5],[13,7,13,9],[13,11,13,13],[13,15,13,17],[13,19,13,21],[3,15,3,17]]}
["折込日",null,null,null,null,"広告主",null,null,null,null,null,null,null,null,null,null,"サイズ",null,null,null,null,"取次店"]
[null,null,null,null,null,"チラシ銘柄",null,null,null,null,null,null,null,null,null,null,"部数",{"$f":"A6+A16","v":0}]
[]
["地区",null,null,"中日新聞",null,null,"枚数","朝日新聞",null,null,"枚数","毎日新聞",null,null,"枚数","読売新聞",null,null,"枚数",null,null,null,null,"備考"]
["みよし市",null,0,230655101010,"三好NMS",3650,null,230655202020,"みよし東郷",1350,null,null,null,"",null,230655405001,"三好",500,null,null,null,null,null,0]
[{"$f":"SUM(G12,K12,O12,S12,W12)","v":0},{"$f":"SUM(F12,J12,N12,R12,V12)","v":10650},0,230655101030,"三好莇生NMS",1300,null,null,null,"",null,null,null,"",null,null,null,""]
[null,null,0,230655101020,"三好ヶ丘NMS",3850,null,null,null,"",null,null,null,"",null,null,null,""]
[null,null,null,null,null,"",null,null,null,"",null,null,null,"",null,null,null,""]
[null,null,null,null,null,"",null,null,null,"",null,null,null,"",null,null,null,""]
[null,null,null,null,null,"",null,null,null,"",null,null,null,"",null,null,null,""]
[null,null,null,null,null,"",null,null,null,"",null,null,null,"",null,null,null,""]
[null,null,null,null,{"$f":"CONCATENATE(FIXED(COUNTA(E5:E11),0,0),\"　店\")","v":"3　店"},{"$f":"SUM(F5:F11)","v":8800},{"$f":"SUM(G5:G11)","v":0},null,{"$f":"CONCATENATE(FIXED(COUNTA(I5:I11),0,0),\"　店\")","v":"1　店"},{"$f":"SUM(J5:J11)","v":1350},{"$f":"SUM(K5:K11)","v":0},null,{"$f":"CONCATENATE(FIXED(COUNTA(M5:M11),0,0),\"　店\")","v":"0　店"},{"$f":"SUM(N5:N11)","v":0},{"$f":"SUM(O5:O11)","v":0},null,{"$f":"CONCATENATE(FIXED(COUNTA(Q5:Q11),0,0),\"　店\")","v":"1　店"},{"$f":"SUM(R5:R11)","v":500},{"$f":"SUM(S5:S11)","v":0},null,{"$f":"CONCATENATE(FIXED(COUNTA(U5:U11),0,0),\"　店\")","v":"0　店"},{"$f":"SUM(V5:V11)","v":0},{"$f":"SUM(W5:W11)","v":0},{"$f":"SUM(X5:X11)","v":0}]
[]
["地区",null,null,"中日新聞",null,null,"枚数","朝日新聞",null,null,"枚数","毎日新聞",null,null,"枚数","読売新聞",null,null,"枚数",null,null,null,null,"備考"]
["岡崎市",null,0,230630101050,"岡崎（石垣）NMS",2750,null,230630202030,"岡崎中央",1750,null,230630303020,"羽根",1300,null,230630405001,"岡崎西部",300,null,null,null,null,null,"岡崎市全域の場合"]
[{"$f":"SUM(G48,K48,O48,S48,W48)","v":0},{"$f":"SUM(F48,J48,N48,R48,V48)","v":64900},0,230630101310,"岡崎東部NMS",2050,null,230630202040,"竜美",350,null,null,null,"",null,230630405002,"岡崎北部",400,null,null,null,null,null,"西尾市三江島1,350枚"]
[null,null,0,230630101070,"岡崎南部NS",2850,null,230630202060,"岡崎南",1400,null,null,null,"",null,230630405004,"岡崎南",1050,null,null,null,null,null,"をプラス"]
[null,null,0,230630101060,"岡崎西部NMS",2950,null,230630202070,"岡崎福岡",300,null,null,null,"",null,230630405006,"岡崎東部",550,null,null,null,null,null,0]
[null,null,0,230630101080,"岡崎竜美ヶ丘NS",1850,null,230630202090,"岡崎西部",450,null,null,null,"",null,230630405007,"新岡崎",600,null,null,null,null,null,0]
[null,null,0,230630101040,"岡崎北部NMS",2750,null,230630202100,"岡崎北部",350,null,null,null,"",null,null,null,"",null,null,null,null,null,0]
[null,null,0,230630101170,"矢作NMS",8350,null,null,null,"",null,null,null,"",null,null,null,"",null,null,null,null,null,0]
[null,null,0,230630101090,"岡崎戸崎NS",1600,null,null,null,"",null,null,null,"",null,null,null,"",null,null,null,null,null,0]
[null,null,0,230630101290,"光ヶ丘NS",1300,null,null,null,"",null,null,null,"",null,null,null,"",null,null,null,null,null,0]
[null,null,0,230630101150,"岡崎上和田NM",700,null,null,null,"",null,null,null,"",null,null,null,"",null,null,null,null,null,0]
[null,null,0,230630101160,"六ッ美NMS",1400,null,null,null,"",null,null,null,"",null,null,null,"",null,null,null,null,null,0]
[null,null,0,230630101250,"六ッ美北NMS",900,null,null,null,"",null,null,null,"",null,null,null,"",null,null,null,null,null,0]
[null,null,0,230630101100,"羽根NS",1500,null,null,null,"",null,null,null,"",null,null,null,"",null,null,null,null,null,0]
[null,null,0,230630101110,"岡崎針崎NMS",1350,null,null,null,"",null,null,null,"",null,null,null,"",null,null,null,null,null,0]
[null,null,0,230630101140,"岡崎上地台NMS",1500,null,null,null,"",null,null,null,"",null,null,null,"",null,null,null,null,null,0]
[null,null,0,230630101020,"岡崎大門NMS",2100,null,null,null,"",null,null,null,"",null,null,null,"",null,null,null,null,null,0]
[null,null,0,230630101030,"岡崎常磐NMS",1400,null,null,null,"",null,null,null,"",null,null,null,"",null,null,null,null,null,0]
[null,null,0,230630101260,"岡崎真伝NMS",1350,null,null,null,"",null,null,null,"",null,null,null,"",null,null,null,null,null,0]
[null,null,0,230630101180,"岡崎大平NM",1350,null,null,null,"",null,null,null,"",null,null,null,"",null,null,null,null,null,0]
[null,null,"*1",230630101130,"土呂NMS",3450,null,null,null,"",null,null,null,"",null,null,null,"",null,null,null,null,null,"*1幸田町850枚含む"]
[null,null,0,230630101240,"岡崎青野NMS",1000,null,null,null,"",null,null,null,"",null,null,null,""]
[null,null,"*2",230630101010,"岩津NMS",3250,null,null,null,"",null,null,null,"",null,null,null,"",null,null,null,null,null,"*2豊田市桂野町・加茂川町"]
[null,null,0,230630101190,"美合南部NAMYS",2100,null,null,null,"",null,null,null,"",null,null,null,"",null,null,null,null,null,"　　100枚含む"]
[null,null,0,230630101200,"美合北部NAMYS",1250,null,null,null,"",null,null,null,"",null,null,null,""]
[null,null,0,230630101220,"本宿NAMYS",3000,null,null,null,"",null,null,null,"",null,null,null,"",null,null,null,null,null,0]
[null,null,0,230630101210,"河合NAM",900,null,null,null,"",null,null,null,"",null,null,null,"",null,null,null,null,null,0]
[null,null,0,230630101270,"豊富NAMS",850,null,null,null,"",null,null,null,"",null,null,null,"",null,null,null,null,null,0]
[null,null,0,230630101280,"宮崎NAM",300,null,null,null,"",null,null,null,"",null,null,null,"",null,null,null,null,null,0]
[null,null,null,null,null,"",null,null,null,"",null,null,null,"",null,null,null,""]
[null,null,null,null,null,"",null,null,null,"",null,null,null,"",null,null,null,""]
[null,null,null,null,null,"",null,null,null,"",null,null,null,"",null,null,null,""]
[null,null,null,null,null,"",null,null,null,"",null,null,null,"",null,null,null,""]
[null,null,null,null,null,"",null,null,null,"",null,null,null,"",null,null,null,""]
[null,null,null,null,{"$f":"CONCATENATE(FIXED(COUNTA(E15:E47),0,0),\"　店\")","v":"28　店"},{"$f":"SUM(F15:F47)","v":56100},{"$f":"SUM(G15:G47)","v":0},null,{"$f":"CONCATENATE(FIXED(COUNTA(I15:I47),0,0),\"　店\")","v":"6　店"},{"$f":"SUM(J15:J47)","v":4600},{"$f":"SUM(K15:K47)","v":0},null,{"$f":"CONCATENATE(FIXED(COUNTA(M15:M47),0,0),\"　店\")","v":"1　店"},{"$f":"SUM(N15:N47)","v":1300},{"$f":"SUM(O15:O47)","v":0},null,{"$f":"CONCATENATE(FIXED(COUNTA(Q15:Q47),0,0),\"　店\")","v":"5　店"},{"$f":"SUM(R15:R47)","v":2900},{"$f":"SUM(S15:S47)","v":0},null,{"$f":"CONCATENATE(FIXED(COUNTA(U15:U47),0,0),\"　店\")","v":"0　店"},{"$f":"SUM(V15:V47)","v":0},{"$f":"SUM(W15:W47)","v":0},{"$f":"SUM(X15:X47)","v":0}]
["2025年後期（8月1日以降）",null,null,null,null,null,null,null,null,null,null,null,null,null,null,null,null,null,null,null,null,null,null,"㈱中日総合サービス"]

{"sheet":"額田郡・西尾市・蒲郡市","index":43,"n_rows":49,"n_cols":24,"rows_kept":49,"cut":false,"hidden":false,"merged":[[0,1,1,4],[0,17,0,20],[0,22,1,23],[1,17,1,20],[0,5,0,6],[0,8,0,14],[1,5,1,6],[1,8,1,14],[2,9,2,10],[3,0,3,1],[3,3,3,5],[3,7,3,9],[3,11,3,13],[34,19,34,21],[3,19,3,21],[15,0,15,1],[15,3,15,5],[15,7,15,9],[15,11,15,13],[15,15,15,17],[15,19,15,21],[3,15,3,17],[34,0,34,1],[34,3,34,5],[34,7,34,9],[34,11,34,13],[34,15,34,17]]}
["折込日",null,null,null,null,"広告主",null,null,null,null,null,null,null,null,null,null,"サイズ",null,null,null,null,"取次店"]
[null,null,null,null,null,"チラシ銘柄",null,null,null,null,null,null,null,null,null,null,"部数",{"$f":"A6+A18+A37","v":0}]
[]
["地区",null,null,"中日新聞",null,null,"枚数","朝日新聞",null,null,"枚数","毎日新聞",null,null,"枚数","読売新聞",null,null,"枚数",null,null,null,null,"備考"]
["額田郡",null,0,230650101030,"幸田NAMS",5450,null,null,null,"",null,null,null,"",null,230650405001,"幸田",300,null,null,null,null,null,"幸田町全域の場合"]
[{"$f":"SUM(G14,K14,O14,S14,W14)","v":0},{"$f":"SUM(F14,J14,N14,R14,V14)","v":5750},null,null,null,"",null,null,null,"",null,null,null,"",null,null,null,"",null,null,null,null,null,"岡崎市土呂850枚"]
[null,null,null,null,null,"",null,null,null,"",null,null,null,"",null,null,null,"",null,null,null,null,null,"西尾市三江島50枚"]
[null,null,null,null,null,"",null,null,null,"",null,null,null,"",null,null,null,"",null,null,null,null,null,"蒲郡市蒲郡西50枚"]
[null,null,null,null,null,"",null,null,null,"",null,null,null,"",null,null,null,"",null,null,null,null,null,"をプラス"]
[null,null,null,null,null,"",null,null,null,"",null,null,null,"",null,null,null,"",null,null,null,null,null,0]
[null,null,null,null,null,"",null,null,null,"",null,null,null,"",null,null,null,"",null,null,null,null,null,0]
[null,null,null,null,null,"",null,null,null,"",null,null,null,"",null,null,null,"",null,null,null,null,null,0]
[null,null,null,null,null,"",null,null,null,"",null,null,null,"",null,null,null,"",null,null,null,null,null,0]
[null,null,null,null,{"$f":"CONCATENATE(FIXED(COUNTA(E5:E13),0,0),\"　店\")","v":"1　店"},{"$f":"SUM(F5:F13)","v":5450},{"$f":"SUM(G5:G13)","v":0},null,{"$f":"CONCATENATE(FIXED(COUNTA(I5:I13),0,0),\"　店\")","v":"0　店"},{"$f":"SUM(J5:J13)","v":0},{"$f":"SUM(K5:K13)","v":0},null,{"$f":"CONCATENATE(FIXED(COUNTA(M5:M13),0,0),\"　店\")","v":"0　店"},{"$f":"SUM(N5:N13)","v":0},{"$f":"SUM(O5:O13)","v":0},null,{"$f":"CONCATENATE(FIXED(COUNTA(Q5:Q13),0,0),\"　店\")","v":"1　店"},{"$f":"SUM(R5:R13)","v":300},{"$f":"SUM(S5:S13)","v":0},null,{"$f":"CONCATENATE(FIXED(COUNTA(U5:U13),0,0),\"　店\")","v":"0　店"},{"$f":"SUM(V5:V13)","v":0},{"$f":"SUM(W5:W13)","v":0},{"$f":"SUM(X5:X13)","v":0}]
[]
["地区",null,null,"中日新聞",null,null,"枚数","朝日新聞",null,null,"枚数","毎日新聞",null,null,"枚数","読売新聞",null,null,"枚数",null,null,null,null,"備考"]
["西尾市",null,0,230640101010,"西尾NMS",9600,null,230640202010,"西尾",1450,null,null,null,"",null,230640405001,"西尾",750,null,null,null,null,null,"西尾市全域の場合"]
[{"$f":"SUM(G33,K33,O33,S33,W33)","v":0},{"$f":"SUM(F33,J33,N33,R33,V33)","v":30450},0,230640101020,"平坂NMS",3750,null,230640202020,"平坂",350,null,null,null,"",null,230640405002,"西尾西部",250,null,null,null,null,null,"蒲郡市蒲郡西1,000枚"]
[null,null,"*1",230640101030,"三江島NMS",3000,null,230640202040,"上横須賀",150,null,null,null,"",null,230640405003,"三河一色",150,null,null,null,null,null,"をプラス"]
[null,null,0,230640101040,"米津NMS",950,null,null,null,"",null,null,null,"",null,230640405004,"西尾東部",750,null,null,null,null,null,0]
[null,null,0,230640101050,"三河一色NAMS",3900,null,null,null,"",null,null,null,"",null,230640405005,"幡豆",200,null,null,null,null,null,"*1岡崎市1,350枚含む"]
[null,null,0,230640101060,"吉良吉田NAM",1150,null,null,null,"",null,null,null,"",null,null,null,"",null,null,null,null,null,"    幸田町50枚含む"]
[null,null,0,230640101070,"吉良白浜NAM",1050,null,null,null,"",null,null,null,"",null,null,null,"",null,null,null,null,null,0]
[null,null,0,230640101080,"上横須賀NM",1700,null,null,null,"",null,null,null,"",null,null,null,"",null,null,null,null,null,0]
[null,null,0,230640101090,"西幡豆NAMS",1300,null,null,null,"",null,null,null,"",null,null,null,"",null,null,null,null,null,0]
[null,null,null,null,null,"",null,null,null,"",null,null,null,"",null,null,null,"",null,null,null,null,null,0]
[null,null,null,null,null,"",null,null,null,"",null,null,null,"",null,null,null,""]
[null,null,null,null,null,"",null,null,null,"",null,null,null,"",null,null,null,""]
[null,null,null,null,null,"",null,null,null,"",null,null,null,"",null,null,null,""]
[null,null,null,null,null,"",null,null,null,"",null,null,null,"",null,null,null,""]
[null,null,null,null,null,"",null,null,null,"",null,null,null,"",null,null,null,""]
[null,null,null,null,null,"",null,null,null,"",null,null,null,"",null,null,null,""]
[null,null,null,null,{"$f":"CONCATENATE(FIXED(COUNTA(E17:E32),0,0),\"　店\")","v":"9　店"},{"$f":"SUM(F17:F32)","v":26400},{"$f":"SUM(G17:G32)","v":0},null,{"$f":"CONCATENATE(FIXED(COUNTA(I17:I32),0,0),\"　店\")","v":"3　店"},{"$f":"SUM(J17:J32)","v":1950},{"$f":"SUM(K17:K32)","v":0},null,{"$f":"CONCATENATE(FIXED(COUNTA(M17:M32),0,0),\"　店\")","v":"0　店"},{"$f":"SUM(N17:N32)","v":0},{"$f":"SUM(O17:O32)","v":0},null,{"$f":"CONCATENATE(FIXED(COUNTA(Q17:Q32),0,0),\"　店\")","v":"5　店"},{"$f":"SUM(R17:R32)","v":2100},{"$f":"SUM(S17:S32)","v":0},null,{"$f":"CONCATENATE(FIXED(COUNTA(U17:U32),0,0),\"　店\")","v":"0　店"},{"$f":"SUM(V17:V32)","v":0},{"$f":"SUM(W17:W32)","v":0},{"$f":"SUM(X17:X32)","v":0}]
[]
["地区",null,null,"中日新聞",null,null,"枚数","朝日新聞",null,null,"枚数","毎日新聞",null,null,"枚数","読売新聞",null,null,"枚数",null,null,null,null,"備考"]
["蒲郡市",null,null,230740101010,"蒲郡NMS",8000,null,230740202010,"蒲郡",1100,null,null,null,"",null,230740405001,"蒲郡東部",150,null,null,null,null,null,"蒲郡市全域の場合"]
[{"$f":"SUM(G48,K48,O48,S48,W48)","v":0},{"$f":"SUM(F48,J48,N48,R48,V48)","v":15100},"*1",230740101030,"蒲郡西NAMS",5550,null,null,null,"",null,null,null,"",null,230740405002,"蒲郡中央",200,null,null,null,null,null,"豊川市御津（鈴木）"]
[null,null,null,null,null,"",null,null,null,"",null,null,null,"",null,230740405003,"蒲郡西部",100,null,null,null,null,null,"50枚"]
[null,null,null,null,null,"",null,null,null,"",null,null,null,"",null,null,null,"",null,null,null,null,null,"豊川市御津（小林）"]
[null,null,null,null,null,"",null,null,null,"",null,null,null,"",null,null,null,"",null,null,null,null,null,"850枚をプラス"]
[null,null,null,null,null,"",null,null,null,"",null,null,null,"",null,null,null,""]
[null,null,null,null,null,"",null,null,null,"",null,null,null,"",null,null,null,"",null,null,null,null,null,0]
[null,null,null,null,null,"",null,null,null,"",null,null,null,"",null,null,null,"",null,null,null,null,null,"*1西尾市1,000枚"]
[null,null,null,null,null,"",null,null,null,"",null,null,null,"",null,null,null,"",null,null,null,null,null,"    幸田町50枚含む"]
[null,null,null,null,null,"",null,null,null,"",null,null,null,"",null,null,null,"",null,null,null,null,null,0]
[null,null,null,null,null,"",null,null,null,"",null,null,null,"",null,null,null,"",null,null,null,null,null,0]
[null,null,null,null,null,"",null,null,null,"",null,null,null,"",null,null,null,"",null,null,null,null,null,0]
[null,null,null,null,{"$f":"CONCATENATE(FIXED(COUNTA(E36:E47),0,0),\"　店\")","v":"2　店"},{"$f":"SUM(F36:F47)","v":13550},{"$f":"SUM(G36:G47)","v":0},null,{"$f":"CONCATENATE(FIXED(COUNTA(I36:I47),0,0),\"　店\")","v":"1　店"},{"$f":"SUM(J36:J47)","v":1100},{"$f":"SUM(K36:K47)","v":0},null,{"$f":"CONCATENATE(FIXED(COUNTA(M36:M47),0,0),\"　店\")","v":"0　店"},{"$f":"SUM(N36:N47)","v":0},{"$f":"SUM(O36:O47)","v":0},null,{"$f":"CONCATENATE(FIXED(COUNTA(Q36:Q47),0,0),\"　店\")","v":"3　店"},{"$f":"SUM(R36:R47)","v":450},{"$f":"SUM(S36:S47)","v":0},null,{"$f":"CONCATENATE(FIXED(COUNTA(U36:U47),0,0),\"　店\")","v":"0　店"},{"$f":"SUM(V36:V47)","v":0},{"$f":"SUM(W36:W47)","v":0},{"$f":"SUM(X36:X47)","v":0}]
["2025年後期（8月1日以降）",null,null,null,null,null,null,null,null,null,null,null,null,null,null,null,null,null,null,null,null,null,null,"㈱中日総合サービス"]

{"sheet":"豊川市","index":44,"n_rows":49,"n_cols":24,"rows_kept":49,"cut":false,"hidden":false,"merged":[[3,19,3,21],[2,9,2,10],[3,0,3,1],[3,3,3,5],[3,7,3,9],[3,11,3,13],[3,15,3,17],[0,1,1,4],[0,17,0,20],[0,22,1,23],[1,17,1,20],[0,5,0,6],[0,8,0,14],[1,5,1,6],[1,8,1,14]]}
["折込日",null,null,null,null,"広告主",null,null,null,null,null,null,null,null,null,null,"サイズ",null,null,null,null,"取次店"]
[null,null,null,null,null,"チラシ銘柄",null,null,null,null,null,null,null,null,null,null,"部数",{"$f":"A6","v":0}]
[]
["地区",null,null,"中日新聞",null,null,"枚数","朝日新聞",null,null,"枚数","毎日新聞",null,null,"枚数","読売新聞",null,null,"枚数",null,null,null,null,"備考"]
["豊川市",null,0,230720101010,"豊川（西本）NMS",4900,null,230720202020,"豊川南",150,null,null,null,"",null,230720405001,"豊川東部",300,null,null,null,null,null,0]
[{"$f":"SUM(G48,K48,O48,S48,W48)","v":0},{"$f":"SUM(F48,J48,N48,R48,V48)","v":35400},0,230720101020,"豊川中条NMS",900,null,230720202030,"豊川西",350,null,null,null,"",null,230720405002,"豊川中央",350,null,null,null,null,null,0]
[null,null,0,230720101030,"豊川諏訪NMS",2450,null,230720202040,"豊川東",1350,null,null,null,"",null,230720405003,"豊川西部",150,null,null,null,null,null,0]
[null,null,0,230720101040,"牛久保(中村)NMS",850,null,230720202050,"三河国府",600,null,null,null,"",null,230720405004,"小坂井",200,null,null,null,null,null,0]
[null,null,0,230720101050,"牛久保(大万)NM",1100,null,230720202060,"御油",100,null,null,null,"",null,null,null,"",null,null,null,null,null,0]
[null,null,0,230720101060,"牛久保(中部大万)NMS",1700,null,230720202080,"小坂井",200,null,null,null,"",null,null,null,"",null,null,null,null,null,0]
[null,null,0,230720101070,"豊川蔵子NMS",1350,null,null,null,"",null,null,null,"",null,null,null,"",null,null,null,null,null,0]
[null,null,0,230720101080,"豊川国府NMS",3050,null,null,null,"",null,null,null,"",null,null,null,"",null,null,null,null,null,0]
[null,null,0,230720101090,"豊川八南NM",1750,null,null,null,"",null,null,null,"",null,null,null,"",null,null,null,null,null,0]
[null,null,0,230720101100,"御油NMS",1400,null,null,null,"",null,null,null,"",null,null,null,"",null,null,null,null,null,0]
[null,null,"*1",230720101140,"三河一宮NAMS",3350,null,null,null,"",null,null,null,"",null,null,null,"",null,null,null,null,null,"*1豊橋市500枚含む"]
[null,null,"*2",230720101150,"御津（鈴木）NMS",1250,null,null,null,"",null,null,null,"",null,null,null,"",null,null,null,null,null,"*2蒲郡市50枚含む"]
[null,null,"*3",230720101160,"御津（小林）NMS",1800,null,null,null,"",null,null,null,"",null,null,null,"",null,null,null,null,null,"*3蒲郡市850枚含む"]
[null,null,0,230720101120,"豊川音羽NAMS",1650,null,null,null,"",null,null,null,"",null,null,null,"",null,null,null,null,null,0]
[null,null,"*4",230720101170,"西小坂井NMS",1700,null,null,null,"",null,null,null,"",null,null,null,"",null,null,null,null,null,"*4豊橋市650枚含む"]
[null,null,0,230720101180,"小坂井駅前NMS",1350,null,null,null,"",null,null,null,"",null,null,null,"",null,null,null,null,null,0]
[null,null,0,230720101190,"豊川美園NM",1100,null,null,null,"",null,null,null,"",null,null,null,"",null,null,null,null,null,0]
[null,null,null,null,null,"",null,null,null,"",null,null,null,"",null,null,null,"",null,null,null,null,null,0]
[null,null,null,null,null,"",null,null,null,"",null,null,null,"",null,null,null,""]
[null,null,null,null,null,"",null,null,null,"",null,null,null,"",null,null,null,""]
[null,null,null,null,null,"",null,null,null,"",null,null,null,"",null,null,null,""]
[null,null,null,null,null,"",null,null,null,"",null,null,null,"",null,null,null,""]
[null,null,null,null,null,"",null,null,null,"",null,null,null,"",null,null,null,""]
[null,null,null,null,null,"",null,null,null,"",null,null,null,"",null,null,null,""]
[null,null,null,null,null,"",null,null,null,"",null,null,null,"",null,null,null,""]
[null,null,null,null,null,"",null,null,null,"",null,null,null,"",null,null,null,""]
[null,null,null,null,null,"",null,null,null,"",null,null,null,"",null,null,null,""]
[null,null,null,null,null,"",null,null,null,"",null,null,null,"",null,null,null,""]
[null,null,null,null,null,"",null,null,null,"",null,null,null,"",null,null,null,""]
[null,null,null,null,null,"",null,null,null,"",null,null,null,"",null,null,null,""]
[null,null,null,null,null,"",null,null,null,"",null,null,null,"",null,null,null,""]
[null,null,null,null,null,"",null,null,null,"",null,null,null,"",null,null,null,""]
[null,null,null,null,null,"",null,null,null,"",null,null,null,"",null,null,null,""]
[null,null,null,null,null,"",null,null,null,"",null,null,null,"",null,null,null,""]
[null,null,null,null,null,"",null,null,null,"",null,null,null,"",null,null,null,""]
[null,null,null,null,null,"",null,null,null,"",null,null,null,"",null,null,null,""]
[null,null,null,null,null,"",null,null,null,"",null,null,null,"",null,null,null,""]
[null,null,null,null,null,"",null,null,null,"",null,null,null,"",null,null,null,""]
[null,null,null,null,null,"",null,null,null,"",null,null,null,"",null,null,null,""]
[null,null,null,null,null,"",null,null,null,"",null,null,null,"",null,null,null,""]
[null,null,null,null,null,"",null,null,null,"",null,null,null,"",null,null,null,""]
[null,null,null,null,null,"",null,null,null,"",null,null,null,"",null,null,null,""]
[null,null,null,null,null,"",null,null,null,"",null,null,null,"",null,null,null,""]
[null,null,null,null,{"$f":"CONCATENATE(FIXED(COUNTA(E5:E47),0,0),\"　店\")","v":"17　店"},{"$f":"SUM(F5:F47)","v":31650},{"$f":"SUM(G5:G47)","v":0},null,{"$f":"CONCATENATE(FIXED(COUNTA(I5:I47),0,0),\"　店\")","v":"6　店"},{"$f":"SUM(J5:J47)","v":2750},{"$f":"SUM(K5:K47)","v":0},null,{"$f":"CONCATENATE(FIXED(COUNTA(M5:M47),0,0),\"　店\")","v":"0　店"},{"$f":"SUM(N5:N47)","v":0},{"$f":"SUM(O5:O47)","v":0},null,{"$f":"CONCATENATE(FIXED(COUNTA(Q5:Q47),0,0),\"　店\")","v":"4　店"},{"$f":"SUM(R5:R47)","v":1000},{"$f":"SUM(S5:S47)","v":0},null,{"$f":"CONCATENATE(FIXED(COUNTA(U5:U47),0,0),\"　店\")","v":"0　店"},{"$f":"SUM(V5:V47)","v":0},{"$f":"SUM(W5:W47)","v":0},{"$f":"SUM(X5:X47)","v":0}]
["2025年後期（8月1日以降）",null,null,null,null,null,null,null,null,null,null,null,null,null,null,null,null,null,null,null,null,null,null,"㈱中日総合サービス"]

{"sheet":"新城市・北設楽郡","index":45,"n_rows":49,"n_cols":24,"rows_kept":49,"cut":false,"hidden":false,"merged":[[27,19,27,21],[3,19,3,21],[0,8,0,14],[2,9,2,10],[27,15,27,17],[0,22,1,23],[3,7,3,9],[0,17,0,20],[1,17,1,20],[3,11,3,13],[3,15,3,17],[3,0,3,1],[1,8,1,14],[27,0,27,1],[0,1,1,4],[3,3,3,5],[27,7,27,9],[27,3,27,5],[27,11,27,13],[0,5,0,6],[1,5,1,6]]}
["折込日",null,null,null,null,"広告主",null,null,null,null,null,null,null,null,null,null,"サイズ",null,null,null,null,"取次店"]
[null,null,null,null,null,"チラシ銘柄",null,null,null,null,null,null,null,null,null,null,"部数",{"$f":"A6+A30","v":0}]
[]
["地区",null,null,"中日新聞",null,null,"枚数","朝日新聞",null,null,"枚数","毎日新聞",null,null,"枚数","読売新聞",null,null,"枚数",null,null,null,null,"備考"]
["新城市",null,0,230730101010,"新城西NAMYS",3750,null,null,null,"",null,null,null,"",null,null,null,"",null,null,null,null,null,"△折込日が休刊日翌日"]
[{"$f":"SUM(G26,K26,O26,S26,W26)","v":0},{"$f":"SUM(F26,J26,N26,R26,V26)","v":9750},0,230730101020,"新城東NAMYS",2350,null,null,null,"",null,null,null,"",null,null,null,"",null,null,null,null,null,"の場合、先送り地区"]
[null,null,"△",230760101010,"三河大海NAMY",450,null,null,null,"",null,null,null,"",null,null,null,""]
[null,null,"△",230760101060,"新城北NAM",200,null,null,null,"",null,null,null,"",null,null,null,""]
[null,null,"△",230760101020,"作手NAMY",550,null,null,null,"",null,null,null,"",null,null,null,""]
[null,null,"△",230760101030,"長篠NAMYS",1100,null,null,null,"",null,null,null,"",null,null,null,"",null,null,null,null,null,0]
[null,null,"△",230760101040,"三河大野NAMY",800,null,null,null,"",null,null,null,"",null,null,null,"",null,null,null,null,null,0]
[null,null,"△",230760101050,"海老NAMYS",550,null,null,null,"",null,null,null,"",null,null,null,"",null,null,null,null,null,0]
[null,null,null,null,null,"",null,null,null,"",null,null,null,"",null,null,null,"",null,null,null,null,null,0]
[null,null,null,null,null,"",null,null,null,"",null,null,null,"",null,null,null,"",null,null,null,null,null,0]
[null,null,null,null,null,"",null,null,null,"",null,null,null,"",null,null,null,"",null,null,null,null,null,0]
[null,null,null,null,null,"",null,null,null,"",null,null,null,"",null,null,null,"",null,null,null,null,null,0]
[null,null,null,null,null,"",null,null,null,"",null,null,null,"",null,null,null,"",null,null,null,null,null,0]
[null,null,null,null,null,"",null,null,null,"",null,null,null,"",null,null,null,"",null,null,null,null,null,0]
[null,null,null,null,null,"",null,null,null,"",null,null,null,"",null,null,null,"",null,null,null,null,null,0]
[null,null,null,null,null,"",null,null,null,"",null,null,null,"",null,null,null,"",null,null,null,null,null,0]
[null,null,null,null,null,"",null,null,null,"",null,null,null,"",null,null,null,"",null,null,null,null,null,0]
[null,null,null,null,null,"",null,null,null,"",null,null,null,"",null,null,null,"",null,null,null,null,null,0]
[null,null,null,null,null,"",null,null,null,"",null,null,null,"",null,null,null,"",null,null,null,null,null,0]
[null,null,null,null,null,"",null,null,null,"",null,null,null,"",null,null,null,"",null,null,null,null,null,0]
[null,null,null,null,null,"",null,null,null,"",null,null,null,"",null,null,null,"",null,null,null,null,null,0]
[null,null,null,null,{"$f":"CONCATENATE(FIXED(COUNTA(E5:E25),0,0),\"　店\")","v":"8　店"},{"$f":"SUM(F5:F25)","v":9750},{"$f":"SUM(G5:G25)","v":0},null,{"$f":"CONCATENATE(FIXED(COUNTA(I5:I25),0,0),\"　店\")","v":"0　店"},{"$f":"SUM(J5:J25)","v":0},{"$f":"SUM(K5:K25)","v":0},null,{"$f":"CONCATENATE(FIXED(COUNTA(M5:M25),0,0),\"　店\")","v":"0　店"},{"$f":"SUM(N5:N25)","v":0},{"$f":"SUM(O5:O25)","v":0},null,{"$f":"CONCATENATE(FIXED(COUNTA(Q5:Q25),0,0),\"　店\")","v":"0　店"},{"$f":"SUM(R5:R25)","v":0},{"$f":"SUM(S5:S25)","v":0},null,{"$f":"CONCATENATE(FIXED(COUNTA(U5:U25),0,0),\"　店\")","v":"0　店"},{"$f":"SUM(V5:V25)","v":0},{"$f":"SUM(W5:W25)","v":0},{"$f":"SUM(X5:X25)","v":0}]
[]
["地区",null,null,"中日新聞",null,null,"枚数","朝日新聞",null,null,"枚数","毎日新聞",null,null,"枚数","読売新聞",null,null,"枚数",null,null,null,null,"備考"]
["△北設楽郡",null,"△",230770101030,"田口NAM",750,null,null,null,"",null,null,null,"",null,230770405001,"設楽",200,null,null,null,null,null,"△折込日が休刊日翌日"]
[{"$f":"SUM(G48,K48,O48,S48,W48)","v":0},{"$f":"SUM(F48,J48,N48,R48,V48)","v":2650},"△",230770101040,"名倉NAM",250,null,null,null,"",null,null,null,"",null,null,null,"",null,null,null,null,null,"の場合、先送り地区"]
[null,null,"△",230770101050,"津具NAMS",350,null,null,null,"",null,null,null,"",null,null,null,""]
[null,null,"△",230770101020,"三河本郷NAMYS",800,null,null,null,"",null,null,null,"",null,null,null,"",null,null,null,null,null,0]
[null,null,"△",230770101080,"大嵐富山A",50,null,null,null,"",null,null,null,"",null,null,null,""]
[null,null,"△",230770101090,"豊根AM",250,null,null,null,"",null,null,null,"",null,null,null,""]
[null,null,null,null,null,"",null,null,null,"",null,null,null,"",null,null,null,"",null,null,null,null,null,0]
[null,null,null,null,null,"",null,null,null,"",null,null,null,"",null,null,null,"",null,null,null,null,null,0]
[null,null,null,null,null,"",null,null,null,"",null,null,null,"",null,null,null,"",null,null,null,null,null,0]
[null,null,null,null,null,"",null,null,null,"",null,null,null,"",null,null,null,"",null,null,null,null,null,0]
[null,null,null,null,null,"",null,null,null,"",null,null,null,"",null,null,null,"",null,null,null,null,null,0]
[null,null,null,null,null,"",null,null,null,"",null,null,null,"",null,null,null,"",null,null,null,null,null,0]
[null,null,null,null,null,"",null,null,null,"",null,null,null,"",null,null,null,"",null,null,null,null,null,0]
[null,null,null,null,null,"",null,null,null,"",null,null,null,"",null,null,null,"",null,null,null,null,null,0]
[null,null,null,null,null,"",null,null,null,"",null,null,null,"",null,null,null,"",null,null,null,null,null,0]
[null,null,null,null,null,"",null,null,null,"",null,null,null,"",null,null,null,"",null,null,null,null,null,0]
[null,null,null,null,null,"",null,null,null,"",null,null,null,"",null,null,null,"",null,null,null,null,null,0]
[null,null,null,null,null,"",null,null,null,"",null,null,null,"",null,null,null,"",null,null,null,null,null,0]
[null,null,null,null,null,"",null,null,null,"",null,null,null,"",null,null,null,"",null,null,null,null,null,0]
[null,null,null,null,{"$f":"CONCATENATE(FIXED(COUNTA(E29:E47),0,0),\"　店\")","v":"6　店"},{"$f":"SUM(F29:F47)","v":2450},{"$f":"SUM(G29:G47)","v":0},null,{"$f":"CONCATENATE(FIXED(COUNTA(I29:I47),0,0),\"　店\")","v":"0　店"},{"$f":"SUM(J29:J47)","v":0},{"$f":"SUM(K29:K47)","v":0},null,{"$f":"CONCATENATE(FIXED(COUNTA(M29:M47),0,0),\"　店\")","v":"0　店"},{"$f":"SUM(N29:N47)","v":0},{"$f":"SUM(O29:O47)","v":0},null,{"$f":"CONCATENATE(FIXED(COUNTA(Q29:Q47),0,0),\"　店\")","v":"1　店"},{"$f":"SUM(R29:R47)","v":200},{"$f":"SUM(S29:S47)","v":0},null,{"$f":"CONCATENATE(FIXED(COUNTA(U29:U47),0,0),\"　店\")","v":"0　店"},{"$f":"SUM(V29:V47)","v":0},{"$f":"SUM(W29:W47)","v":0},{"$f":"SUM(X29:X47)","v":0}]
["2025年後期（8月1日以降）",null,null,null,null,null,null,null,null,null,null,null,null,null,null,null,null,null,null,null,null,null,null,"㈱中日総合サービス"]

{"sheet":"豊橋市","index":46,"n_rows":49,"n_cols":24,"rows_kept":49,"cut":false,"hidden":false,"merged":[[0,1,1,4],[0,17,0,20],[0,22,1,23],[1,17,1,20],[0,5,0,6],[0,8,0,14],[1,5,1,6],[1,8,1,14],[3,19,3,21],[2,9,2,10],[3,0,3,1],[3,3,3,5],[3,7,3,9],[3,11,3,13],[3,15,3,17]]}
["折込日",null,null,null,null,"広告主",null,null,null,null,null,null,null,null,null,null,"サイズ",null,null,null,null,"取次店"]
[null,null,null,null,null,"チラシ銘柄",null,null,null,null,null,null,null,null,null,null,"部数",{"$f":"A6","v":0}]
[]
["地区",null,null,"中日新聞",null,null,"枚数","朝日新聞",null,null,"枚数","毎日新聞",null,null,"枚数","読売新聞",null,null,"枚数",null,null,null,null,"備考"]
["豊橋市",null,0,230710101010,"豊橋中央（佐久間）NMS",7400,null,230710202010,"豊橋中央",1550,null,null,null,"",null,230710405001,"豊橋",2150,null,null,null,null,null,"豊橋市全域の場合"]
[{"$f":"SUM(G48,K48,O48,S48,W48)","v":0},{"$f":"SUM(F48,J48,N48,R48,V48)","v":65000},0,230710101020,"豊橋東部NMS",3350,null,230710202080,"豊岡",550,null,null,null,"",null,null,null,"",null,null,null,null,null,"豊川市三河一宮500枚"]
[null,null,0,230710101030,"豊橋南部NMS",2000,null,230710202040,"豊橋南",450,null,null,null,"",null,null,null,"",null,null,null,null,null,"豊川市西小坂井650枚"]
[null,null,0,230710101040,"豊橋西部NM",3350,null,230710202090,"高師台",450,null,null,null,"",null,null,null,"",null,null,null,null,null,"をプラス"]
[null,null,0,230710101050,"豊橋上地NMS",1200,null,230710202050,"豊橋西部",1000,null,null,null,"",null,null,null,"",null,null,null,null,null,0]
[null,null,0,230710101330,"豊橋鷹丘NM",1750,null,230710202070,"二川Y",700,null,null,null,"",null,null,null,"",null,null,null,null,null,0]
[null,null,0,230710101070,"豊橋飯村NMS",2950,null,230710202020,"豊橋東",450,null,null,null,"",null,null,null,"",null,null,null,null,null,0]
[null,null,0,230710101080,"豊橋花田NM",1700,null,230710202100,"豊橋南西",1000,null,null,null,"",null,null,null,""]
[null,null,0,230710101090,"豊橋向ケ丘NM",1850,null,null,null,"",null,null,null,"",null,null,null,""]
[null,null,0,230710101100,"豊橋北部NM",1450,null,null,null,"",null,null,null,"",null,null,null,""]
[null,null,0,230710101110,"豊橋玉川NAM",1150,null,null,null,"",null,null,null,"",null,null,null,""]
[null,null,0,230710101120,"豊橋牛川NM",1550,null,null,null,"",null,null,null,"",null,null,null,""]
[null,null,0,230710101130,"豊橋吉田方NMS",2500,null,null,null,"",null,null,null,"",null,null,null,""]
[null,null,0,230710101140,"豊橋北山NMS",1950,null,null,null,"",null,null,null,"",null,null,null,""]
[null,null,0,230710101160,"豊橋二川南NMS",3350,null,null,null,"",null,null,null,"",null,null,null,""]
[null,null,0,230710101170,"豊橋向山NMS",1100,null,null,null,"",null,null,null,"",null,null,null,""]
[null,null,0,230710101190,"豊橋栄NM",1450,null,null,null,"",null,null,null,"",null,null,null,""]
[null,null,0,230710101200,"豊橋上野NM",2550,null,null,null,"",null,null,null,"",null,null,null,""]
[null,null,0,230710101220,"豊橋東岩田NMS",1850,null,null,null,"",null,null,null,"",null,null,null,""]
[null,null,0,230710101230,"豊橋西口NM",1000,null,null,null,"",null,null,null,"",null,null,null,""]
[null,null,0,230710101240,"豊橋大村NM",1200,null,null,null,"",null,null,null,"",null,null,null,""]
[null,null,0,230710101250,"豊橋磯辺NM",1400,null,null,null,"",null,null,null,"",null,null,null,""]
[null,null,0,230710101270,"豊橋南栄NM",1350,null,null,null,"",null,null,null,"",null,null,null,""]
[null,null,0,230710101290,"老津NAM",2450,null,null,null,"",null,null,null,"",null,null,null,""]
[null,null,0,230710101300,"豊橋佐藤町NMS",1500,null,null,null,"",null,null,null,"",null,null,null,""]
[null,null,0,230710101310,"豊橋曙NM",1250,null,null,null,"",null,null,null,"",null,null,null,""]
[null,null,0,230710101320,"豊橋野依NMS",1850,null,null,null,"",null,null,null,"",null,null,null,""]
[null,null,0,230710101340,"豊橋下条NMS",250,null,null,null,"",null,null,null,"",null,null,null,""]
[null,null,null,null,null,"",null,null,null,"",null,null,null,"",null,null,null,""]
[null,null,null,null,null,"",null,null,null,"",null,null,null,"",null,null,null,""]
[null,null,null,null,null,"",null,null,null,"",null,null,null,"",null,null,null,""]
[null,null,null,null,null,"",null,null,null,"",null,null,null,"",null,null,null,""]
[null,null,null,null,null,"",null,null,null,"",null,null,null,"",null,null,null,""]
[null,null,null,null,null,"",null,null,null,"",null,null,null,"",null,null,null,""]
[null,null,null,null,null,"",null,null,null,"",null,null,null,"",null,null,null,""]
[null,null,null,null,null,"",null,null,null,"",null,null,null,"",null,null,null,""]
[null,null,null,null,null,"",null,null,null,"",null,null,null,"",null,null,null,""]
[null,null,null,null,null,"",null,null,null,"",null,null,null,"",null,null,null,""]
[null,null,null,null,null,"",null,null,null,"",null,null,null,"",null,null,null,""]
[null,null,null,null,null,"",null,null,null,"",null,null,null,"",null,null,null,""]
[null,null,null,null,null,"",null,null,null,"",null,null,null,"",null,null,null,""]
[null,null,null,null,null,"",null,null,null,"",null,null,null,"",null,null,null,""]
[null,null,null,null,null,"",null,null,null,"",null,null,null,"",null,null,null,""]
[null,null,null,null,{"$f":"CONCATENATE(FIXED(COUNTA(E5:E47),0,0),\"　店\")","v":"28　店"},{"$f":"SUM(F5:F47)","v":56700},{"$f":"SUM(G5:G47)","v":0},null,{"$f":"CONCATENATE(FIXED(COUNTA(I5:I47),0,0),\"　店\")","v":"8　店"},{"$f":"SUM(J5:J47)","v":6150},{"$f":"SUM(K5:K47)","v":0},null,{"$f":"CONCATENATE(FIXED(COUNTA(M5:M47),0,0),\"　店\")","v":"0　店"},{"$f":"SUM(N5:N47)","v":0},{"$f":"SUM(O5:O47)","v":0},null,{"$f":"CONCATENATE(FIXED(COUNTA(Q5:Q47),0,0),\"　店\")","v":"1　店"},{"$f":"SUM(R5:R47)","v":2150},{"$f":"SUM(S5:S47)","v":0},null,{"$f":"CONCATENATE(FIXED(COUNTA(U5:U47),0,0),\"　店\")","v":"0　店"},{"$f":"SUM(V5:V47)","v":0},{"$f":"SUM(W5:W47)","v":0},{"$f":"SUM(X5:X47)","v":0}]
["2025年後期（8月1日以降）",null,null,null,null,null,null,null,null,null,null,null,null,null,null,null,null,null,null,null,null,null,null,"㈱中日総合サービス"]

{"sheet":"田原市","index":47,"n_rows":49,"n_cols":24,"rows_kept":49,"cut":false,"hidden":false,"merged":[[0,1,1,4],[0,17,0,20],[0,22,1,23],[1,17,1,20],[0,5,0,6],[0,8,0,14],[1,5,1,6],[1,8,1,14],[3,19,3,21],[2,9,2,10],[3,0,3,1],[3,3,3,5],[3,7,3,9],[3,11,3,13],[3,15,3,17]]}
["折込日",null,null,null,null,"広告主",null,null,null,null,null,null,null,null,null,null,"サイズ",null,null,null,null,"取次店"]
[null,null,null,null,null,"チラシ銘柄",null,null,null,null,null,null,null,null,null,null,"部数",{"$f":"A6","v":0}]
[]
["地区",null,null,"中日新聞",null,null,"枚数","朝日新聞",null,null,"枚数","毎日新聞",null,null,"枚数","読売新聞",null,null,"枚数",null,null,null,null,"備考"]
["田原市",null,0,230780101010,"田原NAMS",6250,null,null,null,"",null,null,null,"",null,230780405001,"田原",450,null,null,null,null,null,0]
[{"$f":"SUM(G48,K48,O48,S48,W48)","v":0},{"$f":"SUM(F48,J48,N48,R48,V48)","v":11100},0,230785101010,"赤羽根NAM",1050,null,null,null,"",null,null,null,"",null,null,null,"",null,null,null,null,null,0]
[null,null,0,230785101020,"泉NAMYS",700,null,null,null,"",null,null,null,"",null,null,null,"",null,null,null,null,null,0]
[null,null,0,230785101030,"福江NAMYS",2650,null,null,null,"",null,null,null,"",null,null,null,"",null,null,null,null,null,0]
[null,null,null,null,null,"",null,null,null,"",null,null,null,"",null,null,null,""]
[null,null,null,null,null,"",null,null,null,"",null,null,null,"",null,null,null,""]
[null,null,null,null,null,"",null,null,null,"",null,null,null,"",null,null,null,""]
[null,null,null,null,null,"",null,null,null,"",null,null,null,"",null,null,null,""]
[null,null,null,null,null,"",null,null,null,"",null,null,null,"",null,null,null,""]
[null,null,null,null,null,"",null,null,null,"",null,null,null,"",null,null,null,""]
[null,null,null,null,null,"",null,null,null,"",null,null,null,"",null,null,null,""]
[null,null,null,null,null,"",null,null,null,"",null,null,null,"",null,null,null,""]
[null,null,null,null,null,"",null,null,null,"",null,null,null,"",null,null,null,""]
[null,null,null,null,null,"",null,null,null,"",null,null,null,"",null,null,null,""]
[null,null,null,null,null,"",null,null,null,"",null,null,null,"",null,null,null,""]
[null,null,null,null,null,"",null,null,null,"",null,null,null,"",null,null,null,""]
[null,null,null,null,null,"",null,null,null,"",null,null,null,"",null,null,null,""]
[null,null,null,null,null,"",null,null,null,"",null,null,null,"",null,null,null,""]
[null,null,null,null,null,"",null,null,null,"",null,null,null,"",null,null,null,""]
[null,null,null,null,null,"",null,null,null,"",null,null,null,"",null,null,null,""]
[null,null,null,null,null,"",null,null,null,"",null,null,null,"",null,null,null,""]
[null,null,null,null,null,"",null,null,null,"",null,null,null,"",null,null,null,""]
[null,null,null,null,null,"",null,null,null,"",null,null,null,"",null,null,null,""]
[null,null,null,null,null,"",null,null,null,"",null,null,null,"",null,null,null,""]
[null,null,null,null,null,"",null,null,null,"",null,null,null,"",null,null,null,""]
[null,null,null,null,null,"",null,null,null,"",null,null,null,"",null,null,null,""]
[null,null,null,null,null,"",null,null,null,"",null,null,null,"",null,null,null,""]
[null,null,null,null,null,"",null,null,null,"",null,null,null,"",null,null,null,""]
[null,null,null,null,null,"",null,null,null,"",null,null,null,"",null,null,null,""]
[null,null,null,null,null,"",null,null,null,"",null,null,null,"",null,null,null,""]
[null,null,null,null,null,"",null,null,null,"",null,null,null,"",null,null,null,""]
[null,null,null,null,null,"",null,null,null,"",null,null,null,"",null,null,null,""]
[null,null,null,null,null,"",null,null,null,"",null,null,null,"",null,null,null,""]
[null,null,null,null,null,"",null,null,null,"",null,null,null,"",null,null,null,""]
[null,null,null,null,null,"",null,null,null,"",null,null,null,"",null,null,null,""]
[null,null,null,null,null,"",null,null,null,"",null,null,null,"",null,null,null,""]
[null,null,null,null,null,"",null,null,null,"",null,null,null,"",null,null,null,""]
[null,null,null,null,null,"",null,null,null,"",null,null,null,"",null,null,null,""]
[null,null,null,null,null,"",null,null,null,"",null,null,null,"",null,null,null,""]
[null,null,null,null,null,"",null,null,null,"",null,null,null,"",null,null,null,""]
[null,null,null,null,null,"",null,null,null,"",null,null,null,"",null,null,null,""]
[null,null,null,null,null,"",null,null,null,"",null,null,null,"",null,null,null,""]
[null,null,null,null,null,"",null,null,null,"",null,null,null,"",null,null,null,""]
[null,null,null,null,{"$f":"CONCATENATE(FIXED(COUNTA(E5:E47),0,0),\"　店\")","v":"4　店"},{"$f":"SUM(F5:F47)","v":10650},{"$f":"SUM(G5:G47)","v":0},null,{"$f":"CONCATENATE(FIXED(COUNTA(I5:I47),0,0),\"　店\")","v":"0　店"},{"$f":"SUM(J5:J47)","v":0},{"$f":"SUM(K5:K47)","v":0},null,{"$f":"CONCATENATE(FIXED(COUNTA(M5:M47),0,0),\"　店\")","v":"0　店"},{"$f":"SUM(N5:N47)","v":0},{"$f":"SUM(O5:O47)","v":0},null,{"$f":"CONCATENATE(FIXED(COUNTA(Q5:Q47),0,0),\"　店\")","v":"1　店"},{"$f":"SUM(R5:R47)","v":450},{"$f":"SUM(S5:S47)","v":0},null,{"$f":"CONCATENATE(FIXED(COUNTA(U5:U47),0,0),\"　店\")","v":"0　店"},{"$f":"SUM(V5:V47)","v":0},{"$f":"SUM(W5:W47)","v":0},{"$f":"SUM(X5:X47)","v":0}]
["2025年後期（8月1日以降）",null,null,null,null,null,null,null,null,null,null,null,null,null,null,null,null,null,null,null,null,null,null,"㈱中日総合サービス"]